Workbook

Sheet AER NRs (hidden)
B1: AER NAMED RANGES
B3: DROP DOWN SELECTORS USED IN WORKBOOKS
B5: COVER SHEET | C5: dms_DataQuality_List | D5: dms_Confid_status_List
C6: -- select -- | D6: -- select --
C7: Actual | D7: Public
C8: Estimate | D8: Confidential
C9: Consolidated
C12: For all files either AER or business needs to be able to specify the type of submission | D12: For PTRM & RFM templates we must provide a choice in case they change their form of control - otherwise it is drawn from the business specific lookup table above.
C13: dms_SourceList | D13: dms_FormControl_Choices
C14: -- select -- | D14: Revenue cap
C15: After appeal | D15: Revenue yield
C16: Draft decision | D16: Weighted average price cap
C17: Final decision
C18: Regulatory proposal
C19: Revised regulatory proposal
K22: This is used to create an image to insert on 6.3 STPIS sheet - not for dropdown lists. | N22: GAS
B23: CA & RESET RINS DNSP | C23: dms_DNSP_020301_SubstationType | D23: dms_DNSP_020301_ProjectType | E23: dms_DNSP_020301_ProjectTrigger | F23: dms_DNSP_020302_ProjectType | G23: dms_DNSP_020302_ProjectTrigger | H23: dms_STPIS_Exclusion_List | I23: dms_Reason_Interruption | J23: dms_Reason_Interruption_Detailed | K23: Reason for interruption | N23: dms_N0205_AssetType
C24: Subtransmission substation | D24: New substation establishment | E24: Demand growth | F24: New line on new route - single circuit | G24: Demand growth | H24: Weather | I24: Animal | J24: Animal impact | K24: Animal | L24: Animal impact | N24: Cast Iron
C25: Zone substation | D25: Substation upgrade - capacity | E25: Voltage issues | F25: New line on new route - dual circuit | G25: Voltage issues | H25: Equipment failure | I25: Asset failure | J25: Animal nesting/burrowing, etc and other | L25: Animal nesting/burrowing, etc and other | N25: PVC
C26: Switching station | D26: Substation upgrade - voltage | E26: Reactive power issue | F26: New line on new route - other | G26: Reactive power issue | H26: Operational error | I26: Other | J26: Other | L26: Other | N26: Polyamide
C27: Other | D27: Other | E27: Fault level issues | F27: Line rebuild over existing route - single circuit | G27: Fault level issues | H27: Vegetation | I27: Overloads | J27: LV | K27: Asset failure | L27: LV | N27: High density polyethylene (80)
E28: Safety | F28: Line rebuild over existing route - dual circuit | G28: Net market benefit | H28: Animals | I28: Planned | J28: Distribution substation | L28: Distribution substation | N28: High density polyethylene (100)
E29: Environment | F29: Reconductor - Single circuit | G29: Safety | H29: Third party impacts | I29: Network business | J29: HV | L29: HV | N29: High density polyethylene (250)
E30: Other | F30: Reconductor - Dual circuit | G30: Environment | H30: Transmission failure | I30: Third party | J30: Zone substation | L30: Zone substation | N30: High density polyethylene (575)
F31: Reconductor - Other | G31: Other | H31: Load shedding | I31: Unknown | J31: Subtransmission | L31: Subtransmission | N31: Medium density polyethylene
F32: Line upgrade - raising/retensoring | H32: Inter-distributor connection failure | I32: Vegetation | J32: insert description of 'other' | K32: Other | L32: insert description of 'other' | N32: Unprotected steel
F33: Line upgrade - voltage upgrade | H33: Other | I33: Weather | J33: Network error | K33: Overloads | N33: Protected steel
F34: Line upgrade - capacity | I34: 2 - STPIS Exclusion (3.3)(a) | J34: Switching and protection error | K34: Planned | N34: Other
F35: String spare circuit | I35: 3 - STPIS Exclusion (3.3)(a) | J35: Fire | K35: Network business | L35: Network error
F36: Other | I36: 4 - STPIS Exclusion (3.3)(a) | J36: Other | L36: Switching and protection error
I37: 5 - STPIS Exclusion (3.3)(a) | J37: Dig-in | K37: Third party | L37: Fire
I38: 6 - STPIS Exclusion (3.3)(a) | J38: Unauthorised access | L38: Other
I39: 7 - STPIS Exclusion (3.3)(a) | J39: Vehicle impact | L39: Dig-in
J40: Unknown | L40: Unauthorised access
J41: Blow-in/Fall-in - NSP responsibility | L41: Vehicle impact
J42: Grow-in - NSP responsibility | K42: Unknown | L42: Unknown
J43: Blow-in/Fall-in - Other responsible party | K43: Vegetation | L43: Blow-in/Fall-in - NSP responsibility
J44: Grow-in - Other responsible party | L44: Grow-in - NSP responsibility
L45: Blow-in/Fall-in - Other responsible party
L46: Grow-in - Other responsible party
K47: Weather
K48: 2 - STPIS Exclusion (3.3)(a)
K49: 3 - STPIS Exclusion (3.3)(a)
K50: 4 - STPIS Exclusion (3.3)(a)
K51: 5 - STPIS Exclusion (3.3)(a)
K52: 6 - STPIS Exclusion (3.3)(a)
K53: 7 - STPIS Exclusion (3.3)(a)
B56: CA & RESET RINS TNSP | C56: dms_TNSP_0203_SubstationType | D56: dms_TNSP_020301_ProjectType | E56: dms_TNSP_020301_ProjectTrigger | F56: dms_TNSP_020302_ProjectType | G56: dms_TNSP_0203_ProjectTrigger
C57: Terminal station | D57: New substation establishment | E57: Demand growth | F57: New line on new route - single circuit | G57: Demand growth
C58: Switching station | D58: Capacity upgrade | E58: Voltage issues | F58: New line on new route - dual circuit | G58: Voltage issues
C59: Transmission substation | D59: Voltage upgrade | E59: Reactive power issue | F59: New line on new route - other | G59: Reactive power issue
C60: Other | D60: Other | E60: Fault level issues | F60: Line rebuild over existing route - single circuit | G60: Fault level issues
E61: Net market benefit | F61: Line rebuild over existing route - dual circuit | G61: Net market benefit
E62: Safety | F62: Reconductor - Single circuit | G62: Safety
E63: Environment | F63: Reconductor - Dual circuit | G63: Environment
E64: Other | F64: Reconductor - Other | G64: Other
F65: Line upgrade - raising/retensoring
F66: Line upgrade - voltage upgrade
F67: Line upgrade - capacity
F68: String spare circuit
F69: Other
B73: NAMED RANGES USED IN ETL PROCESS
M74: GAS ARR & RESET
B75: CA & RESET RINS DNSP ONLY | C75: dms_020303_01_UOM | D75: dms_020501_01_UOM | E75: dms_020501_02_UOM | F75: dms_020501_03_UOM | G75: dms_020501_04_UOM | H75: dms_020701_01_UOM | I75: dms_020701_02_UOM | J75: dms_020701_01_Rows | K75: dms_040102_01_UOM | L75: dms_040102_04_UOM | M75: dms_S140101_UOM | N75: dms_S140201_UOM | O75: dms_E050201_UOM | P75: dms_E050202_UOM
C76: Circuit line length in km | D76: 0's | E76: 0's | F76: 0's | G76: 0's | H76: km | I76: km | J76: Route line length within zone | K76: 0's | L76: days | M76: number | N76: number per km | O76: per metre per connection | P76: metres per connection
C77: Circuit line length in km | D77: 0's | E77: 0's | F77: 0's | G77: 0's | H77: 0's | I77: 0's | J77: Number of maintenance spans | K77: 0's | L77: 0's | M77: number | N77: number | O77: per service per connection | P77: number per connection
C78: Circuit line length in km | D78: MVA added | E78: MVA added | F78: MVA added | G78: MVA added | H78: km | I78: km | J78: Total length of maintenance spans | K78: 0's | L78: $0s | M78: number | N78: number | O78: number per connection | P78: number per connection
C79: Circuit line length in km | D79: 0's | E79: 0's | F79: 0's | G79: 0's | H79: km | I79: km | J79: Length of vegetation corridors | K79: $0s | L79: 0's | M79: km
C80: Number | D80: total spend $0s | E80: total spend $0s | F80: total spend $0s | G80: total spend $0s | H80: 0's | I80: 0's | J80: Average number of trees per maintenance span
C81: Number | D81: net circuit km added | E81: net circuit km added | F81: net circuit km added | G81: net circuit km added | H81: years | I81: years | J81: Average frequency of cutting cycle
C82: Number | D82: total spend $0s | E82: total spend $0s | F82: total spend $0s | G82: total spend $0s
D83: net circuit km added | E83: net circuit km added | F83: net circuit km added | G83: net circuit km added
D84: total spend $0s | E84: total spend $0s | F84: total spend $0s | G84: total spend $0s
D85: 0's | F85: $0s
D86: 0's
D87: 0's
D88: $0s
B91: CA & RESET RINS TNSP ONLY | C91: dms_020701_01_UOM
C92: km
C93: 0's
C94: km
C95: 0's
C96: km
C97: metres
C98: years
B101: CA & RESET RINS DNSP & TNSP | C101: dms_020603_01_UOM
C102: 0's
C103: 0's
C104: 0's
C105: 0's
C106: (per cent)
B109: EB & RESET RINS DNSP ONLY | C109: dms_030601_01_UOM | D109: dms_030601_02_UOM | E109: dms_030701_01_UOM | F109: dms_030702_01_UOM | G109: dms_030703_01_UOM
C110: minutes/customer | D110: minutes/customer | E110: Customer / km | F110: % | G110: km
C111: minutes/customer | D111: minutes/customer | E111: MWh/customer | F111: Number of spans
C112: interruptions/customer | D112: interruptions/customer | E112: kVA / customer | F112: Number of spans
C113: interruptions/customer | D113: interruptions/customer | F113: Number of spans
F114: Number of spans
F115: Years
F116: Years
F117: Trees
F118: Trees
F119: Defects
F120: Defects
F121: Spans
F122: km
F123: Spans
C125: WHEN INSERTING COVER SHEET INTO A TNSP FILE - APPLY THESE NAMED RANGES
B126: EB & RESET RINS TNSP ONLY | C126: dms_030601_01_UOM | E126: dms_030701_01_UOM | F126: dms_030702_01_UOM
C127: % | E127: Number of spans | F127: km
C128: number | E128: Years | F128: %
C129: number | E129: Trees | F129: km
C130: % | E130: Defects | F130: number
C131: number | E131: Number of spans
C132: number | E132: km
C133: % | E133: km
C134: number | E134: Number of spans
C135: number
C136: %
C137: number
C138: %
C139: number
C140: %
C141: number
B143: EB & RESET RINS DNSP & TNSP | C143: dms_EB_RAB_PIT
C144: Beginning of year
C145: End of year
C146: End of year
C147: End of year
C148: End of year
C149: End of year
B151: ARR DNSP ONLY | C151: dms_030605_UOM | D151: dms_03060703_UOM | E151: dms_E020202_UOM | F151: Spare
C152: number | D152: number | E152: Length of mains replaced
C153: number | D153: number | E153: Number of services replaced
C154: number | D154: number
C155: number | D155: number
C156: number | D156: (per cent)
C157: number
C158: number
C159: number
C160: number
C161: number
C162: number
C163: number
C164: (per cent)
C165: (per cent)
B167: RFM | C167: dms_Beg | D167: dms_Mid | E167: dms_End
C168: Beginning of year | D168: Mid year | E168: End of Year
B170: PTRM | C170: dms_PTRM_RAB_PIT | D170: dms_PTRM_TAB_PIT | E170: DMS_Xfactor
C171: Beginning of year | D171: Beginning of year | E171: x factors
C172: End of year | D172: End of year
C173: End of year | D173: End of year
C174: End of year | D174: End of year
C175: End of year
B178: STPIS & MIC NAMED RANGES
B180: These "row descriptions" are the column headings in the various templates but become row descriptions in the ETL process
B182: Table 6.3 sustained interruptions - row descriptions | C182: dms_060301_CustNo_Affected_Row | D182: dms_060301_Avg_Duration_Sustained_Int_Row | E182: dms_060301_Effect_unplanned_SAIDI_Row | F182: dms_060301_Effect_unplanned_SAIFI_Row
C183: Number of customers affected by the interruption | D183: Average duration of sustained customer interruption | E183: Effect on unplanned SAIDI | F183: Effect on unplanned SAIFI
B186: Table 6.1 telephone answering - row descriptions and start date | C186: dms_060101_Rows | D186: dms_060102_Rows | E186: dms_060101_StartDateTxt
C187: Total number of calls (after removing excluded events) | D187: Number of calls answered within 30 seconds (after excluding excluded events) | E187: =dms_060701_StartDateTxt -> 
B190: Table 6.8.1 - row descriptions | C190: dms_060801_01_Rows | D190: dms_060801_02_Rows | E190: dms_060801_03_Rows | F190: dms_060801_04_Rows
C191: Number of interruptions | D191: Duration of interruptions | E191: Total unplanned minutes off supply | F191: Effect on unplanned MAIFI
B194: Table 7.9.4 - market impact component - row descriptions | C194: dms_070904_01_Rows | D194: without exclusions | E194: with exclusions
B197: These headings (Lists) are determined from the INDEX/MATCH function on the NSP selected on the Business & other details sheet
B199: Table 6.7.1 - daily performance data - unplanned - MAIFI -- row descriptions and header named range values | C199: dms_060701_Feeder_Header_Lvl4 | D199: =INDEX(dms_FeederName_1,MATCH(dms_TradingName,dms_TradingName_List)) -> CBD | E199: =INDEX(dms_FeederName_1,MATCH(dms_TradingName,dms_TradingName_List)) -> CBD | F199: =INDEX(dms_FeederName_2,MATCH(dms_TradingName,dms_TradingName_List)) -> Urban | G199: =INDEX(dms_FeederName_2,MATCH(dms_TradingName,dms_TradingName_List)) -> Urban | H199: =INDEX(dms_FeederName_3,MATCH(dms_TradingName,dms_TradingName_List)) -> Short rural | I199: =INDEX(dms_FeederName_3,MATCH(dms_TradingName,dms_TradingName_List)) -> Short rural | J199: =INDEX(dms_FeederName_4,MATCH(dms_TradingName,dms_TradingName_List)) -> Long rural | K199: =INDEX(dms_FeederName_4,MATCH(dms_TradingName,dms_TradingName_List)) -> Long rural | L199: =IF((INDEX(dms_FeederName_5,MATCH(dms_TradingName,dms_TradingName_List))=0),"Network",(INDEX(dms_FeederName_5,MATCH(dms_TradingName,dms_TradingName_List)))) -> Network | M199: =IF((INDEX(dms_FeederName_5,MATCH(dms_TradingName,dms_TradingName_List))=0),"Network",(INDEX(dms_FeederName_5,MATCH(dms_TradingName,dms_TradingName_List)))) -> Network | N199: Network | O199: Network
C201: dms_060701_Rows | D201: All events | E201: After removing excluded events | F201: All events | G201: After removing excluded events | H201: All events | I201: After removing excluded events | J201: All events | K201: After removing excluded events | L201: All events | M201: After removing excluded events | N201: All events | O201: After removing excluded events
D202: the number of column headings changes from 10 to 12 depending on the number of feeder categories for the NSP
C204: dms_0603_FeederList | D204: =INDEX(dms_FeederName_1,MATCH(dms_TradingName,dms_TradingName_List)) -> CBD | E204: =INDEX(dms_FeederName_2,MATCH(dms_TradingName,dms_TradingName_List)) -> Urban | F204: =INDEX(dms_FeederName_3,MATCH(dms_TradingName,dms_TradingName_List)) -> Short rural | G204: =INDEX(dms_FeederName_4,MATCH(dms_TradingName,dms_TradingName_List)) -> Long rural
B207: Use these to add to specific worksheets in existing files | C207: Use these to add to specific worksheets in existing files
B210: ARRs 6.7 STPIS daily performance | C210: dms_060101_Values | D210: dms_060102_Values | E210: dms_060701_Values
C211: dms_LeapYear
B214: ARR's 6.8 STPIS exclusions | C214: dms_060801_Event_Date | D214: dms_060801_OutageID | E214: dms_060801_FeederID | F214: dms_060801_FeederClass | G214: dms_060801_CauseID | H214: dms_060801_01_Values | I214: dms_060801_02_Values | J214: dms_060801_03_Values | K214: dms_060801_Excl_Cat | L214: dms_060801_04_Values
C215: dms_060801_StartCell
B218: CA 6.3 sustained interruptions | C218: dms_060301_Event_Date | D218: dms_060301_Event_Time | E218: dms_060301_AssetID | F218: dms_060301_FeederClass | G218: dms_060301_Reason | H218: dms_060301_DetailedReason | I218: dms_060301_CustNo_Affected_Values | J218: dms_060301_Avg_Duration_Sustained_Int_Values | K218: dms_060301_Effect_unplanned_SAIDI_Values | L218: dms_060301_Effect_unplanned_SAIFI_Values | M218: dms_060301_MED

Sheet AER lookups (hidden)
B1: AER LOOKUP TABLES
B3: Data in these columns used for data validation and database purposes.
B4: Date last modified: | C4: 2017-01-16 | D4: added (Albury and Victora) for AGN
C5: 2016-10-17 | D5: updated TransGrid's correct legal name, corrected TasNetworks (T) to June financial year
C6: 2017-02-01 | D6: inserted Power and Water, added NRs (dms_FeederCat_1 and dms_FeederCat_2)
C7: 2017-03-03 | D7: inserted AEMO as a business
C8: 2018-03-28 | D8: major changes to accommodate STPIS
C9: Template Version | D9: 5
Z11: FOR ELECTRICITY BUSINESSES ONLY
Z12: Feeder Types | AD12: TasNetworks (D) | AE12: Feeder Names
Z14: CBD | AA14: Urban | AB14: Short rural | AC14: long rural | AD14: EXTRA
B15: dms_TradingName_List | C15: dms_TradingNameFull_List | D15: dms_ABN_List | E15: dms_JurisdictionList | F15: dms_Sector_List | G15: dms_Segment_List | H15: dms_FormControl_List | I15: dms_RPT_List | J15: dms_RPTMonth_List | K15: dms_CRCPlength_List | L15: dms_FRCPlength_List | M15: dms_PRCPlength_List | N15: dms_663_List | O15: dms_DeterminationRef_List | P15: dms_Addr1_List | Q15: dms_Addr2_List | R15: dms_Suburb_List | S15: dms_State_List | T15: dms_PostCode_List | U15: dms_PAddr1_List | V15: dms_PAddr2_List | W15: dms_PSuburb_List | X15: dms_PState_List | Y15: dms_PPostCode_List | Z15: dms_CBD_flag | AA15: dms_Urban_flag | AB15: dms_ShortRural_flag | AC15: dms_LongRural_flag | AD15: dms_FeederType_5_flag | AE15: dms_FeederName_1 | AF15: dms_FeederName_2 | AG15: dms_FeederName_3 | AH15: dms_FeederName_4 | AI15: dms_FeederName_5 | AJ15: dms_Public_Lighting_List | AK15: Name
B16: Ausgrid | C16: Ausgrid | D16: 67505337385 | E16: NSW | F16: Electricity | G16: Distribution | H16: Revenue cap | I16: Financial | J16: June | K16: 5 | L16: 5 | M16: 5 | N16: 5 | O16: 2014-19 Distribution Determination | P16: 570 George St | R16: SYDNEY | S16: NSW | T16: 2000 | U16: GPO Box 4009 | W16: SYDNEY | X16: NSW | Y16: 2001 | Z16: YES | AA16: YES | AB16: YES | AC16: YES | AD16: NO | AE16: CBD | AF16: Urban | AG16: Short rural | AH16: Long rural | AJ16: YES | AK16: =B16 -> Ausgrid
B17: Ausgrid (Tx Assets) | C17: Ausgrid (Tx Assets) | D17: 67505337385 | E17: NSW | F17: Electricity | G17: Distribution | H17: Revenue cap | I17: Financial | J17: June | K17: 5 | L17: 5 | M17: 5 | N17: 5 | O17: distribution determination | P17: 570 George St | R17: SYDNEY | S17: NSW | T17: 2000 | U17: GPO Box 4009 | W17: SYDNEY | X17: NSW | Y17: 2001 | Z17: YES | AA17: YES | AB17: YES | AC17: YES | AD17: NO | AE17: CBD | AF17: Urban | AG17: Short rural | AH17: Long rural | AJ17: NO | AK17: Ausgrid (Tx Assets)
B18: AusNet (D) | C18: AusNet Electricity Services Pty Ltd | D18: 91064651118 | E18: Vic | F18: Electricity | G18: Distribution | H18: Revenue cap | I18: Calendar | J18: December | K18: 5 | L18: 5 | M18: 5 | N18: 2 | O18: 2016-20 Distribution Determination | P18: Level 32 | Q18: 2 Southbank Boulevard | R18: SOUTHBANK | S18: Vic | T18: 3006 | U18: Locked Bag 14051 | W18: MELBOURNE CITY MAIL CENTRE | X18: Vic | Y18: 8001 | Z18: NO | AA18: YES | AB18: YES | AC18: YES | AD18: NO | AE18: CBD | AF18: Urban | AG18: Short rural | AH18: Long rural | AJ18: YES | AK18: AusNet (D)
B19: Australian Distribution Co. | C19: Australian Distribution Co. | D19: 11222333444 | E19: NSW | F19: Electricity | G19: Distribution | H19: Revenue cap | I19: Financial | J19: June | K19: 5 | L19: 5 | M19: 5 | N19: 2 | O19: distribution determination | P19: 123 Straight Street | R19: SYDNEY | S19: NSW | T19: 2000 | U19: PO Box 123 | W19: SYDNEY | X19: NSW | Y19: 2000 | Z19: YES | AA19: YES | AB19: YES | AC19: YES | AD19: NO | AE19: CBD | AF19: Urban | AG19: Short rural | AH19: Long rural | AJ19: YES | AK19: Australian Distribution Co.
B20: Australian Distribution Co. (Vic) | C20: Australian Distribution Co. (Victoria) | D20: 11222333444 | E20: Vic | F20: Electricity | G20: Distribution | H20: Revenue cap | I20: Calendar | J20: December | K20: 5 | L20: 5 | M20: 5 | N20: 2 | O20: distribution determination | P20: 123 Straight Street | R20: MELBOURNE | S20: Vic | T20: 3000 | U20: PO Box 123 | W20: MELBOURNE | X20: Vic | Y20: 3000 | Z20: NO | AA20: NO | AB20: NO | AC20: NO | AD20: NO | AE20: CBD | AF20: Urban | AG20: Short rural | AH20: Long rural | AJ20: YES | AK20: Australian Distribution Co. (Vic)
B21: CitiPower | C21: CitiPower | D21: 76064651056 | E21: Vic | F21: Electricity | G21: Distribution | H21: Revenue cap | I21: Calendar | J21: December | K21: 5 | L21: 5 | M21: 5 | N21: 2 | O21: 2016-20 Distribution Determination | P21: 40 Market Street | R21: MELBOURNE | S21: Vic | T21: 3000 | U21: Locked Bag 14090 | W21: MELBOURNE | X21: Vic | Y21: 8001 | Z21: YES | AA21: YES | AB21: NO | AC21: NO | AD21: NO | AE21: CBD | AF21: Urban | AG21: Short rural | AH21: Long rural | AJ21: YES | AK21: CitiPower
B22: Endeavour Energy | C22: Endeavour Energy | D22: 11247365823 | E22: NSW | F22: Electricity | G22: Distribution | H22: Revenue cap | I22: Financial | J22: June | K22: 5 | L22: 5 | M22: 5 | N22: 5 | O22: 2014-19 Distribution Determination | P22: 51 Huntingwood Drive | R22: HUNTINGWOOD | S22: NSW | T22: 2148 | U22: PO Box 811 | W22: SEVEN HILLS | X22: NSW | Y22: 1730 | Z22: YES | AA22: YES | AB22: YES | AC22: YES | AD22: NO | AE22: CBD | AF22: Urban | AG22: Short rural | AH22: Long rural | AJ22: YES | AK22: Endeavour Energy
B23: Energex | C23: Energex | D23: 40078849055 | E23: Qld | F23: Electricity | G23: Distribution | H23: Revenue cap | I23: Financial | J23: June | K23: 5 | L23: 5 | M23: 5 | N23: 5 | O23: 2015-20 Distribution Determination | P23: 26 Reddacliff Street | R23: NEWSTEAD | S23: Qld | T23: 4006 | U23: 26 Reddacliff Street | W23: NEWSTEAD | X23: QLD | Y23: 4006 | Z23: YES | AA23: YES | AB23: YES | AC23: NO | AD23: NO | AE23: CBD | AF23: Urban | AG23: Short rural | AH23: Long rural | AJ23: YES | AK23: Energex
B24: Ergon Energy | C24: Ergon Energy | D24: 50087646062 | E24: Qld | F24: Electricity | G24: Distribution | H24: Revenue cap | I24: Financial | J24: June | K24: 5 | L24: 5 | M24: 5 | N24: 5 | O24: 2015-20 Distribution Determination | P24: 22 Walker Street | R24: TOWNSVILLE | S24: Qld | T24: 4810 | U24: Po Box 264 | W24: FORTITUDE VALLEY | X24: QLD | Y24: 4006 | Z24: NO | AA24: YES | AB24: YES | AC24: YES | AD24: NO | AE24: CBD | AF24: Urban | AG24: Short rural | AH24: Long rural | AJ24: YES | AK24: Ergon Energy
B25: Essential Energy | C25: Essential Energy | D25: 37428185226 | E25: NSW | F25: Electricity | G25: Distribution | H25: Revenue cap | I25: Financial | J25: June | K25: 5 | L25: 5 | M25: 5 | N25: 5 | O25: 2014-19 Distribution Determination | P25: 8 Buller Street | R25: PORT MACQUARIE | S25: NSW | T25: 2444 | U25: PO Box 5730 | W25: PORT MACQUARIE | X25: NSW | Y25: 2444 | Z25: NO | AA25: YES | AB25: YES | AC25: YES | AD25: NO | AE25: CBD | AF25: Urban | AG25: Short rural | AH25: Long rural | AJ25: YES | AK25: Essential Energy
B26: Evoenergy Distribution | C26: Evoenergy Distribution | D26: 76670568688 | E26: ACT | F26: Electricity | G26: Distribution | H26: Revenue cap | I26: Financial | J26: June | K26: 5 | L26: 5 | M26: 5 | N26: 5 | O26: 2014-19 Distribution Determination | P26: 40 Bunda Street | R26: CANBERRA | S26: ACT | T26: 2600 | U26: GPO BOX 366 | W26: CANBERRA | X26: ACT | Y26: 2601 | Z26: NO | AA26: YES | AB26: YES | AC26: NO | AD26: NO | AE26: CBD | AF26: Urban | AG26: Short rural | AH26: Long rural | AJ26: NO | AK26: Evoenergy Distribution
B27: Evoenergy Distribution (Tx Assets) | C27: Evoenergy Distribution (Tx Assets) | D27: 76670568688 | E27: ACT | F27: Electricity | G27: Distribution | H27: Revenue cap | I27: Financial | J27: June | K27: 5 | L27: 5 | M27: 5 | N27: 5 | O27: distribution determination | P27: 40 Bunda Street | R27: CANBERRA | S27: ACT | T27: 2600 | U27: GPO BOX 366 | W27: CANBERRA | X27: ACT | Y27: 2601 | Z27: NO | AA27: YES | AB27: YES | AC27: NO | AD27: NO | AE27: CBD | AF27: Urban | AG27: Short rural | AH27: Long rural | AJ27: NO | AK27: Evoenergy Distribution (Tx Assets)
B28: Jemena Electricity | C28: Jemena Electricity | D28: 82064651083 | E28: Vic | F28: Electricity | G28: Distribution | H28: Revenue cap | I28: Calendar | J28: December | K28: 5 | L28: 5 | M28: 5 | N28: 2 | O28: 2016-20 Distribution Determination | P28: Level 16 | Q28: 567 Collins Street | R28: MELBOURNE | S28: Vic | T28: 3000 | U28: PO Box 16182 | W28: MELBOURNE | X28: Vic | Y28: 8001 | Z28: NO | AA28: YES | AB28: YES | AC28: NO | AD28: NO | AE28: CBD | AF28: Urban | AG28: Short rural | AH28: Long rural | AJ28: YES | AK28: Jemena Electricity
B29: Power and Water | C29: Power and Water Corporation | D29: 15947352360 | E29: NT | F29: Electricity | G29: Distribution | H29: Revenue cap | I29: Financial | J29: June | K29: 5 | L29: 5 | M29: 5 | N29: x | O29: distribution determination | P29: GPO Box 1921 | R29: DARWIN | S29: NT | T29: 801 | U29: GPO Box 1921 | W29: DARWIN | X29: NT | Y29: 801 | Z29: YES | AA29: YES | AB29: YES | AC29: YES | AD29: NO | AE29: CBD | AF29: Urban | AG29: Short rural | AH29: Long rural | AJ29: NO | AK29: Power and Water
B30: Powercor Australia | C30: Powercor Australia | D30: 89064651109 | E30: Vic | F30: Electricity | G30: Distribution | H30: Revenue cap | I30: Calendar | J30: December | K30: 5 | L30: 5 | M30: 5 | N30: 2 | O30: 2016-20 Distribution Determination | P30: 40 Market Street | R30: MELBOURNE | S30: Vic | T30: 3000 | U30: Locked bag 14090 | W30: MELBOURNE | X30: Vic | Y30: 8001 | Z30: NO | AA30: YES | AB30: YES | AC30: YES | AD30: NO | AE30: CBD | AF30: Urban | AG30: Short rural | AH30: Long rural | AJ30: YES | AK30: Powercor Australia
B31: SA Power Networks | C31: SA Power Networks | D31: 13332330749 | E31: SA | F31: Electricity | G31: Distribution | H31: Revenue cap | I31: Financial | J31: June | K31: 5 | L31: 5 | M31: 5 | N31: 5 | O31: 2015-20 Distribution Determination | P31: 1 Anzac Highway | R31: KESWICK | S31: SA | T31: 5035 | U31: GPO Box 77 | W31: ADELAIDE | X31: SA | Y31: 5000 | Z31: YES | AA31: YES | AB31: YES | AC31: YES | AD31: NO | AE31: CBD | AF31: Urban | AG31: Short rural | AH31: Long rural | AJ31: YES | AK31: SA Power Networks
B32: TasNetworks (D) | C32: TasNetworks (D) | D32: 24167357299 | E32: Tas | F32: Electricity | G32: Distribution | H32: Revenue cap | I32: Financial | J32: June | K32: 5 | L32: 5 | M32: 5 | N32: 5 | O32: distribution determination | P32: 1-7 Maria Street | R32: LENAH VALLEY | S32: Tas | T32: 7008 | U32: PO Box 606 | W32: MOONAH | X32: Tas | Y32: 7009 | Z32: YES | AA32: YES | AB32: YES | AC32: YES | AD32: YES | AE32: Critical Infrastructure | AF32: High density commercial | AG32: Urban | AH32: High density rural | AI32: Low density rural | AJ32: YES | AK32: TasNetworks (D)
B33: United Energy | C33: United Energy | D33: 70064651029 | E33: Vic | F33: Electricity | G33: Distribution | H33: Revenue cap | I33: Calendar | J33: December | K33: 5 | L33: 5 | M33: 5 | N33: 2 | O33: 2016-20 Distribution Determination | P33: 43-45 Centreway | R33: MOUNT WAVERLEY | S33: Vic | T33: 3149 | U33: PO Box 449 | W33: MOUNT WAVERLEY | X33: Vic | Y33: 3170 | Z33: NO | AA33: YES | AB33: YES | AC33: NO | AD33: NO | AE33: CBD | AF33: Urban | AG33: Short rural | AH33: Long rural | AJ33: YES | AK33: United Energy
B38: The Reg Year Ending (dms_RYE) must be set to the last year of the regulatory period. For forecast data is is usually (FRCP_y5) for actual it is a single year (CRY). For historical actual data the RYE will need to be set manually in the business details sheet by setting the dms_Multiyear_flag to 1 and putting the correct value in 'dms_Specified_FinalYear. See cells C67:C68
B39: dms_Model_List | C39: dms_Model_Name_Format1 | D39: dms_Worksheet_List | E39: dms_Model_Span_List
B40: ARR | C40: Annual Reporting | D40: =IF(dms_MultiYear_ResponseFlag="yes","NEW HISTORICAL ANNUAL REPORTING","ANNUAL REPORTING") -> ANNUAL REPORTING | E40: 1
B41: CA | C41: Category Analysis | D41: =IF(dms_MultiYear_ResponseFlag="yes","NEW HISTORICAL CATEGORY ANALYSIS","CATEGORY ANALYSIS") -> CATEGORY ANALYSIS | E41: 1
B42: CESS | C42: Capitlal Expenditure | D42: CAPITLAL EXPENDITURE SHARING SCHEMING | E42: 5
B43: CPI | C43: CPI | D43: CPI | E43: 5
B44: EB | C44: Economic Benchmarking | D44: =IF(dms_MultiYear_ResponseFlag="yes","NEW HISTORICAL ECONOMIC BENCHMARKING","ECONOMIC BENCHMARKING") -> ECONOMIC BENCHMARKING | E44: 1
B45: Pricing | C45: Pricing Proposal | D45: PRICING PROPOSAL | E45: 5
B46: PTRM | C46: Post Tax Revenue Model | D46: POST TAX REVENUE MODEL | E46: 5
B47: Reset | C47: Regulatory Reporting (Reset) | D47: REGULATORY REPORTING STATEMENT | E47: 5
B48: RFM | C48: Roll Forward Model | D48: ROLL FORWARD MODEL | E48: 5
B49: WACC | C49: Weighted Average Cost of Capital | D49: WEIGHTED AVERAGE COST OF CAPITAL | E49: 1
B53: Financial | C53: Calendar | E53: PREVIOUS | G53: CURRENT | I53: FORTHCOMING
B54: 1987-88 | C54: 1988 | D54: PRCP_y1 | E54: =INDEX(INDIRECT(dms_RPT),dms_PRCP_start_row) ->  | F54: CRCP_y1 | G54: =INDEX(INDIRECT(dms_RPT),dms_CRCP_start_row) ->  | H54: =FRCP_y1 -> 2021 | I54: =INDEX(INDIRECT(dms_RPT),dms_FRCP_start_row) -> 
B55: 1988-89 | C55: 1989 | D55: PRCP_y2 | E55: =INDEX(INDIRECT(dms_RPT),dms_PRCP_start_row+1) ->  | F55: CRCP_y2 | G55: =INDEX(INDIRECT(dms_RPT),dms_CRCP_start_row+1) ->  | H55: FRCP_y2 | I55: =INDEX(INDIRECT(dms_RPT),dms_FRCP_start_row+1) -> 
B56: 1989-90 | C56: 1990 | D56: PRCP_y3 | E56: =INDEX(INDIRECT(dms_RPT),dms_PRCP_start_row+2) ->  | F56: CRCP_y3 | G56: =INDEX(INDIRECT(dms_RPT),dms_CRCP_start_row+2) ->  | H56: FRCP_y3 | I56: =INDEX(INDIRECT(dms_RPT),dms_FRCP_start_row+2) -> 
B57: 1990-91 | C57: 1991 | D57: PRCP_y4 | E57: =INDEX(INDIRECT(dms_RPT),dms_PRCP_start_row+3) ->  | F57: CRCP_y4 | G57: =INDEX(INDIRECT(dms_RPT),dms_CRCP_start_row+3) ->  | H57: FRCP_y4 | I57: =INDEX(INDIRECT(dms_RPT),dms_FRCP_start_row+3) -> 
B58: 1991-92 | C58: 1992 | D58: PRCP_y5 | E58: =INDEX(INDIRECT(dms_RPT),dms_PRCP_start_row+4) ->  | F58: CRCP_y5 | G58: =INDEX(INDIRECT(dms_RPT),dms_CRCP_start_row+4) ->  | H58: FRCP_y5 | I58: =INDEX(INDIRECT(dms_RPT),dms_FRCP_start_row+4) -> 
B59: 1992-93 | C59: 1993 | D59: PRCP_y6 | E59: =INDEX(INDIRECT(dms_RPT),dms_PRCP_start_row+5) ->  | F59: CRCP_y6 | G59: =INDEX(INDIRECT(dms_RPT),dms_CRCP_start_row+5) ->  | H59: FRCP_y6 | I59: =INDEX(INDIRECT(dms_RPT),dms_FRCP_start_row+5) -> 
B60: 1993-94 | C60: 1994 | D60: PRCP_y7 | E60: =INDEX(INDIRECT(dms_RPT),dms_PRCP_start_row+6) ->  | F60: CRCP_y7 | G60: =INDEX(INDIRECT(dms_RPT),dms_CRCP_start_row+6) ->  | H60: FRCP_y7 | I60: =INDEX(INDIRECT(dms_RPT),dms_FRCP_start_row+6) -> 
B61: 1994-95 | C61: 1995 | D61: PRCP_y8 | E61: =INDEX(INDIRECT(dms_RPT),dms_PRCP_start_row+7) ->  | F61: CRCP_y8 | G61: =INDEX(INDIRECT(dms_RPT),dms_CRCP_start_row+7) ->  | H61: FRCP_y8 | I61: =INDEX(INDIRECT(dms_RPT),dms_FRCP_start_row+7) -> 
B62: 1995-96 | C62: 1996 | D62: PRCP_y9 | E62: =INDEX(INDIRECT(dms_RPT),dms_PRCP_start_row+8) ->  | F62: CRCP_y9 | G62: =INDEX(INDIRECT(dms_RPT),dms_CRCP_start_row+8) ->  | H62: FRCP_y9 | I62: =INDEX(INDIRECT(dms_RPT),dms_FRCP_start_row+8) -> 
B63: 1996-97 | C63: 1997 | D63: PRCP_y10 | E63: =INDEX(INDIRECT(dms_RPT),dms_PRCP_start_row+9) ->  | F63: CRCP_y10 | G63: =INDEX(INDIRECT(dms_RPT),dms_CRCP_start_row+9) ->  | H63: FRCP_y10 | I63: =INDEX(INDIRECT(dms_RPT),dms_FRCP_start_row+9) -> 
B64: 1997-98 | C64: 1998 | D64: PRCP_y11 | E64: =INDEX(INDIRECT(dms_RPT),dms_PRCP_start_row+10) ->  | F64: CRCP_y11 | G64: =INDEX(INDIRECT(dms_RPT),dms_CRCP_start_row+10) ->  | H64: FRCP_y11 | I64: =INDEX(INDIRECT(dms_RPT),dms_FRCP_start_row+10) -> 
B65: 1998-99 | C65: 1999 | D65: PRCP_y12 | E65: =INDEX(INDIRECT(dms_RPT),dms_PRCP_start_row+11) ->  | F65: CRCP_y12 | G65: =INDEX(INDIRECT(dms_RPT),dms_CRCP_start_row+11) ->  | H65: FRCP_y12 | I65: =INDEX(INDIRECT(dms_RPT),dms_FRCP_start_row+11) -> 
B66: 1999-00 | C66: 2000 | D66: PRCP_y13 | E66: =INDEX(INDIRECT(dms_RPT),dms_PRCP_start_row+12) ->  | F66: CRCP_y13 | G66: =INDEX(INDIRECT(dms_RPT),dms_CRCP_start_row+12) ->  | H66: FRCP_y13 | I66: =INDEX(INDIRECT(dms_RPT),dms_FRCP_start_row+12) -> 
B67: 2000-01 | C67: 2001 | D67: PRCP_y14 | E67: =INDEX(INDIRECT(dms_RPT),dms_PRCP_start_row+13) ->  | F67: CRCP_y14 | G67: =INDEX(INDIRECT(dms_RPT),dms_CRCP_start_row+13) ->  | H67: FRCP_y14 | I67: =INDEX(INDIRECT(dms_RPT),dms_FRCP_start_row+13) -> 
B68: 2001-02 | C68: 2002 | D68: PRCP_y15 | E68: =INDEX(INDIRECT(dms_RPT),dms_PRCP_start_row+14) ->  | F68: CRCP_y15 | G68: =INDEX(INDIRECT(dms_RPT),dms_CRCP_start_row+14) ->  | H68: FRCP_y15 | I68: =INDEX(INDIRECT(dms_RPT),dms_FRCP_start_row+14) -> 
B69: 2002-03 | C69: 2003 | D69: PRCP_y16 | E69: =INDEX(INDIRECT(dms_RPT),dms_PRCP_start_row+15) ->  | F69: CRCP_y16 | G69: =INDEX(INDIRECT(dms_RPT),dms_CRCP_start_row+15) ->  | H69: FRCP_y16 | I69: =INDEX(INDIRECT(dms_RPT),dms_FRCP_start_row+15) -> 
B70: 2003-04 | C70: 2004
B71: 2004-05 | C71: 2005
B72: 2005-06 | C72: 2006 | E72: CRY - FRY
B73: 2006-07 | C73: 2007 | D73: dms_y1 | E73: =IFERROR(INDEX(INDIRECT(dms_RPT),dms_CRY_start_row),0) -> 2006-07
B74: 2007-08 | C74: 2008 | D74: dms_y2 | E74: =IFERROR(INDEX(INDIRECT(dms_RPT),dms_CRY_start_row+1),0) -> 1987-88
B75: 2008-09 | C75: 2009 | D75: dms_y3 | E75: =IFERROR(INDEX(INDIRECT(dms_RPT),dms_CRY_start_row+2),0) -> 1988-89
B76: 2009-10 | C76: 2010 | D76: dms_y4 | E76: =IFERROR(INDEX(INDIRECT(dms_RPT),dms_CRY_start_row+3),0) -> 1989-90
B77: 2010-11 | C77: 2011 | D77: dms_y5 | E77: =IFERROR(INDEX(INDIRECT(dms_RPT),dms_CRY_start_row+4),0) -> 1990-91
B78: 2011-12 | C78: 2012 | D78: dms_y6 | E78: =IFERROR(INDEX(INDIRECT(dms_RPT),dms_CRY_start_row+5),0) -> 1991-92
B79: 2012-13 | C79: 2013 | D79: dms_y7 | E79: =IFERROR(INDEX(INDIRECT(dms_RPT),dms_CRY_start_row+6),0) -> 1992-93
B80: 2013-14 | C80: 2014 | D80: dms_y8 | E80: =IFERROR(INDEX(INDIRECT(dms_RPT),dms_CRY_start_row+7),0) -> 1993-94
B81: 2014-15 | C81: 2015 | D81: dms_y9 | E81: =IFERROR(INDEX(INDIRECT(dms_RPT),dms_CRY_start_row+8),0) -> 1994-95
B82: 2015-16 | C82: 2016 | D82: dms_y10 | E82: =IFERROR(INDEX(INDIRECT(dms_RPT),dms_CRY_start_row+9),0) -> 1995-96
B83: 2016-17 | C83: 2017 | D83: dms_y11 | E83: =IFERROR(INDEX(INDIRECT(dms_RPT),dms_CRY_start_row+10),0) -> 1996-97
B84: 2017-18 | C84: 2018 | D84: dms_y12 | E84: =IFERROR(INDEX(INDIRECT(dms_RPT),dms_CRY_start_row+11),0) -> 1997-98
B85: 2018-19 | C85: 2019 | D85: dms_y13 | E85: =IFERROR(INDEX(INDIRECT(dms_RPT),dms_CRY_start_row+12),0) -> 1998-99
B86: 2019-20 | C86: 2020 | D86: dms_y14 | E86: =IFERROR(INDEX(INDIRECT(dms_RPT),dms_CRY_start_row+13),0) -> 1999-00
B87: 2020-21 | C87: 2021 | D87: dms_y15 | E87: =IFERROR(INDEX(INDIRECT(dms_RPT),dms_CRY_start_row+14),0) -> 2000-01
B88: 2021-22 | C88: 2022 | D88: dms_y16 | E88: =IFERROR(INDEX(INDIRECT(dms_RPT),dms_CRY_start_row+15),0) -> 2001-02
B89: 2022-23 | C89: 2023
B90: 2023-24 | C90: 2024
B91: 2024-25 | C91: 2025
B92: 2025-26 | C92: 2026
B93: 2026-27 | C93: 2027
B94: 2027-28 | C94: 2028
B95: 2028-29 | C95: 2029
B96: 2029-30 | C96: 2030
B97: 2030-31 | C97: 2031
B98: 2031-32 | C98: 2032
B99: 2032-33 | C99: 2033
B100: 2033-34 | C100: 2034
B101: 2034-35 | C101: 2035
B102: 2035-36 | C102: 2036
B103: 2036-37 | C103: 2037

Sheet AER ETL (hidden)
B1: AER ETL INFORMATION
B3: USES NAMED RANGES FLAG | C3: yes | D3: dms_Defined_Names_Used
B5: IF THIS IS AN ABC RIN - make sure the the named range CRY is applied and the named range dms_dollar_nom_UOM is applied
B6: IF THIS IS A RESET RIN - make sure the named ranges CRY and dms_dollar_nom_UOM are NOT present in the workbook
B7: FOR ABC RINS THAT SPAN MULTIPLE YEARS - make sure MultiYear Flag is set and final year entered as required
B9: Full trading name | C9: =INDEX(dms_TradingNameFull_List,MATCH(dms_TradingName,dms_TradingName_List)) -> Ergon Energy | E9: dms_TradingNameFull
B10: Trading name | C10: =dms_TradingName -> Ergon Energy
A11: Selected here | B11: Model / RIN | C11: RFM | D11: dms_Model
A12: Read from Business & other details | B12: Source | C12: =dms_Selected_Source -> Regulatory proposal | D12: dms_Source
B13: Data quality | C13: Consolidated | D13: For DB purposes this is always Consoldiated
B14: Data status | C14: Public | D14: For DB purposes this is always Public
B15: Amendment reason | C15: =dms_Amendment_Text -> . | F15: dms_AmendmentReason
B16: Submission date | C16: =dms_Typed_Submission_Date -> dd/mm/yy | D16: dms_SubmissionDate
A18: Redundant | B18: EBSS - First application of scheme in forthcoming period? | C18: No
A19: Pre-populated from lookup table | B19: Data ingestion data quality | C19: Consolidated | D19: dms_DataQuality | E19: Always Consolidated
B20: Sector | C20: =INDEX(dms_Sector_List,MATCH(dms_TradingName,dms_TradingName_List)) -> Electricity | D20: dms_Sector | E20: =INDEX(dms_Sector_List,MATCH(dms_TradingName,dms_TradingName_List))
B21: Segment | C21: =INDEX(dms_Segment_List,MATCH(dms_TradingName,dms_TradingName_List)) -> Distribution | D21: dms_Segment | E21: =INDEX(dms_Segment_List,MATCH(dms_TradingName,dms_TradingName_List))
B22: Regulatory Year Ending | C22: =dms_RYE_result ->  | D22: dms_RYE | E22: =IF(dms_MultiYear_Flag=1,LEFT(dms_Specified_FinalYear,2)&RIGHT(dms_Specified_FinalYear,2),INDEX(dms_RYE_Formula_Result,MATCH(dms_Model,dms_Model_List)))
B23: Reporting Period Type | C23: =INDEX(dms_RPT_List,MATCH(dms_TradingName,dms_TradingName_List)) -> Financial | D23: dms_RPT | E23: =INDEX(dms_RPT_List,MATCH(dms_TradingName,dms_TradingName_List))
B24: EB/CA Unit of Measure for Monetary Values | C24: $0s | D24: dms_dollar_nom_UOM | E24: If the cover sheet is attached to an ABC RIN apply the NAMED RANGE to the cell
B25: Security Classification | C25: Public | D25: dms_Classification | E25: Always Public
B26: Jurisdiction | C26: =INDEX(dms_JurisdictionList,MATCH(dms_TradingName,dms_TradingName_List)) -> Qld | D26: dms_Jurisdiction | E26: =INDEX(dms_JurisdictionList,MATCH(dms_TradingName,dms_TradingName_List))
A27: Relevant for PTRM, RFMs and Reset RINS | B27: $ REAL REFERENCES
B28: Does the named range CRY exist in this file? | C28: =IFERROR(CRY,"NO") -> NO
B29: CRY-1 (last full calendar year before CRY) | C29: =IFERROR(IF(dms_RPT="calendar",CRY-1,LEFT(CRY,4)),"CRY not present") -> CRY not present | D29: dms_Cal_Year_B4_CRY | E29: '=IF(dms_RPT="financial",VALUE(LEFT(dms_SingleYear_FinalYear_Result,4)),VALUE(LEFT(dms_SingleYear_FinalYear_Result,4)-1))
B30: Dollar $ real month | C30: =INDEX(dms_RPTMonth_List,MATCH(dms_TradingName,dms_TradingName_List)) -> June | D30: dms_RPTMonth | E30: =INDEX(dms_RPTMonth_List,MATCH(dms_TradingName,dms_TradingName_List))
B31: Dollar $ real (the last month before the FRCP_y1) | C31: =IF(dms_SingleYearModel="yes",CONCATENATE(dms_RPTMonth)&" "&VALUE((LEFT(dms_CRY_start_year,2)&RIGHT(dms_CRY_start_year,2))),CONCATENATE(dms_RPTMonth)&" "&dms_DollarReal_year) ->  | D31: dms_DollarReal | E31: =IF(SUM(dms_SingleYear_Model)>0,CONCATENATE(dms_RPTMonth)&" "&VALUE((LEFT(CRY,2))&RIGHT(CRY,2)),CONCATENATE(dms_RPTMonth)&" "&VALUE((LEFT(dms_RYE,2)&RIGHT(dms_RYE,2))))
B32: Dollar $ real previous year (PRCP_y5) | C32: =CONCATENATE(dms_RPTMonth)&" "&dms_Previous_DollarReal_year ->  | D32: dms_DollarReal_Prev | E32: =IF(SUM(dms_SingleYear_Model)>0,CONCATENATE(dms_RPTMonth)&" "&VALUE(((LEFT(CRY,2))&RIGHT(CRY,2))-1),CONCATENATE(dms_RPTMonth)&" "&VALUE(((LEFT(dms_CRCP_FirstYear_Result,2)&RIGHT(dms_CRCP_FirstYear_Result,2))))-1)
B33: PTRM/ RFMs
B34: Form of control | C34: =INDEX(dms_FormControl_List,MATCH(dms_TradingName,dms_TradingName_List)) -> Revenue cap | D34: dms_FormControl | E34: =INDEX(dms_FormControl_List,MATCH(dms_TradingName,dms_TradingName_List))
A35: All potential values for Regulatory Years or RYEs as calculated | B35: This block works out the various RYE's for ALL RIN types and MODELS
B36: dms_start_year | C36: =FRCP_y1 -> 2021 | D36: =FRCP_y1 | E36: FRCP_y1 from cover sheet
B37: dms_CRY_start_year | C37: =IFERROR(CRY,CRCP_y4) ->  | D37: =IFERROR(CRY,CRCP_y4)
B38: dms_CRY_start_row | C38: =IFERROR(MATCH(dms_CRY_start_year,INDIRECT(dms_RPT),0),0) -> 0 | D38: =IFERROR(MATCH(dms_CRY_start_year,INDIRECT(dms_RPT),0),0)
B39: dms_FRCP_start_row | C39: =MATCH(dms_start_year,INDIRECT(dms_RPT),0) ->  | D39: =MATCH(dms_start_year,INDIRECT(dms_RPT),0) | E39: Uses FRCP_y1 as a start reference
B40: dms_CRCP_start_row | C40: =dms_FRCP_start_row-dms_CRCPlength_Num ->  | D40: =dms_FRCP_start_row-dms_CRCPlength_Num | E40: Uses the value in dms_CRCPlength_Num
B41: dms_PRCP_start_row | C41: =dms_FRCP_start_row-dms_CRCPlength_Num-dms_PRCPlength_Num ->  | D41: =dms_FRCP_start_row-dms_CRCPlength_Num-dms_PRCPlength_Num | E41: Uses the value in dms_CRCPlength_Num and dms_PRCPlength_Num
B42: dms_RYE_start_row | C42: =dms_FRCP_start_row+(dms_FRCPlength_Num-1) ->  | D42: =dms_FRCP_start_row+(dms_FRCPlength_Num-1) | E42: Uses the value in dms_FRCPlength_Num-1
B43: FRCP_start_year | C43: =INDEX(INDIRECT(dms_RPT),dms_FRCP_start_row) ->  | D43: =INDEX(INDIRECT(dms_RPT),dms_FRCP_start_row) | E43: Converts the FRCP start row to display the year
B44: CRCP_start_year | C44: =INDEX(INDIRECT(dms_RPT),dms_CRCP_start_row) ->  | D44: =INDEX(INDIRECT(dms_RPT),dms_CRCP_start_row) | E44: Converts the CRCP start row to display the year
B45: PRCP_start_year | C45: =INDEX(INDIRECT(dms_RPT),dms_PRCP_start_row) ->  | D45: =INDEX(INDIRECT(dms_RPT),dms_PRCP_start_row) | E45: Converts the PRCP start row to display the year
B46: FRCP_final_year | C46: =INDEX(INDIRECT(dms_RPT),dms_FRCP_start_row+dms_FRCPlength_Num-1) ->  | D46: =INDEX(INDIRECT(dms_RPT),dms_FRCP_start_row+dms_FRCPlength_Num-1) | E46: Finds the FRCP final year
B47: CRCP_final_year | C47: =INDEX(INDIRECT(dms_RPT),dms_CRCP_start_row+dms_CRCPlength_Num-1) ->  | D47: =INDEX(INDIRECT(dms_RPT),dms_CRCP_start_row+dms_CRCPlength_Num-1) | E47: Finds the CRCP final year
B48: PRCP_final_year | C48: =INDEX(INDIRECT(dms_RPT),dms_PRCP_start_row+dms_FRCPlength_Num-1) ->  | D48: =INDEX(INDIRECT(dms_RPT),dms_PRCP_start_row+dms_FRCPlength_Num-1) | E48: Finds the PRCP final year
B49: dms_Reset_final_year | C49: =INDEX(INDIRECT(dms_RPT),dms_RYE_start_row) ->  | D49: =INDEX(INDIRECT(dms_RPT),dms_RYE_start_row) | E49: For Resets and PTRM/RFMs (same as FRCP_final_year)
B50: dms_SpecifiedYear_final_year | C50: =FRY ->  | D50: =FRY | E50: FRY from cover sheet
B51: dms_DollarReal_year | C51: =LEFT(CRCP_final_year,2)&RIGHT(CRCP_final_year,2) ->  | D51: =LEFT(CRCP_final_year,2)&RIGHT(CRCP_final_year,2) | E51: Uses the value in CRCP_final_year
B52: dms_Previous_DollarReal_year | C52: =LEFT(PRCP_final_year,2)&RIGHT(PRCP_final_year,2) ->  | D52: =LEFT(PRCP_final_year,2)&RIGHT(PRCP_final_year,2) | E52: Uses the value in PRCP_final_year
B53: dms_CRY_RYE | C53: =IFERROR(LEFT(CRY,2)&RIGHT(CRY,2),0) -> 0 | D53: =IFERROR(LEFT(CRY,2)&RIGHT(CRY,2),0) | E53: For ABC single year RINS
B54: dms_Reset_RYE | C54: =IF(dms_Model_Span>1,IF(dms_Model="RFM",(LEFT(dms_DollarReal_year,2)&RIGHT(dms_DollarReal_year,2)),(LEFT(dms_Reset_final_year,2)&RIGHT(dms_Reset_final_year,2))),0) ->  | D54: =IF(dms_Model_Span>1,IF(dms_Model="RFM",(LEFT(dms_DollarReal_year,2)&RIGHT(dms_DollarReal_year,2)),(LEFT(dms_Reset_final_year,2)&RIGHT(dms_Reset_final_year,2))),0) | E54: If model span > 1 then uses dms_Reset_RYE otherwise it's a multi year ABC and uses dms_Specified_RYE
B55: dms_Specified_RYE | C55: =IF(dms_MultiYear_ResponseFlag="Yes",(LEFT(dms_Specified_FinalYear,2)&RIGHT(dms_Specified_FinalYear,2)),0) -> 0 | D55: =IF(dms_MultiYear_ResponseFlag="Yes",(LEFT(dms_Specified_FinalYear,2)&RIGHT(dms_Specified_FinalYear,2)),0) | E55: If multi year ABC - uses dms_Specified_FinalYear
B56: dms_Model_Span | C56: =INDEX(dms_Model_Span_List,MATCH(dms_Model,dms_Model_List)) -> 5 | D56: =INDEX(dms_Model_Span_List,MATCH(dms_Model,dms_Model_List)) | E56: A result of 5 is used to signify that it is more than 1 year span
B57: dms_RYE_result | C57: =IF(dms_MultiYear_ResponseFlag="yes",dms_Specified_RYE,(IF(dms_Model_Span>1,dms_Reset_RYE,dms_CRY_RYE))) ->  | D57: =IF(dms_MultiYear_ResponseFlag="yes",dms_Specified_RYE,(IF(dms_Model_Span>1,dms_Reset_RYE,dms_CRY_RYE))) | E57: Nested IF - feeds into dms_RYE
B58: dms_Reset_Span | C58: =IF(dms_Reset_RYE>0,CONCATENATE(FRCP_y1," to ",FRCP_final_year),0) ->  | D58: =IF(dms_Reset_RYE>0,CONCATENATE(FRCP_y1," to ",FRCP_final_year),0) | E58: Reset span of years as text
B59: dms_SpecifiedYear_Span | C59: =IF(dms_Specified_RYE>0,CONCATENATE(CRY," to ",dms_Specified_FinalYear),0) -> 0 | D59: =IF(dms_Specified_RYE>0,CONCATENATE(CRY," to ",dms_Specified_FinalYear),0) | E59: Multi year ABC span of years as text
B60: dms_Header_Span | C60: =IF(dms_MultiYear_Flag=1,dms_SpecifiedYear_Span,IF(dms_Model_Span>1,dms_y1&" - "&FRCP_final_year,CRY)) ->  | D60: =IF(dms_MultiYear_Flag=1,dms_SpecifiedYear_Span,IF(dms_Model_Span>1,dms_Reset_Span,CRY)) | E60: NESTED IF - for Sheet Headers
B61: ABC RINS THAT SPAN MULTIPLE YEARS
B62: This is a multi year ABC RIN? | C62: No
C63: =IF(dms_MultiYear_ResponseFlag="No",0,1) -> 0 | D63: dms_MultiYear_Flag | E63: This is set from the answer provided above
C64: =IF(dms_MultiYear_Flag=1,FRY,"not a Multiple year submission") -> not a Multiple year submission | D64: dms_Specified_FinalYear | E64: The result here is returned to dms_CRCP_FinalYear_Result if response to Q in C73 is "yes" and dms_MultiYear_Flag is set to 1
B65: Start year for 5.2 in Multi year ABC RINS | C65: =IFERROR(IF(dms_MultiYear_Flag=1,FRY,CRY),"not an ABC") -> not an ABC | D65: dms_0502_Inst_Year | E65: =IF(dms_MultiYear_Flag=1,FRY,CRY) | G65: For single year RINS this is CRY - multi year RINS need to start a the end of the span of years (ie. FRY)
B66: WHAT IS THE RYE?
B67: Reg Period Lengths
B68: PRCP length in years | C68: =INDEX(dms_PRCPlength_List,MATCH(dms_TradingName,dms_TradingName_List)) -> 5 | D68: dms_PRCPlength_Num | E68: =INDEX(dms_PRCPlength_List,MATCH(dms_TradingName,dms_TradingName_List))
B69: CRCP length in years | C69: =INDEX(dms_CRCPlength_List,MATCH(dms_TradingName,dms_TradingName_List)) -> 5 | D69: dms_CRCPlength_Num | E69: =INDEX(dms_CRCPlength_List,MATCH(dms_TradingName,dms_TradingName_List))
B70: FRCP length in years | C70: =INDEX(dms_FRCPlength_List,MATCH(dms_TradingName,dms_TradingName_List)) -> 5 | D70: dms_FRCPlength_Num | E70: =INDEX(dms_FRCPlength_List,MATCH(dms_TradingName,dms_TradingName_List))
B71: Single year RIN?
B72: Single Year ABC RIN ? | C72: =IF(dms_Model="EB",1,0) -> 0 | D72: dms_EB
C73: =IF(dms_Model="CA",1,0) -> 0 | D73: dms_CA | E73: =dms_SingleYear_Model
C74: =IF(dms_Model="ARR",1,0) -> 0 | D74: dms_ARR
B75: Is this a single Year ABC RIN? | C75: =IF(SUM(dms_SingleYear_Model)=1,"yes","no") -> no | D75: dms_SingleYearModel | E75: =IF(SUM(dms_SingleYear_Model)=1,"yes","no")
B76: Single Year Final Year Result | C76: =IF(AND(dms_SingleYearModel="yes",dms_MultiYear_Flag=0),CRY,0) -> 0 | D76: dms_SingleYear_FinalYear_Result | E76: =IFERROR(IF(SUM(dms_SingleYear_Model)<>0,(INDIRECT(dms_SingleYear_FinalYear_Ref)),"not a single year RIN"),"CRY not present")
B77: Multi year RIN?
B79: Multi Year Reset/Model? | C79: =IF(dms_Model_Span>1,"yes","no") -> yes
B80: Final year result for Reset/Model | C80: =IF(dms_Model_Span>1,dms_Reset_final_year,0) ->  | D80: dms_MultiYear_FinalYear_Result | E80: dms_CRCP_FinalYear_Result
B82: Multi Year ABC RIN? | C82: =IF(dms_MultiYear_Flag=1,"yes","no") -> no | D82: dms_MultiYear_ABC_RIN
B83: Final year result for ABC multi year | C83: =IF(dms_MultiYear_Flag=1,C50,0) -> 0
B85: EB RINS
B86: Calendar Year for table 3.6 data | C86: =IFERROR(IF(dms_Segment="Transmission",dms_Cal_Year_B4_CRY,CRY),"CRY not present") -> CRY not present | D86: dms_0306_Year | E86: =IF(dms_Segment="Transmission",dms_Cal_Year_B4_CRY,CRY)
B87: CA RINS
B88: Find how many rows in tables 6.3 sustained interruptions? | E88: dms_060301_MaxRows only returns a valid value when cover sheet is attached to a CA file
C89: =IF(dms_Model<>"CA","not a CA","Is a CA") -> not a CA | E89: =IF(dms_Model<>"CA","not a CA","Is a CA")
B90: dms_060301_Avg_Duration_Sustained_Int_Values present? | C90: =IFERROR(IF(INDEX(dms_060301_Avg_Duration_Sustained_Int_Values,1,1)<>"","yes","no"),"no") -> no | D90: dms_060301_checkvalue | E90: =IFERROR(IF(INDEX(dms_060301_Avg_Duration_Sustained_Int_Values,1,1)<>"","yes","no"),"no")
C91: =IF(AND(dms_Model="CA",(dms_060301_checkvalue="no")),"error - NR not present","no errors") -> no errors | E91: =IF(AND(dms_Model="CA",(dms_060301_checkvalue="no")),"error - NR not present","no errors")
B92: Table 6.3.1 - last row reference | C92: =IFERROR(IF(dms_Model="CA",LOOKUP(2,1/(dms_060301_Avg_Duration_Sustained_Int_Values<>""),(ROW(dms_060301_Avg_Duration_Sustained_Int_Values))),"not a CA"),"6.3 not present") -> not a CA | D92: dms_060301_LastRow | E92: =IFERROR(IF(dms_Model="CA",LOOKUP(2,1/(dms_060301_Avg_Duration_Sustained_Int_Values<>""),(ROW(dms_060301_Avg_Duration_Sustained_Int_Values))),"not a CA"),"6.3 not present")
B93: Table 6.3.1 - max number rows | C93: =IFERROR(IF(dms_Model="CA",(dms_060301_LastRow-15),"not a CA"),"error") -> not a CA | D93: dms_060301_MaxRows | E93: =IFERROR(IF(dms_Model="CA",(dms_060301_LastRow-15),"not a CA"),"error")
B94: Table 6.6.3 - Public lighting repair - no. business days | C94: =INDEX(dms_663_List,MATCH(dms_TradingName,dms_TradingName_List)) -> 5 | D94: dms_663 | E94: =INDEX(dms_663_List,MATCH(dms_TradingName,dms_TradingName_List))
B95: ARR or RESET RINS
B96: How many rows in tables 6.1 or 6.7? (leap year?) | C96: insert dms_LeapYear NR if required | E96: 'dms_LeapYear is used to determine dms_060701_Max_Rows BUT it is only found on worksheet 6.1 or 6.7 and the date value in the cell is used to determine whether it is a leap year
B97: Is dms_LeapYear named range present? | C97: =IFERROR(IF(dms_LeapYear,"yes"),"no") -> no
B98: Table 6.7.1 - includes a leap year? | C98: =IFERROR(IF(MONTH(DATE(YEAR(dms_LeapYear),2,29))=2,"is a leap year","not a leap year"), "dms_LeapYear not present") -> dms_LeapYear not present | D98: dms_LeapYear_Result | E98: =IFERROR(IF(MONTH(DATE(YEAR(dms_LeapYear),2,29))=2,"is a leap year","not a leap year"),"dms_LeapYear not present")
B99: MaxRows if Reset and leap year | C99: =IF(dms_LeapYear_Result="is a leap year",1827,1826) -> 1826 | D99: dms_060701_Reset_MaxRows | E99: =IF(dms_LeapYear_Result="is a leap year",1827,1826) | H99: number of days present in Reset RIN table
B100: MaxRows if ARR and leap year | C100: =IF(dms_LeapYear_Result="is a leap year",366,365) -> 365 | D100: dms_060701_ARR_MaxRows | E100: =IF(dms_LeapYear_Result="is a leap year",366,365) | H100: number of days present in ARR RIN table
B101: Table 6.7.1 - Max Rows (leap year/ non leap year) | C101: =IF(dms_Model="ARR",dms_060701_ARR_MaxRows,IF(dms_Model="Reset",dms_060701_Reset_MaxRows,"not a relevant RIN type")) -> not a relevant RIN type | D101: dms_060701_MaxRows | E101: =IF(dms_Model="ARR",dms_060701_ARR_MaxRows,IF(dms_Model="Reset",dms_060701_Reset_MaxRows,"not a relevant RIN type"))
B102: How many columns in 6.7? (4 or 5 feeder categories) | C102: =IF(dms_FifthFeeder_flag_NSP="NO","This NSP has only 4 feeder categories","This NSP has 5 feeder categories") -> This NSP has only 4 feeder categories
B103: Table 6.7.1 - Last column (# of feeder categories > 4) | C103: =IF(dms_FifthFeeder_flag_NSP="NO",10,12) -> 10 | D103: dms_060701_MaxCols | E103: =IF(dms_FifthFeeder_flag_NSP="NO",8,10)
B104: Table 6.7.1 - Number of offset rows | C104: =IF(dms_Model="ARR",15,9) -> 9 | D104: dms_060701_OffsetRows | E104: =IF(dms_Model="ARR",15,9)
B105: Start date for telephone answering in 6.1 or 6.7? | E105: Using 060101 as naming standard not 060701 for start dates
B106: Table 6.1.1 and 6.7.1 - Start Date as Text | C106: =IF(dms_SingleYearModel="yes",(CONCATENATE(IF(LEN(CRY)=4,"1-Jan-","1-Jul-"),LEFT(CRY,4))),(CONCATENATE(IF(LEN(PRCP_y4)=4,"1-Jan-","1-Jul-"),LEFT(PRCP_y4,4)))) ->  | D106: dms_060101_StartDateTxt | E106: =IF(SUM(dms_SingleYear_Model)>1,(CONCATENATE(IF(LEN(CRY)=4,"1-Jan-","1-Jul-"),LEFT(CRY,4))),(CONCATENATE(IF(LEN(CRCP_y4)=4,"1-Jan-","1-Jul-"),LEFT(CRCP_y4,4))))
B107: Table 6.1.1 and 6.7.1 - Start Date as Date Value | C107: =DATEVALUE(dms_060701_StartDateTxt) ->  | D107: dms_060101_StartDateVal | E107: =DATEVALUE(dms_060701_StartDateTxt)
B108: ARRs
B109: How many rows in table 6.8? | C109: insert dms_060801_StartCell NR if required | E109: dms_060801_StartCell is only found on worksheet 6.8 and is used to determine the starting date for the date range
B110: Is dms_060801_StartCell named range present? | C110: yes | E110: =IFERROR(IF((ROW(dms_060801_StartCell)-1)=1,"yes","yes"),"no")
B111: Table 6.8 - Number of offset rows | C111: 12 | D111: dms_0608_OffsetRows | E111: =IFERROR(IF(dms_Model="ARR",(ROW(dms_060801_StartCell)-1),"not an ARR"),"6.8 error")
B112: Table 6.8 - Last row | C112: 0 | D112: dms_0608_LastRow | E112: =IFERROR(IF(dms_060801_StartCell<>"",IF(dms_Model="ARR",(LOOKUP(2,1/(dms_060801_01_Values<>""),(ROW(dms_060801_01_Values)))),"not an ARR"),0),"0")
B113: Table 6.8 - MaxRows | C113: =IFERROR(IF(dms_Model="ARR",(MAX(0,dms_0608_LastRow-dms_0608_OffsetRows)),"not an ARR"),"0") -> not an ARR | D113: dms_060801_MaxRows | E113: =IFERROR(IF(dms_Model="ARR",(MAX(0,dms_0608_LastRow-dms_0608_OffsetRows)),"not an ARR"),"0")
B114: TNSP RESET RINS
B115: Table 7.9.4 only appears in TNSPs Reset RIN
B116: Table 7.9.4 - first year | C116: =LEFT(PRCP_y3,4) ->  | D116: dms_070904_Start_Year | E116: =LEFT(PRCP_y3,4)
B118: MISC
B119: Distribution Determination Reference | C119: =INDEX(dms_DeterminationRef_List,MATCH(dms_TradingName,dms_TradingName_List)) -> 2015-20 Distribution Determination | D119: dms_DeterminationRef
B120: Public lighting NSP? | C120: =INDEX(dms_Public_Lighting_List,MATCH(dms_TradingName,dms_TradingName_List)) -> YES | D120: dms_Public_Lighting | E120: =INDEX(dms_Public_Lighting_List,MATCH(dms_TradingName,dms_TradingName_List))
B121: CBD Feeder for this business | C121: =INDEX(dms_CBD_flag,MATCH(dms_TradingName,dms_TradingName_List)) -> NO | D121: dms_CBD_flag_NSP
B122: Urban Feeder for this business | C122: =INDEX(dms_Urban_flag,MATCH(dms_TradingName,dms_TradingName_List)) -> YES | D122: dms_Urban_flag_NSP
B123: Short rural Feeder for this business | C123: =INDEX(dms_ShortRural_flag,MATCH(dms_TradingName,dms_TradingName_List)) -> YES | D123: dms_ShortRural_flag_NSP
B124: Long rural Feeder for this business | C124: =INDEX(dms_LongRural_flag,MATCH(dms_TradingName,dms_TradingName_List)) -> YES | D124: dms_LongRural_flag_NSP
B125: Fifth Feeder Category (eg. TasNetworks (D)) | C125: =INDEX(dms_FeederType_5_flag,MATCH(dms_TradingName,dms_TradingName_List)) -> NO | D125: dms_FifthFeeder_flag_NSP | E125: =INDEX(dms_FeederType_5_flag,MATCH(dms_TradingName,dms_TradingName_List))
B127: DISCARD FILES
B128: discard this record? | C128: NO | D128: dms_DISCARD | E128: If record is to be discarded from DB set this flag to YES
B130: SUBSET FILES
B131: Is this Submission File a Subset File | C131: NO | D131: dms_Partial
B134: REGULATORY YEARS FOR MULTI RYE SUBMISSIONS
B135: Multiple RYE flag | C135: NO | D135: dms_Multi_RYE_flag
C136: Manually specify RYE | D136: Named ranges to apply
C137: 2013 | D137: dms_RYE_01
C138: 2014 | D138: dms_RYE_02
C139: 2015 | D139: dms_RYE_03
C140: 2016 | D140: dms_RYE_04
C141: 2017 | D141: dms_RYE_05
C142: 2018 | D142: dms_RYE_06
C143: 2019 | D143: dms_RYE_07
C144: 2020 | D144: dms_RYE_08
C145: 2021 | D145: dms_RYE_09

Sheet Business & other details (hidden)
V1: =INDEX(dms_Worksheet_List,MATCH(dms_Model,dms_Model_List)) -> ROLL FORWARD MODEL
V2: =INDEX(dms_TradingNameFull_List,MATCH(dms_TradingName,dms_TradingName_List)) -> Ergon Energy
V3: =dms_Header_Span -> 
V4: BUSINESS & OTHER DETAILS
V6: INSTRUCTIONS
V7: Complete the following business details regulatory template before entering data or values in any other regulatory template. This regulatory template is linked to other cells within the spreadsheet and automatically generates column headings and conditional formatting to distinguish business specific input and non-input cells.
Q9: SUBMISSION PARTICULARS INPUT SHEET
V12: ENTITY DETAILS
V14: Business Name
V16: Short name | AL16: ='DMS input'!C14 -> Ergon Energy
V17: ACN/ABN | AL17: =INDEX(dms_ABN_List,MATCH(dms_TradingName,dms_TradingName_List)) -> 50087646062
V21: Business Address | BQ21: Postal Address
V23: Address 1 | AL23: =INDEX(dms_Addr1_List,MATCH(dms_TradingName,dms_TradingName_List)) -> 22 Walker Street | BI23: Address 1 | BQ23: =INDEX(dms_PAddr1_List,MATCH(dms_TradingName,dms_TradingName_List)) -> Po Box 264
V24: Address 2 | AL24: =IF(ISBLANK(INDEX(dms_Addr2_List,MATCH(dms_TradingName,dms_TradingName_List))),"",(INDEX(dms_Addr2_List,MATCH(dms_TradingName,dms_TradingName_List)))) ->  | BI24: Address 2 | BQ24: =IF(ISBLANK(INDEX(dms_PAddr2_List,MATCH(dms_TradingName,dms_TradingName_List))),"",(INDEX(dms_PAddr2_List,MATCH(dms_TradingName,dms_TradingName_List)))) -> 
V25: Suburb | AL25: =INDEX(dms_Suburb_List,MATCH(dms_TradingName,dms_TradingName_List)) -> TOWNSVILLE | BI25: Suburb | BQ25: =INDEX(dms_PSuburb_List,MATCH(dms_TradingName,dms_TradingName_List)) -> FORTITUDE VALLEY
V26: State | AL26: =INDEX(dms_State_List,MATCH(dms_TradingName,dms_TradingName_List)) -> Qld | AV26: Post code | BI26: State | BQ26: =INDEX(dms_PState_List,MATCH(dms_TradingName,dms_TradingName_List)) -> QLD | CA26: Post code
BA28: `
V30: Contact Names
V32: Name | AL32: -- enter name -- | BI32: Name | BQ32: -- enter name --
V33: Phone | AL33: -- enter phone number -- | BI33: Phone | BQ33: -- enter phone number --
V34: Email | AL34: -- enter email address -- | BI34: Email | BQ34: -- enter email address --
Q39: REGULATORY CONTROL PERIODS
Z42: Forthcoming period | AL42: 2021 | AU42: =FRCP_y2 ->  | BD42: =FRCP_y3 ->  | BM42: =FRCP_y4 ->  | BV42: =FRCP_y5 -> 
AL43: =FRCP_y6 ->  | AU43: =FRCP_y7 ->  | BD43: =FRCP_y8 ->  | BM43: =FRCP_y9 ->  | BV43: =FRCP_y10 -> 
AL44: =FRCP_y11 ->  | AU44: =FRCP_y12 ->  | BD44: =FRCP_y13 ->  | BM44: =FRCP_y14 ->  | BV44: =FRCP_y15 -> 
X46: RESETS | Z46: Current period | AL46: =CRCP_y1 ->  | AU46: =CRCP_y2 ->  | BD46: =CRCP_y3 ->  | BM46: =CRCP_y4 ->  | BV46: =CRCP_y5 -> 
AL47: =CRCP_y6 ->  | AU47: =CRCP_y7 ->  | BD47: =CRCP_y8 ->  | BM47: =CRCP_y9 ->  | BV47: =CRCP_y10 -> 
AL48: =CRCP_y11 ->  | AU48: =CRCP_y12 ->  | BD48: =CRCP_y13 ->  | BM48: =CRCP_y14 ->  | BV48: =CRCP_y15 -> 
Z50: Previous period | AL50: =PRCP_y1 ->  | AU50: =PRCP_y2 ->  | BD50: =PRCP_y3 ->  | BM50: =PRCP_y4 ->  | BV50: =PRCP_y5 -> 
AL51: =PRCP_y6 ->  | AU51: =PRCP_y7 ->  | BD51: =PRCP_y8 ->  | BM51: =PRCP_y9 ->  | BV51: =PRCP_y10 -> 
Q54: SUBMISSION DETAILS
Z56: RIN type | AL56: =INDIRECT(dms_Model) -> Roll Forward Model
Z58: Source | AL58: Regulatory proposal
X60: THIS FILE | Z60: Data Quality | AL60: Consolidated
Z62: Confidentiality Status | AL62: Public
Z64: Amended RIN Amendment Reason | AL64: .
Z68: Submission Date | AL68: dd/mm/yy | BD68: Please enter date this file submitted to AER

Sheet Intro
G2: Electricity Distribution Network Service Provider
I3: Roll Forward Model
L4: Version: | M4: 3
L5: Date: | M5: April 2020
B8: Introduction | J8: Electricity Distribution Model
C14: This model is used by the AER to determine the opening regulatory and tax asset bases for a distribution network service provider. It also calculates the weighted average remaining asset lives for regulatory and tax purposes using the asset values as weights.
C15: The roll forward of the asset base is undertaken in nominal terms.
C17: INSTRUCTIONS FOR USE
C18: The RFM handbook is available on the AER website at http://www.aer.gov.au
C20: a. Fill out input cells on the 'DMS Input' sheet. These input cells are highlighted blue.
C21: This provides information on the service provider submitting the RFM and the context for the RFM preparation.
C22: This information also controls the automatic import of the RFM into the AER's Data Management System (DMS).
C24: b. Fill out input cells on the 'RFM Input' sheet. These input cells are highlighted blue.
C25: This provides the data for the RFM calculations.
C26: In general, input expenditure data should be valued in nominal dollar terms of the year indicated.
C27: Units and basis for entry are specified where required for each data table.
C29: c. The values in the 'PTRM input summary' sheet
C30: This sheet summarises the key outputs of the RFM. These include the opening regulatory and tax asset values, and remaining asset lives. They become the inputs to the PTRM.
C33: VERSION RECORD
C35: Version | D35: Date | F35: Description
C36: 1 | D36: June 2008 | F36: Initial model
C38: 2 | D38: December 2016 | F38: Added new input sections for end of period adjustments, and removed redundant inputs
F39: Built-in option to select actual or forecast depreciation approach for the RAB roll forward
F40: Adjusted depreciation calculation formula in the RAB roll forward and TAB roll forward period start date
F41: Updated inputs to handle different annual WACCs due to time-varying return on debt
F42: Added calculations of weighted average remaining lives for RAB and TAB to individually track capex over multiple periods
F43: Enabled automatic import into AER DMS
C45: 3 | D45: April 2020 | F45: Changes made to accommodate the final tax report findings including immediiate expensing and diminishing value approach to tax depreciation
F46: Built-in option to select actual or forecasat depreciation approach for the TAB roll forward
F47: Added t-2 ex-post review of capex true-up calculations
F48: Attached an additional file to the RFM for the AER approach to year-by-year tracked depreciation

Sheet DMS input
B2: =$C$16&" - DMS Input"&" - DNSP RFM - version "&Intro!$M$4 -> Ergon Energy - DMS Input - DNSP RFM - version 3 | G2: Input cells are in blue
B6: This sheet requests information that allows the AER to automatically import the RFM into our data management system (DMS).
B7: This sheet's metadata relates to the business and context for the RFM (rather than the RFM itself).
B8: Only change blue input cells. To facilitate the automatic import, please do not delete or add rows on this sheet.
B9: Throughout the rest of the workbook, defined name ranges are used to identify data that is imported into the DMS.
B12: Entity details
B14: Trading name | C14: Ergon Energy
B15: ACN / ABN | C15: =INDEX(dms_ABN_List,MATCH(dms_TradingName,dms_TradingName_List)) -> 50087646062
B16: Business short name | C16: Ergon Energy
B19: Regulatory process details
B22: Source | C22: Final decision
B23: Amended model submission - reason

Sheet AER Amendments
A1: # | B1: Sheet | C1: Reference | D1: Notes
A2: 1 | B2: RFM input | C2: J7:J56, S7:S56 | D2: set RAB and TAB remaing lives to n/a as they are not used
A3: 2 | B3: RFM input | C3: T23 | D3: amended standard tax life for 'IT systems' to be consistent with previous determination
A4: 3 | B4: RFM input | C4: G61:J110, H115:J164, G180, H169:J218 | D4: amended capex inputs to be consistent with annual RINs; includes adjustments from 2018-23 ex-post review
A5: 4 | B5: RFM input | C5: H77:J77, H109:J109 | D5: ICT asset overspend not to be reflected as proposed, reflecting CPI adjusted forecasts instead
A6: 5 | B6: RFM input | C6: K133, J133 | D6: amended fleet disposals to be based on gross proceeds
A7: 6 | B7: RFM input | C7: K282 | D7: updated CPI with actual value
A8: 7 | B8: RFM input | C8: L282 | D8: 2024-25 CPI to reflect RBA forecast (August Statement of Monetary Policy)
A9: 8 | B9: RFM input | C9: F284, G284 | D9: included forecast CPI for 2018-20
A10: 9 | B10: RFM input | C10: L287 | D10: updated return on debt based on the latest 24-25 update
A11: 10 | B11: RFM input | C11: H358:L407 | D11: set TAB depreciation consistent with depreciation tracking module outputs
A12: 11 | B12: RFM input | C12: G438:J438 | D12: updated lease adjustments to reflect the latest WACC
A13: 12 | B13: RFM input | C13: F467, G475:H524, J475:H524 | D13: Ex-post adjustments for 2018-19 capex
A15: The AER's draft decision amendments are highlighted in green
A18: # | B18: Sheet | C18: Reference | D18: Notes
A19: 1 | B19: RFM input | C19: L282 | D19: Updated CPI with actual value 2024–25
A20: 2 | B20: RFM input | C20: K180 | D20: Amended capital contribution to be consistent with annual RIN.
A21: 3 | B21: RFM input | C21: L301, L303, L308 | D21: Updated forecast straight-line RAB depreciation to account for 2024 Cyclone Kirrily and Cyclone Jasper cost pass throughs
A23: The AER's final decision amendments are highlighted in blue

Sheet RFM input
E2: ='DMS input'!$C$16&" - RFM Input"&" - DNSP RFM - version "&Intro!$M$4 -> Ergon Energy - RFM Input - DNSP RFM - version 3 | G2: Input cells are in blue | I2: AER draft decision | J2: Ergon Energy revised proposal | K2: AER final decision
I3: 4 | J3: 5 | K3: 6 | L3: 7 | M3: 8 | N3: 9 | O3: 10 | P3: 11 | Q3: 12 | R3: 13 | S3: 14 | T3: 15
E5: ="Opening Regulatory Asset Base for "&IF(LEN($U$7)>4,CONCATENATE(LEFT($U$7,4)-1&"-"&IF($U$7>"2009-10",,"0")&RIGHT($U$7,2)-1),$U$7-1)&" and Opening Tax Asset Base for "&$U$7&" ($m Nominal)" -> Opening Regulatory Asset Base for 2019-20 and Opening Tax Asset Base for 2020-21 ($m Nominal)
F6: Asset Class Name | I6: Opening Asset Value | J6: Average Remaining Life (Year) | K6: Standard Life (Year) | L6: Forecast Net Capex | M6: Forecast Regulatory Depreciation | N6: Forecast Capital Contributions | O6: Difference in Final Year Capex | P6: Return on Difference in Final Year Capex | Q6: Other Final Year Adjustments | R6: Opening Tax Asset Value | S6: Average Tax Remaining Life (Year) | T6: Tax Standard Life (Year) | U6: Base Regulatory Year | V6: Length of Regulatory Control Period (Year)
E7: Asset Class 1 | F7: Overhead Sub-Transmission Lines | I7: 1167.678512 | J7: n/a | K7: 55 | L7: 22.28827493 | M7: 19.23202489 | N7: 2.227922598 | O7: -2.111318087 | P7: -0.6131191001 | Q7: 0 | R7: 410.208608 | S7: n/a | T7: 45 | U7: 2020-21 | V7: 5
E8: Asset Class 2 | F8: Underground Sub-Transmission Cables | I8: 40.77889059 | J8: n/a | K8: 45 | L8: 5.622516524 | M8: 1.030539909 | N8: 0.5620233804 | O8: 15.80754777 | P8: 4.590454428 | Q8: 0 | R8: 60.57019769 | S8: n/a | T8: 50
E9: Asset Class 3 | F9: Overhead Distribution Lines | I9: 3956.259417 | J9: n/a | K9: 50 | L9: 213.246069 | M9: 43.11700396 | N9: 21.31594919 | O9: -33.92181795 | P9: -9.850772664 | Q9: 0 | R9: 2652.119695 | S9: n/a | T9: 45
E10: Asset Class 4 | F10: Underground Distribution Cables | I10: 982.7111658 | J10: n/a | K10: 60 | L10: 32.26051904 | M10: 5.250350507 | N10: 3.224742139 | O10: -20.37079949 | P10: -5.915606145 | Q10: 0 | R10: 630.4763766 | S10: n/a | T10: 50
E11: Asset Class 5 | F11: Distribution Equipment | I11: 88.15158162 | J11: n/a | K11: 35 | L11: 1.981888458 | M11: 4.939886771 | N11: 0.1981083819 | O11: -43.69623884 | P11: -12.68922897 | Q11: 0 | R11: 36.80007425 | S11: n/a | T11: 45
E12: Asset Class 6 | F12: Substation Bays | I12: 1283.475401 | J12: n/a | K12: 45 | L12: 55.70979552 | M12: 20.64436249 | N12: 5.568717756 | O12: 4.216301194 | P12: 1.224398545 | Q12: 0 | R12: 870.0918073 | S12: n/a | T12: 40
E13: Asset Class 7 | F13: Substation Establishment | I13: 329.1254178 | J13: n/a | K13: 60 | L13: 8.337647904 | M13: 6.423756855 | N13: 0.8334262851 | O13: 0.8169951197 | P13: 0.2372524139 | Q13: 0 | R13: 184.2027695 | S13: n/a | T13: 40
E14: Asset Class 8 | F14: Distribution Substation Switchgear | I14: 391.8551268 | J14: n/a | K14: 45 | L14: 36.68433793 | M14: 2.236496139 | N14: 3.666944422 | O14: 61.75056116 | P14: 17.93213856 | Q14: 0 | R14: 390.7441981 | S14: n/a | T14: 40
E15: Asset Class 9 | F15: Zone Transformers | I15: 391.1405913 | J15: n/a | K15: 50 | L15: 7.296913569 | M15: 10.3699302 | N15: 0.729395105 | O15: -45.06131941 | P15: -13.08564341 | Q15: 0 | R15: 222.1617408 | S15: n/a | T15: 40
E16: Asset Class 10 | F16: Distribution Transformers | I16: 1253.160722 | J16: n/a | K16: 45 | L16: 66.5531153 | M16: 37.62795832 | N16: 6.652609499 | O16: -23.13353625 | P16: -6.717894863 | Q16: 0 | R16: 992.715158 | S16: n/a | T16: 40
E17: Asset Class 11 | F17: Low Voltage Services | I17: 164.3300762 | J17: n/a | K17: 35 | L17: 13.29140084 | M17: 5.020152695 | N17: 1.328600458 | O17: -23.91949856 | P17: -6.94613546 | Q17: 0 | R17: 210.3385967 | S17: n/a | T17: 40
E18: Asset Class 12 | F18: Communications – Pilot Wires | I18: 134.3884702 | J18: n/a | K18: 35 | L18: 4.833733685 | M18: 4.581321613 | N18: 0.4831771208 | O18: -1.517742297 | P18: -0.4407468476 | Q18: 0 | R18: 42.6963227 | S18: n/a | T18: 10
E19: Asset Class 13 | F19: Generation Assets | I19: 11.04594104 | J19: n/a | K19: 30 | L19: 3.648532585 | M19: 0.3360352182 | N19: 0.3647051295 | O19: 4.99014301 | P19: 1.449119396 | Q19: 0 | R19: 15.30536322 | S19: n/a | T19: 15
E20: Asset Class 14 | F20: Other Equipment | I20: 61.72619826 | J20: n/a | K20: 40 | L20: 0 | M20: 2.671195434 | N20: 0 | O20: -44.58594043 | P20: -12.94759508 | Q20: 0 | R20: 15.38694245 | S20: n/a | T20: 40
E21: Asset Class 15 | F21: Control Centre - SCADA | I21: 17.44866948 | J21: n/a | K21: 7 | L21: 5.201969137 | M21: 6.837629703 | N21: 0.5199857157 | O21: 7.168555191 | P21: 2.081722378 | Q21: 0 | R21: 25.85225036 | S21: n/a | T21: 10
E22: Asset Class 16 | F22: Land & Easements (System) - combined | I22: 100.5004203 | J22: n/a | K22: N/A | L22: 0.5874445222 | M22: -1.849700987 | N22: 0.0587206022 | O22: -3.106915454 | P22: -0.9022369575 | Q22: 0 | R22: 48.3275969 | S22: n/a | T22: N/A
E23: Asset Class 17 | F23: IT Systems | I23: 19.21949362 | J23: n/a | K23: 5 | L23: 2.496581522 | M23: 3.902073566 | N23: 0 | O23: 1.593121264 | P23: 0.4626366258 | Q23: 0 | R23: 8.140509146 | S23: n/a | T23: 4
E24: Asset Class 18 | F24: Office Equipment & Furniture | I24: 6.518512526 | J24: n/a | K24: 7 | L24: 0 | M24: 4.827760038 | N24: 0 | O24: -0.994733783 | P24: -0.2888670758 | Q24: 0 | R24: 10.0291406 | S24: n/a | T24: 10
E25: Asset Class 19 | F25: Motor Vehicles | I25: 100.589668 | J25: n/a | K25: 10 | L25: 28.05279272 | M25: 21.95600733 | N25: 0 | O25: -11.56104686 | P25: -3.357285996 | Q25: 0 | R25: 140.4251517 | S25: n/a | T25: 13.5
E26: Asset Class 20 | F26: Plant & Equipment | I26: 56.73067119 | J26: n/a | K26: 10 | L26: 4.36945522 | M26: 9.341231509 | N26: 0 | O26: 12.12612249 | P26: 3.521381905 | Q26: 0 | R26: 17.83683615 | S26: n/a | T26: 5
E27: Asset Class 21 | F27: Buildings | I27: 344.0410804 | J27: n/a | K27: 40 | L27: 37.98246541 | M27: 7.079885894 | N27: 0 | O27: -15.76949838 | P27: -4.579405024 | Q27: 0 | R27: 425.1775339 | S27: n/a | T27: 40
E28: Asset Class 22 | F28: Land & Easements - combined | I28: 27.34460317 | J28: n/a | K28: N/A | L28: 0 | M28: -0.5032749049 | N28: 0 | O28: 0.09060106383 | P28: 0.0263102197 | Q28: 0 | R28: 36.44810501 | S28: n/a | T28: N/A
E29: Asset Class 23 | F29: Land Improvements | I29: 82.77655972 | J29: n/a | K29: 40 | L29: 0 | M29: 0.09185757472 | N29: 0 | O29: 35.13989788 | P29: 10.20449865 | Q29: 0 | R29: 95.6685772 | S29: n/a | T29: 40
E30: Asset Class 24 | F30: Metering | I30: 48.47450077 | J30: n/a | K30: 25 | L30: 0 | M30: 1.905972944 | N30: 0 | O30: 15.77983816 | P30: 4.582407661 | Q30: 0 | R30: 58.30476882 | S30: n/a | T30: 25
E31: Asset Class 25 | F31: Communications | I31: 74.48086141 | J31: n/a | K31: 30 | L31: 0 | M31: 1.465572348 | N31: 0 | O31: 56.02139338 | P31: 16.26840906 | Q31: 0 | R31: 43.77976262 | S31: n/a | T31: 10
E32: Asset Class 26 | F32: ICT Legacy Assets | I32: 0 | J32: n/a | K32: N/A | L32: 0 | M32: 0 | N32: 0 | O32: 0 | P32: 0 | Q32: 130.1609755 | R32: 130.1609755 | S32: n/a | T32: n/a
E33: Asset Class 27 | F33: Initial Leases (10 yr life) | I33: 0 | J33: n/a | K33: 10 | L33: 0 | M33: 0 | N33: 0 | O33: 0 | P33: 0 | Q33: 0 | R33: 0 | S33: n/a | T33: 10
E34: Asset Class 28 | F34: Lease Extensions (5yr Life) | I34: 0 | J34: n/a | K34: 5 | L34: 0 | M34: 0 | N34: 0 | O34: 0 | P34: 0 | Q34: 0 | R34: 0 | S34: n/a | T34: 5
E35: Asset Class 29
E36: Asset Class 30
E37: Asset Class 31
E38: Asset Class 32
E39: Asset Class 33
E40: Asset Class 34
E41: Asset Class 35
E42: Asset Class 36
E43: Asset Class 37
E44: Asset Class 38
E45: Asset Class 39
E46: Asset Class 40
E47: Asset Class 41
E48: Asset Class 42
E49: Asset Class 43
E50: Asset Class 44
E51: Asset Class 45
E52: Asset Class 46
E53: Asset Class 47
E54: Asset Class 48 | F54: Buildings - capital works | I54: 0 | J54: n/a | K54: 40 | L54: 0 | M54: 0 | N54: 0 | O54: 0 | P54: 0 | Q54: 0 | R54: 0 | S54: n/a | T54: 40
E55: Asset Class 49 | F55: In-house software | I55: 0 | J55: n/a | K55: 5 | L55: 0 | M55: 0 | N55: 0 | O55: 0 | P55: 0 | Q55: 0 | R55: 0 | S55: n/a | T55: 4
E56: Asset Class 50 | F56: Equity raising costs | I56: 7.870063556 | J56: n/a | K56: n/a | L56: 0 | M56: 0.05455247604 | N56: 0 | O56: 0 | P56: 0 | Q56: 0 | R56: 0 | S56: n/a | T56: 5
E57: Total | I57: =SUM(I7:I56) -> 11141.82262 | L57: =SUM(L7:L56) -> 550.4454538 | M57: 218.5905825 | N57: 47.73502778 | O57: -54.2493281 | P57: -15.75380774 | Q57: 130.1609755 | R57: 7773.969058
E59: Actual Capital Expenditure – As Incurred ($m Nominal)
E60: Year | G60: =IF(LEN(H60)>4,CONCATENATE(LEFT(H60,4)-1&"-"&IF(H60>"2009-10",,"0")&RIGHT(H60,2)-1),H60-1) -> 2019-20 | H60: =U7 -> 2020-21 | I60: =IF(LEN(H60)>4,CONCATENATE(LEFT(H60,4)+1&"-"&IF(H60>"2007-08",,"0")&RIGHT(H60,2)+1),H60+1) -> 2021-22 | J60: =IF(LEN(I60)>4,CONCATENATE(LEFT(I60,4)+1&"-"&IF(I60>"2007-08",,"0")&RIGHT(I60,2)+1),I60+1) -> 2022-23 | K60: 2023-24 | L60: 2024-25 | M60: 2025-26 | N60: 2026-27 | O60: 2027-28 | P60: 2028-29 | Q60: 2029-30
E61: =Asset1 -> Overhead Sub-Transmission Lines | G61: 50.9133522 | H61: 38.83735653 | I61: 54.47035245 | J61: 89.46787337 | K61: 67.692914 | L61: 117.2945359
E62: =Asset2 -> Underground Sub-Transmission Cables | G62: 1.586649 | H62: 0.4124852864 | I62: 0.9431014536 | J62: 0.6738722945 | K62: 0.567716 | L62: 1.302386525
E63: =Asset3 -> Overhead Distribution Lines | G63: 320.1451553 | H63: 243.1264603 | I63: 251.8476001 | J63: 313.0674038 | K63: 471.512887 | L63: 518.5531204
E64: =Asset4 -> Underground Distribution Cables | G64: 23.023091 | H64: 16.85018854 | I64: 18.12107338 | J64: 17.60372105 | K64: 27.91348 | L64: 33.73950803
E65: =Asset5 -> Distribution Equipment | G65: 0.588585 | H65: 0.1455565653 | I65: 0.1650029555 | J65: 0.0007306936519 | K65: 0.008766 | L65: 0.1997676099
E66: =Asset6 -> Substation Bays | G66: 50.50784689 | H66: 45.75294321 | I66: 62.42195658 | J66: 72.5616902 | K66: 110.6652 | L66: 115.9860315
E67: =Asset7 -> Substation Establishment | G67: 10.609264 | H67: 9.51619923 | I67: 7.72156524 | J67: 1.878559996 | K67: 6.727596 | L67: 12.26772405
E68: =Asset8 -> Distribution Substation Switchgear | G68: 21.940399 | H68: 15.81481719 | I68: 23.28417086 | J68: 24.23779432 | K68: 29.246108 | L68: 40.64579305
E69: =Asset9 -> Zone Transformers | G69: 9.29666 | H69: 4.925259925 | I69: 7.041253874 | J69: 2.280727105 | K69: 0.81578 | L69: 9.1430348
E70: =Asset10 -> Distribution Transformers | G70: 85.48717388 | H70: 75.09896351 | I70: 87.68475579 | J70: 81.69508092 | K70: 137.095422 | L70: 156.8920041
E71: =Asset11 -> Low Voltage Services | G71: 47.55337287 | H71: 39.10242812 | I71: 30.36277476 | J71: 54.70158453 | K71: 62.262765 | L71: 79.68288499
E72: =Asset12 -> Communications – Pilot Wires | G72: 1.313435 | H72: 15.70197255 | I72: 17.57694288 | J72: 7.465149007 | K72: 10.588944 | L72: 26.14712572
E73: =Asset13 -> Generation Assets | G73: 0.035473 | H73: 0 | I73: 0 | J73: 0 | K73: 0 | L73: 0
E74: =Asset14 -> Other Equipment | G74: 0 | H74: 0 | I74: 0 | J74: 0 | K74: 0 | L74: 0
E75: =Asset15 -> Control Centre - SCADA | G75: 11.077642 | H75: 2.829051896 | I75: 3.846064766 | J75: 6.481170064 | K75: 7.491278 | L75: 8.442925068
E76: =Asset16 -> Land & Easements (System) - combined | G76: 0.12743 | H76: 0.1383242202 | I76: 0.1631394831 | J76: 0.1601442301 | K76: 0.003125 | L76: 0.2962326128
E77: =Asset17 -> IT Systems | G77: 0.122494 | H77: 5.329122362 | I77: 6.009064819 | J77: 6.268653269 | K77: 5.310958 | L77: 0
E78: =Asset18 -> Office Equipment & Furniture | G78: 0.548841 | H78: 0 | I78: 0 | J78: 0 | K78: 0 | L78: 0
E79: =Asset19 -> Motor Vehicles | G79: 30.052777 | H79: 16.03669013 | I79: 15.25785657 | J79: 23.67860405 | K79: 47.873579 | L79: 53.25784322
E80: =Asset20 -> Plant & Equipment | G80: 9.328698 | H80: 4.263074311 | I80: 4.077692811 | J80: 5.244771144 | K80: 6.911951 | L80: 6.98210989
E81: =Asset21 -> Buildings | G81: 31.14811 | H81: 0 | I81: 0 | J81: 0 | K81: 0 | L81: 0
E82: =Asset22 -> Land & Easements - combined | G82: 1.318642 | H82: 0 | I82: 0 | J82: 0 | K82: 0 | L82: 0
E83: =Asset23 -> Land Improvements | G83: 6.642299 | H83: 0 | I83: 0 | J83: 0 | K83: 0 | L83: 0
E84: =Asset24 -> Metering | G84: 0.643779 | H84: 3.613914095 | I84: 0.0151473357 | J84: -0.1682379261 | K84: 0 | L84: 2.220951407
E85: =Asset25 -> Communications | G85: 17.944948 | H85: 2.070950789 | I85: 0.8073364344 | J85: 0.1397073903 | K85: 0.293822 | L85: 0
E86: =Asset26 -> ICT Legacy Assets | G86: 0 | H86: 0 | I86: 0 | J86: 0
E87: =Asset27 -> Initial Leases (10 yr life) | G87: 0 | H87: 0 | I87: 0 | J87: 0
E88: =Asset28 -> Lease Extensions (5yr Life) | G88: 0 | H88: 0 | I88: 0 | J88: 0
E89: =Asset29 -> 0 | G89: 0 | H89: 0 | I89: 0 | J89: 0
E90: =Asset30 -> 0 | G90: 0 | H90: 0 | I90: 0 | J90: 0
E91: =Asset31 -> 0 | G91: 0 | H91: 0 | I91: 0 | J91: 0
E92: =Asset32 -> 0 | G92: 0 | H92: 0 | I92: 0 | J92: 0
E93: =Asset33 -> 0 | G93: 0 | H93: 0 | I93: 0 | J93: 0
E94: =Asset34 -> 0 | G94: 0 | H94: 0 | I94: 0 | J94: 0
E95: =Asset35 -> 0 | G95: 0 | H95: 0 | I95: 0 | J95: 0
E96: =Asset36 -> 0 | G96: 0 | H96: 0 | I96: 0 | J96: 0
E97: =Asset37 -> 0 | G97: 0 | H97: 0 | I97: 0 | J97: 0
E98: =Asset38 -> 0 | G98: 0 | H98: 0 | I98: 0 | J98: 0
E99: =Asset39 -> 0 | G99: 0 | H99: 0 | I99: 0 | J99: 0
E100: =Asset40 -> 0 | G100: 0 | H100: 0 | I100: 0 | J100: 0
E101: =Asset41 -> 0 | G101: 0 | H101: 0 | I101: 0 | J101: 0
E102: =Asset42 -> 0 | G102: 0 | H102: 0 | I102: 0 | J102: 0
E103: =Asset43 -> 0 | G103: 0 | H103: 0 | I103: 0 | J103: 0
E104: =Asset44 -> 0 | G104: 0 | H104: 0 | I104: 0 | J104: 0
E105: =Asset45 -> 0 | G105: 0 | H105: 0 | I105: 0 | J105: 0
E106: =Asset46 -> 0 | G106: 0 | H106: 0 | I106: 0 | J106: 0
E107: =Asset47 -> 0 | G107: 0 | H107: 0 | I107: 0 | J107: 0
E108: =Asset48 -> Buildings - capital works | G108: 0 | H108: 28.02144354 | I108: 15.97335368 | J108: 30.09302099 | K108: 49.085439 | L108: 61.81264688
E109: =Asset49 -> In-house software | G109: 0 | H109: 29.09673269 | I109: 28.46635009 | J109: 28.13668849 | K109: 50.642172 | L109: 61.34269928
E110: =Asset50 -> Equity raising costs | G110: 0 | H110: 0 | I110: 0 | J110: 0
E111: Total | G111: =SUM(G61:G110) -> 731.9561172 | H111: =SUM(H61:H110) -> 596.683935 | I111: 636.2565563 | J111: 765.668709 | K111: 1092.709902 | L111: 1306.209325 | M111: 0 | N111: 0 | O111: 0 | P111: 0 | Q111: 0
R112: =SUM(G111:Q111) -> 5129.484544
E113: Actual Asset Disposal – As Incurred ($m Nominal)
E114: Year | G114: =G$60 -> 2019-20 | H114: =H$60 -> 2020-21 | I114: 2021-22 | J114: 2022-23 | K114: 2023-24 | L114: 2024-25 | M114: 2025-26 | N114: 2026-27 | O114: 2027-28 | P114: 2028-29 | Q114: 2029-30
E115: =Asset1 -> Overhead Sub-Transmission Lines | G115: 0.048444 | H115: 0.24203552 | I115: 0.09647663 | J115: 0 | K115: 0 | L115: 0
E116: =Asset2 -> Underground Sub-Transmission Cables | G116: 0 | H116: 0 | I116: 0 | J116: 0 | K116: 0 | L116: 0
E117: =Asset3 -> Overhead Distribution Lines | G117: 0 | H117: 0 | I117: 0.53844694 | J117: 0 | K117: 0 | L117: 0
E118: =Asset4 -> Underground Distribution Cables | G118: 0 | H118: 0 | I118: 0.00151938 | J118: 0.178159 | K118: 0 | L118: 0
E119: =Asset5 -> Distribution Equipment | G119: 0 | H119: 0 | I119: 0 | J119: 0 | K119: 0 | L119: 0
E120: =Asset6 -> Substation Bays | G120: 0 | H120: 0 | I120: 0.83388642 | J120: 0 | K120: 0 | L120: 0
E121: =Asset7 -> Substation Establishment | G121: 0 | H121: 0 | I121: 0.00712159 | J121: 0 | K121: 0 | L121: 4.00000008
E122: =Asset8 -> Distribution Substation Switchgear | G122: 0 | H122: 0 | I122: 0.07530273 | J122: 0 | K122: 0 | L122: 0
E123: =Asset9 -> Zone Transformers | G123: 0 | H123: 3.31722005 | I123: 0.21787721 | J123: 0 | K123: 0 | L123: 0
E124: =Asset10 -> Distribution Transformers | G124: 0.009044 | H124: 0.10615521 | I124: 0.09907565 | J124: 0 | K124: 0 | L124: 0
E125: =Asset11 -> Low Voltage Services | G125: 0 | H125: 0 | I125: 0.0040483 | J125: 0 | K125: 0 | L125: 0
E126: =Asset12 -> Communications – Pilot Wires | G126: 0 | H126: 0 | I126: 0.00206031 | J126: 0.00027272 | K126: 0 | L126: 0
E127: =Asset13 -> Generation Assets | G127: 0 | H127: 0 | I127: 0 | J127: 0 | K127: 0 | L127: 0
E128: =Asset14 -> Other Equipment | G128: 0 | H128: 0 | I128: 0 | J128: 0 | K128: 0 | L128: 0
E129: =Asset15 -> Control Centre - SCADA | G129: 0 | H129: 0 | I129: 0.00044884 | J129: 0 | K129: 0 | L129: 0
E130: =Asset16 -> Land & Easements (System) - combined | G130: 0.000546 | H130: 0.00205 | I130: 0 | J130: 0.0006 | K130: 0 | L130: 0
E131: =Asset17 -> IT Systems | G131: 0 | H131: 0 | I131: 0 | J131: 0 | K131: 0 | L131: 0
E132: =Asset18 -> Office Equipment & Furniture | G132: 0.006439 | H132: 0 | I132: 0 | J132: 0 | K132: 0 | L132: 0
E133: =Asset19 -> Motor Vehicles | G133: 0.4009 | H133: 4.51783763 | I133: 0.93917829 | J133: 0.47265277 | K133: 0.508955 | L133: 1.869599649
E134: =Asset20 -> Plant & Equipment | G134: 0.223083 | H134: 0.77317108 | I134: 0.43720321 | J134: 0.46524581 | K134: 0.777784 | L134: 0
E135: =Asset21 -> Buildings | G135: 0.787844 | H135: 0.07381724 | I135: 0 | J135: 0 | K135: 0 | L135: 0
E136: =Asset22 -> Land & Easements - combined | G136: 0.105292 | H136: 0.00699927 | I136: 0.06552038 | J136: 0 | K136: 0 | L136: 0
E137: =Asset23 -> Land Improvements | G137: 0 | H137: 0.34668187 | I137: 0.05033569 | J137: 0 | K137: 0 | L137: 0
E138: =Asset24 -> Metering | G138: 0 | H138: 0 | I138: 0 | J138: 0 | K138: 0 | L138: 0
E139: =Asset25 -> Communications | G139: 0 | H139: 0 | I139: 0 | J139: 0 | K139: 0 | L139: 0
E140: =Asset26 -> ICT Legacy Assets | G140: 0 | H140: 0 | I140: 0 | J140: 0 | K140: 0 | L140: 0
E141: =Asset27 -> Initial Leases (10 yr life) | G141: 0 | H141: 0 | I141: 0 | J141: 0 | K141: 0 | L141: 0
E142: =Asset28 -> Lease Extensions (5yr Life) | G142: 0 | H142: 0 | I142: 0 | J142: 0 | K142: 0 | L142: 0
E143: =Asset29 -> 0 | G143: 0 | H143: 0 | I143: 0 | J143: 0 | K143: 0 | L143: 0
E144: =Asset30 -> 0 | G144: 0 | H144: 0 | I144: 0 | J144: 0 | K144: 0 | L144: 0
E145: =Asset31 -> 0 | G145: 0 | H145: 0 | I145: 0 | J145: 0 | K145: 0 | L145: 0
E146: =Asset32 -> 0 | G146: 0 | H146: 0 | I146: 0 | J146: 0 | K146: 0 | L146: 0
E147: =Asset33 -> 0 | G147: 0 | H147: 0 | I147: 0 | J147: 0 | K147: 0 | L147: 0
E148: =Asset34 -> 0 | G148: 0 | H148: 0 | I148: 0 | J148: 0 | K148: 0 | L148: 0
E149: =Asset35 -> 0 | G149: 0 | H149: 0 | I149: 0 | J149: 0 | K149: 0 | L149: 0
E150: =Asset36 -> 0 | G150: 0 | H150: 0 | I150: 0 | J150: 0 | K150: 0 | L150: 0
E151: =Asset37 -> 0 | G151: 0 | H151: 0 | I151: 0 | J151: 0 | K151: 0 | L151: 0
E152: =Asset38 -> 0 | G152: 0 | H152: 0 | I152: 0 | J152: 0 | K152: 0 | L152: 0
E153: =Asset39 -> 0 | G153: 0 | H153: 0 | I153: 0 | J153: 0 | K153: 0 | L153: 0
E154: =Asset40 -> 0 | G154: 0 | H154: 0 | I154: 0 | J154: 0 | K154: 0 | L154: 0
E155: =Asset41 -> 0 | G155: 0 | H155: 0 | I155: 0 | J155: 0 | K155: 0 | L155: 0
E156: =Asset42 -> 0 | G156: 0 | H156: 0 | I156: 0 | J156: 0 | K156: 0 | L156: 0
E157: =Asset43 -> 0 | G157: 0 | H157: 0 | I157: 0 | J157: 0 | K157: 0 | L157: 0
E158: =Asset44 -> 0 | G158: 0 | H158: 0 | I158: 0 | J158: 0 | K158: 0 | L158: 0
E159: =Asset45 -> 0 | G159: 0 | H159: 0 | I159: 0 | J159: 0 | K159: 0 | L159: 0
E160: =Asset46 -> 0 | G160: 0 | H160: 0 | I160: 0 | J160: 0 | K160: 0 | L160: 0
E161: =Asset47 -> 0 | G161: 0 | H161: 0 | I161: 0 | J161: 0 | K161: 0 | L161: 0
E162: =Asset48 -> Buildings - capital works | G162: 0 | H162: 0 | I162: 0.19874994 | J162: 0 | K162: 0 | L162: 0
E163: =Asset49 -> In-house software | G163: 0 | H163: 0 | I163: 0 | J163: 0 | K163: 0 | L163: 0
E164: =Asset50 -> Equity raising costs | G164: 0 | H164: 0 | I164: 0 | J164: 0 | K164: 0 | L164: 0
E165: Total | G165: =SUM(G115:G164) -> 1.581592 | H165: =SUM(H115:H164) -> 9.38596787 | I165: 3.56725151 | J165: 1.1169303 | K165: 1.286739 | L165: 5.869599729 | M165: 0 | N165: 0 | O165: 0 | P165: 0 | Q165: 0
R166: =SUM(G165:Q165) -> 22.80808041
E167: Actual Capital Contributions – As Incurred ($m Nominal)
E168: Year | G168: =G$60 -> 2019-20 | H168: =H$60 -> 2020-21 | I168: 2021-22 | J168: 2022-23 | K168: 2023-24 | L168: 2024-25 | M168: 2025-26 | N168: 2026-27 | O168: 2027-28 | P168: 2028-29 | Q168: 2029-30
E169: =Asset1 -> Overhead Sub-Transmission Lines | G169: 2.785133 | H169: 0.6611464968 | I169: 0.9476132952 | J169: 0.3777289457 | K169: 0.51473 | L169: 1.591841141
E170: =Asset2 -> Underground Sub-Transmission Cables | G170: 0.038982 | H170: 0.07561034964 | I170: 0.02158315715 | J170: 0.001274579415 | K170: 0.006218 | L170: 0.07890583408
E171: =Asset3 -> Overhead Distribution Lines | G171: 32.978464 | H171: 10.70854598 | I171: 16.46494326 | J171: 11.89130481 | K171: 22.783956 | L171: 31.30395113
E172: =Asset4 -> Underground Distribution Cables | G172: 8.05691 | H172: 2.023153756 | I172: 4.303448345 | J172: 2.436426251 | K172: 6.053403 | L172: 7.022113334
E173: =Asset5 -> Distribution Equipment | G173: 0.161378 | H173: 0.01063117725 | I173: 0.01605436554 | J173: 0.0001634398149 | K173: 0.00358 | L173: 0.02151500499
E174: =Asset6 -> Substation Bays | G174: 4.539334 | H174: 0.042594132 | I174: 0.2522240843 | J174: 0.006845021904 | K174: 0 | L174: 0.2417330359
E175: =Asset7 -> Substation Establishment | G175: 0 | H175: 0 | I175: 0.01059199915 | J175: 0.0001955177234 | K175: 0.002931 | L175: 0.008644404993
E176: =Asset8 -> Distribution Substation Switchgear | G176: 3.079604 | H176: 0.5026581688 | I176: 1.2817684 | J176: 0.5795021792 | K176: 1.70603 | L176: 1.894296688
E177: =Asset9 -> Zone Transformers | G177: 0 | H177: 0 | I177: 0 | J177: 0 | K177: 0 | L177: 0
E178: =Asset10 -> Distribution Transformers | G178: 41.108415 | H178: 10.05573884 | I178: 15.86509809 | J178: 11.5562302 | K178: 22.082521 | L178: 30.03165142
E179: =Asset11 -> Low Voltage Services | G179: 11.580333 | H179: 1.586682187 | I179: 1.502524147 | J179: 2.643838134 | K179: 5.336948 | L179: 4.594083962
E180: =Asset12 -> Communications – Pilot Wires | G180: 0.004849 | H180: 0.008416022893 | I180: 0.004463671431 | J180: 0.0007688356906 | K180: 0.001463 | L180: 0.01093703235
E181: =Asset13 -> Generation Assets | G181: 0.01876 | H181: 0 | I181: 0 | J181: 0 | K181: 0 | L181: 0
E182: =Asset14 -> Other Equipment | G182: 0 | H182: 0 | I182: 0 | J182: 0
E183: =Asset15 -> Control Centre - SCADA | G183: 0 | H183: 0 | I183: 0 | J183: 0
E184: =Asset16 -> Land & Easements (System) - combined | G184: 0 | H184: 0 | I184: 0 | J184: 0
E185: =Asset17 -> IT Systems | G185: 0 | H185: 0 | I185: 0 | J185: 0
E186: =Asset18 -> Office Equipment & Furniture | G186: 0 | H186: 0 | I186: 0 | J186: 0
E187: =Asset19 -> Motor Vehicles | G187: 0 | H187: 0 | I187: 0 | J187: 0
E188: =Asset20 -> Plant & Equipment | G188: 0 | H188: 0 | I188: 0 | J188: 0
E189: =Asset21 -> Buildings | G189: 0 | H189: 0 | I189: 0 | J189: 0
E190: =Asset22 -> Land & Easements - combined | G190: 0 | H190: 0 | I190: 0 | J190: 0
E191: =Asset23 -> Land Improvements | G191: 0 | H191: 0 | I191: 0 | J191: 0
E192: =Asset24 -> Metering | G192: 0 | H192: 0 | I192: 0 | J192: 0
E193: =Asset25 -> Communications | G193: 0 | H193: 0 | I193: 0 | J193: 0
E194: =Asset26 -> ICT Legacy Assets | G194: 0 | H194: 0 | I194: 0 | J194: 0
E195: =Asset27 -> Initial Leases (10 yr life) | G195: 0 | H195: 0 | I195: 0 | J195: 0
E196: =Asset28 -> Lease Extensions (5yr Life) | G196: 0 | H196: 0 | I196: 0 | J196: 0
E197: =Asset29 -> 0 | G197: 0 | H197: 0 | I197: 0 | J197: 0
E198: =Asset30 -> 0 | G198: 0 | H198: 0 | I198: 0 | J198: 0
E199: =Asset31 -> 0 | G199: 0 | H199: 0 | I199: 0 | J199: 0
E200: =Asset32 -> 0 | G200: 0 | H200: 0 | I200: 0 | J200: 0
E201: =Asset33 -> 0 | G201: 0 | H201: 0 | I201: 0 | J201: 0
E202: =Asset34 -> 0 | G202: 0 | H202: 0 | I202: 0 | J202: 0
E203: =Asset35 -> 0 | G203: 0 | H203: 0 | I203: 0 | J203: 0
... 312 more rows

Sheet Adjustment for previous period
B2: ='DMS input'!$C$16&" - Adjustment For Previous Period"&" - DNSP RFM - version "&Intro!$M$4 -> Ergon Energy - Adjustment For Previous Period - DNSP RFM - version 3
B4: Year | F4: ='RFM input'!F281 -> 2018-19 | G4: ='RFM input'!G60 -> 2019-20 | H4: ='RFM input'!H60 -> 2020-21 | I4: ='RFM input'!I60 -> 2021-22 | J4: ='RFM input'!J60 -> 2022-23 | K4: ='RFM input'!K60 -> 2023-24 | L4: ='RFM input'!L60 -> 2024-25 | M4: ='RFM input'!M60 -> 2025-26 | N4: ='RFM input'!N60 -> 2026-27 | O4: ='RFM input'!O60 -> 2027-28 | P4: ='RFM input'!P60 -> 2028-29 | Q4: ='RFM input'!Q60 -> 2029-30
B6: Actual CPI Inflation Rate | F6: ='RFM input'!F$282 -> 0.0178412132 | G6: ='RFM input'!G$282 -> 0.01840490798 | H6: ='RFM input'!H$282 -> 0.008605851979 | I6: ='RFM input'!I$282 -> 0.03498293515 | J6: ='RFM input'!J$282 -> 0.07831821929 | K6: ='RFM input'!K$282 -> 0.04051987768 | L6: ='RFM input'!L$282 -> 0.0242468773 | M6: ='RFM input'!M$282 -> 0 | N6: ='RFM input'!N$282 -> 0 | O6: ='RFM input'!O$282 -> 0 | P6: ='RFM input'!P$282 -> 0 | Q6: ='RFM input'!Q$282 -> 0
B7: Actual CPI (one year lagged) | F7: ='RFM input'!F$283 -> 0.9824715162 | G7: ='RFM input'!G$283 -> 1 | H7: ='RFM input'!H$283 -> 1.018404908 | I7: ='RFM input'!I$283 -> 1.02716915 | J7: ='RFM input'!J$283 -> 1.063102542 | K7: ='RFM input'!K$283 -> 1.14636284 | L7: ='RFM input'!L$283 -> 1.192813322 | M7: ='RFM input'!M$283 -> 1.22173532 | N7: ='RFM input'!N$283 -> 1.22173532 | O7: ='RFM input'!O$283 -> 1.22173532 | P7: ='RFM input'!P$283 -> 1.22173532 | Q7: ='RFM input'!Q$283 -> 1.22173532
B8: Nominal Vanilla WACC (fixed real time varying) | F8: ='RFM input'!F289 -> 0.05274377404 | G8: ='RFM input'!G289 -> 0.0530055985 | H8: =vanilla1 -> 0.03281082429 | I8: =vanilla2 -> 0.05819710067 | J8: =vanilla3 -> 0.1018295673 | K8: =vanilla4 -> 0.06400787096 | L8: =vanilla5 -> 0.0478628063 | M8: =vanilla6 -> -0.02223429523 | N8: =vanilla7 -> -0.02223429523 | O8: =vanilla8 -> -0.02223429523 | P8: =vanilla9 -> -0.02223429523 | Q8: =vanilla10 -> -0.02223429523
B11: Nominal Adjustments for Difference Between Forecast and Actual Net Capex in Final Year (t-1)
B13: Nominal Forecast Net Capex (previous regulatory control period) | G13: =SUM(G14:G63) -> 550.4454538
C14: =Asset1 -> Overhead Sub-Transmission Lines | G14: ='RFM input'!L7 -> 22.28827493
C15: =Asset2 -> Underground Sub-Transmission Cables | G15: ='RFM input'!L8 -> 5.622516524
C16: =Asset3 -> Overhead Distribution Lines | G16: ='RFM input'!L9 -> 213.246069
C17: =Asset4 -> Underground Distribution Cables | G17: ='RFM input'!L10 -> 32.26051904
C18: =Asset5 -> Distribution Equipment | G18: ='RFM input'!L11 -> 1.981888458
C19: =Asset6 -> Substation Bays | G19: ='RFM input'!L12 -> 55.70979552
C20: =Asset7 -> Substation Establishment | G20: ='RFM input'!L13 -> 8.337647904
C21: =Asset8 -> Distribution Substation Switchgear | G21: ='RFM input'!L14 -> 36.68433793
C22: =Asset9 -> Zone Transformers | G22: ='RFM input'!L15 -> 7.296913569
C23: =Asset10 -> Distribution Transformers | G23: ='RFM input'!L16 -> 66.5531153
C24: =Asset11 -> Low Voltage Services | G24: ='RFM input'!L17 -> 13.29140084
C25: =Asset12 -> Communications – Pilot Wires | G25: ='RFM input'!L18 -> 4.833733685
C26: =Asset13 -> Generation Assets | G26: ='RFM input'!L19 -> 3.648532585
C27: =Asset14 -> Other Equipment | G27: ='RFM input'!L20 -> 0
C28: =Asset15 -> Control Centre - SCADA | G28: ='RFM input'!L21 -> 5.201969137
C29: =Asset16 -> Land & Easements (System) - combined | G29: ='RFM input'!L22 -> 0.5874445222
C30: =Asset17 -> IT Systems | G30: ='RFM input'!L23 -> 2.496581522
C31: =Asset18 -> Office Equipment & Furniture | G31: ='RFM input'!L24 -> 0
C32: =Asset19 -> Motor Vehicles | G32: ='RFM input'!L25 -> 28.05279272
C33: =Asset20 -> Plant & Equipment | G33: ='RFM input'!L26 -> 4.36945522
C34: =Asset21 -> Buildings | G34: ='RFM input'!L27 -> 37.98246541
C35: =Asset22 -> Land & Easements - combined | G35: ='RFM input'!L28 -> 0
C36: =Asset23 -> Land Improvements | G36: ='RFM input'!L29 -> 0
C37: =Asset24 -> Metering | G37: ='RFM input'!L30 -> 0
C38: =Asset25 -> Communications | G38: ='RFM input'!L31 -> 0
C39: =Asset26 -> ICT Legacy Assets | G39: ='RFM input'!L32 -> 0
C40: =Asset27 -> Initial Leases (10 yr life) | G40: ='RFM input'!L33 -> 0
C41: =Asset28 -> Lease Extensions (5yr Life) | G41: ='RFM input'!L34 -> 0
C42: =Asset29 -> 0 | G42: ='RFM input'!L35 -> 0
C43: =Asset30 -> 0 | G43: ='RFM input'!L36 -> 0
C44: =Asset31 -> 0 | G44: ='RFM input'!L37 -> 0
C45: =Asset32 -> 0 | G45: ='RFM input'!L38 -> 0
C46: =Asset33 -> 0 | G46: ='RFM input'!L39 -> 0
C47: =Asset34 -> 0 | G47: ='RFM input'!L40 -> 0
C48: =Asset35 -> 0 | G48: ='RFM input'!L41 -> 0
C49: =Asset36 -> 0 | G49: ='RFM input'!L42 -> 0
C50: =Asset37 -> 0 | G50: ='RFM input'!L43 -> 0
C51: =Asset38 -> 0 | G51: ='RFM input'!L44 -> 0
C52: =Asset39 -> 0 | G52: ='RFM input'!L45 -> 0
C53: =Asset40 -> 0 | G53: ='RFM input'!L46 -> 0
C54: =Asset41 -> 0 | G54: ='RFM input'!L47 -> 0
C55: =Asset42 -> 0 | G55: ='RFM input'!L48 -> 0
C56: =Asset43 -> 0 | G56: ='RFM input'!L49 -> 0
C57: =Asset44 -> 0 | G57: ='RFM input'!L50 -> 0
C58: =Asset45 -> 0 | G58: ='RFM input'!L51 -> 0
C59: =Asset46 -> 0 | G59: ='RFM input'!L52 -> 0
C60: =Asset47 -> 0 | G60: ='RFM input'!L53 -> 0
C61: =Asset48 -> Buildings - capital works | G61: ='RFM input'!L54 -> 0
C62: =Asset49 -> In-house software | G62: ='RFM input'!L55 -> 0
C63: =Asset50 -> Equity raising costs | G63: ='RFM input'!L56 -> 0
B65: Nominal Actual Net Capex | G65: =SUM(G66:G115) -> 642.3994904
C66: =Asset1 -> Overhead Sub-Transmission Lines | G66: ='RFM input'!G223*(1+previous_vanilla)^0.5 -> 49.33757147
C67: =Asset2 -> Underground Sub-Transmission Cables | G67: ='RFM input'!G224*(1+previous_vanilla)^0.5 -> 1.588154914
C68: =Asset3 -> Overhead Distribution Lines | G68: ='RFM input'!G225*(1+previous_vanilla)^0.5 -> 294.6791473
C69: =Asset4 -> Underground Distribution Cables | G69: ='RFM input'!G226*(1+previous_vanilla)^0.5 -> 15.35770543
C70: =Asset5 -> Distribution Equipment | G70: ='RFM input'!G227*(1+previous_vanilla)^0.5 -> 0.4383829959
C71: =Asset6 -> Substation Bays | G71: ='RFM input'!G228*(1+previous_vanilla)^0.5 -> 47.17107725
C72: =Asset7 -> Substation Establishment | G72: ='RFM input'!G229*(1+previous_vanilla)^0.5 -> 10.88680882
C73: =Asset8 -> Distribution Substation Switchgear | G73: ='RFM input'!G230*(1+previous_vanilla)^0.5 -> 19.35420491
C74: =Asset9 -> Zone Transformers | G74: ='RFM input'!G231*(1+previous_vanilla)^0.5 -> 9.539866301
C75: =Asset10 -> Distribution Transformers | G75: ='RFM input'!G232*(1+previous_vanilla)^0.5 -> 45.53045371
C76: =Asset11 -> Low Voltage Services | G76: ='RFM input'!G233*(1+previous_vanilla)^0.5 -> 36.91411656
C77: =Asset12 -> Communications – Pilot Wires | G77: ='RFM input'!G234*(1+previous_vanilla)^0.5 -> 1.342819409
C78: =Asset13 -> Generation Assets | G78: ='RFM input'!G235*(1+previous_vanilla)^0.5 -> 0.01715022228
C79: =Asset14 -> Other Equipment | G79: ='RFM input'!G236*(1+previous_vanilla)^0.5 -> 0
C80: =Asset15 -> Control Centre - SCADA | G80: ='RFM input'!G237*(1+previous_vanilla)^0.5 -> 11.36743988
C81: =Asset16 -> Land & Easements (System) - combined | G81: ='RFM input'!G238*(1+previous_vanilla)^0.5 -> 0.1302033629
C82: =Asset17 -> IT Systems | G82: ='RFM input'!G239*(1+previous_vanilla)^0.5 -> 0.1256985178
C83: =Asset18 -> Office Equipment & Furniture | G83: ='RFM input'!G240*(1+previous_vanilla)^0.5 -> 0.5565915674
C84: =Asset19 -> Motor Vehicles | G84: ='RFM input'!G241*(1+previous_vanilla)^0.5 -> 30.4275882
C85: =Asset20 -> Plant & Equipment | G85: ='RFM input'!G242*(1+previous_vanilla)^0.5 -> 9.343823447
C86: =Asset21 -> Buildings | G86: ='RFM input'!G243*(1+previous_vanilla)^0.5 -> 31.15450909
C87: =Asset22 -> Land & Easements - combined | G87: ='RFM input'!G244*(1+previous_vanilla)^0.5 -> 1.245091977
C88: =Asset23 -> Land Improvements | G88: ='RFM input'!G245*(1+previous_vanilla)^0.5 -> 6.816065597
C89: =Asset24 -> Metering | G89: ='RFM input'!G246*(1+previous_vanilla)^0.5 -> 0.6606206517
C90: =Asset25 -> Communications | G90: ='RFM input'!G247*(1+previous_vanilla)^0.5 -> 18.41439879
C91: =Asset26 -> ICT Legacy Assets | G91: ='RFM input'!G248*(1+previous_vanilla)^0.5 -> 0
C92: =Asset27 -> Initial Leases (10 yr life) | G92: ='RFM input'!G249*(1+previous_vanilla)^0.5 -> 0
C93: =Asset28 -> Lease Extensions (5yr Life) | G93: ='RFM input'!G250*(1+previous_vanilla)^0.5 -> 0
C94: =Asset29 -> 0 | G94: ='RFM input'!G251*(1+previous_vanilla)^0.5 -> 0
C95: =Asset30 -> 0 | G95: ='RFM input'!G252*(1+previous_vanilla)^0.5 -> 0
C96: =Asset31 -> 0 | G96: ='RFM input'!G253*(1+previous_vanilla)^0.5 -> 0
C97: =Asset32 -> 0 | G97: ='RFM input'!G254*(1+previous_vanilla)^0.5 -> 0
C98: =Asset33 -> 0 | G98: ='RFM input'!G255*(1+previous_vanilla)^0.5 -> 0
C99: =Asset34 -> 0 | G99: ='RFM input'!G256*(1+previous_vanilla)^0.5 -> 0
C100: =Asset35 -> 0 | G100: ='RFM input'!G257*(1+previous_vanilla)^0.5 -> 0
C101: =Asset36 -> 0 | G101: ='RFM input'!G258*(1+previous_vanilla)^0.5 -> 0
C102: =Asset37 -> 0 | G102: ='RFM input'!G259*(1+previous_vanilla)^0.5 -> 0
C103: =Asset38 -> 0 | G103: ='RFM input'!G260*(1+previous_vanilla)^0.5 -> 0
C104: =Asset39 -> 0 | G104: ='RFM input'!G261*(1+previous_vanilla)^0.5 -> 0
C105: =Asset40 -> 0 | G105: ='RFM input'!G262*(1+previous_vanilla)^0.5 -> 0
C106: =Asset41 -> 0 | G106: ='RFM input'!G263*(1+previous_vanilla)^0.5 -> 0
C107: =Asset42 -> 0 | G107: ='RFM input'!G264*(1+previous_vanilla)^0.5 -> 0
C108: =Asset43 -> 0 | G108: ='RFM input'!G265*(1+previous_vanilla)^0.5 -> 0
C109: =Asset44 -> 0 | G109: ='RFM input'!G266*(1+previous_vanilla)^0.5 -> 0
C110: =Asset45 -> 0 | G110: ='RFM input'!G267*(1+previous_vanilla)^0.5 -> 0
C111: =Asset46 -> 0 | G111: ='RFM input'!G268*(1+previous_vanilla)^0.5 -> 0
C112: =Asset47 -> 0 | G112: ='RFM input'!G269*(1+previous_vanilla)^0.5 -> 0
C113: =Asset48 -> Buildings - capital works | G113: ='RFM input'!G270*(1+previous_vanilla)^0.5 -> 0
C114: =Asset49 -> In-house software | G114: ='RFM input'!G271*(1+previous_vanilla)^0.5 -> 0
C115: =Asset50 -> Equity raising costs | G115: ='RFM input'!G272*(1+previous_vanilla)^0.5 -> 0
B117: Nominal Difference Between Actual and Forecast Net Capex | G117: =SUM(G118:G167) -> 91.95403658
C118: =Asset1 -> Overhead Sub-Transmission Lines | G118: =G66-G14 -> 27.04929653
C119: =Asset2 -> Underground Sub-Transmission Cables | G119: =G67-G15 -> -4.03436161
C120: =Asset3 -> Overhead Distribution Lines | G120: 81.43307832
C121: =Asset4 -> Underground Distribution Cables | G121: -16.90281361
C122: =Asset5 -> Distribution Equipment | G122: -1.543505462
C123: =Asset6 -> Substation Bays | G123: -8.538718269
C124: =Asset7 -> Substation Establishment | G124: 2.549160919
C125: =Asset8 -> Distribution Substation Switchgear | G125: -17.33013301
C126: =Asset9 -> Zone Transformers | G126: 2.242952732
C127: =Asset10 -> Distribution Transformers | G127: -21.02266159
C128: =Asset11 -> Low Voltage Services | G128: 23.62271572
C129: =Asset12 -> Communications – Pilot Wires | G129: -3.490914277
C130: =Asset13 -> Generation Assets | G130: -3.631382363
C131: =Asset14 -> Other Equipment | G131: 0
C132: =Asset15 -> Control Centre - SCADA | G132: 6.165470741
C133: =Asset16 -> Land & Easements (System) - combined | G133: -0.4572411593
C134: =Asset17 -> IT Systems | G134: -2.370883004
C135: =Asset18 -> Office Equipment & Furniture | G135: 0.5565915674
C136: =Asset19 -> Motor Vehicles | G136: 2.374795482
C137: =Asset20 -> Plant & Equipment | G137: 4.974368228
C138: =Asset21 -> Buildings | G138: -6.827956319
C139: =Asset22 -> Land & Easements - combined | G139: 1.245091977
C140: =Asset23 -> Land Improvements | G140: 6.816065597
C141: =Asset24 -> Metering | G141: 0.6606206517
C142: =Asset25 -> Communications | G142: 18.41439879
C143: =Asset26 -> ICT Legacy Assets | G143: 0
C144: =Asset27 -> Initial Leases (10 yr life) | G144: 0
C145: =Asset28 -> Lease Extensions (5yr Life) | G145: 0
C146: =Asset29 -> 0 | G146: 0
C147: =Asset30 -> 0 | G147: 0
C148: =Asset31 -> 0 | G148: 0
C149: =Asset32 -> 0 | G149: 0
C150: =Asset33 -> 0 | G150: 0
C151: =Asset34 -> 0 | G151: 0
C152: =Asset35 -> 0 | G152: 0
C153: =Asset36 -> 0 | G153: 0
C154: =Asset37 -> 0 | G154: 0
C155: =Asset38 -> 0 | G155: 0
C156: =Asset39 -> 0 | G156: 0
C157: =Asset40 -> 0 | G157: 0
C158: =Asset41 -> 0 | G158: 0
C159: =Asset42 -> 0 | G159: 0
C160: =Asset43 -> 0 | G160: 0
C161: =Asset44 -> 0 | G161: 0
C162: =Asset45 -> 0 | G162: 0
C163: =Asset46 -> 0 | G163: 0
C164: =Asset47 -> 0 | G164: 0
C165: =Asset48 -> Buildings - capital works | G165: 0
C166: =Asset49 -> In-house software | G166: 0
C167: =Asset50 -> Equity raising costs | G167: 0
B169: Compounded Nominal Return on Difference - Net Capex | H169: =SUM(H170,H172,H174,H176,H178,H180,H182,H184,H186,H188,H190,H192,H194,H196,H198,H200,H202,H204,H206,H208,H210,H212,H214,H216,H218,H220,H222,H224,H226,H228,H230,H232,H234,H236,H238,H240,H242,H244,H246,H248,H250,H252,H254,H256,H258,H260,H262,H264,H266,H268) -> 3.017087737 | I169: =SUM(I170,I172,I174,I176,I178,I180,I182,I184,I186,I188,I190,I192,I194,I196,I198,I200,I202,I204,I206,I208,I210,I212,I214,I216,I218,I220,I222,I224,I226,I228,I230,I232,I234,I236,I238,I240,I242,I244,I246,I248,I250,I252,I254,I256,I258,I260,I262,I264,I266,I268) -> 5.527044082 | J169: 10.233685 | K169: 7.087710184 | L169: 5.639174951 | M169: 0 | N169: 0 | O169: 0 | P169: 0 | Q169: 0
C170: =Asset1 -> Overhead Sub-Transmission Lines | H170: =($G118+(SUM($G170:G170)))*H$8 -> 0.8875097156 | I170: =($G118+(SUM($G170:H170)))*I$8 -> 1.625841126 | J170: =IF(COUNT($H170:I170)>='RFM input'!$V$7,0,($G118+(SUM($G170:I170)))*J$8) -> 3.010351591 | K170: =IF(COUNT($H170:J170)>='RFM input'!$V$7,0,($G118+(SUM($G170:J170)))*K$8) -> 2.084928315 | L170: =IF(COUNT($H170:K170)>='RFM input'!$V$7,0,($G118+(SUM($G170:K170)))*L$8) -> 1.65882566 | M170: =IF(COUNT($H170:L170)>='RFM input'!$V$7,0,($G118+(SUM($G170:L170)))*M$8) -> 0 | N170: =IF(COUNT($H170:M170)>='RFM input'!$V$7,0,($G118+(SUM($G170:M170)))*N$8) -> 0 | O170: =IF(COUNT($H170:N170)>='RFM input'!$V$7,0,($G118+(SUM($G170:N170)))*O$8) -> 0 | P170: =IF(COUNT($H170:O170)>='RFM input'!$V$7,0,($G118+(SUM($G170:O170)))*P$8) -> 0 | Q170: =IF(COUNT($H170:P170)>='RFM input'!$V$7,0,($G118+(SUM($G170:P170)))*Q$8) -> 0
C171: Sub-total | I171: =IF(COUNT($H170:I170)='RFM input'!$V$7,SUM($G170:I170),0) -> 0 | J171: =IF(COUNT($H170:J170)='RFM input'!$V$7,SUM($G170:J170),0) -> 0 | K171: =IF(COUNT($H170:K170)='RFM input'!$V$7,SUM($G170:K170),0) -> 0 | L171: =IF(COUNT($H170:L170)='RFM input'!$V$7,SUM($G170:L170),0) -> 9.267456407 | M171: =IF(COUNT($H170:M170)='RFM input'!$V$7,SUM($G170:M170),0) -> 0 | N171: =IF(COUNT($H170:N170)='RFM input'!$V$7,SUM($G170:N170),0) -> 0 | O171: =IF(COUNT($H170:O170)='RFM input'!$V$7,SUM($G170:O170),0) -> 0 | P171: =IF(COUNT($H170:P170)='RFM input'!$V$7,SUM($G170:P170),0) -> 0 | Q171: =IF(COUNT($H170:Q170)='RFM input'!$V$7,SUM($G170:Q170),0) -> 0
C172: =Asset2 -> Underground Sub-Transmission Cables | H172: =($G119+(SUM($G172:G172)))*H$8 -> -0.1323707299 | I172: =($G119+(SUM($G172:H172)))*I$8 -> -0.2424917415 | J172: =IF(COUNT($H172:I172)>='RFM input'!$V$7,0,($G119+(SUM($G172:I172)))*J$8) -> -0.4489893804 | K172: =IF(COUNT($H172:J172)>='RFM input'!$V$7,0,($G119+(SUM($G172:J172)))*K$8) -> -0.3109639004 | L172: =IF(COUNT($H172:K172)>='RFM input'!$V$7,0,($G119+(SUM($G172:K172)))*L$8) -> -0.2474113349 | M172: =IF(COUNT($H172:L172)>='RFM input'!$V$7,0,($G119+(SUM($G172:L172)))*M$8) -> 0 | N172: =IF(COUNT($H172:M172)>='RFM input'!$V$7,0,($G119+(SUM($G172:M172)))*N$8) -> 0 | O172: =IF(COUNT($H172:N172)>='RFM input'!$V$7,0,($G119+(SUM($G172:N172)))*O$8) -> 0 | P172: =IF(COUNT($H172:O172)>='RFM input'!$V$7,0,($G119+(SUM($G172:O172)))*P$8) -> 0 | Q172: =IF(COUNT($H172:P172)>='RFM input'!$V$7,0,($G119+(SUM($G172:P172)))*Q$8) -> 0
C173: Sub-total | I173: =IF(COUNT($H172:I172)='RFM input'!$V$7,SUM($G172:I172),0) -> 0 | J173: =IF(COUNT($H172:J172)='RFM input'!$V$7,SUM($G172:J172),0) -> 0 | K173: =IF(COUNT($H172:K172)='RFM input'!$V$7,SUM($G172:K172),0) -> 0 | L173: =IF(COUNT($H172:L172)='RFM input'!$V$7,SUM($G172:L172),0) -> -1.382227087 | M173: =IF(COUNT($H172:M172)='RFM input'!$V$7,SUM($G172:M172),0) -> 0 | N173: =IF(COUNT($H172:N172)='RFM input'!$V$7,SUM($G172:N172),0) -> 0 | O173: =IF(COUNT($H172:O172)='RFM input'!$V$7,SUM($G172:O172),0) -> 0 | P173: =IF(COUNT($H172:P172)='RFM input'!$V$7,SUM($G172:P172),0) -> 0 | Q173: =IF(COUNT($H172:Q172)='RFM input'!$V$7,SUM($G172:Q172),0) -> 0
C174: =Asset3 -> Overhead Distribution Lines | H174: =($G120+(SUM($G174:G174)))*H$8 -> 2.671886424 | I174: =($G120+(SUM($G174:H174)))*I$8 -> 4.8946651 | J174: =IF(COUNT($H174:I174)>='RFM input'!$V$7,0,($G120+(SUM($G174:I174)))*J$8) -> 9.062793797 | K174: =IF(COUNT($H174:J174)>='RFM input'!$V$7,0,($G120+(SUM($G174:J174)))*K$8) -> 6.276766959 | L174: =IF(COUNT($H174:K174)>='RFM input'!$V$7,0,($G120+(SUM($G174:K174)))*L$8) -> 4.993966469 | M174: =IF(COUNT($H174:L174)>='RFM input'!$V$7,0,($G120+(SUM($G174:L174)))*M$8) -> 0 | N174: =IF(COUNT($H174:M174)>='RFM input'!$V$7,0,($G120+(SUM($G174:M174)))*N$8) -> 0 | O174: =IF(COUNT($H174:N174)>='RFM input'!$V$7,0,($G120+(SUM($G174:N174)))*O$8) -> 0 | P174: =IF(COUNT($H174:O174)>='RFM input'!$V$7,0,($G120+(SUM($G174:O174)))*P$8) -> 0 | Q174: =IF(COUNT($H174:P174)>='RFM input'!$V$7,0,($G120+(SUM($G174:P174)))*Q$8) -> 0
C175: Sub-total | I175: =IF(COUNT($H174:I174)='RFM input'!$V$7,SUM($G174:I174),0) -> 0 | J175: =IF(COUNT($H174:J174)='RFM input'!$V$7,SUM($G174:J174),0) -> 0 | K175: =IF(COUNT($H174:K174)='RFM input'!$V$7,SUM($G174:K174),0) -> 0 | L175: =IF(COUNT($H174:L174)='RFM input'!$V$7,SUM($G174:L174),0) -> 27.90007875 | M175: =IF(COUNT($H174:M174)='RFM input'!$V$7,SUM($G174:M174),0) -> 0 | N175: =IF(COUNT($H174:N174)='RFM input'!$V$7,SUM($G174:N174),0) -> 0 | O175: =IF(COUNT($H174:O174)='RFM input'!$V$7,SUM($G174:O174),0) -> 0 | P175: =IF(COUNT($H174:P174)='RFM input'!$V$7,SUM($G174:P174),0) -> 0 | Q175: =IF(COUNT($H174:Q174)='RFM input'!$V$7,SUM($G174:Q174),0) -> 0
C176: =Asset4 -> Underground Distribution Cables | H176: =($G121+(SUM($G176:G176)))*H$8 -> -0.5545952472 | I176: =($G121+(SUM($G176:H176)))*I$8 -> -1.01597058 | J176: =IF(COUNT($H176:I176)>='RFM input'!$V$7,0,($G121+(SUM($G176:I176)))*J$8) -> -1.881136234 | K176: =IF(COUNT($H176:J176)>='RFM input'!$V$7,0,($G121+(SUM($G176:J176)))*K$8) -> -1.302849212 | L176: =IF(COUNT($H176:K176)>='RFM input'!$V$7,0,($G121+(SUM($G176:K176)))*L$8) -> -1.03658226 | M176: =IF(COUNT($H176:L176)>='RFM input'!$V$7,0,($G121+(SUM($G176:L176)))*M$8) -> 0 | N176: =IF(COUNT($H176:M176)>='RFM input'!$V$7,0,($G121+(SUM($G176:M176)))*N$8) -> 0 | O176: =IF(COUNT($H176:N176)>='RFM input'!$V$7,0,($G121+(SUM($G176:N176)))*O$8) -> 0 | P176: =IF(COUNT($H176:O176)>='RFM input'!$V$7,0,($G121+(SUM($G176:O176)))*P$8) -> 0 | Q176: =IF(COUNT($H176:P176)>='RFM input'!$V$7,0,($G121+(SUM($G176:P176)))*Q$8) -> 0
C177: Sub-total | I177: =IF(COUNT($H176:I176)='RFM input'!$V$7,SUM($G176:I176),0) -> 0 | J177: =IF(COUNT($H176:J176)='RFM input'!$V$7,SUM($G176:J176),0) -> 0 | K177: =IF(COUNT($H176:K176)='RFM input'!$V$7,SUM($G176:K176),0) -> 0 | L177: =IF(COUNT($H176:L176)='RFM input'!$V$7,SUM($G176:L176),0) -> -5.791133535 | M177: =IF(COUNT($H176:M176)='RFM input'!$V$7,SUM($G176:M176),0) -> 0 | N177: =IF(COUNT($H176:N176)='RFM input'!$V$7,SUM($G176:N176),0) -> 0 | O177: =IF(COUNT($H176:O176)='RFM input'!$V$7,SUM($G176:O176),0) -> 0 | P177: =IF(COUNT($H176:P176)='RFM input'!$V$7,SUM($G176:P176),0) -> 0 | Q177: =IF(COUNT($H176:Q176)='RFM input'!$V$7,SUM($G176:Q176),0) -> 0
C178: =Asset5 -> Distribution Equipment | H178: =($G122+(SUM($G178:G178)))*H$8 -> -0.0506436865 | I178: =($G122+(SUM($G178:H178)))*I$8 -> -0.09277485848 | J178: =IF(COUNT($H178:I178)>='RFM input'!$V$7,0,($G122+(SUM($G178:I178)))*J$8) -> -0.1717787417 | K178: =IF(COUNT($H178:J178)>='RFM input'!$V$7,0,($G122+(SUM($G178:J178)))*K$8) -> -0.1189716057 | L178: =IF(COUNT($H178:K178)>='RFM input'!$V$7,0,($G122+(SUM($G178:K178)))*L$8) -> -0.09465704456 | M178: =IF(COUNT($H178:L178)>='RFM input'!$V$7,0,($G122+(SUM($G178:L178)))*M$8) -> 0 | N178: =IF(COUNT($H178:M178)>='RFM input'!$V$7,0,($G122+(SUM($G178:M178)))*N$8) -> 0 | O178: =IF(COUNT($H178:N178)>='RFM input'!$V$7,0,($G122+(SUM($G178:N178)))*O$8) -> 0 | P178: =IF(COUNT($H178:O178)>='RFM input'!$V$7,0,($G122+(SUM($G178:O178)))*P$8) -> 0 | Q178: =IF(COUNT($H178:P178)>='RFM input'!$V$7,0,($G122+(SUM($G178:P178)))*Q$8) -> 0
C179: Sub-total | I179: =IF(COUNT($H178:I178)='RFM input'!$V$7,SUM($G178:I178),0) -> 0 | J179: =IF(COUNT($H178:J178)='RFM input'!$V$7,SUM($G178:J178),0) -> 0 | K179: =IF(COUNT($H178:K178)='RFM input'!$V$7,SUM($G178:K178),0) -> 0 | L179: =IF(COUNT($H178:L178)='RFM input'!$V$7,SUM($G178:L178),0) -> -0.528825937 | M179: =IF(COUNT($H178:M178)='RFM input'!$V$7,SUM($G178:M178),0) -> 0 | N179: =IF(COUNT($H178:N178)='RFM input'!$V$7,SUM($G178:N178),0) -> 0 | O179: =IF(COUNT($H178:O178)='RFM input'!$V$7,SUM($G178:O178),0) -> 0 | P179: =IF(COUNT($H178:P178)='RFM input'!$V$7,SUM($G178:P178),0) -> 0 | Q179: =IF(COUNT($H178:Q178)='RFM input'!$V$7,SUM($G178:Q178),0) -> 0
C180: =Asset6 -> Substation Bays | H180: =($G123+(SUM($G180:G180)))*H$8 -> -0.2801623848 | I180: =($G123+(SUM($G180:H180)))*I$8 -> -0.5132332852 | J180: =IF(COUNT($H180:I180)>='RFM input'!$V$7,0,($G123+(SUM($G180:I180)))*J$8) -> -0.9502851244 | K180: =IF(COUNT($H180:J180)>='RFM input'!$V$7,0,($G123+(SUM($G180:J180)))*K$8) -> -0.6581544724 | L180: =IF(COUNT($H180:K180)>='RFM input'!$V$7,0,($G123+(SUM($G180:K180)))*L$8) -> -0.5236455948 | M180: =IF(COUNT($H180:L180)>='RFM input'!$V$7,0,($G123+(SUM($G180:L180)))*M$8) -> 0 | N180: =IF(COUNT($H180:M180)>='RFM input'!$V$7,0,($G123+(SUM($G180:M180)))*N$8) -> 0 | O180: =IF(COUNT($H180:N180)>='RFM input'!$V$7,0,($G123+(SUM($G180:N180)))*O$8) -> 0 | P180: =IF(COUNT($H180:O180)>='RFM input'!$V$7,0,($G123+(SUM($G180:O180)))*P$8) -> 0 | Q180: =IF(COUNT($H180:P180)>='RFM input'!$V$7,0,($G123+(SUM($G180:P180)))*Q$8) -> 0
C181: Sub-total | I181: =IF(COUNT($H180:I180)='RFM input'!$V$7,SUM($G180:I180),0) -> 0 | J181: =IF(COUNT($H180:J180)='RFM input'!$V$7,SUM($G180:J180),0) -> 0 | K181: =IF(COUNT($H180:K180)='RFM input'!$V$7,SUM($G180:K180),0) -> 0 | L181: =IF(COUNT($H180:L180)='RFM input'!$V$7,SUM($G180:L180),0) -> -2.925480862 | M181: =IF(COUNT($H180:M180)='RFM input'!$V$7,SUM($G180:M180),0) -> 0 | N181: =IF(COUNT($H180:N180)='RFM input'!$V$7,SUM($G180:N180),0) -> 0 | O181: =IF(COUNT($H180:O180)='RFM input'!$V$7,SUM($G180:O180),0) -> 0 | P181: =IF(COUNT($H180:P180)='RFM input'!$V$7,SUM($G180:P180),0) -> 0 | Q181: =IF(COUNT($H180:Q180)='RFM input'!$V$7,SUM($G180:Q180),0) -> 0
C182: =Asset7 -> Substation Establishment | H182: =($G124+(SUM($G182:G182)))*H$8 -> 0.08364007098 | I182: =($G124+(SUM($G182:H182)))*I$8 -> 0.1532213842 | J182: =IF(COUNT($H182:I182)>='RFM input'!$V$7,0,($G124+(SUM($G182:I182)))*J$8) -> 0.2836994528 | K182: =IF(COUNT($H182:J182)>='RFM input'!$V$7,0,($G124+(SUM($G182:J182)))*K$8) -> 0.1964863586 | L182: =IF(COUNT($H182:K182)>='RFM input'!$V$7,0,($G124+(SUM($G182:K182)))*L$8) -> 0.1563298897 | M182: =IF(COUNT($H182:L182)>='RFM input'!$V$7,0,($G124+(SUM($G182:L182)))*M$8) -> 0 | N182: =IF(COUNT($H182:M182)>='RFM input'!$V$7,0,($G124+(SUM($G182:M182)))*N$8) -> 0 | O182: =IF(COUNT($H182:N182)>='RFM input'!$V$7,0,($G124+(SUM($G182:N182)))*O$8) -> 0 | P182: =IF(COUNT($H182:O182)>='RFM input'!$V$7,0,($G124+(SUM($G182:O182)))*P$8) -> 0 | Q182: =IF(COUNT($H182:P182)>='RFM input'!$V$7,0,($G124+(SUM($G182:P182)))*Q$8) -> 0
C183: Sub-total | I183: =IF(COUNT($H182:I182)='RFM input'!$V$7,SUM($G182:I182),0) -> 0 | J183: =IF(COUNT($H182:J182)='RFM input'!$V$7,SUM($G182:J182),0) -> 0 | K183: =IF(COUNT($H182:K182)='RFM input'!$V$7,SUM($G182:K182),0) -> 0 | L183: =IF(COUNT($H182:L182)='RFM input'!$V$7,SUM($G182:L182),0) -> 0.8733771564 | M183: =IF(COUNT($H182:M182)='RFM input'!$V$7,SUM($G182:M182),0) -> 0 | N183: =IF(COUNT($H182:N182)='RFM input'!$V$7,SUM($G182:N182),0) -> 0 | O183: =IF(COUNT($H182:O182)='RFM input'!$V$7,SUM($G182:O182),0) -> 0 | P183: =IF(COUNT($H182:P182)='RFM input'!$V$7,SUM($G182:P182),0) -> 0 | Q183: =IF(COUNT($H182:Q182)='RFM input'!$V$7,SUM($G182:Q182),0) -> 0
C184: =Asset8 -> Distribution Substation Switchgear | H184: =($G125+(SUM($G184:G184)))*H$8 -> -0.5686159492 | I184: =($G125+(SUM($G184:H184)))*I$8 -> -1.041655295 | J184: =IF(COUNT($H184:I184)>='RFM input'!$V$7,0,($G125+(SUM($G184:I184)))*J$8) -> -1.92869317 | K184: =IF(COUNT($H184:J184)>='RFM input'!$V$7,0,($G125+(SUM($G184:J184)))*K$8) -> -1.335786495 | L184: =IF(COUNT($H184:K184)>='RFM input'!$V$7,0,($G125+(SUM($G184:K184)))*L$8) -> -1.062788058 | M184: =IF(COUNT($H184:L184)>='RFM input'!$V$7,0,($G125+(SUM($G184:L184)))*M$8) -> 0 | N184: =IF(COUNT($H184:M184)>='RFM input'!$V$7,0,($G125+(SUM($G184:M184)))*N$8) -> 0 | O184: =IF(COUNT($H184:N184)>='RFM input'!$V$7,0,($G125+(SUM($G184:N184)))*O$8) -> 0 | P184: =IF(COUNT($H184:O184)>='RFM input'!$V$7,0,($G125+(SUM($G184:O184)))*P$8) -> 0 | Q184: =IF(COUNT($H184:P184)>='RFM input'!$V$7,0,($G125+(SUM($G184:P184)))*Q$8) -> 0
C185: Sub-total | I185: =IF(COUNT($H184:I184)='RFM input'!$V$7,SUM($G184:I184),0) -> 0 | J185: =IF(COUNT($H184:J184)='RFM input'!$V$7,SUM($G184:J184),0) -> 0 | K185: =IF(COUNT($H184:K184)='RFM input'!$V$7,SUM($G184:K184),0) -> 0 | L185: =IF(COUNT($H184:L184)='RFM input'!$V$7,SUM($G184:L184),0) -> -5.937538968 | M185: =IF(COUNT($H184:M184)='RFM input'!$V$7,SUM($G184:M184),0) -> 0 | N185: =IF(COUNT($H184:N184)='RFM input'!$V$7,SUM($G184:N184),0) -> 0 | O185: =IF(COUNT($H184:O184)='RFM input'!$V$7,SUM($G184:O184),0) -> 0 | P185: =IF(COUNT($H184:P184)='RFM input'!$V$7,SUM($G184:P184),0) -> 0 | Q185: =IF(COUNT($H184:Q184)='RFM input'!$V$7,SUM($G184:Q184),0) -> 0
C186: =Asset9 -> Zone Transformers | H186: =($G126+(SUM($G186:G186)))*H$8 -> 0.07359312798 | I186: =($G126+(SUM($G186:H186)))*I$8 -> 0.1348162526 | J186: =IF(COUNT($H186:I186)>='RFM input'!$V$7,0,($G126+(SUM($G186:I186)))*J$8) -> 0.2496211432 | K186: =IF(COUNT($H186:J186)>='RFM input'!$V$7,0,($G126+(SUM($G186:J186)))*K$8) -> 0.1728841877 | L186: =IF(COUNT($H186:K186)>='RFM input'!$V$7,0,($G126+(SUM($G186:K186)))*L$8) -> 0.1375513608 | M186: =IF(COUNT($H186:L186)>='RFM input'!$V$7,0,($G126+(SUM($G186:L186)))*M$8) -> 0 | N186: =IF(COUNT($H186:M186)>='RFM input'!$V$7,0,($G126+(SUM($G186:M186)))*N$8) -> 0 | O186: =IF(COUNT($H186:N186)>='RFM input'!$V$7,0,($G126+(SUM($G186:N186)))*O$8) -> 0 | P186: =IF(COUNT($H186:O186)>='RFM input'!$V$7,0,($G126+(SUM($G186:O186)))*P$8) -> 0 | Q186: =IF(COUNT($H186:P186)>='RFM input'!$V$7,0,($G126+(SUM($G186:P186)))*Q$8) -> 0
C187: Sub-total | I187: =IF(COUNT($H186:I186)='RFM input'!$V$7,SUM($G186:I186),0) -> 0 | J187: =IF(COUNT($H186:J186)='RFM input'!$V$7,SUM($G186:J186),0) -> 0 | K187: =IF(COUNT($H186:K186)='RFM input'!$V$7,SUM($G186:K186),0) -> 0 | L187: =IF(COUNT($H186:L186)='RFM input'!$V$7,SUM($G186:L186),0) -> 0.7684660724 | M187: =IF(COUNT($H186:M186)='RFM input'!$V$7,SUM($G186:M186),0) -> 0 | N187: =IF(COUNT($H186:N186)='RFM input'!$V$7,SUM($G186:N186),0) -> 0 | O187: =IF(COUNT($H186:O186)='RFM input'!$V$7,SUM($G186:O186),0) -> 0 | P187: =IF(COUNT($H186:P186)='RFM input'!$V$7,SUM($G186:P186),0) -> 0 | Q187: =IF(COUNT($H186:Q186)='RFM input'!$V$7,SUM($G186:Q186),0) -> 0
C188: =Asset10 -> Distribution Transformers | H188: =($G127+(SUM($G188:G188)))*H$8 -> -0.6897708556 | I188: =($G127+(SUM($G188:H188)))*I$8 -> -1.263600617 | J188: =IF(COUNT($H188:I188)>='RFM input'!$V$7,0,($G127+(SUM($G188:I188)))*J$8) -> -2.339639505 | K188: =IF(COUNT($H188:J188)>='RFM input'!$V$7,0,($G127+(SUM($G188:J188)))*K$8) -> -1.620402303 | L188: =IF(COUNT($H188:K188)>='RFM input'!$V$7,0,($G127+(SUM($G188:K188)))*L$8) -> -1.289236134 | M188: =IF(COUNT($H188:L188)>='RFM input'!$V$7,0,($G127+(SUM($G188:L188)))*M$8) -> 0 | N188: =IF(COUNT($H188:M188)>='RFM input'!$V$7,0,($G127+(SUM($G188:M188)))*N$8) -> 0 | O188: =IF(COUNT($H188:N188)>='RFM input'!$V$7,0,($G127+(SUM($G188:N188)))*O$8) -> 0 | P188: =IF(COUNT($H188:O188)>='RFM input'!$V$7,0,($G127+(SUM($G188:O188)))*P$8) -> 0 | Q188: =IF(COUNT($H188:P188)>='RFM input'!$V$7,0,($G127+(SUM($G188:P188)))*Q$8) -> 0
C189: Sub-total | I189: =IF(COUNT($H188:I188)='RFM input'!$V$7,SUM($G188:I188),0) -> 0 | J189: =IF(COUNT($H188:J188)='RFM input'!$V$7,SUM($G188:J188),0) -> 0 | K189: =IF(COUNT($H188:K188)='RFM input'!$V$7,SUM($G188:K188),0) -> 0 | L189: =IF(COUNT($H188:L188)='RFM input'!$V$7,SUM($G188:L188),0) -> -7.202649415 | M189: =IF(COUNT($H188:M188)='RFM input'!$V$7,SUM($G188:M188),0) -> 0 | N189: =IF(COUNT($H188:N188)='RFM input'!$V$7,SUM($G188:N188),0) -> 0 | O189: =IF(COUNT($H188:O188)='RFM input'!$V$7,SUM($G188:O188),0) -> 0 | P189: =IF(COUNT($H188:P188)='RFM input'!$V$7,SUM($G188:P188),0) -> 0 | Q189: =IF(COUNT($H188:Q188)='RFM input'!$V$7,SUM($G188:Q188),0) -> 0
C190: =Asset11 -> Low Voltage Services | H190: =($G128+(SUM($G190:G190)))*H$8 -> 0.7750807745 | I190: =($G128+(SUM($G190:H190)))*I$8 -> 1.419881018 | J190: =IF(COUNT($H190:I190)>='RFM input'!$V$7,0,($G128+(SUM($G190:I190)))*J$8) -> 2.629002929 | K190: =IF(COUNT($H190:J190)>='RFM input'!$V$7,0,($G128+(SUM($G190:J190)))*K$8) -> 1.820811451 | L190: =IF(COUNT($H190:K190)>='RFM input'!$V$7,0,($G128+(SUM($G190:K190)))*L$8) -> 1.448687102 | M190: =IF(COUNT($H190:L190)>='RFM input'!$V$7,0,($G128+(SUM($G190:L190)))*M$8) -> 0 | N190: =IF(COUNT($H190:M190)>='RFM input'!$V$7,0,($G128+(SUM($G190:M190)))*N$8) -> 0 | O190: =IF(COUNT($H190:N190)>='RFM input'!$V$7,0,($G128+(SUM($G190:N190)))*O$8) -> 0 | P190: =IF(COUNT($H190:O190)>='RFM input'!$V$7,0,($G128+(SUM($G190:O190)))*P$8) -> 0 | Q190: =IF(COUNT($H190:P190)>='RFM input'!$V$7,0,($G128+(SUM($G190:P190)))*Q$8) -> 0
C191: Sub-total | I191: =IF(COUNT($H190:I190)='RFM input'!$V$7,SUM($G190:I190),0) -> 0 | J191: =IF(COUNT($H190:J190)='RFM input'!$V$7,SUM($G190:J190),0) -> 0 | K191: =IF(COUNT($H190:K190)='RFM input'!$V$7,SUM($G190:K190),0) -> 0 | L191: =IF(COUNT($H190:L190)='RFM input'!$V$7,SUM($G190:L190),0) -> 8.093463275 | M191: =IF(COUNT($H190:M190)='RFM input'!$V$7,SUM($G190:M190),0) -> 0 | N191: =IF(COUNT($H190:N190)='RFM input'!$V$7,SUM($G190:N190),0) -> 0 | O191: =IF(COUNT($H190:O190)='RFM input'!$V$7,SUM($G190:O190),0) -> 0 | P191: =IF(COUNT($H190:P190)='RFM input'!$V$7,SUM($G190:P190),0) -> 0 | Q191: =IF(COUNT($H190:Q190)='RFM input'!$V$7,SUM($G190:Q190),0) -> 0
C192: =Asset12 -> Communications – Pilot Wires | H192: =($G129+(SUM($G192:G192)))*H$8 -> -0.1145397749 | I192: =($G129+(SUM($G192:H192)))*I$8 -> -0.2098269724 | J192: =IF(COUNT($H192:I192)>='RFM input'!$V$7,0,($G129+(SUM($G192:I192)))*J$8) -> -0.3885084158 | K192: =IF(COUNT($H192:J192)>='RFM input'!$V$7,0,($G129+(SUM($G192:J192)))*K$8) -> -0.269075612 | L192: =IF(COUNT($H192:K192)>='RFM input'!$V$7,0,($G129+(SUM($G192:K192)))*L$8) -> -0.2140838736 | M192: =IF(COUNT($H192:L192)>='RFM input'!$V$7,0,($G129+(SUM($G192:L192)))*M$8) -> 0 | N192: =IF(COUNT($H192:M192)>='RFM input'!$V$7,0,($G129+(SUM($G192:M192)))*N$8) -> 0 | O192: =IF(COUNT($H192:N192)>='RFM input'!$V$7,0,($G129+(SUM($G192:N192)))*O$8) -> 0 | P192: =IF(COUNT($H192:O192)>='RFM input'!$V$7,0,($G129+(SUM($G192:O192)))*P$8) -> 0 | Q192: =IF(COUNT($H192:P192)>='RFM input'!$V$7,0,($G129+(SUM($G192:P192)))*Q$8) -> 0
C193: Sub-total | I193: =IF(COUNT($H192:I192)='RFM input'!$V$7,SUM($G192:I192),0) -> 0 | J193: =IF(COUNT($H192:J192)='RFM input'!$V$7,SUM($G192:J192),0) -> 0 | K193: =IF(COUNT($H192:K192)='RFM input'!$V$7,SUM($G192:K192),0) -> 0 | L193: =IF(COUNT($H192:L192)='RFM input'!$V$7,SUM($G192:L192),0) -> -1.196034649 | M193: =IF(COUNT($H192:M192)='RFM input'!$V$7,SUM($G192:M192),0) -> 0 | N193: =IF(COUNT($H192:N192)='RFM input'!$V$7,SUM($G192:N192),0) -> 0 | O193: =IF(COUNT($H192:O192)='RFM input'!$V$7,SUM($G192:O192),0) -> 0 | P193: =IF(COUNT($H192:P192)='RFM input'!$V$7,SUM($G192:P192),0) -> 0 | Q193: =IF(COUNT($H192:Q192)='RFM input'!$V$7,SUM($G192:Q192),0) -> 0
C194: =Asset13 -> Generation Assets | H194: =($G130+(SUM($G194:G194)))*H$8 -> -0.1191486486 | I194: =($G130+(SUM($G194:H194)))*I$8 -> -0.2182700308 | J194: =IF(COUNT($H194:I194)>='RFM input'!$V$7,0,($G130+(SUM($G194:I194)))*J$8) -> -0.4041412929 | K194: =IF(COUNT($H194:J194)>='RFM input'!$V$7,0,($G130+(SUM($G194:J194)))*K$8) -> -0.2799027287 | L194: =IF(COUNT($H194:K194)>='RFM input'!$V$7,0,($G130+(SUM($G194:K194)))*L$8) -> -0.2226982221 | M194: =IF(COUNT($H194:L194)>='RFM input'!$V$7,0,($G130+(SUM($G194:L194)))*M$8) -> 0 | N194: =IF(COUNT($H194:M194)>='RFM input'!$V$7,0,($G130+(SUM($G194:M194)))*N$8) -> 0 | O194: =IF(COUNT($H194:N194)>='RFM input'!$V$7,0,($G130+(SUM($G194:N194)))*O$8) -> 0 | P194: =IF(COUNT($H194:O194)>='RFM input'!$V$7,0,($G130+(SUM($G194:O194)))*P$8) -> 0 | Q194: =IF(COUNT($H194:P194)>='RFM input'!$V$7,0,($G130+(SUM($G194:P194)))*Q$8) -> 0
C195: Sub-total | I195: =IF(COUNT($H194:I194)='RFM input'!$V$7,SUM($G194:I194),0) -> 0 | J195: =IF(COUNT($H194:J194)='RFM input'!$V$7,SUM($G194:J194),0) -> 0 | K195: =IF(COUNT($H194:K194)='RFM input'!$V$7,SUM($G194:K194),0) -> 0 | L195: =IF(COUNT($H194:L194)='RFM input'!$V$7,SUM($G194:L194),0) -> -1.244160923 | M195: =IF(COUNT($H194:M194)='RFM input'!$V$7,SUM($G194:M194),0) -> 0 | N195: =IF(COUNT($H194:N194)='RFM input'!$V$7,SUM($G194:N194),0) -> 0 | O195: =IF(COUNT($H194:O194)='RFM input'!$V$7,SUM($G194:O194),0) -> 0 | P195: =IF(COUNT($H194:P194)='RFM input'!$V$7,SUM($G194:P194),0) -> 0 | Q195: =IF(COUNT($H194:Q194)='RFM input'!$V$7,SUM($G194:Q194),0) -> 0
C196: =Asset14 -> Other Equipment | H196: =($G131+(SUM($G196:G196)))*H$8 -> 0 | I196: =($G131+(SUM($G196:H196)))*I$8 -> 0 | J196: =IF(COUNT($H196:I196)>='RFM input'!$V$7,0,($G131+(SUM($G196:I196)))*J$8) -> 0 | K196: =IF(COUNT($H196:J196)>='RFM input'!$V$7,0,($G131+(SUM($G196:J196)))*K$8) -> 0 | L196: =IF(COUNT($H196:K196)>='RFM input'!$V$7,0,($G131+(SUM($G196:K196)))*L$8) -> 0 | M196: =IF(COUNT($H196:L196)>='RFM input'!$V$7,0,($G131+(SUM($G196:L196)))*M$8) -> 0 | N196: =IF(COUNT($H196:M196)>='RFM input'!$V$7,0,($G131+(SUM($G196:M196)))*N$8) -> 0 | O196: =IF(COUNT($H196:N196)>='RFM input'!$V$7,0,($G131+(SUM($G196:N196)))*O$8) -> 0 | P196: =IF(COUNT($H196:O196)>='RFM input'!$V$7,0,($G131+(SUM($G196:O196)))*P$8) -> 0 | Q196: =IF(COUNT($H196:P196)>='RFM input'!$V$7,0,($G131+(SUM($G196:P196)))*Q$8) -> 0
C197: Sub-total | I197: =IF(COUNT($H196:I196)='RFM input'!$V$7,SUM($G196:I196),0) -> 0 | J197: =IF(COUNT($H196:J196)='RFM input'!$V$7,SUM($G196:J196),0) -> 0 | K197: =IF(COUNT($H196:K196)='RFM input'!$V$7,SUM($G196:K196),0) -> 0 | L197: =IF(COUNT($H196:L196)='RFM input'!$V$7,SUM($G196:L196),0) -> 0 | M197: =IF(COUNT($H196:M196)='RFM input'!$V$7,SUM($G196:M196),0) -> 0 | N197: =IF(COUNT($H196:N196)='RFM input'!$V$7,SUM($G196:N196),0) -> 0 | O197: =IF(COUNT($H196:O196)='RFM input'!$V$7,SUM($G196:O196),0) -> 0 | P197: =IF(COUNT($H196:P196)='RFM input'!$V$7,SUM($G196:P196),0) -> 0 | Q197: =IF(COUNT($H196:Q196)='RFM input'!$V$7,SUM($G196:Q196),0) -> 0
C198: =Asset15 -> Control Centre - SCADA | H198: =($G132+(SUM($G198:G198)))*H$8 -> 0.2022941771 | I198: =($G132+(SUM($G198:H198)))*I$8 -> 0.370585456 | J198: =IF(COUNT($H198:I198)>='RFM input'!$V$7,0,($G132+(SUM($G198:I198)))*J$8) -> 0.6861633029 | K198: =IF(COUNT($H198:J198)>='RFM input'!$V$7,0,($G132+(SUM($G198:J198)))*K$8) -> 0.4752273134 | L198: =IF(COUNT($H198:K198)>='RFM input'!$V$7,0,($G132+(SUM($G198:K198)))*L$8) -> 0.3781037729 | M198: =IF(COUNT($H198:L198)>='RFM input'!$V$7,0,($G132+(SUM($G198:L198)))*M$8) -> 0 | N198: =IF(COUNT($H198:M198)>='RFM input'!$V$7,0,($G132+(SUM($G198:M198)))*N$8) -> 0 | O198: =IF(COUNT($H198:N198)>='RFM input'!$V$7,0,($G132+(SUM($G198:N198)))*O$8) -> 0 | P198: =IF(COUNT($H198:O198)>='RFM input'!$V$7,0,($G132+(SUM($G198:O198)))*P$8) -> 0 | Q198: =IF(COUNT($H198:P198)>='RFM input'!$V$7,0,($G132+(SUM($G198:P198)))*Q$8) -> 0
C199: Sub-total | I199: =IF(COUNT($H198:I198)='RFM input'!$V$7,SUM($G198:I198),0) -> 0 | J199: =IF(COUNT($H198:J198)='RFM input'!$V$7,SUM($G198:J198),0) -> 0 | K199: =IF(COUNT($H198:K198)='RFM input'!$V$7,SUM($G198:K198),0) -> 0 | L199: =IF(COUNT($H198:L198)='RFM input'!$V$7,SUM($G198:L198),0) -> 2.112374022 | M199: =IF(COUNT($H198:M198)='RFM input'!$V$7,SUM($G198:M198),0) -> 0 | N199: =IF(COUNT($H198:N198)='RFM input'!$V$7,SUM($G198:N198),0) -> 0 | O199: =IF(COUNT($H198:O198)='RFM input'!$V$7,SUM($G198:O198),0) -> 0 | P199: =IF(COUNT($H198:P198)='RFM input'!$V$7,SUM($G198:P198),0) -> 0 | Q199: =IF(COUNT($H198:Q198)='RFM input'!$V$7,SUM($G198:Q198),0) -> 0
C200: =Asset16 -> Land & Easements (System) - combined | H200: =($G133+(SUM($G200:G200)))*H$8 -> -0.01500245934 | I200: =($G133+(SUM($G200:H200)))*I$8 -> -0.02748320942 | J200: =IF(COUNT($H200:I200)>='RFM input'!$V$7,0,($G133+(SUM($G200:I200)))*J$8) -> -0.05088696667 | K200: =IF(COUNT($H200:J200)>='RFM input'!$V$7,0,($G133+(SUM($G200:J200)))*K$8) -> -0.03524361673 | L200: =IF(COUNT($H200:K200)>='RFM input'!$V$7,0,($G133+(SUM($G200:K200)))*L$8) -> -0.02804077981 | M200: =IF(COUNT($H200:L200)>='RFM input'!$V$7,0,($G133+(SUM($G200:L200)))*M$8) -> 0 | N200: =IF(COUNT($H200:M200)>='RFM input'!$V$7,0,($G133+(SUM($G200:M200)))*N$8) -> 0 | O200: =IF(COUNT($H200:N200)>='RFM input'!$V$7,0,($G133+(SUM($G200:N200)))*O$8) -> 0 | P200: =IF(COUNT($H200:O200)>='RFM input'!$V$7,0,($G133+(SUM($G200:O200)))*P$8) -> 0 | Q200: =IF(COUNT($H200:P200)>='RFM input'!$V$7,0,($G133+(SUM($G200:P200)))*Q$8) -> 0
C201: Sub-total | I201: =IF(COUNT($H200:I200)='RFM input'!$V$7,SUM($G200:I200),0) -> 0 | J201: =IF(COUNT($H200:J200)='RFM input'!$V$7,SUM($G200:J200),0) -> 0 | K201: =IF(COUNT($H200:K200)='RFM input'!$V$7,SUM($G200:K200),0) -> 0 | L201: =IF(COUNT($H200:L200)='RFM input'!$V$7,SUM($G200:L200),0) -> -0.156657032 | M201: =IF(COUNT($H200:M200)='RFM input'!$V$7,SUM($G200:M200),0) -> 0 | N201: =IF(COUNT($H200:N200)='RFM input'!$V$7,SUM($G200:N200),0) -> 0 | O201: =IF(COUNT($H200:O200)='RFM input'!$V$7,SUM($G200:O200),0) -> 0 | P201: =IF(COUNT($H200:P200)='RFM input'!$V$7,SUM($G200:P200),0) -> 0 | Q201: =IF(COUNT($H200:Q200)='RFM input'!$V$7,SUM($G200:Q200),0) -> 0
C202: =Asset17 -> IT Systems | H202: =($G134+(SUM($G202:G202)))*H$8 -> -0.07779062565 | I202: =($G134+(SUM($G202:H202)))*I$8 -> -0.1425057057 | J202: =IF(COUNT($H202:I202)>='RFM input'!$V$7,0,($G134+(SUM($G202:I202)))*J$8) -> -0.2638586705 | K202: =IF(COUNT($H202:J202)>='RFM input'!$V$7,0,($G134+(SUM($G202:J202)))*K$8) -> -0.1827449043 | L202: =IF(COUNT($H202:K202)>='RFM input'!$V$7,0,($G134+(SUM($G202:K202)))*L$8) -> -0.145396815 | M202: =IF(COUNT($H202:L202)>='RFM input'!$V$7,0,($G134+(SUM($G202:L202)))*M$8) -> 0 | N202: =IF(COUNT($H202:M202)>='RFM input'!$V$7,0,($G134+(SUM($G202:M202)))*N$8) -> 0 | O202: =IF(COUNT($H202:N202)>='RFM input'!$V$7,0,($G134+(SUM($G202:N202)))*O$8) -> 0 | P202: =IF(COUNT($H202:O202)>='RFM input'!$V$7,0,($G134+(SUM($G202:O202)))*P$8) -> 0 | Q202: =IF(COUNT($H202:P202)>='RFM input'!$V$7,0,($G134+(SUM($G202:P202)))*Q$8) -> 0
C203: Sub-total | I203: =IF(COUNT($H202:I202)='RFM input'!$V$7,SUM($G202:I202),0) -> 0 | J203: =IF(COUNT($H202:J202)='RFM input'!$V$7,SUM($G202:J202),0) -> 0 | K203: =IF(COUNT($H202:K202)='RFM input'!$V$7,SUM($G202:K202),0) -> 0 | L203: =IF(COUNT($H202:L202)='RFM input'!$V$7,SUM($G202:L202),0) -> -0.8122967213 | M203: =IF(COUNT($H202:M202)='RFM input'!$V$7,SUM($G202:M202),0) -> 0 | N203: =IF(COUNT($H202:N202)='RFM input'!$V$7,SUM($G202:N202),0) -> 0 | O203: =IF(COUNT($H202:O202)='RFM input'!$V$7,SUM($G202:O202),0) -> 0 | P203: =IF(COUNT($H202:P202)='RFM input'!$V$7,SUM($G202:P202),0) -> 0 | Q203: =IF(COUNT($H202:Q202)='RFM input'!$V$7,SUM($G202:Q202),0) -> 0
C204: =Asset18 -> Office Equipment & Furniture | H204: =($G135+(SUM($G204:G204)))*H$8 -> 0.01826222812 | I204: =($G135+(SUM($G204:H204)))*I$8 -> 0.03345482421 | J204: =IF(COUNT($H204:I204)>='RFM input'!$V$7,0,($G135+(SUM($G204:I204)))*J$8) -> 0.06194380354 | K204: =IF(COUNT($H204:J204)>='RFM input'!$V$7,0,($G135+(SUM($G204:J204)))*K$8) -> 0.04290143062 | L204: =IF(COUNT($H204:K204)>='RFM input'!$V$7,0,($G135+(SUM($G204:K204)))*L$8) -> 0.03413354478 | M204: =IF(COUNT($H204:L204)>='RFM input'!$V$7,0,($G135+(SUM($G204:L204)))*M$8) -> 0 | N204: =IF(COUNT($H204:M204)>='RFM input'!$V$7,0,($G135+(SUM($G204:M204)))*N$8) -> 0 | O204: =IF(COUNT($H204:N204)>='RFM input'!$V$7,0,($G135+(SUM($G204:N204)))*O$8) -> 0 | P204: =IF(COUNT($H204:O204)>='RFM input'!$V$7,0,($G135+(SUM($G204:O204)))*P$8) -> 0 | Q204: =IF(COUNT($H204:P204)>='RFM input'!$V$7,0,($G135+(SUM($G204:P204)))*Q$8) -> 0
C205: Sub-total | I205: =IF(COUNT($H204:I204)='RFM input'!$V$7,SUM($G204:I204),0) -> 0 | J205: =IF(COUNT($H204:J204)='RFM input'!$V$7,SUM($G204:J204),0) -> 0 | K205: =IF(COUNT($H204:K204)='RFM input'!$V$7,SUM($G204:K204),0) -> 0 | L205: =IF(COUNT($H204:L204)='RFM input'!$V$7,SUM($G204:L204),0) -> 0.1906958313 | M205: =IF(COUNT($H204:M204)='RFM input'!$V$7,SUM($G204:M204),0) -> 0 | N205: =IF(COUNT($H204:N204)='RFM input'!$V$7,SUM($G204:N204),0) -> 0 | O205: =IF(COUNT($H204:O204)='RFM input'!$V$7,SUM($G204:O204),0) -> 0 | P205: =IF(COUNT($H204:P204)='RFM input'!$V$7,SUM($G204:P204),0) -> 0 | Q205: =IF(COUNT($H204:Q204)='RFM input'!$V$7,SUM($G204:Q204),0) -> 0
C206: =Asset19 -> Motor Vehicles | H206: =($G136+(SUM($G206:G206)))*H$8 -> 0.07791899727 | I206: =($G136+(SUM($G206:H206)))*I$8 -> 0.1427408715 | J206: =IF(COUNT($H206:I206)>='RFM input'!$V$7,0,($G136+(SUM($G206:I206)))*J$8) -> 0.2642940953 | K206: =IF(COUNT($H206:J206)>='RFM input'!$V$7,0,($G136+(SUM($G206:J206)))*K$8) -> 0.1830464735 | L206: =IF(COUNT($H206:K206)>='RFM input'!$V$7,0,($G136+(SUM($G206:K206)))*L$8) -> 0.1456367517 | M206: =IF(COUNT($H206:L206)>='RFM input'!$V$7,0,($G136+(SUM($G206:L206)))*M$8) -> 0 | N206: =IF(COUNT($H206:M206)>='RFM input'!$V$7,0,($G136+(SUM($G206:M206)))*N$8) -> 0 | O206: =IF(COUNT($H206:N206)>='RFM input'!$V$7,0,($G136+(SUM($G206:N206)))*O$8) -> 0 | P206: =IF(COUNT($H206:O206)>='RFM input'!$V$7,0,($G136+(SUM($G206:O206)))*P$8) -> 0 | Q206: =IF(COUNT($H206:P206)>='RFM input'!$V$7,0,($G136+(SUM($G206:P206)))*Q$8) -> 0
C207: Sub-total | I207: =IF(COUNT($H206:I206)='RFM input'!$V$7,SUM($G206:I206),0) -> 0 | J207: =IF(COUNT($H206:J206)='RFM input'!$V$7,SUM($G206:J206),0) -> 0 | K207: =IF(COUNT($H206:K206)='RFM input'!$V$7,SUM($G206:K206),0) -> 0 | L207: =IF(COUNT($H206:L206)='RFM input'!$V$7,SUM($G206:L206),0) -> 0.8136371893 | M207: =IF(COUNT($H206:M206)='RFM input'!$V$7,SUM($G206:M206),0) -> 0 | N207: =IF(COUNT($H206:N206)='RFM input'!$V$7,SUM($G206:N206),0) -> 0 | O207: =IF(COUNT($H206:O206)='RFM input'!$V$7,SUM($G206:O206),0) -> 0 | P207: =IF(COUNT($H206:P206)='RFM input'!$V$7,SUM($G206:P206),0) -> 0 | Q207: =IF(COUNT($H206:Q206)='RFM input'!$V$7,SUM($G206:Q206),0) -> 0
C208: =Asset20 -> Plant & Equipment | H208: =($G137+(SUM($G208:G208)))*H$8 -> 0.1632131219 | I208: =($G137+(SUM($G208:H208)))*I$8 -> 0.298992339 | J208: =IF(COUNT($H208:I208)>='RFM input'!$V$7,0,($G137+(SUM($G208:I208)))*J$8) -> 0.5536039463 | K208: =IF(COUNT($H208:J208)>='RFM input'!$V$7,0,($G137+(SUM($G208:J208)))*K$8) -> 0.3834185171 | L208: =IF(COUNT($H208:K208)>='RFM input'!$V$7,0,($G137+(SUM($G208:K208)))*L$8) -> 0.3050581981 | M208: =IF(COUNT($H208:L208)>='RFM input'!$V$7,0,($G137+(SUM($G208:L208)))*M$8) -> 0 | N208: =IF(COUNT($H208:M208)>='RFM input'!$V$7,0,($G137+(SUM($G208:M208)))*N$8) -> 0 | O208: =IF(COUNT($H208:N208)>='RFM input'!$V$7,0,($G137+(SUM($G208:N208)))*O$8) -> 0 | P208: =IF(COUNT($H208:O208)>='RFM input'!$V$7,0,($G137+(SUM($G208:O208)))*P$8) -> 0 | Q208: =IF(COUNT($H208:P208)>='RFM input'!$V$7,0,($G137+(SUM($G208:P208)))*Q$8) -> 0
C209: Sub-total | I209: =IF(COUNT($H208:I208)='RFM input'!$V$7,SUM($G208:I208),0) -> 0 | J209: =IF(COUNT($H208:J208)='RFM input'!$V$7,SUM($G208:J208),0) -> 0 | K209: =IF(COUNT($H208:K208)='RFM input'!$V$7,SUM($G208:K208),0) -> 0 | L209: =IF(COUNT($H208:L208)='RFM input'!$V$7,SUM($G208:L208),0) -> 1.704286122 | M209: =IF(COUNT($H208:M208)='RFM input'!$V$7,SUM($G208:M208),0) -> 0 | N209: =IF(COUNT($H208:N208)='RFM input'!$V$7,SUM($G208:N208),0) -> 0 | O209: =IF(COUNT($H208:O208)='RFM input'!$V$7,SUM($G208:O208),0) -> 0 | P209: =IF(COUNT($H208:P208)='RFM input'!$V$7,SUM($G208:P208),0) -> 0 | Q209: =IF(COUNT($H208:Q208)='RFM input'!$V$7,SUM($G208:Q208),0) -> 0
... 317 more rows

Sheet RAB roll forward
C2: ='DMS input'!$C$16&" - Asset Roll Forward"&" - DNSP RFM - version "&Intro!$M$4 -> Ergon Energy - Asset Roll Forward - DNSP RFM - version 3
G3: 0 | H3: =G3+1 -> 1 | I3: 2 | J3: 3 | K3: 4 | L3: 5 | M3: 6 | N3: 7 | O3: 8 | P3: 9 | Q3: 10 | R3: 11
C4: Year | G4: ='RFM input'!G60 -> 2019-20 | H4: ='RFM input'!H60 -> 2020-21 | I4: ='RFM input'!I60 -> 2021-22 | J4: ='RFM input'!J60 -> 2022-23 | K4: ='RFM input'!K60 -> 2023-24 | L4: ='RFM input'!L60 -> 2024-25 | M4: ='RFM input'!M60 -> 2025-26 | N4: ='RFM input'!N60 -> 2026-27 | O4: ='RFM input'!O60 -> 2027-28 | P4: ='RFM input'!P60 -> 2028-29 | Q4: ='RFM input'!Q60 -> 2029-30 | R4: =IF(LEN(Q4)>4,CONCATENATE(LEFT(Q4, 4)+1 &"-" &IF(Q4>"2007-08",,"0") &RIGHT(Q4,2)+1),Q4+1) -> 2030-31
C6: Actual CPI Inflation Rate | G6: ='RFM input'!G282 -> 0.01840490798 | H6: ='RFM input'!H282 -> 0.008605851979 | I6: ='RFM input'!I282 -> 0.03498293515 | J6: ='RFM input'!J282 -> 0.07831821929 | K6: ='RFM input'!K282 -> 0.04051987768 | L6: ='RFM input'!L282 -> 0.0242468773 | M6: ='RFM input'!M282 -> 0 | N6: ='RFM input'!N282 -> 0 | O6: ='RFM input'!O282 -> 0 | P6: ='RFM input'!P282 -> 0 | Q6: ='RFM input'!Q282 -> 0
C7: Actual CPI (one year lagged) | G7: ='RFM input'!G283 -> 1 | H7: ='RFM input'!H283 -> 1.018404908 | I7: ='RFM input'!I283 -> 1.02716915 | J7: ='RFM input'!J283 -> 1.063102542 | K7: ='RFM input'!K283 -> 1.14636284 | L7: ='RFM input'!L283 -> 1.192813322 | M7: ='RFM input'!M283 -> 1.22173532 | N7: ='RFM input'!N283 -> 1.22173532 | O7: ='RFM input'!O283 -> 1.22173532 | P7: ='RFM input'!P283 -> 1.22173532 | Q7: ='RFM input'!Q283 -> 1.22173532
C9: ="Asset Values ($m Real "&G4&")" -> Asset Values ($m Real 2019-20)
C11: Real Actual Net Capex - As Incurred | H11: =SUM(H12:H61) -> 560.4471041 | I11: =SUM(I12:I61) -> 592.8938637 | J11: 725.7772793 | K11: 929.4409292 | L11: 1050.020849 | M11: 0 | N11: 0 | O11: 0 | P11: 0 | Q11: 0
D12: =Asset1 -> Overhead Sub-Transmission Lines | H12: ='RFM input'!H223*(1+vanilla1)^0.5 -> 37.85476414 | I12: ='RFM input'!I223*(1+vanilla2)^0.5 -> 53.50521459 | J12: ='RFM input'!J223*(1+vanilla3)^0.5 -> 87.96536675 | K12: ='RFM input'!K223*(1+vanilla4)^0.5 -> 60.4475329 | L12: ='RFM input'!L223*(1+vanilla5)^0.5 -> 99.29404564 | M12: ='RFM input'!M223*(1+vanilla6)^0.5 -> 0 | N12: ='RFM input'!N223*(1+vanilla7)^0.5 -> 0 | O12: ='RFM input'!O223*(1+vanilla8)^0.5 -> 0 | P12: ='RFM input'!P223*(1+vanilla9)^0.5 -> 0 | Q12: ='RFM input'!Q223*(1+vanilla10)^0.5 -> 0
D13: =Asset2 -> Underground Sub-Transmission Cables | H13: ='RFM input'!H224*(1+vanilla1)^0.5 -> 0.3361697319 | I13: ='RFM input'!I224*(1+vanilla2)^0.5 -> 0.9228800944 | J13: ='RFM input'!J224*(1+vanilla3)^0.5 -> 0.6641060586 | K13: ='RFM input'!K224*(1+vanilla4)^0.5 -> 0.50524094 | L13: ='RFM input'!L224*(1+vanilla5)^0.5 -> 1.049969906 | M13: ='RFM input'!M224*(1+vanilla6)^0.5 -> 0 | N13: ='RFM input'!N224*(1+vanilla7)^0.5 -> 0 | O13: ='RFM input'!O224*(1+vanilla8)^0.5 -> 0 | P13: ='RFM input'!P224*(1+vanilla9)^0.5 -> 0 | Q13: ='RFM input'!Q224*(1+vanilla10)^0.5 -> 0
D14: =Asset3 -> Overhead Distribution Lines | H14: ='RFM input'!H225*(1+vanilla1)^0.5 -> 231.931377 | I14: ='RFM input'!I225*(1+vanilla2)^0.5 -> 235.1912571 | J14: ='RFM input'!J225*(1+vanilla3)^0.5 -> 297.3737014 | K14: ='RFM input'!K225*(1+vanilla4)^0.5 -> 403.7703196 | L14: ='RFM input'!L225*(1+vanilla5)^0.5 -> 418.148785 | M14: ='RFM input'!M225*(1+vanilla6)^0.5 -> 0 | N14: ='RFM input'!N225*(1+vanilla7)^0.5 -> 0 | O14: ='RFM input'!O225*(1+vanilla8)^0.5 -> 0 | P14: ='RFM input'!P225*(1+vanilla9)^0.5 -> 0 | Q14: ='RFM input'!Q225*(1+vanilla10)^0.5 -> 0
D15: =Asset4 -> Underground Distribution Cables | H15: ='RFM input'!H226*(1+vanilla1)^0.5 -> 14.79599627 | I15: ='RFM input'!I226*(1+vanilla2)^0.5 -> 13.83652277 | J15: ='RFM input'!J226*(1+vanilla3)^0.5 -> 14.79989551 | K15: ='RFM input'!K226*(1+vanilla4)^0.5 -> 19.66989348 | L15: ='RFM input'!L226*(1+vanilla5)^0.5 -> 22.92840468 | M15: ='RFM input'!M226*(1+vanilla6)^0.5 -> 0 | N15: ='RFM input'!N226*(1+vanilla7)^0.5 -> 0 | O15: ='RFM input'!O226*(1+vanilla8)^0.5 -> 0 | P15: ='RFM input'!P226*(1+vanilla9)^0.5 -> 0 | Q15: ='RFM input'!Q226*(1+vanilla10)^0.5 -> 0
D16: =Asset5 -> Distribution Equipment | H16: ='RFM input'!H227*(1+vanilla1)^0.5 -> 0.1346429389 | I16: ='RFM input'!I227*(1+vanilla2)^0.5 -> 0.1491687027 | J16: ='RFM input'!J227*(1+vanilla3)^0.5 -> 0.0005600921644 | K16: ='RFM input'!K227*(1+vanilla4)^0.5 -> 0.004666409345 | L16: ='RFM input'!L227*(1+vanilla5)^0.5 -> 0.1529732935 | M16: ='RFM input'!M227*(1+vanilla6)^0.5 -> 0 | N16: ='RFM input'!N227*(1+vanilla7)^0.5 -> 0 | O16: ='RFM input'!O227*(1+vanilla8)^0.5 -> 0 | P16: ='RFM input'!P227*(1+vanilla9)^0.5 -> 0 | Q16: ='RFM input'!Q227*(1+vanilla10)^0.5 -> 0
D17: =Asset6 -> Substation Bays | H17: ='RFM input'!H228*(1+vanilla1)^0.5 -> 45.61466027 | I17: ='RFM input'!I228*(1+vanilla2)^0.5 -> 61.42648673 | J17: ='RFM input'!J228*(1+vanilla3)^0.5 -> 71.63882837 | K17: ='RFM input'!K228*(1+vanilla4)^0.5 -> 99.5775402 | L17: ='RFM input'!L228*(1+vanilla5)^0.5 -> 99.32974917 | M17: ='RFM input'!M228*(1+vanilla6)^0.5 -> 0 | N17: ='RFM input'!N228*(1+vanilla7)^0.5 -> 0 | O17: ='RFM input'!O228*(1+vanilla8)^0.5 -> 0 | P17: ='RFM input'!P228*(1+vanilla9)^0.5 -> 0 | Q17: ='RFM input'!Q228*(1+vanilla10)^0.5 -> 0
D18: =Asset7 -> Substation Establishment | H18: ='RFM input'!H229*(1+vanilla1)^0.5 -> 9.496278277 | I18: ='RFM input'!I229*(1+vanilla2)^0.5 -> 7.715236221 | J18: ='RFM input'!J229*(1+vanilla3)^0.5 -> 1.854649819 | K18: ='RFM input'!K229*(1+vanilla4)^0.5 -> 6.050913922 | L18: ='RFM input'!L229*(1+vanilla5)^0.5 -> 7.087798815 | M18: ='RFM input'!M229*(1+vanilla6)^0.5 -> 0 | N18: ='RFM input'!N229*(1+vanilla7)^0.5 -> 0 | O18: ='RFM input'!O229*(1+vanilla8)^0.5 -> 0 | P18: ='RFM input'!P229*(1+vanilla9)^0.5 -> 0 | Q18: ='RFM input'!Q229*(1+vanilla10)^0.5 -> 0
D19: =Asset8 -> Distribution Substation Switchgear | H19: ='RFM input'!H230*(1+vanilla1)^0.5 -> 15.28010496 | I19: ='RFM input'!I230*(1+vanilla2)^0.5 -> 21.95950308 | J19: ='RFM input'!J230*(1+vanilla3)^0.5 -> 23.35960232 | K19: ='RFM input'!K230*(1+vanilla4)^0.5 -> 24.78080936 | L19: ='RFM input'!L230*(1+vanilla5)^0.5 -> 33.25586198 | M19: ='RFM input'!M230*(1+vanilla6)^0.5 -> 0 | N19: ='RFM input'!N230*(1+vanilla7)^0.5 -> 0 | O19: ='RFM input'!O230*(1+vanilla8)^0.5 -> 0 | P19: ='RFM input'!P230*(1+vanilla9)^0.5 -> 0 | Q19: ='RFM input'!Q230*(1+vanilla10)^0.5 -> 0
D20: =Asset9 -> Zone Transformers | H20: ='RFM input'!H231*(1+vanilla1)^0.5 -> 1.604673648 | I20: ='RFM input'!I231*(1+vanilla2)^0.5 -> 6.833460088 | J20: ='RFM input'!J231*(1+vanilla3)^0.5 -> 2.251932551 | K20: ='RFM input'!K231*(1+vanilla4)^0.5 -> 0.7340461658 | L20: ='RFM input'!L231*(1+vanilla5)^0.5 -> 7.846393867 | M20: ='RFM input'!M231*(1+vanilla6)^0.5 -> 0 | N20: ='RFM input'!N231*(1+vanilla7)^0.5 -> 0 | O20: ='RFM input'!O231*(1+vanilla8)^0.5 -> 0 | P20: ='RFM input'!P231*(1+vanilla9)^0.5 -> 0 | Q20: ='RFM input'!Q231*(1+vanilla10)^0.5 -> 0
D21: =Asset10 -> Distribution Transformers | H21: ='RFM input'!H232*(1+vanilla1)^0.5 -> 64.80113197 | I21: ='RFM input'!I232*(1+vanilla2)^0.5 -> 71.82656904 | J21: ='RFM input'!J232*(1+vanilla3)^0.5 -> 69.25333623 | K21: ='RFM input'!K232*(1+vanilla4)^0.5 -> 103.4896406 | L21: ='RFM input'!L232*(1+vanilla5)^0.5 -> 108.8693541 | M21: ='RFM input'!M232*(1+vanilla6)^0.5 -> 0 | N21: ='RFM input'!N232*(1+vanilla7)^0.5 -> 0 | O21: ='RFM input'!O232*(1+vanilla8)^0.5 -> 0 | P21: ='RFM input'!P232*(1+vanilla9)^0.5 -> 0 | Q21: ='RFM input'!Q232*(1+vanilla10)^0.5 -> 0
D22: =Asset11 -> Low Voltage Services | H22: ='RFM input'!H233*(1+vanilla1)^0.5 -> 37.43721149 | I22: ='RFM input'!I233*(1+vanilla2)^0.5 -> 28.89884533 | J22: ='RFM input'!J233*(1+vanilla3)^0.5 -> 51.40050882 | K22: ='RFM input'!K233*(1+vanilla4)^0.5 -> 51.22236106 | L22: ='RFM input'!L233*(1+vanilla5)^0.5 -> 64.43990653 | M22: ='RFM input'!M233*(1+vanilla6)^0.5 -> 0 | N22: ='RFM input'!N233*(1+vanilla7)^0.5 -> 0 | O22: ='RFM input'!O233*(1+vanilla8)^0.5 -> 0 | P22: ='RFM input'!P233*(1+vanilla9)^0.5 -> 0 | Q22: ='RFM input'!Q233*(1+vanilla10)^0.5 -> 0
D23: =Asset12 -> Communications – Pilot Wires | H23: ='RFM input'!H234*(1+vanilla1)^0.5 -> 15.66070407 | I23: ='RFM input'!I234*(1+vanilla2)^0.5 -> 17.59638405 | J23: ='RFM input'!J234*(1+vanilla3)^0.5 -> 7.369871871 | K23: ='RFM input'!K234*(1+vanilla4)^0.5 -> 9.526710429 | L23: ='RFM input'!L234*(1+vanilla5)^0.5 -> 22.42962376 | M23: ='RFM input'!M234*(1+vanilla6)^0.5 -> 0 | N23: ='RFM input'!N234*(1+vanilla7)^0.5 -> 0 | O23: ='RFM input'!O234*(1+vanilla8)^0.5 -> 0 | P23: ='RFM input'!P234*(1+vanilla9)^0.5 -> 0 | Q23: ='RFM input'!Q234*(1+vanilla10)^0.5 -> 0
D24: =Asset13 -> Generation Assets | H24: ='RFM input'!H235*(1+vanilla1)^0.5 -> 0 | I24: ='RFM input'!I235*(1+vanilla2)^0.5 -> 0 | J24: ='RFM input'!J235*(1+vanilla3)^0.5 -> 0 | K24: ='RFM input'!K235*(1+vanilla4)^0.5 -> 0 | L24: ='RFM input'!L235*(1+vanilla5)^0.5 -> 0 | M24: ='RFM input'!M235*(1+vanilla6)^0.5 -> 0 | N24: ='RFM input'!N235*(1+vanilla7)^0.5 -> 0 | O24: ='RFM input'!O235*(1+vanilla8)^0.5 -> 0 | P24: ='RFM input'!P235*(1+vanilla9)^0.5 -> 0 | Q24: ='RFM input'!Q235*(1+vanilla10)^0.5 -> 0
D25: =Asset14 -> Other Equipment | H25: ='RFM input'!H236*(1+vanilla1)^0.5 -> 0 | I25: ='RFM input'!I236*(1+vanilla2)^0.5 -> 0 | J25: ='RFM input'!J236*(1+vanilla3)^0.5 -> 0 | K25: ='RFM input'!K236*(1+vanilla4)^0.5 -> 0 | L25: ='RFM input'!L236*(1+vanilla5)^0.5 -> 0 | M25: ='RFM input'!M236*(1+vanilla6)^0.5 -> 0 | N25: ='RFM input'!N236*(1+vanilla7)^0.5 -> 0 | O25: ='RFM input'!O236*(1+vanilla8)^0.5 -> 0 | P25: ='RFM input'!P236*(1+vanilla9)^0.5 -> 0 | Q25: ='RFM input'!Q236*(1+vanilla10)^0.5 -> 0
D26: =Asset15 -> Control Centre - SCADA | H26: ='RFM input'!H237*(1+vanilla1)^0.5 -> 2.823129635 | I26: ='RFM input'!I237*(1+vanilla2)^0.5 -> 3.851298886 | J26: ='RFM input'!J237*(1+vanilla3)^0.5 -> 6.39934423 | K26: ='RFM input'!K237*(1+vanilla4)^0.5 -> 6.74071918 | L26: ='RFM input'!L237*(1+vanilla5)^0.5 -> 7.245571839 | M26: ='RFM input'!M237*(1+vanilla6)^0.5 -> 0 | N26: ='RFM input'!N237*(1+vanilla7)^0.5 -> 0 | O26: ='RFM input'!O237*(1+vanilla8)^0.5 -> 0 | P26: ='RFM input'!P237*(1+vanilla9)^0.5 -> 0 | Q26: ='RFM input'!Q237*(1+vanilla10)^0.5 -> 0
D27: =Asset16 -> Land & Easements (System) - combined | H27: ='RFM input'!H238*(1+vanilla1)^0.5 -> 0.1359889474 | I27: ='RFM input'!I238*(1+vanilla2)^0.5 -> 0.1633805668 | J27: ='RFM input'!J238*(1+vanilla3)^0.5 -> 0.157529958 | K27: ='RFM input'!K238*(1+vanilla4)^0.5 -> 0.002811903048 | L27: ='RFM input'!L238*(1+vanilla5)^0.5 -> 0.2542216898 | M27: ='RFM input'!M238*(1+vanilla6)^0.5 -> 0 | N27: ='RFM input'!N238*(1+vanilla7)^0.5 -> 0 | O27: ='RFM input'!O238*(1+vanilla8)^0.5 -> 0 | P27: ='RFM input'!P238*(1+vanilla9)^0.5 -> 0 | Q27: ='RFM input'!Q238*(1+vanilla10)^0.5 -> 0
D28: =Asset17 -> IT Systems | H28: ='RFM input'!H239*(1+vanilla1)^0.5 -> 5.317966522 | I28: ='RFM input'!I239*(1+vanilla2)^0.5 -> 6.017944873 | J28: ='RFM input'!J239*(1+vanilla3)^0.5 -> 6.189510494 | K28: ='RFM input'!K239*(1+vanilla4)^0.5 -> 4.778847675 | L28: ='RFM input'!L239*(1+vanilla5)^0.5 -> 0 | M28: ='RFM input'!M239*(1+vanilla6)^0.5 -> 0 | N28: ='RFM input'!N239*(1+vanilla7)^0.5 -> 0 | O28: ='RFM input'!O239*(1+vanilla8)^0.5 -> 0 | P28: ='RFM input'!P239*(1+vanilla9)^0.5 -> 0 | Q28: ='RFM input'!Q239*(1+vanilla10)^0.5 -> 0
D29: =Asset18 -> Office Equipment & Furniture | H29: ='RFM input'!H240*(1+vanilla1)^0.5 -> 0 | I29: ='RFM input'!I240*(1+vanilla2)^0.5 -> 0 | J29: ='RFM input'!J240*(1+vanilla3)^0.5 -> 0 | K29: ='RFM input'!K240*(1+vanilla4)^0.5 -> 0 | L29: ='RFM input'!L240*(1+vanilla5)^0.5 -> 0 | M29: ='RFM input'!M240*(1+vanilla6)^0.5 -> 0 | N29: ='RFM input'!N240*(1+vanilla7)^0.5 -> 0 | O29: ='RFM input'!O240*(1+vanilla8)^0.5 -> 0 | P29: ='RFM input'!P240*(1+vanilla9)^0.5 -> 0 | Q29: ='RFM input'!Q240*(1+vanilla10)^0.5 -> 0
D30: =Asset19 -> Motor Vehicles | H30: ='RFM input'!H241*(1+vanilla1)^0.5 -> 11.49473924 | I30: ='RFM input'!I241*(1+vanilla2)^0.5 -> 14.33983809 | J30: ='RFM input'!J241*(1+vanilla3)^0.5 -> 22.91297234 | K30: ='RFM input'!K241*(1+vanilla4)^0.5 -> 42.61911378 | L30: ='RFM input'!L241*(1+vanilla5)^0.5 -> 44.10049923 | M30: ='RFM input'!M241*(1+vanilla6)^0.5 -> 0 | N30: ='RFM input'!N241*(1+vanilla7)^0.5 -> 0 | O30: ='RFM input'!O241*(1+vanilla8)^0.5 -> 0 | P30: ='RFM input'!P241*(1+vanilla9)^0.5 -> 0 | Q30: ='RFM input'!Q241*(1+vanilla10)^0.5 -> 0
D31: =Asset20 -> Plant & Equipment | H31: ='RFM input'!H242*(1+vanilla1)^0.5 -> 3.482597562 | I31: ='RFM input'!I242*(1+vanilla2)^0.5 -> 3.64586943 | J31: ='RFM input'!J242*(1+vanilla3)^0.5 -> 4.719183043 | K31: ='RFM input'!K242*(1+vanilla4)^0.5 -> 5.519578522 | L31: ='RFM input'!L242*(1+vanilla5)^0.5 -> 5.991925593 | M31: ='RFM input'!M242*(1+vanilla6)^0.5 -> 0 | N31: ='RFM input'!N242*(1+vanilla7)^0.5 -> 0 | O31: ='RFM input'!O242*(1+vanilla8)^0.5 -> 0 | P31: ='RFM input'!P242*(1+vanilla9)^0.5 -> 0 | Q31: ='RFM input'!Q242*(1+vanilla10)^0.5 -> 0
D32: =Asset21 -> Buildings | H32: ='RFM input'!H243*(1+vanilla1)^0.5 -> -0.07366271299 | I32: ='RFM input'!I243*(1+vanilla2)^0.5 -> 0 | J32: ='RFM input'!J243*(1+vanilla3)^0.5 -> 0 | K32: ='RFM input'!K243*(1+vanilla4)^0.5 -> 0 | L32: ='RFM input'!L243*(1+vanilla5)^0.5 -> 0 | M32: ='RFM input'!M243*(1+vanilla6)^0.5 -> 0 | N32: ='RFM input'!N243*(1+vanilla7)^0.5 -> 0 | O32: ='RFM input'!O243*(1+vanilla8)^0.5 -> 0 | P32: ='RFM input'!P243*(1+vanilla9)^0.5 -> 0 | Q32: ='RFM input'!Q243*(1+vanilla10)^0.5 -> 0
D33: =Asset22 -> Land & Easements - combined | H33: ='RFM input'!H244*(1+vanilla1)^0.5 -> -0.006984617918 | I33: ='RFM input'!I244*(1+vanilla2)^0.5 -> -0.06561720447 | J33: ='RFM input'!J244*(1+vanilla3)^0.5 -> 0 | K33: ='RFM input'!K244*(1+vanilla4)^0.5 -> 0 | L33: ='RFM input'!L244*(1+vanilla5)^0.5 -> 0 | M33: ='RFM input'!M244*(1+vanilla6)^0.5 -> 0 | N33: ='RFM input'!N244*(1+vanilla7)^0.5 -> 0 | O33: ='RFM input'!O244*(1+vanilla8)^0.5 -> 0 | P33: ='RFM input'!P244*(1+vanilla9)^0.5 -> 0 | Q33: ='RFM input'!Q244*(1+vanilla10)^0.5 -> 0
D34: =Asset23 -> Land Improvements | H34: ='RFM input'!H245*(1+vanilla1)^0.5 -> -0.3459561356 | I34: ='RFM input'!I245*(1+vanilla2)^0.5 -> -0.05041007489 | J34: ='RFM input'!J245*(1+vanilla3)^0.5 -> 0 | K34: ='RFM input'!K245*(1+vanilla4)^0.5 -> 0 | L34: ='RFM input'!L245*(1+vanilla5)^0.5 -> 0 | M34: ='RFM input'!M245*(1+vanilla6)^0.5 -> 0 | N34: ='RFM input'!N245*(1+vanilla7)^0.5 -> 0 | O34: ='RFM input'!O245*(1+vanilla8)^0.5 -> 0 | P34: ='RFM input'!P245*(1+vanilla9)^0.5 -> 0 | Q34: ='RFM input'!Q245*(1+vanilla10)^0.5 -> 0
D35: =Asset24 -> Metering | H35: ='RFM input'!H246*(1+vanilla1)^0.5 -> 3.606348825 | I35: ='RFM input'!I246*(1+vanilla2)^0.5 -> 0.01516972007 | J35: ='RFM input'!J246*(1+vanilla3)^0.5 -> -0.1661138947 | K35: ='RFM input'!K246*(1+vanilla4)^0.5 -> 0 | L35: ='RFM input'!L246*(1+vanilla5)^0.5 -> 1.905981972 | M35: ='RFM input'!M246*(1+vanilla6)^0.5 -> 0 | N35: ='RFM input'!N246*(1+vanilla7)^0.5 -> 0 | O35: ='RFM input'!O246*(1+vanilla8)^0.5 -> 0 | P35: ='RFM input'!P246*(1+vanilla9)^0.5 -> 0 | Q35: ='RFM input'!Q246*(1+vanilla10)^0.5 -> 0
D36: =Asset25 -> Communications | H36: ='RFM input'!H247*(1+vanilla1)^0.5 -> 2.066615516 | I36: ='RFM input'!I247*(1+vanilla2)^0.5 -> 0.8085294971 | J36: ='RFM input'!J247*(1+vanilla3)^0.5 -> 0.1379435616 | K36: ='RFM input'!K247*(1+vanilla4)^0.5 -> 0.2643836727 | L36: ='RFM input'!L247*(1+vanilla5)^0.5 -> 0 | M36: ='RFM input'!M247*(1+vanilla6)^0.5 -> 0 | N36: ='RFM input'!N247*(1+vanilla7)^0.5 -> 0 | O36: ='RFM input'!O247*(1+vanilla8)^0.5 -> 0 | P36: ='RFM input'!P247*(1+vanilla9)^0.5 -> 0 | Q36: ='RFM input'!Q247*(1+vanilla10)^0.5 -> 0
D37: =Asset26 -> ICT Legacy Assets | H37: ='RFM input'!H248*(1+vanilla1)^0.5 -> 0 | I37: ='RFM input'!I248*(1+vanilla2)^0.5 -> 0 | J37: ='RFM input'!J248*(1+vanilla3)^0.5 -> 0 | K37: ='RFM input'!K248*(1+vanilla4)^0.5 -> 0 | L37: ='RFM input'!L248*(1+vanilla5)^0.5 -> 0 | M37: ='RFM input'!M248*(1+vanilla6)^0.5 -> 0 | N37: ='RFM input'!N248*(1+vanilla7)^0.5 -> 0 | O37: ='RFM input'!O248*(1+vanilla8)^0.5 -> 0 | P37: ='RFM input'!P248*(1+vanilla9)^0.5 -> 0 | Q37: ='RFM input'!Q248*(1+vanilla10)^0.5 -> 0
D38: =Asset27 -> Initial Leases (10 yr life) | H38: ='RFM input'!H249*(1+vanilla1)^0.5 -> 0 | I38: ='RFM input'!I249*(1+vanilla2)^0.5 -> 0 | J38: ='RFM input'!J249*(1+vanilla3)^0.5 -> 0 | K38: ='RFM input'!K249*(1+vanilla4)^0.5 -> 0 | L38: ='RFM input'!L249*(1+vanilla5)^0.5 -> 0 | M38: ='RFM input'!M249*(1+vanilla6)^0.5 -> 0 | N38: ='RFM input'!N249*(1+vanilla7)^0.5 -> 0 | O38: ='RFM input'!O249*(1+vanilla8)^0.5 -> 0 | P38: ='RFM input'!P249*(1+vanilla9)^0.5 -> 0 | Q38: ='RFM input'!Q249*(1+vanilla10)^0.5 -> 0
D39: =Asset28 -> Lease Extensions (5yr Life) | H39: ='RFM input'!H250*(1+vanilla1)^0.5 -> 0 | I39: ='RFM input'!I250*(1+vanilla2)^0.5 -> 0 | J39: ='RFM input'!J250*(1+vanilla3)^0.5 -> 0 | K39: ='RFM input'!K250*(1+vanilla4)^0.5 -> 0 | L39: ='RFM input'!L250*(1+vanilla5)^0.5 -> 0 | M39: ='RFM input'!M250*(1+vanilla6)^0.5 -> 0 | N39: ='RFM input'!N250*(1+vanilla7)^0.5 -> 0 | O39: ='RFM input'!O250*(1+vanilla8)^0.5 -> 0 | P39: ='RFM input'!P250*(1+vanilla9)^0.5 -> 0 | Q39: ='RFM input'!Q250*(1+vanilla10)^0.5 -> 0
D40: =Asset29 -> 0 | H40: ='RFM input'!H251*(1+vanilla1)^0.5 -> 0 | I40: ='RFM input'!I251*(1+vanilla2)^0.5 -> 0 | J40: ='RFM input'!J251*(1+vanilla3)^0.5 -> 0 | K40: ='RFM input'!K251*(1+vanilla4)^0.5 -> 0 | L40: ='RFM input'!L251*(1+vanilla5)^0.5 -> 0 | M40: ='RFM input'!M251*(1+vanilla6)^0.5 -> 0 | N40: ='RFM input'!N251*(1+vanilla7)^0.5 -> 0 | O40: ='RFM input'!O251*(1+vanilla8)^0.5 -> 0 | P40: ='RFM input'!P251*(1+vanilla9)^0.5 -> 0 | Q40: ='RFM input'!Q251*(1+vanilla10)^0.5 -> 0
D41: =Asset30 -> 0 | H41: ='RFM input'!H252*(1+vanilla1)^0.5 -> 0 | I41: ='RFM input'!I252*(1+vanilla2)^0.5 -> 0 | J41: ='RFM input'!J252*(1+vanilla3)^0.5 -> 0 | K41: ='RFM input'!K252*(1+vanilla4)^0.5 -> 0 | L41: ='RFM input'!L252*(1+vanilla5)^0.5 -> 0 | M41: ='RFM input'!M252*(1+vanilla6)^0.5 -> 0 | N41: ='RFM input'!N252*(1+vanilla7)^0.5 -> 0 | O41: ='RFM input'!O252*(1+vanilla8)^0.5 -> 0 | P41: ='RFM input'!P252*(1+vanilla9)^0.5 -> 0 | Q41: ='RFM input'!Q252*(1+vanilla10)^0.5 -> 0
D42: =Asset31 -> 0 | H42: ='RFM input'!H253*(1+vanilla1)^0.5 -> 0 | I42: ='RFM input'!I253*(1+vanilla2)^0.5 -> 0 | J42: ='RFM input'!J253*(1+vanilla3)^0.5 -> 0 | K42: ='RFM input'!K253*(1+vanilla4)^0.5 -> 0 | L42: ='RFM input'!L253*(1+vanilla5)^0.5 -> 0 | M42: ='RFM input'!M253*(1+vanilla6)^0.5 -> 0 | N42: ='RFM input'!N253*(1+vanilla7)^0.5 -> 0 | O42: ='RFM input'!O253*(1+vanilla8)^0.5 -> 0 | P42: ='RFM input'!P253*(1+vanilla9)^0.5 -> 0 | Q42: ='RFM input'!Q253*(1+vanilla10)^0.5 -> 0
D43: =Asset32 -> 0 | H43: ='RFM input'!H254*(1+vanilla1)^0.5 -> 0 | I43: ='RFM input'!I254*(1+vanilla2)^0.5 -> 0 | J43: ='RFM input'!J254*(1+vanilla3)^0.5 -> 0 | K43: ='RFM input'!K254*(1+vanilla4)^0.5 -> 0 | L43: ='RFM input'!L254*(1+vanilla5)^0.5 -> 0 | M43: ='RFM input'!M254*(1+vanilla6)^0.5 -> 0 | N43: ='RFM input'!N254*(1+vanilla7)^0.5 -> 0 | O43: ='RFM input'!O254*(1+vanilla8)^0.5 -> 0 | P43: ='RFM input'!P254*(1+vanilla9)^0.5 -> 0 | Q43: ='RFM input'!Q254*(1+vanilla10)^0.5 -> 0
D44: =Asset33 -> 0 | H44: ='RFM input'!H255*(1+vanilla1)^0.5 -> 0 | I44: ='RFM input'!I255*(1+vanilla2)^0.5 -> 0 | J44: ='RFM input'!J255*(1+vanilla3)^0.5 -> 0 | K44: ='RFM input'!K255*(1+vanilla4)^0.5 -> 0 | L44: ='RFM input'!L255*(1+vanilla5)^0.5 -> 0 | M44: ='RFM input'!M255*(1+vanilla6)^0.5 -> 0 | N44: ='RFM input'!N255*(1+vanilla7)^0.5 -> 0 | O44: ='RFM input'!O255*(1+vanilla8)^0.5 -> 0 | P44: ='RFM input'!P255*(1+vanilla9)^0.5 -> 0 | Q44: ='RFM input'!Q255*(1+vanilla10)^0.5 -> 0
D45: =Asset34 -> 0 | H45: ='RFM input'!H256*(1+vanilla1)^0.5 -> 0 | I45: ='RFM input'!I256*(1+vanilla2)^0.5 -> 0 | J45: ='RFM input'!J256*(1+vanilla3)^0.5 -> 0 | K45: ='RFM input'!K256*(1+vanilla4)^0.5 -> 0 | L45: ='RFM input'!L256*(1+vanilla5)^0.5 -> 0 | M45: ='RFM input'!M256*(1+vanilla6)^0.5 -> 0 | N45: ='RFM input'!N256*(1+vanilla7)^0.5 -> 0 | O45: ='RFM input'!O256*(1+vanilla8)^0.5 -> 0 | P45: ='RFM input'!P256*(1+vanilla9)^0.5 -> 0 | Q45: ='RFM input'!Q256*(1+vanilla10)^0.5 -> 0
D46: =Asset35 -> 0 | H46: ='RFM input'!H257*(1+vanilla1)^0.5 -> 0 | I46: ='RFM input'!I257*(1+vanilla2)^0.5 -> 0 | J46: ='RFM input'!J257*(1+vanilla3)^0.5 -> 0 | K46: ='RFM input'!K257*(1+vanilla4)^0.5 -> 0 | L46: ='RFM input'!L257*(1+vanilla5)^0.5 -> 0 | M46: ='RFM input'!M257*(1+vanilla6)^0.5 -> 0 | N46: ='RFM input'!N257*(1+vanilla7)^0.5 -> 0 | O46: ='RFM input'!O257*(1+vanilla8)^0.5 -> 0 | P46: ='RFM input'!P257*(1+vanilla9)^0.5 -> 0 | Q46: ='RFM input'!Q257*(1+vanilla10)^0.5 -> 0
D47: =Asset36 -> 0 | H47: ='RFM input'!H258*(1+vanilla1)^0.5 -> 0 | I47: ='RFM input'!I258*(1+vanilla2)^0.5 -> 0 | J47: ='RFM input'!J258*(1+vanilla3)^0.5 -> 0 | K47: ='RFM input'!K258*(1+vanilla4)^0.5 -> 0 | L47: ='RFM input'!L258*(1+vanilla5)^0.5 -> 0 | M47: ='RFM input'!M258*(1+vanilla6)^0.5 -> 0 | N47: ='RFM input'!N258*(1+vanilla7)^0.5 -> 0 | O47: ='RFM input'!O258*(1+vanilla8)^0.5 -> 0 | P47: ='RFM input'!P258*(1+vanilla9)^0.5 -> 0 | Q47: ='RFM input'!Q258*(1+vanilla10)^0.5 -> 0
D48: =Asset37 -> 0 | H48: ='RFM input'!H259*(1+vanilla1)^0.5 -> 0 | I48: ='RFM input'!I259*(1+vanilla2)^0.5 -> 0 | J48: ='RFM input'!J259*(1+vanilla3)^0.5 -> 0 | K48: ='RFM input'!K259*(1+vanilla4)^0.5 -> 0 | L48: ='RFM input'!L259*(1+vanilla5)^0.5 -> 0 | M48: ='RFM input'!M259*(1+vanilla6)^0.5 -> 0 | N48: ='RFM input'!N259*(1+vanilla7)^0.5 -> 0 | O48: ='RFM input'!O259*(1+vanilla8)^0.5 -> 0 | P48: ='RFM input'!P259*(1+vanilla9)^0.5 -> 0 | Q48: ='RFM input'!Q259*(1+vanilla10)^0.5 -> 0
D49: =Asset38 -> 0 | H49: ='RFM input'!H260*(1+vanilla1)^0.5 -> 0 | I49: ='RFM input'!I260*(1+vanilla2)^0.5 -> 0 | J49: ='RFM input'!J260*(1+vanilla3)^0.5 -> 0 | K49: ='RFM input'!K260*(1+vanilla4)^0.5 -> 0 | L49: ='RFM input'!L260*(1+vanilla5)^0.5 -> 0 | M49: ='RFM input'!M260*(1+vanilla6)^0.5 -> 0 | N49: ='RFM input'!N260*(1+vanilla7)^0.5 -> 0 | O49: ='RFM input'!O260*(1+vanilla8)^0.5 -> 0 | P49: ='RFM input'!P260*(1+vanilla9)^0.5 -> 0 | Q49: ='RFM input'!Q260*(1+vanilla10)^0.5 -> 0
D50: =Asset39 -> 0 | H50: ='RFM input'!H261*(1+vanilla1)^0.5 -> 0 | I50: ='RFM input'!I261*(1+vanilla2)^0.5 -> 0 | J50: ='RFM input'!J261*(1+vanilla3)^0.5 -> 0 | K50: ='RFM input'!K261*(1+vanilla4)^0.5 -> 0 | L50: ='RFM input'!L261*(1+vanilla5)^0.5 -> 0 | M50: ='RFM input'!M261*(1+vanilla6)^0.5 -> 0 | N50: ='RFM input'!N261*(1+vanilla7)^0.5 -> 0 | O50: ='RFM input'!O261*(1+vanilla8)^0.5 -> 0 | P50: ='RFM input'!P261*(1+vanilla9)^0.5 -> 0 | Q50: ='RFM input'!Q261*(1+vanilla10)^0.5 -> 0
D51: =Asset40 -> 0 | H51: ='RFM input'!H262*(1+vanilla1)^0.5 -> 0 | I51: ='RFM input'!I262*(1+vanilla2)^0.5 -> 0 | J51: ='RFM input'!J262*(1+vanilla3)^0.5 -> 0 | K51: ='RFM input'!K262*(1+vanilla4)^0.5 -> 0 | L51: ='RFM input'!L262*(1+vanilla5)^0.5 -> 0 | M51: ='RFM input'!M262*(1+vanilla6)^0.5 -> 0 | N51: ='RFM input'!N262*(1+vanilla7)^0.5 -> 0 | O51: ='RFM input'!O262*(1+vanilla8)^0.5 -> 0 | P51: ='RFM input'!P262*(1+vanilla9)^0.5 -> 0 | Q51: ='RFM input'!Q262*(1+vanilla10)^0.5 -> 0
D52: =Asset41 -> 0 | H52: ='RFM input'!H263*(1+vanilla1)^0.5 -> 0 | I52: ='RFM input'!I263*(1+vanilla2)^0.5 -> 0 | J52: ='RFM input'!J263*(1+vanilla3)^0.5 -> 0 | K52: ='RFM input'!K263*(1+vanilla4)^0.5 -> 0 | L52: ='RFM input'!L263*(1+vanilla5)^0.5 -> 0 | M52: ='RFM input'!M263*(1+vanilla6)^0.5 -> 0 | N52: ='RFM input'!N263*(1+vanilla7)^0.5 -> 0 | O52: ='RFM input'!O263*(1+vanilla8)^0.5 -> 0 | P52: ='RFM input'!P263*(1+vanilla9)^0.5 -> 0 | Q52: ='RFM input'!Q263*(1+vanilla10)^0.5 -> 0
D53: =Asset42 -> 0 | H53: ='RFM input'!H264*(1+vanilla1)^0.5 -> 0 | I53: ='RFM input'!I264*(1+vanilla2)^0.5 -> 0 | J53: ='RFM input'!J264*(1+vanilla3)^0.5 -> 0 | K53: ='RFM input'!K264*(1+vanilla4)^0.5 -> 0 | L53: ='RFM input'!L264*(1+vanilla5)^0.5 -> 0 | M53: ='RFM input'!M264*(1+vanilla6)^0.5 -> 0 | N53: ='RFM input'!N264*(1+vanilla7)^0.5 -> 0 | O53: ='RFM input'!O264*(1+vanilla8)^0.5 -> 0 | P53: ='RFM input'!P264*(1+vanilla9)^0.5 -> 0 | Q53: ='RFM input'!Q264*(1+vanilla10)^0.5 -> 0
D54: =Asset43 -> 0 | H54: ='RFM input'!H265*(1+vanilla1)^0.5 -> 0 | I54: ='RFM input'!I265*(1+vanilla2)^0.5 -> 0 | J54: ='RFM input'!J265*(1+vanilla3)^0.5 -> 0 | K54: ='RFM input'!K265*(1+vanilla4)^0.5 -> 0 | L54: ='RFM input'!L265*(1+vanilla5)^0.5 -> 0 | M54: ='RFM input'!M265*(1+vanilla6)^0.5 -> 0 | N54: ='RFM input'!N265*(1+vanilla7)^0.5 -> 0 | O54: ='RFM input'!O265*(1+vanilla8)^0.5 -> 0 | P54: ='RFM input'!P265*(1+vanilla9)^0.5 -> 0 | Q54: ='RFM input'!Q265*(1+vanilla10)^0.5 -> 0
D55: =Asset44 -> 0 | H55: ='RFM input'!H266*(1+vanilla1)^0.5 -> 0 | I55: ='RFM input'!I266*(1+vanilla2)^0.5 -> 0 | J55: ='RFM input'!J266*(1+vanilla3)^0.5 -> 0 | K55: ='RFM input'!K266*(1+vanilla4)^0.5 -> 0 | L55: ='RFM input'!L266*(1+vanilla5)^0.5 -> 0 | M55: ='RFM input'!M266*(1+vanilla6)^0.5 -> 0 | N55: ='RFM input'!N266*(1+vanilla7)^0.5 -> 0 | O55: ='RFM input'!O266*(1+vanilla8)^0.5 -> 0 | P55: ='RFM input'!P266*(1+vanilla9)^0.5 -> 0 | Q55: ='RFM input'!Q266*(1+vanilla10)^0.5 -> 0
D56: =Asset45 -> 0 | H56: ='RFM input'!H267*(1+vanilla1)^0.5 -> 0 | I56: ='RFM input'!I267*(1+vanilla2)^0.5 -> 0 | J56: ='RFM input'!J267*(1+vanilla3)^0.5 -> 0 | K56: ='RFM input'!K267*(1+vanilla4)^0.5 -> 0 | L56: ='RFM input'!L267*(1+vanilla5)^0.5 -> 0 | M56: ='RFM input'!M267*(1+vanilla6)^0.5 -> 0 | N56: ='RFM input'!N267*(1+vanilla7)^0.5 -> 0 | O56: ='RFM input'!O267*(1+vanilla8)^0.5 -> 0 | P56: ='RFM input'!P267*(1+vanilla9)^0.5 -> 0 | Q56: ='RFM input'!Q267*(1+vanilla10)^0.5 -> 0
D57: =Asset46 -> 0 | H57: ='RFM input'!H268*(1+vanilla1)^0.5 -> 0 | I57: ='RFM input'!I268*(1+vanilla2)^0.5 -> 0 | J57: ='RFM input'!J268*(1+vanilla3)^0.5 -> 0 | K57: ='RFM input'!K268*(1+vanilla4)^0.5 -> 0 | L57: ='RFM input'!L268*(1+vanilla5)^0.5 -> 0 | M57: ='RFM input'!M268*(1+vanilla6)^0.5 -> 0 | N57: ='RFM input'!N268*(1+vanilla7)^0.5 -> 0 | O57: ='RFM input'!O268*(1+vanilla8)^0.5 -> 0 | P57: ='RFM input'!P268*(1+vanilla9)^0.5 -> 0 | Q57: ='RFM input'!Q268*(1+vanilla10)^0.5 -> 0
D58: =Asset47 -> 0 | H58: ='RFM input'!H269*(1+vanilla1)^0.5 -> 0 | I58: ='RFM input'!I269*(1+vanilla2)^0.5 -> 0 | J58: ='RFM input'!J269*(1+vanilla3)^0.5 -> 0 | K58: ='RFM input'!K269*(1+vanilla4)^0.5 -> 0 | L58: ='RFM input'!L269*(1+vanilla5)^0.5 -> 0 | M58: ='RFM input'!M269*(1+vanilla6)^0.5 -> 0 | N58: ='RFM input'!N269*(1+vanilla7)^0.5 -> 0 | O58: ='RFM input'!O269*(1+vanilla8)^0.5 -> 0 | P58: ='RFM input'!P269*(1+vanilla9)^0.5 -> 0 | Q58: ='RFM input'!Q269*(1+vanilla10)^0.5 -> 0
D59: =Asset48 -> Buildings - capital works | H59: ='RFM input'!H270*(1+vanilla1)^0.5 -> 27.96278421 | I59: ='RFM input'!I270*(1+vanilla2)^0.5 -> 15.79791507 | J59: ='RFM input'!J270*(1+vanilla3)^0.5 -> 29.71309167 | K59: ='RFM input'!K270*(1+vanilla4)^0.5 -> 44.16751856 | L59: ='RFM input'!L270*(1+vanilla5)^0.5 -> 53.04654133 | M59: ='RFM input'!M270*(1+vanilla6)^0.5 -> 0 | N59: ='RFM input'!N270*(1+vanilla7)^0.5 -> 0 | O59: ='RFM input'!O270*(1+vanilla8)^0.5 -> 0 | P59: ='RFM input'!P270*(1+vanilla9)^0.5 -> 0 | Q59: ='RFM input'!Q270*(1+vanilla10)^0.5 -> 0
D60: =Asset49 -> In-house software | H60: ='RFM input'!H271*(1+vanilla1)^0.5 -> 29.03582238 | I60: ='RFM input'!I271*(1+vanilla2)^0.5 -> 28.50841699 | J60: ='RFM input'!J271*(1+vanilla3)^0.5 -> 27.78145819 | K60: ='RFM input'!K271*(1+vanilla4)^0.5 -> 45.56828089 | L60: ='RFM input'!L271*(1+vanilla5)^0.5 -> 52.64324045 | M60: ='RFM input'!M271*(1+vanilla6)^0.5 -> 0 | N60: ='RFM input'!N271*(1+vanilla7)^0.5 -> 0 | O60: ='RFM input'!O271*(1+vanilla8)^0.5 -> 0 | P60: ='RFM input'!P271*(1+vanilla9)^0.5 -> 0 | Q60: ='RFM input'!Q271*(1+vanilla10)^0.5 -> 0
D61: =Asset50 -> Equity raising costs | H61: ='RFM input'!H272*(1+vanilla1)^0.5 -> 0 | I61: ='RFM input'!I272*(1+vanilla2)^0.5 -> 0 | J61: ='RFM input'!J272*(1+vanilla3)^0.5 -> 0 | K61: ='RFM input'!K272*(1+vanilla4)^0.5 -> 0 | L61: ='RFM input'!L272*(1+vanilla5)^0.5 -> 0 | M61: ='RFM input'!M272*(1+vanilla6)^0.5 -> 0 | N61: ='RFM input'!N272*(1+vanilla7)^0.5 -> 0 | O61: ='RFM input'!O272*(1+vanilla8)^0.5 -> 0 | P61: ='RFM input'!P272*(1+vanilla9)^0.5 -> 0 | Q61: ='RFM input'!Q272*(1+vanilla10)^0.5 -> 0
C63: ="Real "&'RFM input'!$G$295& " Straight-line Depreciation" -> Real Forecast Straight-line Depreciation | H63: =H76+H89+H102+H115+H128+H141+H154+H167+H180+H193+H206+H219+H232+H245+H258+H271+H284+H297+H310+H323+H336+H349+H362+H375+H388+H401+H414+H427+H440+H453+H466+H479+H492+H505+H518+H531+H544+H557+H570+H583+H596+H609+H622+H635+H648+H661+H674+H687+H700+H713 -> -440.606668 | I63: =I76+I89+I102+I115+I128+I141+I154+I167+I180+I193+I206+I219+I232+I245+I258+I271+I284+I297+I310+I323+I336+I349+I362+I375+I388+I401+I414+I427+I440+I453+I466+I479+I492+I505+I518+I531+I544+I557+I570+I583+I596+I609+I622+I635+I648+I661+I674+I687+I700+I713 -> -454.927502 | J63: -464.9557813 | K63: -470.2202441 | L63: -482.3654992 | M63: 0 | N63: =N76+N89+N102+N115+N128+N141+N154+N167+N180+N193+N206+N219+N232+N245+N258+N271+N284+N297+N310+N323+N336+N349+N362+N375+N388+N401+N414+N427+N440+N453+N466+N479+N492+N505+N518+N531+N544+N557+N570+N583+N596+N609+N622+N635+N648+N661+N674+N687+N700+N713 -> 0 | O63: 0 | P63: 0 | Q63: 0
C64: =Asset1 -> Overhead Sub-Transmission Lines | E64: Opening RAB | H64: =IF(H$3>A1remlife,A1value-SUM($G64:G64),IF(A1remlife="N/A","n/a",A1value/A1remlife)) -> n/a | I64: =IF(I$3>A1remlife,A1value-SUM($G64:H64),IF(A1remlife="N/A","n/a",A1value/A1remlife)) -> n/a | J64: =IF(J$3>A1remlife,A1value-SUM($G64:I64),IF(A1remlife="N/A","n/a",A1value/A1remlife)) -> n/a | K64: =IF(K$3>A1remlife,A1value-SUM($G64:J64),IF(A1remlife="N/A","n/a",A1value/A1remlife)) -> n/a | L64: =IF(L$3>A1remlife,A1value-SUM($G64:K64),IF(A1remlife="N/A","n/a",A1value/A1remlife)) -> n/a | M64: =IF(M$3>A1remlife,A1value-SUM($G64:L64),IF(A1remlife="N/A","n/a",A1value/A1remlife)) -> n/a | N64: =IF(N$3>A1remlife,A1value-SUM($G64:M64),IF(A1remlife="N/A","n/a",A1value/A1remlife)) -> n/a | O64: =IF(O$3>A1remlife,A1value-SUM($G64:N64),IF(A1remlife="N/A","n/a",A1value/A1remlife)) -> n/a | P64: =IF(P$3>A1remlife,A1value-SUM($G64:O64),IF(A1remlife="N/A","n/a",A1value/A1remlife)) -> n/a | Q64: =IF(Q$3>A1remlife,A1value-SUM($G64:P64),IF(A1remlife="N/A","n/a",A1value/A1remlife)) -> n/a
E65: Capex in year
F66: 1 | I66: =IF(A1stdlife="n/a","n/a",IF(I$3>(A1stdlife+$F66),('RFM input'!$H$223*(1+vanilla1)^0.5)-SUM($H66:H66),('RFM input'!$H$223*(1+vanilla1)^0.5)/A1stdlife)) -> 0.688268439 | J66: =IF(A1stdlife="n/a","n/a",IF(J$3>(A1stdlife+$F66),('RFM input'!$H$223*(1+vanilla1)^0.5)-SUM($H66:I66),('RFM input'!$H$223*(1+vanilla1)^0.5)/A1stdlife)) -> 0.688268439 | K66: =IF(A1stdlife="n/a","n/a",IF(K$3>(A1stdlife+$F66),('RFM input'!$H$223*(1+vanilla1)^0.5)-SUM($H66:J66),('RFM input'!$H$223*(1+vanilla1)^0.5)/A1stdlife)) -> 0.688268439 | L66: =IF(A1stdlife="n/a","n/a",IF(L$3>(A1stdlife+$F66),('RFM input'!$H$223*(1+vanilla1)^0.5)-SUM($H66:K66),('RFM input'!$H$223*(1+vanilla1)^0.5)/A1stdlife)) -> 0.688268439 | M66: =IF(A1stdlife="n/a","n/a",IF(M$3>(A1stdlife+$F66),('RFM input'!$H$223*(1+vanilla1)^0.5)-SUM($H66:L66),('RFM input'!$H$223*(1+vanilla1)^0.5)/A1stdlife)) -> 0.688268439 | N66: =IF(A1stdlife="n/a","n/a",IF(N$3>(A1stdlife+$F66),('RFM input'!$H$223*(1+vanilla1)^0.5)-SUM($H66:M66),('RFM input'!$H$223*(1+vanilla1)^0.5)/A1stdlife)) -> 0.688268439 | O66: =IF(A1stdlife="n/a","n/a",IF(O$3>(A1stdlife+$F66),('RFM input'!$H$223*(1+vanilla1)^0.5)-SUM($H66:N66),('RFM input'!$H$223*(1+vanilla1)^0.5)/A1stdlife)) -> 0.688268439 | P66: =IF(A1stdlife="n/a","n/a",IF(P$3>(A1stdlife+$F66),('RFM input'!$H$223*(1+vanilla1)^0.5)-SUM($H66:O66),('RFM input'!$H$223*(1+vanilla1)^0.5)/A1stdlife)) -> 0.688268439 | Q66: =IF(A1stdlife="n/a","n/a",IF(Q$3>(A1stdlife+$F66),('RFM input'!$H$223*(1+vanilla1)^0.5)-SUM($H66:P66),('RFM input'!$H$223*(1+vanilla1)^0.5)/A1stdlife)) -> 0.688268439
F67: 2 | J67: =IF(A1stdlife="n/a","n/a",IF(J$3>(A1stdlife+$F67),('RFM input'!$I$223*(1+vanilla2)^0.5)-SUM($I67:I67),('RFM input'!$I$223*(1+vanilla2)^0.5)/A1stdlife)) -> 0.9728220834 | K67: =IF(A1stdlife="n/a","n/a",IF(K$3>(A1stdlife+$F67),('RFM input'!$I$223*(1+vanilla2)^0.5)-SUM($I67:J67),('RFM input'!$I$223*(1+vanilla2)^0.5)/A1stdlife)) -> 0.9728220834 | L67: =IF(A1stdlife="n/a","n/a",IF(L$3>(A1stdlife+$F67),('RFM input'!$I$223*(1+vanilla2)^0.5)-SUM($I67:K67),('RFM input'!$I$223*(1+vanilla2)^0.5)/A1stdlife)) -> 0.9728220834 | M67: =IF(A1stdlife="n/a","n/a",IF(M$3>(A1stdlife+$F67),('RFM input'!$I$223*(1+vanilla2)^0.5)-SUM($I67:L67),('RFM input'!$I$223*(1+vanilla2)^0.5)/A1stdlife)) -> 0.9728220834 | N67: =IF(A1stdlife="n/a","n/a",IF(N$3>(A1stdlife+$F67),('RFM input'!$I$223*(1+vanilla2)^0.5)-SUM($I67:M67),('RFM input'!$I$223*(1+vanilla2)^0.5)/A1stdlife)) -> 0.9728220834 | O67: =IF(A1stdlife="n/a","n/a",IF(O$3>(A1stdlife+$F67),('RFM input'!$I$223*(1+vanilla2)^0.5)-SUM($I67:N67),('RFM input'!$I$223*(1+vanilla2)^0.5)/A1stdlife)) -> 0.9728220834 | P67: =IF(A1stdlife="n/a","n/a",IF(P$3>(A1stdlife+$F67),('RFM input'!$I$223*(1+vanilla2)^0.5)-SUM($I67:O67),('RFM input'!$I$223*(1+vanilla2)^0.5)/A1stdlife)) -> 0.9728220834 | Q67: =IF(A1stdlife="n/a","n/a",IF(Q$3>(A1stdlife+$F67),('RFM input'!$I$223*(1+vanilla2)^0.5)-SUM($I67:P67),('RFM input'!$I$223*(1+vanilla2)^0.5)/A1stdlife)) -> 0.9728220834
F68: 3 | K68: =IF(A1stdlife="n/a","n/a",IF(K$3>(A1stdlife+$F68),('RFM input'!$J$223*(1+vanilla3)^0.5)-SUM($J68:J68),('RFM input'!$J$223*(1+vanilla3)^0.5)/A1stdlife)) -> 1.599370305 | L68: =IF(A1stdlife="n/a","n/a",IF(L$3>(A1stdlife+$F68),('RFM input'!$J$223*(1+vanilla3)^0.5)-SUM($J68:K68),('RFM input'!$J$223*(1+vanilla3)^0.5)/A1stdlife)) -> 1.599370305 | M68: =IF(A1stdlife="n/a","n/a",IF(M$3>(A1stdlife+$F68),('RFM input'!$J$223*(1+vanilla3)^0.5)-SUM($J68:L68),('RFM input'!$J$223*(1+vanilla3)^0.5)/A1stdlife)) -> 1.599370305 | N68: =IF(A1stdlife="n/a","n/a",IF(N$3>(A1stdlife+$F68),('RFM input'!$J$223*(1+vanilla3)^0.5)-SUM($J68:M68),('RFM input'!$J$223*(1+vanilla3)^0.5)/A1stdlife)) -> 1.599370305 | O68: =IF(A1stdlife="n/a","n/a",IF(O$3>(A1stdlife+$F68),('RFM input'!$J$223*(1+vanilla3)^0.5)-SUM($J68:N68),('RFM input'!$J$223*(1+vanilla3)^0.5)/A1stdlife)) -> 1.599370305 | P68: =IF(A1stdlife="n/a","n/a",IF(P$3>(A1stdlife+$F68),('RFM input'!$J$223*(1+vanilla3)^0.5)-SUM($J68:O68),('RFM input'!$J$223*(1+vanilla3)^0.5)/A1stdlife)) -> 1.599370305 | Q68: =IF(A1stdlife="n/a","n/a",IF(Q$3>(A1stdlife+$F68),('RFM input'!$J$223*(1+vanilla3)^0.5)-SUM($J68:P68),('RFM input'!$J$223*(1+vanilla3)^0.5)/A1stdlife)) -> 1.599370305
F69: 4 | L69: =IF(A1stdlife="n/a","n/a",IF(L$3>(A1stdlife+$F69),('RFM input'!$K$223*(1+vanilla4)^0.5)-SUM($K69:K69),('RFM input'!$K$223*(1+vanilla4)^0.5)/A1stdlife)) -> 1.099046053 | M69: =IF(A1stdlife="n/a","n/a",IF(M$3>(A1stdlife+$F69),('RFM input'!$K$223*(1+vanilla4)^0.5)-SUM($K69:L69),('RFM input'!$K$223*(1+vanilla4)^0.5)/A1stdlife)) -> 1.099046053 | N69: =IF(A1stdlife="n/a","n/a",IF(N$3>(A1stdlife+$F69),('RFM input'!$K$223*(1+vanilla4)^0.5)-SUM($K69:M69),('RFM input'!$K$223*(1+vanilla4)^0.5)/A1stdlife)) -> 1.099046053 | O69: =IF(A1stdlife="n/a","n/a",IF(O$3>(A1stdlife+$F69),('RFM input'!$K$223*(1+vanilla4)^0.5)-SUM($K69:N69),('RFM input'!$K$223*(1+vanilla4)^0.5)/A1stdlife)) -> 1.099046053 | P69: =IF(A1stdlife="n/a","n/a",IF(P$3>(A1stdlife+$F69),('RFM input'!$K$223*(1+vanilla4)^0.5)-SUM($K69:O69),('RFM input'!$K$223*(1+vanilla4)^0.5)/A1stdlife)) -> 1.099046053 | Q69: =IF(A1stdlife="n/a","n/a",IF(Q$3>(A1stdlife+$F69),('RFM input'!$K$223*(1+vanilla4)^0.5)-SUM($K69:P69),('RFM input'!$K$223*(1+vanilla4)^0.5)/A1stdlife)) -> 1.099046053
F70: 5 | M70: =IF(A1stdlife="n/a","n/a",IF(M$3>(A1stdlife+$F70),('RFM input'!$L$223*(1+vanilla5)^0.5)-SUM($L70:L70),('RFM input'!$L$223*(1+vanilla5)^0.5)/A1stdlife)) -> 1.805346284 | N70: =IF(A1stdlife="n/a","n/a",IF(N$3>(A1stdlife+$F70),('RFM input'!$L$223*(1+vanilla5)^0.5)-SUM($L70:M70),('RFM input'!$L$223*(1+vanilla5)^0.5)/A1stdlife)) -> 1.805346284 | O70: =IF(A1stdlife="n/a","n/a",IF(O$3>(A1stdlife+$F70),('RFM input'!$L$223*(1+vanilla5)^0.5)-SUM($L70:N70),('RFM input'!$L$223*(1+vanilla5)^0.5)/A1stdlife)) -> 1.805346284 | P70: =IF(A1stdlife="n/a","n/a",IF(P$3>(A1stdlife+$F70),('RFM input'!$L$223*(1+vanilla5)^0.5)-SUM($L70:O70),('RFM input'!$L$223*(1+vanilla5)^0.5)/A1stdlife)) -> 1.805346284 | Q70: =IF(A1stdlife="n/a","n/a",IF(Q$3>(A1stdlife+$F70),('RFM input'!$L$223*(1+vanilla5)^0.5)-SUM($L70:P70),('RFM input'!$L$223*(1+vanilla5)^0.5)/A1stdlife)) -> 1.805346284
F71: 6 | N71: =IF(A1stdlife="n/a","n/a",IF(N$3>(A1stdlife+$F71),('RFM input'!$M$223*(1+vanilla6)^0.5)-SUM($M71:M71),('RFM input'!$M$223*(1+vanilla6)^0.5)/A1stdlife)) -> 0 | O71: =IF(A1stdlife="n/a","n/a",IF(O$3>(A1stdlife+$F71),('RFM input'!$M$223*(1+vanilla6)^0.5)-SUM($M71:N71),('RFM input'!$M$223*(1+vanilla6)^0.5)/A1stdlife)) -> 0 | P71: =IF(A1stdlife="n/a","n/a",IF(P$3>(A1stdlife+$F71),('RFM input'!$M$223*(1+vanilla6)^0.5)-SUM($M71:O71),('RFM input'!$M$223*(1+vanilla6)^0.5)/A1stdlife)) -> 0 | Q71: =IF(A1stdlife="n/a","n/a",IF(Q$3>(A1stdlife+$F71),('RFM input'!$M$223*(1+vanilla6)^0.5)-SUM($M71:P71),('RFM input'!$M$223*(1+vanilla6)^0.5)/A1stdlife)) -> 0
F72: 7 | O72: =IF(A1stdlife="n/a","n/a",IF(O$3>(A1stdlife+$F72),('RFM input'!$N$223*(1+vanilla7)^0.5)-SUM($N72:N72),('RFM input'!$N$223*(1+vanilla7)^0.5)/A1stdlife)) -> 0 | P72: =IF(A1stdlife="n/a","n/a",IF(P$3>(A1stdlife+$F72),('RFM input'!$N$223*(1+vanilla7)^0.5)-SUM($N72:O72),('RFM input'!$N$223*(1+vanilla7)^0.5)/A1stdlife)) -> 0 | Q72: =IF(A1stdlife="n/a","n/a",IF(Q$3>(A1stdlife+$F72),('RFM input'!$N$223*(1+vanilla7)^0.5)-SUM($N72:P72),('RFM input'!$N$223*(1+vanilla7)^0.5)/A1stdlife)) -> 0
F73: 8 | P73: =IF(A1stdlife="n/a","n/a",IF(P$3>(A1stdlife+$F73),('RFM input'!$O$223*(1+vanilla8)^0.5)-SUM($O73:O73),('RFM input'!$O$223*(1+vanilla8)^0.5)/A1stdlife)) -> 0 | Q73: =IF(A1stdlife="n/a","n/a",IF(Q$3>(A1stdlife+$F73),('RFM input'!$O$223*(1+vanilla8)^0.5)-SUM($O73:P73),('RFM input'!$O$223*(1+vanilla8)^0.5)/A1stdlife)) -> 0
F74: 9 | Q74: =IF(A1stdlife="n/a","n/a",IF(Q$3>(A1stdlife+$F74),('RFM input'!$P$223*(1+vanilla9)^0.5)-SUM($P74:P74),('RFM input'!$P$223*(1+vanilla9)^0.5)/A1stdlife)) -> 0
F75: 10
D76: =Asset1 -> Overhead Sub-Transmission Lines | H76: =IF(OR('RFM input'!$E$293='RFM input'!$G$292,'RFM input'!$E$293='RFM input'!$G$293),-INDEX('RFM input'!H$299:H$348,MATCH($D76,'RFM input'!$E$299:$E$348,0),1),-SUM(H64:H75)) -> -41.40534903 | I76: =IF(OR('RFM input'!$E$293='RFM input'!$G$292,'RFM input'!$E$293='RFM input'!$G$293),-INDEX('RFM input'!I$299:I$348,MATCH($D76,'RFM input'!$E$299:$E$348,0),1),-SUM(I64:I75)) -> -41.73138297 | J76: =IF(COUNT($H76:I76)>='RFM input'!$V$7, 0, IF(OR('RFM input'!$E$293='RFM input'!$G$292,'RFM input'!$E$293='RFM input'!$G$293), -INDEX('RFM input'!J$299:J$348,MATCH($D76,'RFM input'!$E$299:$E$348,0),1), -SUM(J64:J75))) -> -42.06209673 | K76: =IF(COUNT($H76:J76)>='RFM input'!$V$7, 0, IF(OR('RFM input'!$E$293='RFM input'!$G$292,'RFM input'!$E$293='RFM input'!$G$293), -INDEX('RFM input'!K$299:K$348,MATCH($D76,'RFM input'!$E$299:$E$348,0),1), -SUM(K64:K75))) -> -42.40041407 | L76: =IF(COUNT($H76:K76)>='RFM input'!$V$7, 0, IF(OR('RFM input'!$E$293='RFM input'!$G$292,'RFM input'!$E$293='RFM input'!$G$293), -INDEX('RFM input'!L$299:L$348,MATCH($D76,'RFM input'!$E$299:$E$348,0),1), -SUM(L64:L75))) -> -42.73256232 | M76: =IF(COUNT($H76:L76)>='RFM input'!$V$7, 0, IF(OR('RFM input'!$E$293='RFM input'!$G$292,'RFM input'!$E$293='RFM input'!$G$293), -INDEX('RFM input'!M$299:M$348,MATCH($D76,'RFM input'!$E$299:$E$348,0),1), -SUM(M64:M75))) -> 0 | N76: =IF(COUNT($H76:M76)>='RFM input'!$V$7, 0, IF(OR('RFM input'!$E$293='RFM input'!$G$292,'RFM input'!$E$293='RFM input'!$G$293), -INDEX('RFM input'!N$299:N$348,MATCH($D76,'RFM input'!$E$299:$E$348,0),1), -SUM(N64:N75))) -> 0 | O76: =IF(COUNT($H76:N76)>='RFM input'!$V$7, 0, IF(OR('RFM input'!$E$293='RFM input'!$G$292,'RFM input'!$E$293='RFM input'!$G$293), -INDEX('RFM input'!O$299:O$348,MATCH($D76,'RFM input'!$E$299:$E$348,0),1), -SUM(O64:O75))) -> 0 | P76: =IF(COUNT($H76:O76)>='RFM input'!$V$7, 0, IF(OR('RFM input'!$E$293='RFM input'!$G$292,'RFM input'!$E$293='RFM input'!$G$293), -INDEX('RFM input'!P$299:P$348,MATCH($D76,'RFM input'!$E$299:$E$348,0),1), -SUM(P64:P75))) -> 0 | Q76: =IF(COUNT($H76:P76)>='RFM input'!$V$7, 0, IF(OR('RFM input'!$E$293='RFM input'!$G$292,'RFM input'!$E$293='RFM input'!$G$293), -INDEX('RFM input'!Q$299:Q$348,MATCH($D76,'RFM input'!$E$299:$E$348,0),1), -SUM(Q64:Q75))) -> 0
C77: =Asset2 -> Underground Sub-Transmission Cables | E77: Opening RAB | H77: =IF(H$3>A2remlife,A2value-SUM($G77:G77),IF(A2remlife="N/A","n/a",A2value/A2remlife)) -> n/a | I77: =IF(I$3>A2remlife,A2value-SUM($G77:H77),IF(A2remlife="N/A","n/a",A2value/A2remlife)) -> n/a | J77: =IF(J$3>A2remlife,A2value-SUM($G77:I77),IF(A2remlife="N/A","n/a",A2value/A2remlife)) -> n/a | K77: =IF(K$3>A2remlife,A2value-SUM($G77:J77),IF(A2remlife="N/A","n/a",A2value/A2remlife)) -> n/a | L77: =IF(L$3>A2remlife,A2value-SUM($G77:K77),IF(A2remlife="N/A","n/a",A2value/A2remlife)) -> n/a | M77: =IF(M$3>A2remlife,A2value-SUM($G77:L77),IF(A2remlife="N/A","n/a",A2value/A2remlife)) -> n/a | N77: =IF(N$3>A2remlife,A2value-SUM($G77:M77),IF(A2remlife="N/A","n/a",A2value/A2remlife)) -> n/a | O77: =IF(O$3>A2remlife,A2value-SUM($G77:N77),IF(A2remlife="N/A","n/a",A2value/A2remlife)) -> n/a | P77: =IF(P$3>A2remlife,A2value-SUM($G77:O77),IF(A2remlife="N/A","n/a",A2value/A2remlife)) -> n/a | Q77: =IF(Q$3>A2remlife,A2value-SUM($G77:P77),IF(A2remlife="N/A","n/a",A2value/A2remlife)) -> n/a
E78: Capex in year
F79: 1 | I79: =IF(A2stdlife="n/a","n/a",IF(I$3>(A2stdlife+$F79),('RFM input'!$H$224*(1+vanilla1)^0.5)-SUM($H79:H79),('RFM input'!$H$224*(1+vanilla1)^0.5)/A2stdlife)) -> 0.007470438488 | J79: =IF(A2stdlife="n/a","n/a",IF(J$3>(A2stdlife+$F79),('RFM input'!$H$224*(1+vanilla1)^0.5)-SUM($H79:I79),('RFM input'!$H$224*(1+vanilla1)^0.5)/A2stdlife)) -> 0.007470438488 | K79: =IF(A2stdlife="n/a","n/a",IF(K$3>(A2stdlife+$F79),('RFM input'!$H$224*(1+vanilla1)^0.5)-SUM($H79:J79),('RFM input'!$H$224*(1+vanilla1)^0.5)/A2stdlife)) -> 0.007470438488 | L79: =IF(A2stdlife="n/a","n/a",IF(L$3>(A2stdlife+$F79),('RFM input'!$H$224*(1+vanilla1)^0.5)-SUM($H79:K79),('RFM input'!$H$224*(1+vanilla1)^0.5)/A2stdlife)) -> 0.007470438488 | M79: =IF(A2stdlife="n/a","n/a",IF(M$3>(A2stdlife+$F79),('RFM input'!$H$224*(1+vanilla1)^0.5)-SUM($H79:L79),('RFM input'!$H$224*(1+vanilla1)^0.5)/A2stdlife)) -> 0.007470438488 | N79: =IF(A2stdlife="n/a","n/a",IF(N$3>(A2stdlife+$F79),('RFM input'!$H$224*(1+vanilla1)^0.5)-SUM($H79:M79),('RFM input'!$H$224*(1+vanilla1)^0.5)/A2stdlife)) -> 0.007470438488 | O79: =IF(A2stdlife="n/a","n/a",IF(O$3>(A2stdlife+$F79),('RFM input'!$H$224*(1+vanilla1)^0.5)-SUM($H79:N79),('RFM input'!$H$224*(1+vanilla1)^0.5)/A2stdlife)) -> 0.007470438488 | P79: =IF(A2stdlife="n/a","n/a",IF(P$3>(A2stdlife+$F79),('RFM input'!$H$224*(1+vanilla1)^0.5)-SUM($H79:O79),('RFM input'!$H$224*(1+vanilla1)^0.5)/A2stdlife)) -> 0.007470438488 | Q79: =IF(A2stdlife="n/a","n/a",IF(Q$3>(A2stdlife+$F79),('RFM input'!$H$224*(1+vanilla1)^0.5)-SUM($H79:P79),('RFM input'!$H$224*(1+vanilla1)^0.5)/A2stdlife)) -> 0.007470438488
F80: 2 | J80: =IF(A2stdlife="n/a","n/a",IF(J$3>(A2stdlife+$F80),('RFM input'!$I$224*(1+vanilla2)^0.5)-SUM($I80:I80),('RFM input'!$I$224*(1+vanilla2)^0.5)/A2stdlife)) -> 0.02050844654 | K80: =IF(A2stdlife="n/a","n/a",IF(K$3>(A2stdlife+$F80),('RFM input'!$I$224*(1+vanilla2)^0.5)-SUM($I80:J80),('RFM input'!$I$224*(1+vanilla2)^0.5)/A2stdlife)) -> 0.02050844654 | L80: =IF(A2stdlife="n/a","n/a",IF(L$3>(A2stdlife+$F80),('RFM input'!$I$224*(1+vanilla2)^0.5)-SUM($I80:K80),('RFM input'!$I$224*(1+vanilla2)^0.5)/A2stdlife)) -> 0.02050844654 | M80: =IF(A2stdlife="n/a","n/a",IF(M$3>(A2stdlife+$F80),('RFM input'!$I$224*(1+vanilla2)^0.5)-SUM($I80:L80),('RFM input'!$I$224*(1+vanilla2)^0.5)/A2stdlife)) -> 0.02050844654 | N80: =IF(A2stdlife="n/a","n/a",IF(N$3>(A2stdlife+$F80),('RFM input'!$I$224*(1+vanilla2)^0.5)-SUM($I80:M80),('RFM input'!$I$224*(1+vanilla2)^0.5)/A2stdlife)) -> 0.02050844654 | O80: =IF(A2stdlife="n/a","n/a",IF(O$3>(A2stdlife+$F80),('RFM input'!$I$224*(1+vanilla2)^0.5)-SUM($I80:N80),('RFM input'!$I$224*(1+vanilla2)^0.5)/A2stdlife)) -> 0.02050844654 | P80: =IF(A2stdlife="n/a","n/a",IF(P$3>(A2stdlife+$F80),('RFM input'!$I$224*(1+vanilla2)^0.5)-SUM($I80:O80),('RFM input'!$I$224*(1+vanilla2)^0.5)/A2stdlife)) -> 0.02050844654 | Q80: =IF(A2stdlife="n/a","n/a",IF(Q$3>(A2stdlife+$F80),('RFM input'!$I$224*(1+vanilla2)^0.5)-SUM($I80:P80),('RFM input'!$I$224*(1+vanilla2)^0.5)/A2stdlife)) -> 0.02050844654
F81: 3 | K81: =IF(A2stdlife="n/a","n/a",IF(K$3>(A2stdlife+$F81),('RFM input'!$J$224*(1+vanilla3)^0.5)-SUM($J81:J81),('RFM input'!$J$224*(1+vanilla3)^0.5)/A2stdlife)) -> 0.01475791241 | L81: =IF(A2stdlife="n/a","n/a",IF(L$3>(A2stdlife+$F81),('RFM input'!$J$224*(1+vanilla3)^0.5)-SUM($J81:K81),('RFM input'!$J$224*(1+vanilla3)^0.5)/A2stdlife)) -> 0.01475791241 | M81: =IF(A2stdlife="n/a","n/a",IF(M$3>(A2stdlife+$F81),('RFM input'!$J$224*(1+vanilla3)^0.5)-SUM($J81:L81),('RFM input'!$J$224*(1+vanilla3)^0.5)/A2stdlife)) -> 0.01475791241 | N81: =IF(A2stdlife="n/a","n/a",IF(N$3>(A2stdlife+$F81),('RFM input'!$J$224*(1+vanilla3)^0.5)-SUM($J81:M81),('RFM input'!$J$224*(1+vanilla3)^0.5)/A2stdlife)) -> 0.01475791241 | O81: =IF(A2stdlife="n/a","n/a",IF(O$3>(A2stdlife+$F81),('RFM input'!$J$224*(1+vanilla3)^0.5)-SUM($J81:N81),('RFM input'!$J$224*(1+vanilla3)^0.5)/A2stdlife)) -> 0.01475791241 | P81: =IF(A2stdlife="n/a","n/a",IF(P$3>(A2stdlife+$F81),('RFM input'!$J$224*(1+vanilla3)^0.5)-SUM($J81:O81),('RFM input'!$J$224*(1+vanilla3)^0.5)/A2stdlife)) -> 0.01475791241 | Q81: =IF(A2stdlife="n/a","n/a",IF(Q$3>(A2stdlife+$F81),('RFM input'!$J$224*(1+vanilla3)^0.5)-SUM($J81:P81),('RFM input'!$J$224*(1+vanilla3)^0.5)/A2stdlife)) -> 0.01475791241
F82: 4 | L82: =IF(A2stdlife="n/a","n/a",IF(L$3>(A2stdlife+$F82),('RFM input'!$K$224*(1+vanilla4)^0.5)-SUM($K82:K82),('RFM input'!$K$224*(1+vanilla4)^0.5)/A2stdlife)) -> 0.01122757644 | M82: =IF(A2stdlife="n/a","n/a",IF(M$3>(A2stdlife+$F82),('RFM input'!$K$224*(1+vanilla4)^0.5)-SUM($K82:L82),('RFM input'!$K$224*(1+vanilla4)^0.5)/A2stdlife)) -> 0.01122757644 | N82: =IF(A2stdlife="n/a","n/a",IF(N$3>(A2stdlife+$F82),('RFM input'!$K$224*(1+vanilla4)^0.5)-SUM($K82:M82),('RFM input'!$K$224*(1+vanilla4)^0.5)/A2stdlife)) -> 0.01122757644 | O82: =IF(A2stdlife="n/a","n/a",IF(O$3>(A2stdlife+$F82),('RFM input'!$K$224*(1+vanilla4)^0.5)-SUM($K82:N82),('RFM input'!$K$224*(1+vanilla4)^0.5)/A2stdlife)) -> 0.01122757644 | P82: =IF(A2stdlife="n/a","n/a",IF(P$3>(A2stdlife+$F82),('RFM input'!$K$224*(1+vanilla4)^0.5)-SUM($K82:O82),('RFM input'!$K$224*(1+vanilla4)^0.5)/A2stdlife)) -> 0.01122757644 | Q82: =IF(A2stdlife="n/a","n/a",IF(Q$3>(A2stdlife+$F82),('RFM input'!$K$224*(1+vanilla4)^0.5)-SUM($K82:P82),('RFM input'!$K$224*(1+vanilla4)^0.5)/A2stdlife)) -> 0.01122757644
F83: 5 | M83: =IF(A2stdlife="n/a","n/a",IF(M$3>(A2stdlife+$F83),('RFM input'!$L$224*(1+vanilla5)^0.5)-SUM($L83:L83),('RFM input'!$L$224*(1+vanilla5)^0.5)/A2stdlife)) -> 0.02333266459 | N83: =IF(A2stdlife="n/a","n/a",IF(N$3>(A2stdlife+$F83),('RFM input'!$L$224*(1+vanilla5)^0.5)-SUM($L83:M83),('RFM input'!$L$224*(1+vanilla5)^0.5)/A2stdlife)) -> 0.02333266459 | O83: =IF(A2stdlife="n/a","n/a",IF(O$3>(A2stdlife+$F83),('RFM input'!$L$224*(1+vanilla5)^0.5)-SUM($L83:N83),('RFM input'!$L$224*(1+vanilla5)^0.5)/A2stdlife)) -> 0.02333266459 | P83: =IF(A2stdlife="n/a","n/a",IF(P$3>(A2stdlife+$F83),('RFM input'!$L$224*(1+vanilla5)^0.5)-SUM($L83:O83),('RFM input'!$L$224*(1+vanilla5)^0.5)/A2stdlife)) -> 0.02333266459 | Q83: =IF(A2stdlife="n/a","n/a",IF(Q$3>(A2stdlife+$F83),('RFM input'!$L$224*(1+vanilla5)^0.5)-SUM($L83:P83),('RFM input'!$L$224*(1+vanilla5)^0.5)/A2stdlife)) -> 0.02333266459
F84: 6 | N84: =IF(A2stdlife="n/a","n/a",IF(N$3>(A2stdlife+$F84),('RFM input'!$M$224*(1+vanilla6)^0.5)-SUM($M84:M84),('RFM input'!$M$224*(1+vanilla6)^0.5)/A2stdlife)) -> 0 | O84: =IF(A2stdlife="n/a","n/a",IF(O$3>(A2stdlife+$F84),('RFM input'!$M$224*(1+vanilla6)^0.5)-SUM($M84:N84),('RFM input'!$M$224*(1+vanilla6)^0.5)/A2stdlife)) -> 0 | P84: =IF(A2stdlife="n/a","n/a",IF(P$3>(A2stdlife+$F84),('RFM input'!$M$224*(1+vanilla6)^0.5)-SUM($M84:O84),('RFM input'!$M$224*(1+vanilla6)^0.5)/A2stdlife)) -> 0 | Q84: =IF(A2stdlife="n/a","n/a",IF(Q$3>(A2stdlife+$F84),('RFM input'!$M$224*(1+vanilla6)^0.5)-SUM($M84:P84),('RFM input'!$M$224*(1+vanilla6)^0.5)/A2stdlife)) -> 0
F85: 7 | O85: =IF(A2stdlife="n/a","n/a",IF(O$3>(A2stdlife+$F85),('RFM input'!$N$224*(1+vanilla7)^0.5)-SUM($N85:N85),('RFM input'!$N$224*(1+vanilla7)^0.5)/A2stdlife)) -> 0 | P85: =IF(A2stdlife="n/a","n/a",IF(P$3>(A2stdlife+$F85),('RFM input'!$N$224*(1+vanilla7)^0.5)-SUM($N85:O85),('RFM input'!$N$224*(1+vanilla7)^0.5)/A2stdlife)) -> 0 | Q85: =IF(A2stdlife="n/a","n/a",IF(Q$3>(A2stdlife+$F85),('RFM input'!$N$224*(1+vanilla7)^0.5)-SUM($N85:P85),('RFM input'!$N$224*(1+vanilla7)^0.5)/A2stdlife)) -> 0
F86: 8 | P86: =IF(A2stdlife="n/a","n/a",IF(P$3>(A2stdlife+$F86),('RFM input'!$O$224*(1+vanilla8)^0.5)-SUM($O86:O86),('RFM input'!$O$224*(1+vanilla8)^0.5)/A2stdlife)) -> 0 | Q86: =IF(A2stdlife="n/a","n/a",IF(Q$3>(A2stdlife+$F86),('RFM input'!$O$224*(1+vanilla8)^0.5)-SUM($O86:P86),('RFM input'!$O$224*(1+vanilla8)^0.5)/A2stdlife)) -> 0
F87: 9 | Q87: =IF(A2stdlife="n/a","n/a",IF(Q$3>(A2stdlife+$F87),('RFM input'!$P$224*(1+vanilla9)^0.5)-SUM($P87:P87),('RFM input'!$P$224*(1+vanilla9)^0.5)/A2stdlife)) -> 0
F88: 10
D89: =Asset2 -> Underground Sub-Transmission Cables | H89: =IF(OR('RFM input'!$E$293='RFM input'!$G$292,'RFM input'!$E$293='RFM input'!$G$293),-INDEX('RFM input'!H$299:H$348,MATCH($D89,'RFM input'!$E$299:$E$348,0),1),-SUM(H77:H88)) -> -2.551719401 | I89: =IF(OR('RFM input'!$E$293='RFM input'!$G$292,'RFM input'!$E$293='RFM input'!$G$293),-INDEX('RFM input'!I$299:I$348,MATCH($D89,'RFM input'!$E$299:$E$348,0),1),-SUM(I77:I88)) -> -2.652635083 | J89: =IF(COUNT($H89:I89)>='RFM input'!$V$7, 0, IF(OR('RFM input'!$E$293='RFM input'!$G$292,'RFM input'!$E$293='RFM input'!$G$293), -INDEX('RFM input'!J$299:J$348,MATCH($D89,'RFM input'!$E$299:$E$348,0),1), -SUM(J77:J88))) -> -2.754999283 | K89: =IF(COUNT($H89:J89)>='RFM input'!$V$7, 0, IF(OR('RFM input'!$E$293='RFM input'!$G$292,'RFM input'!$E$293='RFM input'!$G$293), -INDEX('RFM input'!K$299:K$348,MATCH($D89,'RFM input'!$E$299:$E$348,0),1), -SUM(K77:K88))) -> -2.859716982 | L89: =IF(COUNT($H89:K89)>='RFM input'!$V$7, 0, IF(OR('RFM input'!$E$293='RFM input'!$G$292,'RFM input'!$E$293='RFM input'!$G$293), -INDEX('RFM input'!L$299:L$348,MATCH($D89,'RFM input'!$E$299:$E$348,0),1), -SUM(L77:L88))) -> -2.962525196 | M89: =IF(COUNT($H89:L89)>='RFM input'!$V$7, 0, IF(OR('RFM input'!$E$293='RFM input'!$G$292,'RFM input'!$E$293='RFM input'!$G$293), -INDEX('RFM input'!M$299:M$348,MATCH($D89,'RFM input'!$E$299:$E$348,0),1), -SUM(M77:M88))) -> 0 | N89: =IF(COUNT($H89:M89)>='RFM input'!$V$7, 0, IF(OR('RFM input'!$E$293='RFM input'!$G$292,'RFM input'!$E$293='RFM input'!$G$293), -INDEX('RFM input'!N$299:N$348,MATCH($D89,'RFM input'!$E$299:$E$348,0),1), -SUM(N77:N88))) -> 0 | O89: =IF(COUNT($H89:N89)>='RFM input'!$V$7, 0, IF(OR('RFM input'!$E$293='RFM input'!$G$292,'RFM input'!$E$293='RFM input'!$G$293), -INDEX('RFM input'!O$299:O$348,MATCH($D89,'RFM input'!$E$299:$E$348,0),1), -SUM(O77:O88))) -> 0 | P89: =IF(COUNT($H89:O89)>='RFM input'!$V$7, 0, IF(OR('RFM input'!$E$293='RFM input'!$G$292,'RFM input'!$E$293='RFM input'!$G$293), -INDEX('RFM input'!P$299:P$348,MATCH($D89,'RFM input'!$E$299:$E$348,0),1), -SUM(P77:P88))) -> 0 | Q89: =IF(COUNT($H89:P89)>='RFM input'!$V$7, 0, IF(OR('RFM input'!$E$293='RFM input'!$G$292,'RFM input'!$E$293='RFM input'!$G$293), -INDEX('RFM input'!Q$299:Q$348,MATCH($D89,'RFM input'!$E$299:$E$348,0),1), -SUM(Q77:Q88))) -> 0
C90: =Asset3 -> Overhead Distribution Lines | E90: Opening RAB | H90: =IF(H$3>A3remlife,A3value-SUM($G90:G90),IF(A3remlife="N/A","n/a",A3value/A3remlife)) -> n/a | I90: =IF(I$3>A3remlife,A3value-SUM($G90:H90),IF(A3remlife="N/A","n/a",A3value/A3remlife)) -> n/a | J90: =IF(J$3>A3remlife,A3value-SUM($G90:I90),IF(A3remlife="N/A","n/a",A3value/A3remlife)) -> n/a | K90: =IF(K$3>A3remlife,A3value-SUM($G90:J90),IF(A3remlife="N/A","n/a",A3value/A3remlife)) -> n/a | L90: =IF(L$3>A3remlife,A3value-SUM($G90:K90),IF(A3remlife="N/A","n/a",A3value/A3remlife)) -> n/a | M90: =IF(M$3>A3remlife,A3value-SUM($G90:L90),IF(A3remlife="N/A","n/a",A3value/A3remlife)) -> n/a | N90: =IF(N$3>A3remlife,A3value-SUM($G90:M90),IF(A3remlife="N/A","n/a",A3value/A3remlife)) -> n/a | O90: =IF(O$3>A3remlife,A3value-SUM($G90:N90),IF(A3remlife="N/A","n/a",A3value/A3remlife)) -> n/a | P90: =IF(P$3>A3remlife,A3value-SUM($G90:O90),IF(A3remlife="N/A","n/a",A3value/A3remlife)) -> n/a | Q90: =IF(Q$3>A3remlife,A3value-SUM($G90:P90),IF(A3remlife="N/A","n/a",A3value/A3remlife)) -> n/a
E91: Capex in year
F92: 1 | I92: =IF(A3stdlife="n/a","n/a",IF(I$3>(A3stdlife+$F92),('RFM input'!$H$225*(1+vanilla1)^0.5)-SUM($H92:H92),('RFM input'!$H$225*(1+vanilla1)^0.5)/A3stdlife)) -> 4.63862754 | J92: =IF(A3stdlife="n/a","n/a",IF(J$3>(A3stdlife+$F92),('RFM input'!$H$225*(1+vanilla1)^0.5)-SUM($H92:I92),('RFM input'!$H$225*(1+vanilla1)^0.5)/A3stdlife)) -> 4.63862754 | K92: =IF(A3stdlife="n/a","n/a",IF(K$3>(A3stdlife+$F92),('RFM input'!$H$225*(1+vanilla1)^0.5)-SUM($H92:J92),('RFM input'!$H$225*(1+vanilla1)^0.5)/A3stdlife)) -> 4.63862754 | L92: =IF(A3stdlife="n/a","n/a",IF(L$3>(A3stdlife+$F92),('RFM input'!$H$225*(1+vanilla1)^0.5)-SUM($H92:K92),('RFM input'!$H$225*(1+vanilla1)^0.5)/A3stdlife)) -> 4.63862754 | M92: =IF(A3stdlife="n/a","n/a",IF(M$3>(A3stdlife+$F92),('RFM input'!$H$225*(1+vanilla1)^0.5)-SUM($H92:L92),('RFM input'!$H$225*(1+vanilla1)^0.5)/A3stdlife)) -> 4.63862754 | N92: =IF(A3stdlife="n/a","n/a",IF(N$3>(A3stdlife+$F92),('RFM input'!$H$225*(1+vanilla1)^0.5)-SUM($H92:M92),('RFM input'!$H$225*(1+vanilla1)^0.5)/A3stdlife)) -> 4.63862754 | O92: =IF(A3stdlife="n/a","n/a",IF(O$3>(A3stdlife+$F92),('RFM input'!$H$225*(1+vanilla1)^0.5)-SUM($H92:N92),('RFM input'!$H$225*(1+vanilla1)^0.5)/A3stdlife)) -> 4.63862754 | P92: =IF(A3stdlife="n/a","n/a",IF(P$3>(A3stdlife+$F92),('RFM input'!$H$225*(1+vanilla1)^0.5)-SUM($H92:O92),('RFM input'!$H$225*(1+vanilla1)^0.5)/A3stdlife)) -> 4.63862754 | Q92: =IF(A3stdlife="n/a","n/a",IF(Q$3>(A3stdlife+$F92),('RFM input'!$H$225*(1+vanilla1)^0.5)-SUM($H92:P92),('RFM input'!$H$225*(1+vanilla1)^0.5)/A3stdlife)) -> 4.63862754
F93: 2 | J93: =IF(A3stdlife="n/a","n/a",IF(J$3>(A3stdlife+$F93),('RFM input'!$I$225*(1+vanilla2)^0.5)-SUM($I93:I93),('RFM input'!$I$225*(1+vanilla2)^0.5)/A3stdlife)) -> 4.703825142 | K93: =IF(A3stdlife="n/a","n/a",IF(K$3>(A3stdlife+$F93),('RFM input'!$I$225*(1+vanilla2)^0.5)-SUM($I93:J93),('RFM input'!$I$225*(1+vanilla2)^0.5)/A3stdlife)) -> 4.703825142 | L93: =IF(A3stdlife="n/a","n/a",IF(L$3>(A3stdlife+$F93),('RFM input'!$I$225*(1+vanilla2)^0.5)-SUM($I93:K93),('RFM input'!$I$225*(1+vanilla2)^0.5)/A3stdlife)) -> 4.703825142 | M93: =IF(A3stdlife="n/a","n/a",IF(M$3>(A3stdlife+$F93),('RFM input'!$I$225*(1+vanilla2)^0.5)-SUM($I93:L93),('RFM input'!$I$225*(1+vanilla2)^0.5)/A3stdlife)) -> 4.703825142 | N93: =IF(A3stdlife="n/a","n/a",IF(N$3>(A3stdlife+$F93),('RFM input'!$I$225*(1+vanilla2)^0.5)-SUM($I93:M93),('RFM input'!$I$225*(1+vanilla2)^0.5)/A3stdlife)) -> 4.703825142 | O93: =IF(A3stdlife="n/a","n/a",IF(O$3>(A3stdlife+$F93),('RFM input'!$I$225*(1+vanilla2)^0.5)-SUM($I93:N93),('RFM input'!$I$225*(1+vanilla2)^0.5)/A3stdlife)) -> 4.703825142 | P93: =IF(A3stdlife="n/a","n/a",IF(P$3>(A3stdlife+$F93),('RFM input'!$I$225*(1+vanilla2)^0.5)-SUM($I93:O93),('RFM input'!$I$225*(1+vanilla2)^0.5)/A3stdlife)) -> 4.703825142 | Q93: =IF(A3stdlife="n/a","n/a",IF(Q$3>(A3stdlife+$F93),('RFM input'!$I$225*(1+vanilla2)^0.5)-SUM($I93:P93),('RFM input'!$I$225*(1+vanilla2)^0.5)/A3stdlife)) -> 4.703825142
F94: 3 | K94: =IF(A3stdlife="n/a","n/a",IF(K$3>(A3stdlife+$F94),('RFM input'!$J$225*(1+vanilla3)^0.5)-SUM($J94:J94),('RFM input'!$J$225*(1+vanilla3)^0.5)/A3stdlife)) -> 5.947474027 | L94: =IF(A3stdlife="n/a","n/a",IF(L$3>(A3stdlife+$F94),('RFM input'!$J$225*(1+vanilla3)^0.5)-SUM($J94:K94),('RFM input'!$J$225*(1+vanilla3)^0.5)/A3stdlife)) -> 5.947474027 | M94: =IF(A3stdlife="n/a","n/a",IF(M$3>(A3stdlife+$F94),('RFM input'!$J$225*(1+vanilla3)^0.5)-SUM($J94:L94),('RFM input'!$J$225*(1+vanilla3)^0.5)/A3stdlife)) -> 5.947474027 | N94: =IF(A3stdlife="n/a","n/a",IF(N$3>(A3stdlife+$F94),('RFM input'!$J$225*(1+vanilla3)^0.5)-SUM($J94:M94),('RFM input'!$J$225*(1+vanilla3)^0.5)/A3stdlife)) -> 5.947474027 | O94: =IF(A3stdlife="n/a","n/a",IF(O$3>(A3stdlife+$F94),('RFM input'!$J$225*(1+vanilla3)^0.5)-SUM($J94:N94),('RFM input'!$J$225*(1+vanilla3)^0.5)/A3stdlife)) -> 5.947474027 | P94: =IF(A3stdlife="n/a","n/a",IF(P$3>(A3stdlife+$F94),('RFM input'!$J$225*(1+vanilla3)^0.5)-SUM($J94:O94),('RFM input'!$J$225*(1+vanilla3)^0.5)/A3stdlife)) -> 5.947474027 | Q94: =IF(A3stdlife="n/a","n/a",IF(Q$3>(A3stdlife+$F94),('RFM input'!$J$225*(1+vanilla3)^0.5)-SUM($J94:P94),('RFM input'!$J$225*(1+vanilla3)^0.5)/A3stdlife)) -> 5.947474027
F95: 4 | L95: =IF(A3stdlife="n/a","n/a",IF(L$3>(A3stdlife+$F95),('RFM input'!$K$225*(1+vanilla4)^0.5)-SUM($K95:K95),('RFM input'!$K$225*(1+vanilla4)^0.5)/A3stdlife)) -> 8.075406391 | M95: =IF(A3stdlife="n/a","n/a",IF(M$3>(A3stdlife+$F95),('RFM input'!$K$225*(1+vanilla4)^0.5)-SUM($K95:L95),('RFM input'!$K$225*(1+vanilla4)^0.5)/A3stdlife)) -> 8.075406391 | N95: =IF(A3stdlife="n/a","n/a",IF(N$3>(A3stdlife+$F95),('RFM input'!$K$225*(1+vanilla4)^0.5)-SUM($K95:M95),('RFM input'!$K$225*(1+vanilla4)^0.5)/A3stdlife)) -> 8.075406391 | O95: =IF(A3stdlife="n/a","n/a",IF(O$3>(A3stdlife+$F95),('RFM input'!$K$225*(1+vanilla4)^0.5)-SUM($K95:N95),('RFM input'!$K$225*(1+vanilla4)^0.5)/A3stdlife)) -> 8.075406391 | P95: =IF(A3stdlife="n/a","n/a",IF(P$3>(A3stdlife+$F95),('RFM input'!$K$225*(1+vanilla4)^0.5)-SUM($K95:O95),('RFM input'!$K$225*(1+vanilla4)^0.5)/A3stdlife)) -> 8.075406391 | Q95: =IF(A3stdlife="n/a","n/a",IF(Q$3>(A3stdlife+$F95),('RFM input'!$K$225*(1+vanilla4)^0.5)-SUM($K95:P95),('RFM input'!$K$225*(1+vanilla4)^0.5)/A3stdlife)) -> 8.075406391
F96: 5 | M96: =IF(A3stdlife="n/a","n/a",IF(M$3>(A3stdlife+$F96),('RFM input'!$L$225*(1+vanilla5)^0.5)-SUM($L96:L96),('RFM input'!$L$225*(1+vanilla5)^0.5)/A3stdlife)) -> 8.362975701 | N96: =IF(A3stdlife="n/a","n/a",IF(N$3>(A3stdlife+$F96),('RFM input'!$L$225*(1+vanilla5)^0.5)-SUM($L96:M96),('RFM input'!$L$225*(1+vanilla5)^0.5)/A3stdlife)) -> 8.362975701 | O96: =IF(A3stdlife="n/a","n/a",IF(O$3>(A3stdlife+$F96),('RFM input'!$L$225*(1+vanilla5)^0.5)-SUM($L96:N96),('RFM input'!$L$225*(1+vanilla5)^0.5)/A3stdlife)) -> 8.362975701 | P96: =IF(A3stdlife="n/a","n/a",IF(P$3>(A3stdlife+$F96),('RFM input'!$L$225*(1+vanilla5)^0.5)-SUM($L96:O96),('RFM input'!$L$225*(1+vanilla5)^0.5)/A3stdlife)) -> 8.362975701 | Q96: =IF(A3stdlife="n/a","n/a",IF(Q$3>(A3stdlife+$F96),('RFM input'!$L$225*(1+vanilla5)^0.5)-SUM($L96:P96),('RFM input'!$L$225*(1+vanilla5)^0.5)/A3stdlife)) -> 8.362975701
F97: 6 | N97: =IF(A3stdlife="n/a","n/a",IF(N$3>(A3stdlife+$F97),('RFM input'!$M$225*(1+vanilla6)^0.5)-SUM($M97:M97),('RFM input'!$M$225*(1+vanilla6)^0.5)/A3stdlife)) -> 0 | O97: =IF(A3stdlife="n/a","n/a",IF(O$3>(A3stdlife+$F97),('RFM input'!$M$225*(1+vanilla6)^0.5)-SUM($M97:N97),('RFM input'!$M$225*(1+vanilla6)^0.5)/A3stdlife)) -> 0 | P97: =IF(A3stdlife="n/a","n/a",IF(P$3>(A3stdlife+$F97),('RFM input'!$M$225*(1+vanilla6)^0.5)-SUM($M97:O97),('RFM input'!$M$225*(1+vanilla6)^0.5)/A3stdlife)) -> 0 | Q97: =IF(A3stdlife="n/a","n/a",IF(Q$3>(A3stdlife+$F97),('RFM input'!$M$225*(1+vanilla6)^0.5)-SUM($M97:P97),('RFM input'!$M$225*(1+vanilla6)^0.5)/A3stdlife)) -> 0
F98: 7 | O98: =IF(A3stdlife="n/a","n/a",IF(O$3>(A3stdlife+$F98),('RFM input'!$N$225*(1+vanilla7)^0.5)-SUM($N98:N98),('RFM input'!$N$225*(1+vanilla7)^0.5)/A3stdlife)) -> 0 | P98: =IF(A3stdlife="n/a","n/a",IF(P$3>(A3stdlife+$F98),('RFM input'!$N$225*(1+vanilla7)^0.5)-SUM($N98:O98),('RFM input'!$N$225*(1+vanilla7)^0.5)/A3stdlife)) -> 0 | Q98: =IF(A3stdlife="n/a","n/a",IF(Q$3>(A3stdlife+$F98),('RFM input'!$N$225*(1+vanilla7)^0.5)-SUM($N98:P98),('RFM input'!$N$225*(1+vanilla7)^0.5)/A3stdlife)) -> 0
F99: 8 | P99: =IF(A3stdlife="n/a","n/a",IF(P$3>(A3stdlife+$F99),('RFM input'!$O$225*(1+vanilla8)^0.5)-SUM($O99:O99),('RFM input'!$O$225*(1+vanilla8)^0.5)/A3stdlife)) -> 0 | Q99: =IF(A3stdlife="n/a","n/a",IF(Q$3>(A3stdlife+$F99),('RFM input'!$O$225*(1+vanilla8)^0.5)-SUM($O99:P99),('RFM input'!$O$225*(1+vanilla8)^0.5)/A3stdlife)) -> 0
F100: 9 | Q100: =IF(A3stdlife="n/a","n/a",IF(Q$3>(A3stdlife+$F100),('RFM input'!$P$225*(1+vanilla9)^0.5)-SUM($P100:P100),('RFM input'!$P$225*(1+vanilla9)^0.5)/A3stdlife)) -> 0
F101: 10
D102: =Asset3 -> Overhead Distribution Lines | H102: =IF(OR('RFM input'!$E$293='RFM input'!$G$292,'RFM input'!$E$293='RFM input'!$G$293),-INDEX('RFM input'!H$299:H$348,MATCH($D102,'RFM input'!$E$299:$E$348,0),1),-SUM(H90:H101)) -> -123.2786272 | I102: =IF(OR('RFM input'!$E$293='RFM input'!$G$292,'RFM input'!$E$293='RFM input'!$G$293),-INDEX('RFM input'!I$299:I$348,MATCH($D102,'RFM input'!$E$299:$E$348,0),1),-SUM(I90:I101)) -> -126.6865586 | J102: =IF(COUNT($H102:I102)>='RFM input'!$V$7, 0, IF(OR('RFM input'!$E$293='RFM input'!$G$292,'RFM input'!$E$293='RFM input'!$G$293), -INDEX('RFM input'!J$299:J$348,MATCH($D102,'RFM input'!$E$299:$E$348,0),1), -SUM(J90:J101))) -> -130.1434066 | K102: =IF(COUNT($H102:J102)>='RFM input'!$V$7, 0, IF(OR('RFM input'!$E$293='RFM input'!$G$292,'RFM input'!$E$293='RFM input'!$G$293), -INDEX('RFM input'!K$299:K$348,MATCH($D102,'RFM input'!$E$299:$E$348,0),1), -SUM(K90:K101))) -> -133.6797325 | L102: =IF(COUNT($H102:K102)>='RFM input'!$V$7, 0, IF(OR('RFM input'!$E$293='RFM input'!$G$292,'RFM input'!$E$293='RFM input'!$G$293), -INDEX('RFM input'!L$299:L$348,MATCH($D102,'RFM input'!$E$299:$E$348,0),1), -SUM(L90:L101))) -> -137.1760825 | M102: =IF(COUNT($H102:L102)>='RFM input'!$V$7, 0, IF(OR('RFM input'!$E$293='RFM input'!$G$292,'RFM input'!$E$293='RFM input'!$G$293), -INDEX('RFM input'!M$299:M$348,MATCH($D102,'RFM input'!$E$299:$E$348,0),1), -SUM(M90:M101))) -> 0 | N102: =IF(COUNT($H102:M102)>='RFM input'!$V$7, 0, IF(OR('RFM input'!$E$293='RFM input'!$G$292,'RFM input'!$E$293='RFM input'!$G$293), -INDEX('RFM input'!N$299:N$348,MATCH($D102,'RFM input'!$E$299:$E$348,0),1), -SUM(N90:N101))) -> 0 | O102: =IF(COUNT($H102:N102)>='RFM input'!$V$7, 0, IF(OR('RFM input'!$E$293='RFM input'!$G$292,'RFM input'!$E$293='RFM input'!$G$293), -INDEX('RFM input'!O$299:O$348,MATCH($D102,'RFM input'!$E$299:$E$348,0),1), -SUM(O90:O101))) -> 0 | P102: =IF(COUNT($H102:O102)>='RFM input'!$V$7, 0, IF(OR('RFM input'!$E$293='RFM input'!$G$292,'RFM input'!$E$293='RFM input'!$G$293), -INDEX('RFM input'!P$299:P$348,MATCH($D102,'RFM input'!$E$299:$E$348,0),1), -SUM(P90:P101))) -> 0 | Q102: =IF(COUNT($H102:P102)>='RFM input'!$V$7, 0, IF(OR('RFM input'!$E$293='RFM input'!$G$292,'RFM input'!$E$293='RFM input'!$G$293), -INDEX('RFM input'!Q$299:Q$348,MATCH($D102,'RFM input'!$E$299:$E$348,0),1), -SUM(Q90:Q101))) -> 0
C103: =Asset4 -> Underground Distribution Cables | E103: Opening RAB | H103: =IF(H$3>A4remlife,A4value-SUM($G103:G103),IF(A4remlife="N/A","n/a",A4value/A4remlife)) -> n/a | I103: =IF(I$3>A4remlife,A4value-SUM($G103:H103),IF(A4remlife="N/A","n/a",A4value/A4remlife)) -> n/a | J103: =IF(J$3>A4remlife,A4value-SUM($G103:I103),IF(A4remlife="N/A","n/a",A4value/A4remlife)) -> n/a | K103: =IF(K$3>A4remlife,A4value-SUM($G103:J103),IF(A4remlife="N/A","n/a",A4value/A4remlife)) -> n/a | L103: =IF(L$3>A4remlife,A4value-SUM($G103:K103),IF(A4remlife="N/A","n/a",A4value/A4remlife)) -> n/a | M103: =IF(M$3>A4remlife,A4value-SUM($G103:L103),IF(A4remlife="N/A","n/a",A4value/A4remlife)) -> n/a | N103: =IF(N$3>A4remlife,A4value-SUM($G103:M103),IF(A4remlife="N/A","n/a",A4value/A4remlife)) -> n/a | O103: =IF(O$3>A4remlife,A4value-SUM($G103:N103),IF(A4remlife="N/A","n/a",A4value/A4remlife)) -> n/a | P103: =IF(P$3>A4remlife,A4value-SUM($G103:O103),IF(A4remlife="N/A","n/a",A4value/A4remlife)) -> n/a | Q103: =IF(Q$3>A4remlife,A4value-SUM($G103:P103),IF(A4remlife="N/A","n/a",A4value/A4remlife)) -> n/a
E104: Capex in year
F105: 1 | I105: =IF(A4stdlife="n/a","n/a",IF(I$3>(A4stdlife+$F105),('RFM input'!$H$226*(1+vanilla1)^0.5)-SUM($H105:H105),('RFM input'!$H$226*(1+vanilla1)^0.5)/A4stdlife)) -> 0.2465999379 | J105: =IF(A4stdlife="n/a","n/a",IF(J$3>(A4stdlife+$F105),('RFM input'!$H$226*(1+vanilla1)^0.5)-SUM($H105:I105),('RFM input'!$H$226*(1+vanilla1)^0.5)/A4stdlife)) -> 0.2465999379 | K105: =IF(A4stdlife="n/a","n/a",IF(K$3>(A4stdlife+$F105),('RFM input'!$H$226*(1+vanilla1)^0.5)-SUM($H105:J105),('RFM input'!$H$226*(1+vanilla1)^0.5)/A4stdlife)) -> 0.2465999379 | L105: =IF(A4stdlife="n/a","n/a",IF(L$3>(A4stdlife+$F105),('RFM input'!$H$226*(1+vanilla1)^0.5)-SUM($H105:K105),('RFM input'!$H$226*(1+vanilla1)^0.5)/A4stdlife)) -> 0.2465999379 | M105: =IF(A4stdlife="n/a","n/a",IF(M$3>(A4stdlife+$F105),('RFM input'!$H$226*(1+vanilla1)^0.5)-SUM($H105:L105),('RFM input'!$H$226*(1+vanilla1)^0.5)/A4stdlife)) -> 0.2465999379 | N105: =IF(A4stdlife="n/a","n/a",IF(N$3>(A4stdlife+$F105),('RFM input'!$H$226*(1+vanilla1)^0.5)-SUM($H105:M105),('RFM input'!$H$226*(1+vanilla1)^0.5)/A4stdlife)) -> 0.2465999379 | O105: =IF(A4stdlife="n/a","n/a",IF(O$3>(A4stdlife+$F105),('RFM input'!$H$226*(1+vanilla1)^0.5)-SUM($H105:N105),('RFM input'!$H$226*(1+vanilla1)^0.5)/A4stdlife)) -> 0.2465999379 | P105: =IF(A4stdlife="n/a","n/a",IF(P$3>(A4stdlife+$F105),('RFM input'!$H$226*(1+vanilla1)^0.5)-SUM($H105:O105),('RFM input'!$H$226*(1+vanilla1)^0.5)/A4stdlife)) -> 0.2465999379 | Q105: =IF(A4stdlife="n/a","n/a",IF(Q$3>(A4stdlife+$F105),('RFM input'!$H$226*(1+vanilla1)^0.5)-SUM($H105:P105),('RFM input'!$H$226*(1+vanilla1)^0.5)/A4stdlife)) -> 0.2465999379
F106: 2 | J106: =IF(A4stdlife="n/a","n/a",IF(J$3>(A4stdlife+$F106),('RFM input'!$I$226*(1+vanilla2)^0.5)-SUM($I106:I106),('RFM input'!$I$226*(1+vanilla2)^0.5)/A4stdlife)) -> 0.2306087128 | K106: =IF(A4stdlife="n/a","n/a",IF(K$3>(A4stdlife+$F106),('RFM input'!$I$226*(1+vanilla2)^0.5)-SUM($I106:J106),('RFM input'!$I$226*(1+vanilla2)^0.5)/A4stdlife)) -> 0.2306087128 | L106: =IF(A4stdlife="n/a","n/a",IF(L$3>(A4stdlife+$F106),('RFM input'!$I$226*(1+vanilla2)^0.5)-SUM($I106:K106),('RFM input'!$I$226*(1+vanilla2)^0.5)/A4stdlife)) -> 0.2306087128 | M106: =IF(A4stdlife="n/a","n/a",IF(M$3>(A4stdlife+$F106),('RFM input'!$I$226*(1+vanilla2)^0.5)-SUM($I106:L106),('RFM input'!$I$226*(1+vanilla2)^0.5)/A4stdlife)) -> 0.2306087128 | N106: =IF(A4stdlife="n/a","n/a",IF(N$3>(A4stdlife+$F106),('RFM input'!$I$226*(1+vanilla2)^0.5)-SUM($I106:M106),('RFM input'!$I$226*(1+vanilla2)^0.5)/A4stdlife)) -> 0.2306087128 | O106: =IF(A4stdlife="n/a","n/a",IF(O$3>(A4stdlife+$F106),('RFM input'!$I$226*(1+vanilla2)^0.5)-SUM($I106:N106),('RFM input'!$I$226*(1+vanilla2)^0.5)/A4stdlife)) -> 0.2306087128 | P106: =IF(A4stdlife="n/a","n/a",IF(P$3>(A4stdlife+$F106),('RFM input'!$I$226*(1+vanilla2)^0.5)-SUM($I106:O106),('RFM input'!$I$226*(1+vanilla2)^0.5)/A4stdlife)) -> 0.2306087128 | Q106: =IF(A4stdlife="n/a","n/a",IF(Q$3>(A4stdlife+$F106),('RFM input'!$I$226*(1+vanilla2)^0.5)-SUM($I106:P106),('RFM input'!$I$226*(1+vanilla2)^0.5)/A4stdlife)) -> 0.2306087128
F107: 3 | K107: =IF(A4stdlife="n/a","n/a",IF(K$3>(A4stdlife+$F107),('RFM input'!$J$226*(1+vanilla3)^0.5)-SUM($J107:J107),('RFM input'!$J$226*(1+vanilla3)^0.5)/A4stdlife)) -> 0.2466649251 | L107: =IF(A4stdlife="n/a","n/a",IF(L$3>(A4stdlife+$F107),('RFM input'!$J$226*(1+vanilla3)^0.5)-SUM($J107:K107),('RFM input'!$J$226*(1+vanilla3)^0.5)/A4stdlife)) -> 0.2466649251 | M107: =IF(A4stdlife="n/a","n/a",IF(M$3>(A4stdlife+$F107),('RFM input'!$J$226*(1+vanilla3)^0.5)-SUM($J107:L107),('RFM input'!$J$226*(1+vanilla3)^0.5)/A4stdlife)) -> 0.2466649251 | N107: =IF(A4stdlife="n/a","n/a",IF(N$3>(A4stdlife+$F107),('RFM input'!$J$226*(1+vanilla3)^0.5)-SUM($J107:M107),('RFM input'!$J$226*(1+vanilla3)^0.5)/A4stdlife)) -> 0.2466649251 | O107: =IF(A4stdlife="n/a","n/a",IF(O$3>(A4stdlife+$F107),('RFM input'!$J$226*(1+vanilla3)^0.5)-SUM($J107:N107),('RFM input'!$J$226*(1+vanilla3)^0.5)/A4stdlife)) -> 0.2466649251 | P107: =IF(A4stdlife="n/a","n/a",IF(P$3>(A4stdlife+$F107),('RFM input'!$J$226*(1+vanilla3)^0.5)-SUM($J107:O107),('RFM input'!$J$226*(1+vanilla3)^0.5)/A4stdlife)) -> 0.2466649251 | Q107: =IF(A4stdlife="n/a","n/a",IF(Q$3>(A4stdlife+$F107),('RFM input'!$J$226*(1+vanilla3)^0.5)-SUM($J107:P107),('RFM input'!$J$226*(1+vanilla3)^0.5)/A4stdlife)) -> 0.2466649251
F108: 4 | L108: =IF(A4stdlife="n/a","n/a",IF(L$3>(A4stdlife+$F108),('RFM input'!$K$226*(1+vanilla4)^0.5)-SUM($K108:K108),('RFM input'!$K$226*(1+vanilla4)^0.5)/A4stdlife)) -> 0.3278315581 | M108: =IF(A4stdlife="n/a","n/a",IF(M$3>(A4stdlife+$F108),('RFM input'!$K$226*(1+vanilla4)^0.5)-SUM($K108:L108),('RFM input'!$K$226*(1+vanilla4)^0.5)/A4stdlife)) -> 0.3278315581 | N108: =IF(A4stdlife="n/a","n/a",IF(N$3>(A4stdlife+$F108),('RFM input'!$K$226*(1+vanilla4)^0.5)-SUM($K108:M108),('RFM input'!$K$226*(1+vanilla4)^0.5)/A4stdlife)) -> 0.3278315581 | O108: =IF(A4stdlife="n/a","n/a",IF(O$3>(A4stdlife+$F108),('RFM input'!$K$226*(1+vanilla4)^0.5)-SUM($K108:N108),('RFM input'!$K$226*(1+vanilla4)^0.5)/A4stdlife)) -> 0.3278315581 | P108: =IF(A4stdlife="n/a","n/a",IF(P$3>(A4stdlife+$F108),('RFM input'!$K$226*(1+vanilla4)^0.5)-SUM($K108:O108),('RFM input'!$K$226*(1+vanilla4)^0.5)/A4stdlife)) -> 0.3278315581 | Q108: =IF(A4stdlife="n/a","n/a",IF(Q$3>(A4stdlife+$F108),('RFM input'!$K$226*(1+vanilla4)^0.5)-SUM($K108:P108),('RFM input'!$K$226*(1+vanilla4)^0.5)/A4stdlife)) -> 0.3278315581
F109: 5 | M109: =IF(A4stdlife="n/a","n/a",IF(M$3>(A4stdlife+$F109),('RFM input'!$L$226*(1+vanilla5)^0.5)-SUM($L109:L109),('RFM input'!$L$226*(1+vanilla5)^0.5)/A4stdlife)) -> 0.382140078 | N109: =IF(A4stdlife="n/a","n/a",IF(N$3>(A4stdlife+$F109),('RFM input'!$L$226*(1+vanilla5)^0.5)-SUM($L109:M109),('RFM input'!$L$226*(1+vanilla5)^0.5)/A4stdlife)) -> 0.382140078 | O109: =IF(A4stdlife="n/a","n/a",IF(O$3>(A4stdlife+$F109),('RFM input'!$L$226*(1+vanilla5)^0.5)-SUM($L109:N109),('RFM input'!$L$226*(1+vanilla5)^0.5)/A4stdlife)) -> 0.382140078 | P109: =IF(A4stdlife="n/a","n/a",IF(P$3>(A4stdlife+$F109),('RFM input'!$L$226*(1+vanilla5)^0.5)-SUM($L109:O109),('RFM input'!$L$226*(1+vanilla5)^0.5)/A4stdlife)) -> 0.382140078 | Q109: =IF(A4stdlife="n/a","n/a",IF(Q$3>(A4stdlife+$F109),('RFM input'!$L$226*(1+vanilla5)^0.5)-SUM($L109:P109),('RFM input'!$L$226*(1+vanilla5)^0.5)/A4stdlife)) -> 0.382140078
F110: 6 | N110: =IF(A4stdlife="n/a","n/a",IF(N$3>(A4stdlife+$F110),('RFM input'!$M$226*(1+vanilla6)^0.5)-SUM($M110:M110),('RFM input'!$M$226*(1+vanilla6)^0.5)/A4stdlife)) -> 0 | O110: =IF(A4stdlife="n/a","n/a",IF(O$3>(A4stdlife+$F110),('RFM input'!$M$226*(1+vanilla6)^0.5)-SUM($M110:N110),('RFM input'!$M$226*(1+vanilla6)^0.5)/A4stdlife)) -> 0 | P110: =IF(A4stdlife="n/a","n/a",IF(P$3>(A4stdlife+$F110),('RFM input'!$M$226*(1+vanilla6)^0.5)-SUM($M110:O110),('RFM input'!$M$226*(1+vanilla6)^0.5)/A4stdlife)) -> 0 | Q110: =IF(A4stdlife="n/a","n/a",IF(Q$3>(A4stdlife+$F110),('RFM input'!$M$226*(1+vanilla6)^0.5)-SUM($M110:P110),('RFM input'!$M$226*(1+vanilla6)^0.5)/A4stdlife)) -> 0
F111: 7 | O111: =IF(A4stdlife="n/a","n/a",IF(O$3>(A4stdlife+$F111),('RFM input'!$N$226*(1+vanilla7)^0.5)-SUM($N111:N111),('RFM input'!$N$226*(1+vanilla7)^0.5)/A4stdlife)) -> 0 | P111: =IF(A4stdlife="n/a","n/a",IF(P$3>(A4stdlife+$F111),('RFM input'!$N$226*(1+vanilla7)^0.5)-SUM($N111:O111),('RFM input'!$N$226*(1+vanilla7)^0.5)/A4stdlife)) -> 0 | Q111: =IF(A4stdlife="n/a","n/a",IF(Q$3>(A4stdlife+$F111),('RFM input'!$N$226*(1+vanilla7)^0.5)-SUM($N111:P111),('RFM input'!$N$226*(1+vanilla7)^0.5)/A4stdlife)) -> 0
F112: 8 | P112: =IF(A4stdlife="n/a","n/a",IF(P$3>(A4stdlife+$F112),('RFM input'!$O$226*(1+vanilla8)^0.5)-SUM($O112:O112),('RFM input'!$O$226*(1+vanilla8)^0.5)/A4stdlife)) -> 0 | Q112: =IF(A4stdlife="n/a","n/a",IF(Q$3>(A4stdlife+$F112),('RFM input'!$O$226*(1+vanilla8)^0.5)-SUM($O112:P112),('RFM input'!$O$226*(1+vanilla8)^0.5)/A4stdlife)) -> 0
F113: 9 | Q113: =IF(A4stdlife="n/a","n/a",IF(Q$3>(A4stdlife+$F113),('RFM input'!$P$226*(1+vanilla9)^0.5)-SUM($P113:P113),('RFM input'!$P$226*(1+vanilla9)^0.5)/A4stdlife)) -> 0
F114: 10
D115: =Asset4 -> Underground Distribution Cables | H115: =IF(OR('RFM input'!$E$293='RFM input'!$G$292,'RFM input'!$E$293='RFM input'!$G$293),-INDEX('RFM input'!H$299:H$348,MATCH($D115,'RFM input'!$E$299:$E$348,0),1),-SUM(H103:H114)) -> -22.8213792 | I115: =IF(OR('RFM input'!$E$293='RFM input'!$G$292,'RFM input'!$E$293='RFM input'!$G$293),-INDEX('RFM input'!I$299:I$348,MATCH($D115,'RFM input'!$E$299:$E$348,0),1),-SUM(I103:I114)) -> -23.24579896 | J115: =IF(COUNT($H115:I115)>='RFM input'!$V$7, 0, IF(OR('RFM input'!$E$293='RFM input'!$G$292,'RFM input'!$E$293='RFM input'!$G$293), -INDEX('RFM input'!J$299:J$348,MATCH($D115,'RFM input'!$E$299:$E$348,0),1), -SUM(J103:J114))) -> -23.67631072 | K115: =IF(COUNT($H115:J115)>='RFM input'!$V$7, 0, IF(OR('RFM input'!$E$293='RFM input'!$G$292,'RFM input'!$E$293='RFM input'!$G$293), -INDEX('RFM input'!K$299:K$348,MATCH($D115,'RFM input'!$E$299:$E$348,0),1), -SUM(K103:K114))) -> -24.11672056 | L115: =IF(COUNT($H115:K115)>='RFM input'!$V$7, 0, IF(OR('RFM input'!$E$293='RFM input'!$G$292,'RFM input'!$E$293='RFM input'!$G$293), -INDEX('RFM input'!L$299:L$348,MATCH($D115,'RFM input'!$E$299:$E$348,0),1), -SUM(L103:L114))) -> -24.54909971 | M115: =IF(COUNT($H115:L115)>='RFM input'!$V$7, 0, IF(OR('RFM input'!$E$293='RFM input'!$G$292,'RFM input'!$E$293='RFM input'!$G$293), -INDEX('RFM input'!M$299:M$348,MATCH($D115,'RFM input'!$E$299:$E$348,0),1), -SUM(M103:M114))) -> 0 | N115: =IF(COUNT($H115:M115)>='RFM input'!$V$7, 0, IF(OR('RFM input'!$E$293='RFM input'!$G$292,'RFM input'!$E$293='RFM input'!$G$293), -INDEX('RFM input'!N$299:N$348,MATCH($D115,'RFM input'!$E$299:$E$348,0),1), -SUM(N103:N114))) -> 0 | O115: =IF(COUNT($H115:N115)>='RFM input'!$V$7, 0, IF(OR('RFM input'!$E$293='RFM input'!$G$292,'RFM input'!$E$293='RFM input'!$G$293), -INDEX('RFM input'!O$299:O$348,MATCH($D115,'RFM input'!$E$299:$E$348,0),1), -SUM(O103:O114))) -> 0 | P115: =IF(COUNT($H115:O115)>='RFM input'!$V$7, 0, IF(OR('RFM input'!$E$293='RFM input'!$G$292,'RFM input'!$E$293='RFM input'!$G$293), -INDEX('RFM input'!P$299:P$348,MATCH($D115,'RFM input'!$E$299:$E$348,0),1), -SUM(P103:P114))) -> 0 | Q115: =IF(COUNT($H115:P115)>='RFM input'!$V$7, 0, IF(OR('RFM input'!$E$293='RFM input'!$G$292,'RFM input'!$E$293='RFM input'!$G$293), -INDEX('RFM input'!Q$299:Q$348,MATCH($D115,'RFM input'!$E$299:$E$348,0),1), -SUM(Q103:Q114))) -> 0
C116: =Asset5 -> Distribution Equipment | E116: Opening RAB | H116: =IF(H$3>A5remlife,A5value-SUM($G116:G116),IF(A5remlife="N/A","n/a",A5value/A5remlife)) -> n/a | I116: =IF(I$3>A5remlife,A5value-SUM($G116:H116),IF(A5remlife="N/A","n/a",A5value/A5remlife)) -> n/a | J116: =IF(J$3>A5remlife,A5value-SUM($G116:I116),IF(A5remlife="N/A","n/a",A5value/A5remlife)) -> n/a | K116: =IF(K$3>A5remlife,A5value-SUM($G116:J116),IF(A5remlife="N/A","n/a",A5value/A5remlife)) -> n/a | L116: =IF(L$3>A5remlife,A5value-SUM($G116:K116),IF(A5remlife="N/A","n/a",A5value/A5remlife)) -> n/a | M116: =IF(M$3>A5remlife,A5value-SUM($G116:L116),IF(A5remlife="N/A","n/a",A5value/A5remlife)) -> n/a | N116: =IF(N$3>A5remlife,A5value-SUM($G116:M116),IF(A5remlife="N/A","n/a",A5value/A5remlife)) -> n/a | O116: =IF(O$3>A5remlife,A5value-SUM($G116:N116),IF(A5remlife="N/A","n/a",A5value/A5remlife)) -> n/a | P116: =IF(P$3>A5remlife,A5value-SUM($G116:O116),IF(A5remlife="N/A","n/a",A5value/A5remlife)) -> n/a | Q116: =IF(Q$3>A5remlife,A5value-SUM($G116:P116),IF(A5remlife="N/A","n/a",A5value/A5remlife)) -> n/a
E117: Capex in year
F118: 1 | I118: =IF(A5stdlife="n/a","n/a",IF(I$3>(A5stdlife+$F118),('RFM input'!$H$227*(1+vanilla1)^0.5)-SUM($H118:H118),('RFM input'!$H$227*(1+vanilla1)^0.5)/A5stdlife)) -> 0.003846941112 | J118: =IF(A5stdlife="n/a","n/a",IF(J$3>(A5stdlife+$F118),('RFM input'!$H$227*(1+vanilla1)^0.5)-SUM($H118:I118),('RFM input'!$H$227*(1+vanilla1)^0.5)/A5stdlife)) -> 0.003846941112 | K118: =IF(A5stdlife="n/a","n/a",IF(K$3>(A5stdlife+$F118),('RFM input'!$H$227*(1+vanilla1)^0.5)-SUM($H118:J118),('RFM input'!$H$227*(1+vanilla1)^0.5)/A5stdlife)) -> 0.003846941112 | L118: =IF(A5stdlife="n/a","n/a",IF(L$3>(A5stdlife+$F118),('RFM input'!$H$227*(1+vanilla1)^0.5)-SUM($H118:K118),('RFM input'!$H$227*(1+vanilla1)^0.5)/A5stdlife)) -> 0.003846941112 | M118: =IF(A5stdlife="n/a","n/a",IF(M$3>(A5stdlife+$F118),('RFM input'!$H$227*(1+vanilla1)^0.5)-SUM($H118:L118),('RFM input'!$H$227*(1+vanilla1)^0.5)/A5stdlife)) -> 0.003846941112 | N118: =IF(A5stdlife="n/a","n/a",IF(N$3>(A5stdlife+$F118),('RFM input'!$H$227*(1+vanilla1)^0.5)-SUM($H118:M118),('RFM input'!$H$227*(1+vanilla1)^0.5)/A5stdlife)) -> 0.003846941112 | O118: =IF(A5stdlife="n/a","n/a",IF(O$3>(A5stdlife+$F118),('RFM input'!$H$227*(1+vanilla1)^0.5)-SUM($H118:N118),('RFM input'!$H$227*(1+vanilla1)^0.5)/A5stdlife)) -> 0.003846941112 | P118: =IF(A5stdlife="n/a","n/a",IF(P$3>(A5stdlife+$F118),('RFM input'!$H$227*(1+vanilla1)^0.5)-SUM($H118:O118),('RFM input'!$H$227*(1+vanilla1)^0.5)/A5stdlife)) -> 0.003846941112 | Q118: =IF(A5stdlife="n/a","n/a",IF(Q$3>(A5stdlife+$F118),('RFM input'!$H$227*(1+vanilla1)^0.5)-SUM($H118:P118),('RFM input'!$H$227*(1+vanilla1)^0.5)/A5stdlife)) -> 0.003846941112
F119: 2 | J119: =IF(A5stdlife="n/a","n/a",IF(J$3>(A5stdlife+$F119),('RFM input'!$I$227*(1+vanilla2)^0.5)-SUM($I119:I119),('RFM input'!$I$227*(1+vanilla2)^0.5)/A5stdlife)) -> 0.004261962933 | K119: =IF(A5stdlife="n/a","n/a",IF(K$3>(A5stdlife+$F119),('RFM input'!$I$227*(1+vanilla2)^0.5)-SUM($I119:J119),('RFM input'!$I$227*(1+vanilla2)^0.5)/A5stdlife)) -> 0.004261962933 | L119: =IF(A5stdlife="n/a","n/a",IF(L$3>(A5stdlife+$F119),('RFM input'!$I$227*(1+vanilla2)^0.5)-SUM($I119:K119),('RFM input'!$I$227*(1+vanilla2)^0.5)/A5stdlife)) -> 0.004261962933 | M119: =IF(A5stdlife="n/a","n/a",IF(M$3>(A5stdlife+$F119),('RFM input'!$I$227*(1+vanilla2)^0.5)-SUM($I119:L119),('RFM input'!$I$227*(1+vanilla2)^0.5)/A5stdlife)) -> 0.004261962933 | N119: =IF(A5stdlife="n/a","n/a",IF(N$3>(A5stdlife+$F119),('RFM input'!$I$227*(1+vanilla2)^0.5)-SUM($I119:M119),('RFM input'!$I$227*(1+vanilla2)^0.5)/A5stdlife)) -> 0.004261962933 | O119: =IF(A5stdlife="n/a","n/a",IF(O$3>(A5stdlife+$F119),('RFM input'!$I$227*(1+vanilla2)^0.5)-SUM($I119:N119),('RFM input'!$I$227*(1+vanilla2)^0.5)/A5stdlife)) -> 0.004261962933 | P119: =IF(A5stdlife="n/a","n/a",IF(P$3>(A5stdlife+$F119),('RFM input'!$I$227*(1+vanilla2)^0.5)-SUM($I119:O119),('RFM input'!$I$227*(1+vanilla2)^0.5)/A5stdlife)) -> 0.004261962933 | Q119: =IF(A5stdlife="n/a","n/a",IF(Q$3>(A5stdlife+$F119),('RFM input'!$I$227*(1+vanilla2)^0.5)-SUM($I119:P119),('RFM input'!$I$227*(1+vanilla2)^0.5)/A5stdlife)) -> 0.004261962933
F120: 3 | K120: =IF(A5stdlife="n/a","n/a",IF(K$3>(A5stdlife+$F120),('RFM input'!$J$227*(1+vanilla3)^0.5)-SUM($J120:J120),('RFM input'!$J$227*(1+vanilla3)^0.5)/A5stdlife)) -> 1.600263327e-05 | L120: =IF(A5stdlife="n/a","n/a",IF(L$3>(A5stdlife+$F120),('RFM input'!$J$227*(1+vanilla3)^0.5)-SUM($J120:K120),('RFM input'!$J$227*(1+vanilla3)^0.5)/A5stdlife)) -> 1.600263327e-05 | M120: =IF(A5stdlife="n/a","n/a",IF(M$3>(A5stdlife+$F120),('RFM input'!$J$227*(1+vanilla3)^0.5)-SUM($J120:L120),('RFM input'!$J$227*(1+vanilla3)^0.5)/A5stdlife)) -> 1.600263327e-05 | N120: =IF(A5stdlife="n/a","n/a",IF(N$3>(A5stdlife+$F120),('RFM input'!$J$227*(1+vanilla3)^0.5)-SUM($J120:M120),('RFM input'!$J$227*(1+vanilla3)^0.5)/A5stdlife)) -> 1.600263327e-05 | O120: =IF(A5stdlife="n/a","n/a",IF(O$3>(A5stdlife+$F120),('RFM input'!$J$227*(1+vanilla3)^0.5)-SUM($J120:N120),('RFM input'!$J$227*(1+vanilla3)^0.5)/A5stdlife)) -> 1.600263327e-05 | P120: =IF(A5stdlife="n/a","n/a",IF(P$3>(A5stdlife+$F120),('RFM input'!$J$227*(1+vanilla3)^0.5)-SUM($J120:O120),('RFM input'!$J$227*(1+vanilla3)^0.5)/A5stdlife)) -> 1.600263327e-05 | Q120: =IF(A5stdlife="n/a","n/a",IF(Q$3>(A5stdlife+$F120),('RFM input'!$J$227*(1+vanilla3)^0.5)-SUM($J120:P120),('RFM input'!$J$227*(1+vanilla3)^0.5)/A5stdlife)) -> 1.600263327e-05
F121: 4 | L121: =IF(A5stdlife="n/a","n/a",IF(L$3>(A5stdlife+$F121),('RFM input'!$K$227*(1+vanilla4)^0.5)-SUM($K121:K121),('RFM input'!$K$227*(1+vanilla4)^0.5)/A5stdlife)) -> 0.0001333259813 | M121: =IF(A5stdlife="n/a","n/a",IF(M$3>(A5stdlife+$F121),('RFM input'!$K$227*(1+vanilla4)^0.5)-SUM($K121:L121),('RFM input'!$K$227*(1+vanilla4)^0.5)/A5stdlife)) -> 0.0001333259813 | N121: =IF(A5stdlife="n/a","n/a",IF(N$3>(A5stdlife+$F121),('RFM input'!$K$227*(1+vanilla4)^0.5)-SUM($K121:M121),('RFM input'!$K$227*(1+vanilla4)^0.5)/A5stdlife)) -> 0.0001333259813 | O121: =IF(A5stdlife="n/a","n/a",IF(O$3>(A5stdlife+$F121),('RFM input'!$K$227*(1+vanilla4)^0.5)-SUM($K121:N121),('RFM input'!$K$227*(1+vanilla4)^0.5)/A5stdlife)) -> 0.0001333259813 | P121: =IF(A5stdlife="n/a","n/a",IF(P$3>(A5stdlife+$F121),('RFM input'!$K$227*(1+vanilla4)^0.5)-SUM($K121:O121),('RFM input'!$K$227*(1+vanilla4)^0.5)/A5stdlife)) -> 0.0001333259813 | Q121: =IF(A5stdlife="n/a","n/a",IF(Q$3>(A5stdlife+$F121),('RFM input'!$K$227*(1+vanilla4)^0.5)-SUM($K121:P121),('RFM input'!$K$227*(1+vanilla4)^0.5)/A5stdlife)) -> 0.0001333259813
F122: 5 | M122: =IF(A5stdlife="n/a","n/a",IF(M$3>(A5stdlife+$F122),('RFM input'!$L$227*(1+vanilla5)^0.5)-SUM($L122:L122),('RFM input'!$L$227*(1+vanilla5)^0.5)/A5stdlife)) -> 0.004370665529 | N122: =IF(A5stdlife="n/a","n/a",IF(N$3>(A5stdlife+$F122),('RFM input'!$L$227*(1+vanilla5)^0.5)-SUM($L122:M122),('RFM input'!$L$227*(1+vanilla5)^0.5)/A5stdlife)) -> 0.004370665529 | O122: =IF(A5stdlife="n/a","n/a",IF(O$3>(A5stdlife+$F122),('RFM input'!$L$227*(1+vanilla5)^0.5)-SUM($L122:N122),('RFM input'!$L$227*(1+vanilla5)^0.5)/A5stdlife)) -> 0.004370665529 | P122: =IF(A5stdlife="n/a","n/a",IF(P$3>(A5stdlife+$F122),('RFM input'!$L$227*(1+vanilla5)^0.5)-SUM($L122:O122),('RFM input'!$L$227*(1+vanilla5)^0.5)/A5stdlife)) -> 0.004370665529 | Q122: =IF(A5stdlife="n/a","n/a",IF(Q$3>(A5stdlife+$F122),('RFM input'!$L$227*(1+vanilla5)^0.5)-SUM($L122:P122),('RFM input'!$L$227*(1+vanilla5)^0.5)/A5stdlife)) -> 0.004370665529
F123: 6 | N123: =IF(A5stdlife="n/a","n/a",IF(N$3>(A5stdlife+$F123),('RFM input'!$M$227*(1+vanilla6)^0.5)-SUM($M123:M123),('RFM input'!$M$227*(1+vanilla6)^0.5)/A5stdlife)) -> 0 | O123: =IF(A5stdlife="n/a","n/a",IF(O$3>(A5stdlife+$F123),('RFM input'!$M$227*(1+vanilla6)^0.5)-SUM($M123:N123),('RFM input'!$M$227*(1+vanilla6)^0.5)/A5stdlife)) -> 0 | P123: =IF(A5stdlife="n/a","n/a",IF(P$3>(A5stdlife+$F123),('RFM input'!$M$227*(1+vanilla6)^0.5)-SUM($M123:O123),('RFM input'!$M$227*(1+vanilla6)^0.5)/A5stdlife)) -> 0 | Q123: =IF(A5stdlife="n/a","n/a",IF(Q$3>(A5stdlife+$F123),('RFM input'!$M$227*(1+vanilla6)^0.5)-SUM($M123:P123),('RFM input'!$M$227*(1+vanilla6)^0.5)/A5stdlife)) -> 0
F124: 7 | O124: =IF(A5stdlife="n/a","n/a",IF(O$3>(A5stdlife+$F124),('RFM input'!$N$227*(1+vanilla7)^0.5)-SUM($N124:N124),('RFM input'!$N$227*(1+vanilla7)^0.5)/A5stdlife)) -> 0 | P124: =IF(A5stdlife="n/a","n/a",IF(P$3>(A5stdlife+$F124),('RFM input'!$N$227*(1+vanilla7)^0.5)-SUM($N124:O124),('RFM input'!$N$227*(1+vanilla7)^0.5)/A5stdlife)) -> 0 | Q124: =IF(A5stdlife="n/a","n/a",IF(Q$3>(A5stdlife+$F124),('RFM input'!$N$227*(1+vanilla7)^0.5)-SUM($N124:P124),('RFM input'!$N$227*(1+vanilla7)^0.5)/A5stdlife)) -> 0
F125: 8 | P125: =IF(A5stdlife="n/a","n/a",IF(P$3>(A5stdlife+$F125),('RFM input'!$O$227*(1+vanilla8)^0.5)-SUM($O125:O125),('RFM input'!$O$227*(1+vanilla8)^0.5)/A5stdlife)) -> 0 | Q125: =IF(A5stdlife="n/a","n/a",IF(Q$3>(A5stdlife+$F125),('RFM input'!$O$227*(1+vanilla8)^0.5)-SUM($O125:P125),('RFM input'!$O$227*(1+vanilla8)^0.5)/A5stdlife)) -> 0
F126: 9 | Q126: =IF(A5stdlife="n/a","n/a",IF(Q$3>(A5stdlife+$F126),('RFM input'!$P$227*(1+vanilla9)^0.5)-SUM($P126:P126),('RFM input'!$P$227*(1+vanilla9)^0.5)/A5stdlife)) -> 0
F127: 10
D128: =Asset5 -> Distribution Equipment | H128: =IF(OR('RFM input'!$E$293='RFM input'!$G$292,'RFM input'!$E$293='RFM input'!$G$293),-INDEX('RFM input'!H$299:H$348,MATCH($D128,'RFM input'!$E$299:$E$348,0),1),-SUM(H116:H127)) -> -2.471400636 | I128: =IF(OR('RFM input'!$E$293='RFM input'!$G$292,'RFM input'!$E$293='RFM input'!$G$293),-INDEX('RFM input'!I$299:I$348,MATCH($D128,'RFM input'!$E$299:$E$348,0),1),-SUM(I116:I127)) -> -2.516528351 | J128: =IF(COUNT($H128:I128)>='RFM input'!$V$7, 0, IF(OR('RFM input'!$E$293='RFM input'!$G$292,'RFM input'!$E$293='RFM input'!$G$293), -INDEX('RFM input'!J$299:J$348,MATCH($D128,'RFM input'!$E$299:$E$348,0),1), -SUM(J116:J127))) -> -2.562303818 | K128: =IF(COUNT($H128:J128)>='RFM input'!$V$7, 0, IF(OR('RFM input'!$E$293='RFM input'!$G$292,'RFM input'!$E$293='RFM input'!$G$293), -INDEX('RFM input'!K$299:K$348,MATCH($D128,'RFM input'!$E$299:$E$348,0),1), -SUM(K116:K127))) -> -2.609131728 | L128: =IF(COUNT($H128:K128)>='RFM input'!$V$7, 0, IF(OR('RFM input'!$E$293='RFM input'!$G$292,'RFM input'!$E$293='RFM input'!$G$293), -INDEX('RFM input'!L$299:L$348,MATCH($D128,'RFM input'!$E$299:$E$348,0),1), -SUM(L116:L127))) -> -2.658380208 | M128: =IF(COUNT($H128:L128)>='RFM input'!$V$7, 0, IF(OR('RFM input'!$E$293='RFM input'!$G$292,'RFM input'!$E$293='RFM input'!$G$293), -INDEX('RFM input'!M$299:M$348,MATCH($D128,'RFM input'!$E$299:$E$348,0),1), -SUM(M116:M127))) -> 0 | N128: =IF(COUNT($H128:M128)>='RFM input'!$V$7, 0, IF(OR('RFM input'!$E$293='RFM input'!$G$292,'RFM input'!$E$293='RFM input'!$G$293), -INDEX('RFM input'!N$299:N$348,MATCH($D128,'RFM input'!$E$299:$E$348,0),1), -SUM(N116:N127))) -> 0 | O128: =IF(COUNT($H128:N128)>='RFM input'!$V$7, 0, IF(OR('RFM input'!$E$293='RFM input'!$G$292,'RFM input'!$E$293='RFM input'!$G$293), -INDEX('RFM input'!O$299:O$348,MATCH($D128,'RFM input'!$E$299:$E$348,0),1), -SUM(O116:O127))) -> 0 | P128: =IF(COUNT($H128:O128)>='RFM input'!$V$7, 0, IF(OR('RFM input'!$E$293='RFM input'!$G$292,'RFM input'!$E$293='RFM input'!$G$293), -INDEX('RFM input'!P$299:P$348,MATCH($D128,'RFM input'!$E$299:$E$348,0),1), -SUM(P116:P127))) -> 0 | Q128: =IF(COUNT($H128:P128)>='RFM input'!$V$7, 0, IF(OR('RFM input'!$E$293='RFM input'!$G$292,'RFM input'!$E$293='RFM input'!$G$293), -INDEX('RFM input'!Q$299:Q$348,MATCH($D128,'RFM input'!$E$299:$E$348,0),1), -SUM(Q116:Q127))) -> 0
C129: =Asset6 -> Substation Bays | E129: Opening RAB | H129: =IF(H$3>A6remlife,A6value-SUM($G129:G129),IF(A6remlife="N/A","n/a",A6value/A6remlife)) -> n/a | I129: =IF(I$3>A6remlife,A6value-SUM($G129:H129),IF(A6remlife="N/A","n/a",A6value/A6remlife)) -> n/a | J129: =IF(J$3>A6remlife,A6value-SUM($G129:I129),IF(A6remlife="N/A","n/a",A6value/A6remlife)) -> n/a | K129: =IF(K$3>A6remlife,A6value-SUM($G129:J129),IF(A6remlife="N/A","n/a",A6value/A6remlife)) -> n/a | L129: =IF(L$3>A6remlife,A6value-SUM($G129:K129),IF(A6remlife="N/A","n/a",A6value/A6remlife)) -> n/a | M129: =IF(M$3>A6remlife,A6value-SUM($G129:L129),IF(A6remlife="N/A","n/a",A6value/A6remlife)) -> n/a | N129: =IF(N$3>A6remlife,A6value-SUM($G129:M129),IF(A6remlife="N/A","n/a",A6value/A6remlife)) -> n/a | O129: =IF(O$3>A6remlife,A6value-SUM($G129:N129),IF(A6remlife="N/A","n/a",A6value/A6remlife)) -> n/a | P129: =IF(P$3>A6remlife,A6value-SUM($G129:O129),IF(A6remlife="N/A","n/a",A6value/A6remlife)) -> n/a | Q129: =IF(Q$3>A6remlife,A6value-SUM($G129:P129),IF(A6remlife="N/A","n/a",A6value/A6remlife)) -> n/a
E130: Capex in year
F131: 1 | I131: =IF(A6stdlife="n/a","n/a",IF(I$3>(A6stdlife+$F131),('RFM input'!$H$228*(1+vanilla1)^0.5)-SUM($H131:H131),('RFM input'!$H$228*(1+vanilla1)^0.5)/A6stdlife)) -> 1.013659117 | J131: =IF(A6stdlife="n/a","n/a",IF(J$3>(A6stdlife+$F131),('RFM input'!$H$228*(1+vanilla1)^0.5)-SUM($H131:I131),('RFM input'!$H$228*(1+vanilla1)^0.5)/A6stdlife)) -> 1.013659117 | K131: =IF(A6stdlife="n/a","n/a",IF(K$3>(A6stdlife+$F131),('RFM input'!$H$228*(1+vanilla1)^0.5)-SUM($H131:J131),('RFM input'!$H$228*(1+vanilla1)^0.5)/A6stdlife)) -> 1.013659117 | L131: =IF(A6stdlife="n/a","n/a",IF(L$3>(A6stdlife+$F131),('RFM input'!$H$228*(1+vanilla1)^0.5)-SUM($H131:K131),('RFM input'!$H$228*(1+vanilla1)^0.5)/A6stdlife)) -> 1.013659117 | M131: =IF(A6stdlife="n/a","n/a",IF(M$3>(A6stdlife+$F131),('RFM input'!$H$228*(1+vanilla1)^0.5)-SUM($H131:L131),('RFM input'!$H$228*(1+vanilla1)^0.5)/A6stdlife)) -> 1.013659117 | N131: =IF(A6stdlife="n/a","n/a",IF(N$3>(A6stdlife+$F131),('RFM input'!$H$228*(1+vanilla1)^0.5)-SUM($H131:M131),('RFM input'!$H$228*(1+vanilla1)^0.5)/A6stdlife)) -> 1.013659117 | O131: =IF(A6stdlife="n/a","n/a",IF(O$3>(A6stdlife+$F131),('RFM input'!$H$228*(1+vanilla1)^0.5)-SUM($H131:N131),('RFM input'!$H$228*(1+vanilla1)^0.5)/A6stdlife)) -> 1.013659117 | P131: =IF(A6stdlife="n/a","n/a",IF(P$3>(A6stdlife+$F131),('RFM input'!$H$228*(1+vanilla1)^0.5)-SUM($H131:O131),('RFM input'!$H$228*(1+vanilla1)^0.5)/A6stdlife)) -> 1.013659117 | Q131: =IF(A6stdlife="n/a","n/a",IF(Q$3>(A6stdlife+$F131),('RFM input'!$H$228*(1+vanilla1)^0.5)-SUM($H131:P131),('RFM input'!$H$228*(1+vanilla1)^0.5)/A6stdlife)) -> 1.013659117
F132: 2 | J132: =IF(A6stdlife="n/a","n/a",IF(J$3>(A6stdlife+$F132),('RFM input'!$I$228*(1+vanilla2)^0.5)-SUM($I132:I132),('RFM input'!$I$228*(1+vanilla2)^0.5)/A6stdlife)) -> 1.365033039 | K132: =IF(A6stdlife="n/a","n/a",IF(K$3>(A6stdlife+$F132),('RFM input'!$I$228*(1+vanilla2)^0.5)-SUM($I132:J132),('RFM input'!$I$228*(1+vanilla2)^0.5)/A6stdlife)) -> 1.365033039 | L132: =IF(A6stdlife="n/a","n/a",IF(L$3>(A6stdlife+$F132),('RFM input'!$I$228*(1+vanilla2)^0.5)-SUM($I132:K132),('RFM input'!$I$228*(1+vanilla2)^0.5)/A6stdlife)) -> 1.365033039 | M132: =IF(A6stdlife="n/a","n/a",IF(M$3>(A6stdlife+$F132),('RFM input'!$I$228*(1+vanilla2)^0.5)-SUM($I132:L132),('RFM input'!$I$228*(1+vanilla2)^0.5)/A6stdlife)) -> 1.365033039 | N132: =IF(A6stdlife="n/a","n/a",IF(N$3>(A6stdlife+$F132),('RFM input'!$I$228*(1+vanilla2)^0.5)-SUM($I132:M132),('RFM input'!$I$228*(1+vanilla2)^0.5)/A6stdlife)) -> 1.365033039 | O132: =IF(A6stdlife="n/a","n/a",IF(O$3>(A6stdlife+$F132),('RFM input'!$I$228*(1+vanilla2)^0.5)-SUM($I132:N132),('RFM input'!$I$228*(1+vanilla2)^0.5)/A6stdlife)) -> 1.365033039 | P132: =IF(A6stdlife="n/a","n/a",IF(P$3>(A6stdlife+$F132),('RFM input'!$I$228*(1+vanilla2)^0.5)-SUM($I132:O132),('RFM input'!$I$228*(1+vanilla2)^0.5)/A6stdlife)) -> 1.365033039 | Q132: =IF(A6stdlife="n/a","n/a",IF(Q$3>(A6stdlife+$F132),('RFM input'!$I$228*(1+vanilla2)^0.5)-SUM($I132:P132),('RFM input'!$I$228*(1+vanilla2)^0.5)/A6stdlife)) -> 1.365033039
F133: 3 | K133: =IF(A6stdlife="n/a","n/a",IF(K$3>(A6stdlife+$F133),('RFM input'!$J$228*(1+vanilla3)^0.5)-SUM($J133:J133),('RFM input'!$J$228*(1+vanilla3)^0.5)/A6stdlife)) -> 1.591973964 | L133: =IF(A6stdlife="n/a","n/a",IF(L$3>(A6stdlife+$F133),('RFM input'!$J$228*(1+vanilla3)^0.5)-SUM($J133:K133),('RFM input'!$J$228*(1+vanilla3)^0.5)/A6stdlife)) -> 1.591973964 | M133: =IF(A6stdlife="n/a","n/a",IF(M$3>(A6stdlife+$F133),('RFM input'!$J$228*(1+vanilla3)^0.5)-SUM($J133:L133),('RFM input'!$J$228*(1+vanilla3)^0.5)/A6stdlife)) -> 1.591973964 | N133: =IF(A6stdlife="n/a","n/a",IF(N$3>(A6stdlife+$F133),('RFM input'!$J$228*(1+vanilla3)^0.5)-SUM($J133:M133),('RFM input'!$J$228*(1+vanilla3)^0.5)/A6stdlife)) -> 1.591973964 | O133: =IF(A6stdlife="n/a","n/a",IF(O$3>(A6stdlife+$F133),('RFM input'!$J$228*(1+vanilla3)^0.5)-SUM($J133:N133),('RFM input'!$J$228*(1+vanilla3)^0.5)/A6stdlife)) -> 1.591973964 | P133: =IF(A6stdlife="n/a","n/a",IF(P$3>(A6stdlife+$F133),('RFM input'!$J$228*(1+vanilla3)^0.5)-SUM($J133:O133),('RFM input'!$J$228*(1+vanilla3)^0.5)/A6stdlife)) -> 1.591973964 | Q133: =IF(A6stdlife="n/a","n/a",IF(Q$3>(A6stdlife+$F133),('RFM input'!$J$228*(1+vanilla3)^0.5)-SUM($J133:P133),('RFM input'!$J$228*(1+vanilla3)^0.5)/A6stdlife)) -> 1.591973964
F134: 4 | L134: =IF(A6stdlife="n/a","n/a",IF(L$3>(A6stdlife+$F134),('RFM input'!$K$228*(1+vanilla4)^0.5)-SUM($K134:K134),('RFM input'!$K$228*(1+vanilla4)^0.5)/A6stdlife)) -> 2.212834227 | M134: =IF(A6stdlife="n/a","n/a",IF(M$3>(A6stdlife+$F134),('RFM input'!$K$228*(1+vanilla4)^0.5)-SUM($K134:L134),('RFM input'!$K$228*(1+vanilla4)^0.5)/A6stdlife)) -> 2.212834227 | N134: =IF(A6stdlife="n/a","n/a",IF(N$3>(A6stdlife+$F134),('RFM input'!$K$228*(1+vanilla4)^0.5)-SUM($K134:M134),('RFM input'!$K$228*(1+vanilla4)^0.5)/A6stdlife)) -> 2.212834227 | O134: =IF(A6stdlife="n/a","n/a",IF(O$3>(A6stdlife+$F134),('RFM input'!$K$228*(1+vanilla4)^0.5)-SUM($K134:N134),('RFM input'!$K$228*(1+vanilla4)^0.5)/A6stdlife)) -> 2.212834227 | P134: =IF(A6stdlife="n/a","n/a",IF(P$3>(A6stdlife+$F134),('RFM input'!$K$228*(1+vanilla4)^0.5)-SUM($K134:O134),('RFM input'!$K$228*(1+vanilla4)^0.5)/A6stdlife)) -> 2.212834227 | Q134: =IF(A6stdlife="n/a","n/a",IF(Q$3>(A6stdlife+$F134),('RFM input'!$K$228*(1+vanilla4)^0.5)-SUM($K134:P134),('RFM input'!$K$228*(1+vanilla4)^0.5)/A6stdlife)) -> 2.212834227
F135: 5 | M135: =IF(A6stdlife="n/a","n/a",IF(M$3>(A6stdlife+$F135),('RFM input'!$L$228*(1+vanilla5)^0.5)-SUM($L135:L135),('RFM input'!$L$228*(1+vanilla5)^0.5)/A6stdlife)) -> 2.207327759 | N135: =IF(A6stdlife="n/a","n/a",IF(N$3>(A6stdlife+$F135),('RFM input'!$L$228*(1+vanilla5)^0.5)-SUM($L135:M135),('RFM input'!$L$228*(1+vanilla5)^0.5)/A6stdlife)) -> 2.207327759 | O135: =IF(A6stdlife="n/a","n/a",IF(O$3>(A6stdlife+$F135),('RFM input'!$L$228*(1+vanilla5)^0.5)-SUM($L135:N135),('RFM input'!$L$228*(1+vanilla5)^0.5)/A6stdlife)) -> 2.207327759 | P135: =IF(A6stdlife="n/a","n/a",IF(P$3>(A6stdlife+$F135),('RFM input'!$L$228*(1+vanilla5)^0.5)-SUM($L135:O135),('RFM input'!$L$228*(1+vanilla5)^0.5)/A6stdlife)) -> 2.207327759 | Q135: =IF(A6stdlife="n/a","n/a",IF(Q$3>(A6stdlife+$F135),('RFM input'!$L$228*(1+vanilla5)^0.5)-SUM($L135:P135),('RFM input'!$L$228*(1+vanilla5)^0.5)/A6stdlife)) -> 2.207327759
F136: 6 | N136: =IF(A6stdlife="n/a","n/a",IF(N$3>(A6stdlife+$F136),('RFM input'!$M$228*(1+vanilla6)^0.5)-SUM($M136:M136),('RFM input'!$M$228*(1+vanilla6)^0.5)/A6stdlife)) -> 0 | O136: =IF(A6stdlife="n/a","n/a",IF(O$3>(A6stdlife+$F136),('RFM input'!$M$228*(1+vanilla6)^0.5)-SUM($M136:N136),('RFM input'!$M$228*(1+vanilla6)^0.5)/A6stdlife)) -> 0 | P136: =IF(A6stdlife="n/a","n/a",IF(P$3>(A6stdlife+$F136),('RFM input'!$M$228*(1+vanilla6)^0.5)-SUM($M136:O136),('RFM input'!$M$228*(1+vanilla6)^0.5)/A6stdlife)) -> 0 | Q136: =IF(A6stdlife="n/a","n/a",IF(Q$3>(A6stdlife+$F136),('RFM input'!$M$228*(1+vanilla6)^0.5)-SUM($M136:P136),('RFM input'!$M$228*(1+vanilla6)^0.5)/A6stdlife)) -> 0
F137: 7 | O137: =IF(A6stdlife="n/a","n/a",IF(O$3>(A6stdlife+$F137),('RFM input'!$N$228*(1+vanilla7)^0.5)-SUM($N137:N137),('RFM input'!$N$228*(1+vanilla7)^0.5)/A6stdlife)) -> 0 | P137: =IF(A6stdlife="n/a","n/a",IF(P$3>(A6stdlife+$F137),('RFM input'!$N$228*(1+vanilla7)^0.5)-SUM($N137:O137),('RFM input'!$N$228*(1+vanilla7)^0.5)/A6stdlife)) -> 0 | Q137: =IF(A6stdlife="n/a","n/a",IF(Q$3>(A6stdlife+$F137),('RFM input'!$N$228*(1+vanilla7)^0.5)-SUM($N137:P137),('RFM input'!$N$228*(1+vanilla7)^0.5)/A6stdlife)) -> 0
F138: 8 | P138: =IF(A6stdlife="n/a","n/a",IF(P$3>(A6stdlife+$F138),('RFM input'!$O$228*(1+vanilla8)^0.5)-SUM($O138:O138),('RFM input'!$O$228*(1+vanilla8)^0.5)/A6stdlife)) -> 0 | Q138: =IF(A6stdlife="n/a","n/a",IF(Q$3>(A6stdlife+$F138),('RFM input'!$O$228*(1+vanilla8)^0.5)-SUM($O138:P138),('RFM input'!$O$228*(1+vanilla8)^0.5)/A6stdlife)) -> 0
F139: 9 | Q139: =IF(A6stdlife="n/a","n/a",IF(Q$3>(A6stdlife+$F139),('RFM input'!$P$228*(1+vanilla9)^0.5)-SUM($P139:P139),('RFM input'!$P$228*(1+vanilla9)^0.5)/A6stdlife)) -> 0
F140: 10
D141: =Asset6 -> Substation Bays | H141: =IF(OR('RFM input'!$E$293='RFM input'!$G$292,'RFM input'!$E$293='RFM input'!$G$293),-INDEX('RFM input'!H$299:H$348,MATCH($D141,'RFM input'!$E$299:$E$348,0),1),-SUM(H129:H140)) -> -46.85735346 | I141: =IF(OR('RFM input'!$E$293='RFM input'!$G$292,'RFM input'!$E$293='RFM input'!$G$293),-INDEX('RFM input'!I$299:I$348,MATCH($D141,'RFM input'!$E$299:$E$348,0),1),-SUM(I129:I140)) -> -47.8550191 | J141: =IF(COUNT($H141:I141)>='RFM input'!$V$7, 0, IF(OR('RFM input'!$E$293='RFM input'!$G$292,'RFM input'!$E$293='RFM input'!$G$293), -INDEX('RFM input'!J$299:J$348,MATCH($D141,'RFM input'!$E$299:$E$348,0),1), -SUM(J129:J140))) -> -48.86700496 | K141: =IF(COUNT($H141:J141)>='RFM input'!$V$7, 0, IF(OR('RFM input'!$E$293='RFM input'!$G$292,'RFM input'!$E$293='RFM input'!$G$293), -INDEX('RFM input'!K$299:K$348,MATCH($D141,'RFM input'!$E$299:$E$348,0),1), -SUM(K129:K140))) -> -49.90225784 | L141: =IF(COUNT($H141:K141)>='RFM input'!$V$7, 0, IF(OR('RFM input'!$E$293='RFM input'!$G$292,'RFM input'!$E$293='RFM input'!$G$293), -INDEX('RFM input'!L$299:L$348,MATCH($D141,'RFM input'!$E$299:$E$348,0),1), -SUM(L129:L140))) -> -50.9186333 | M141: =IF(COUNT($H141:L141)>='RFM input'!$V$7, 0, IF(OR('RFM input'!$E$293='RFM input'!$G$292,'RFM input'!$E$293='RFM input'!$G$293), -INDEX('RFM input'!M$299:M$348,MATCH($D141,'RFM input'!$E$299:$E$348,0),1), -SUM(M129:M140))) -> 0 | N141: =IF(COUNT($H141:M141)>='RFM input'!$V$7, 0, IF(OR('RFM input'!$E$293='RFM input'!$G$292,'RFM input'!$E$293='RFM input'!$G$293), -INDEX('RFM input'!N$299:N$348,MATCH($D141,'RFM input'!$E$299:$E$348,0),1), -SUM(N129:N140))) -> 0 | O141: =IF(COUNT($H141:N141)>='RFM input'!$V$7, 0, IF(OR('RFM input'!$E$293='RFM input'!$G$292,'RFM input'!$E$293='RFM input'!$G$293), -INDEX('RFM input'!O$299:O$348,MATCH($D141,'RFM input'!$E$299:$E$348,0),1), -SUM(O129:O140))) -> 0 | P141: =IF(COUNT($H141:O141)>='RFM input'!$V$7, 0, IF(OR('RFM input'!$E$293='RFM input'!$G$292,'RFM input'!$E$293='RFM input'!$G$293), -INDEX('RFM input'!P$299:P$348,MATCH($D141,'RFM input'!$E$299:$E$348,0),1), -SUM(P129:P140))) -> 0 | Q141: =IF(COUNT($H141:P141)>='RFM input'!$V$7, 0, IF(OR('RFM input'!$E$293='RFM input'!$G$292,'RFM input'!$E$293='RFM input'!$G$293), -INDEX('RFM input'!Q$299:Q$348,MATCH($D141,'RFM input'!$E$299:$E$348,0),1), -SUM(Q129:Q140))) -> 0
C142: =Asset7 -> Substation Establishment | E142: Opening RAB | H142: =IF(H$3>A7remlife,A7value-SUM($G142:G142),IF(A7remlife="N/A","n/a",A7value/A7remlife)) -> n/a | I142: =IF(I$3>A7remlife,A7value-SUM($G142:H142),IF(A7remlife="N/A","n/a",A7value/A7remlife)) -> n/a | J142: =IF(J$3>A7remlife,A7value-SUM($G142:I142),IF(A7remlife="N/A","n/a",A7value/A7remlife)) -> n/a | K142: =IF(K$3>A7remlife,A7value-SUM($G142:J142),IF(A7remlife="N/A","n/a",A7value/A7remlife)) -> n/a | L142: =IF(L$3>A7remlife,A7value-SUM($G142:K142),IF(A7remlife="N/A","n/a",A7value/A7remlife)) -> n/a | M142: =IF(M$3>A7remlife,A7value-SUM($G142:L142),IF(A7remlife="N/A","n/a",A7value/A7remlife)) -> n/a | N142: =IF(N$3>A7remlife,A7value-SUM($G142:M142),IF(A7remlife="N/A","n/a",A7value/A7remlife)) -> n/a | O142: =IF(O$3>A7remlife,A7value-SUM($G142:N142),IF(A7remlife="N/A","n/a",A7value/A7remlife)) -> n/a | P142: =IF(P$3>A7remlife,A7value-SUM($G142:O142),IF(A7remlife="N/A","n/a",A7value/A7remlife)) -> n/a | Q142: =IF(Q$3>A7remlife,A7value-SUM($G142:P142),IF(A7remlife="N/A","n/a",A7value/A7remlife)) -> n/a
E143: Capex in year
F144: 1 | I144: =IF(A7stdlife="n/a","n/a",IF(I$3>(A7stdlife+$F144),('RFM input'!$H$229*(1+vanilla1)^0.5)-SUM($H144:H144),('RFM input'!$H$229*(1+vanilla1)^0.5)/A7stdlife)) -> 0.1582713046 | J144: =IF(A7stdlife="n/a","n/a",IF(J$3>(A7stdlife+$F144),('RFM input'!$H$229*(1+vanilla1)^0.5)-SUM($H144:I144),('RFM input'!$H$229*(1+vanilla1)^0.5)/A7stdlife)) -> 0.1582713046 | K144: =IF(A7stdlife="n/a","n/a",IF(K$3>(A7stdlife+$F144),('RFM input'!$H$229*(1+vanilla1)^0.5)-SUM($H144:J144),('RFM input'!$H$229*(1+vanilla1)^0.5)/A7stdlife)) -> 0.1582713046 | L144: =IF(A7stdlife="n/a","n/a",IF(L$3>(A7stdlife+$F144),('RFM input'!$H$229*(1+vanilla1)^0.5)-SUM($H144:K144),('RFM input'!$H$229*(1+vanilla1)^0.5)/A7stdlife)) -> 0.1582713046 | M144: =IF(A7stdlife="n/a","n/a",IF(M$3>(A7stdlife+$F144),('RFM input'!$H$229*(1+vanilla1)^0.5)-SUM($H144:L144),('RFM input'!$H$229*(1+vanilla1)^0.5)/A7stdlife)) -> 0.1582713046 | N144: =IF(A7stdlife="n/a","n/a",IF(N$3>(A7stdlife+$F144),('RFM input'!$H$229*(1+vanilla1)^0.5)-SUM($H144:M144),('RFM input'!$H$229*(1+vanilla1)^0.5)/A7stdlife)) -> 0.1582713046 | O144: =IF(A7stdlife="n/a","n/a",IF(O$3>(A7stdlife+$F144),('RFM input'!$H$229*(1+vanilla1)^0.5)-SUM($H144:N144),('RFM input'!$H$229*(1+vanilla1)^0.5)/A7stdlife)) -> 0.1582713046 | P144: =IF(A7stdlife="n/a","n/a",IF(P$3>(A7stdlife+$F144),('RFM input'!$H$229*(1+vanilla1)^0.5)-SUM($H144:O144),('RFM input'!$H$229*(1+vanilla1)^0.5)/A7stdlife)) -> 0.1582713046 | Q144: =IF(A7stdlife="n/a","n/a",IF(Q$3>(A7stdlife+$F144),('RFM input'!$H$229*(1+vanilla1)^0.5)-SUM($H144:P144),('RFM input'!$H$229*(1+vanilla1)^0.5)/A7stdlife)) -> 0.1582713046
F145: 2 | J145: =IF(A7stdlife="n/a","n/a",IF(J$3>(A7stdlife+$F145),('RFM input'!$I$229*(1+vanilla2)^0.5)-SUM($I145:I145),('RFM input'!$I$229*(1+vanilla2)^0.5)/A7stdlife)) -> 0.1285872704 | K145: =IF(A7stdlife="n/a","n/a",IF(K$3>(A7stdlife+$F145),('RFM input'!$I$229*(1+vanilla2)^0.5)-SUM($I145:J145),('RFM input'!$I$229*(1+vanilla2)^0.5)/A7stdlife)) -> 0.1285872704 | L145: =IF(A7stdlife="n/a","n/a",IF(L$3>(A7stdlife+$F145),('RFM input'!$I$229*(1+vanilla2)^0.5)-SUM($I145:K145),('RFM input'!$I$229*(1+vanilla2)^0.5)/A7stdlife)) -> 0.1285872704 | M145: =IF(A7stdlife="n/a","n/a",IF(M$3>(A7stdlife+$F145),('RFM input'!$I$229*(1+vanilla2)^0.5)-SUM($I145:L145),('RFM input'!$I$229*(1+vanilla2)^0.5)/A7stdlife)) -> 0.1285872704 | N145: =IF(A7stdlife="n/a","n/a",IF(N$3>(A7stdlife+$F145),('RFM input'!$I$229*(1+vanilla2)^0.5)-SUM($I145:M145),('RFM input'!$I$229*(1+vanilla2)^0.5)/A7stdlife)) -> 0.1285872704 | O145: =IF(A7stdlife="n/a","n/a",IF(O$3>(A7stdlife+$F145),('RFM input'!$I$229*(1+vanilla2)^0.5)-SUM($I145:N145),('RFM input'!$I$229*(1+vanilla2)^0.5)/A7stdlife)) -> 0.1285872704 | P145: =IF(A7stdlife="n/a","n/a",IF(P$3>(A7stdlife+$F145),('RFM input'!$I$229*(1+vanilla2)^0.5)-SUM($I145:O145),('RFM input'!$I$229*(1+vanilla2)^0.5)/A7stdlife)) -> 0.1285872704 | Q145: =IF(A7stdlife="n/a","n/a",IF(Q$3>(A7stdlife+$F145),('RFM input'!$I$229*(1+vanilla2)^0.5)-SUM($I145:P145),('RFM input'!$I$229*(1+vanilla2)^0.5)/A7stdlife)) -> 0.1285872704
F146: 3 | K146: =IF(A7stdlife="n/a","n/a",IF(K$3>(A7stdlife+$F146),('RFM input'!$J$229*(1+vanilla3)^0.5)-SUM($J146:J146),('RFM input'!$J$229*(1+vanilla3)^0.5)/A7stdlife)) -> 0.03091083031 | L146: =IF(A7stdlife="n/a","n/a",IF(L$3>(A7stdlife+$F146),('RFM input'!$J$229*(1+vanilla3)^0.5)-SUM($J146:K146),('RFM input'!$J$229*(1+vanilla3)^0.5)/A7stdlife)) -> 0.03091083031 | M146: =IF(A7stdlife="n/a","n/a",IF(M$3>(A7stdlife+$F146),('RFM input'!$J$229*(1+vanilla3)^0.5)-SUM($J146:L146),('RFM input'!$J$229*(1+vanilla3)^0.5)/A7stdlife)) -> 0.03091083031 | N146: =IF(A7stdlife="n/a","n/a",IF(N$3>(A7stdlife+$F146),('RFM input'!$J$229*(1+vanilla3)^0.5)-SUM($J146:M146),('RFM input'!$J$229*(1+vanilla3)^0.5)/A7stdlife)) -> 0.03091083031 | O146: =IF(A7stdlife="n/a","n/a",IF(O$3>(A7stdlife+$F146),('RFM input'!$J$229*(1+vanilla3)^0.5)-SUM($J146:N146),('RFM input'!$J$229*(1+vanilla3)^0.5)/A7stdlife)) -> 0.03091083031 | P146: =IF(A7stdlife="n/a","n/a",IF(P$3>(A7stdlife+$F146),('RFM input'!$J$229*(1+vanilla3)^0.5)-SUM($J146:O146),('RFM input'!$J$229*(1+vanilla3)^0.5)/A7stdlife)) -> 0.03091083031 | Q146: =IF(A7stdlife="n/a","n/a",IF(Q$3>(A7stdlife+$F146),('RFM input'!$J$229*(1+vanilla3)^0.5)-SUM($J146:P146),('RFM input'!$J$229*(1+vanilla3)^0.5)/A7stdlife)) -> 0.03091083031
F147: 4 | L147: =IF(A7stdlife="n/a","n/a",IF(L$3>(A7stdlife+$F147),('RFM input'!$K$229*(1+vanilla4)^0.5)-SUM($K147:K147),('RFM input'!$K$229*(1+vanilla4)^0.5)/A7stdlife)) -> 0.1008485654 | M147: =IF(A7stdlife="n/a","n/a",IF(M$3>(A7stdlife+$F147),('RFM input'!$K$229*(1+vanilla4)^0.5)-SUM($K147:L147),('RFM input'!$K$229*(1+vanilla4)^0.5)/A7stdlife)) -> 0.1008485654 | N147: =IF(A7stdlife="n/a","n/a",IF(N$3>(A7stdlife+$F147),('RFM input'!$K$229*(1+vanilla4)^0.5)-SUM($K147:M147),('RFM input'!$K$229*(1+vanilla4)^0.5)/A7stdlife)) -> 0.1008485654 | O147: =IF(A7stdlife="n/a","n/a",IF(O$3>(A7stdlife+$F147),('RFM input'!$K$229*(1+vanilla4)^0.5)-SUM($K147:N147),('RFM input'!$K$229*(1+vanilla4)^0.5)/A7stdlife)) -> 0.1008485654 | P147: =IF(A7stdlife="n/a","n/a",IF(P$3>(A7stdlife+$F147),('RFM input'!$K$229*(1+vanilla4)^0.5)-SUM($K147:O147),('RFM input'!$K$229*(1+vanilla4)^0.5)/A7stdlife)) -> 0.1008485654 | Q147: =IF(A7stdlife="n/a","n/a",IF(Q$3>(A7stdlife+$F147),('RFM input'!$K$229*(1+vanilla4)^0.5)-SUM($K147:P147),('RFM input'!$K$229*(1+vanilla4)^0.5)/A7stdlife)) -> 0.1008485654
F148: 5 | M148: =IF(A7stdlife="n/a","n/a",IF(M$3>(A7stdlife+$F148),('RFM input'!$L$229*(1+vanilla5)^0.5)-SUM($L148:L148),('RFM input'!$L$229*(1+vanilla5)^0.5)/A7stdlife)) -> 0.1181299803 | N148: =IF(A7stdlife="n/a","n/a",IF(N$3>(A7stdlife+$F148),('RFM input'!$L$229*(1+vanilla5)^0.5)-SUM($L148:M148),('RFM input'!$L$229*(1+vanilla5)^0.5)/A7stdlife)) -> 0.1181299803 | O148: =IF(A7stdlife="n/a","n/a",IF(O$3>(A7stdlife+$F148),('RFM input'!$L$229*(1+vanilla5)^0.5)-SUM($L148:N148),('RFM input'!$L$229*(1+vanilla5)^0.5)/A7stdlife)) -> 0.1181299803 | P148: =IF(A7stdlife="n/a","n/a",IF(P$3>(A7stdlife+$F148),('RFM input'!$L$229*(1+vanilla5)^0.5)-SUM($L148:O148),('RFM input'!$L$229*(1+vanilla5)^0.5)/A7stdlife)) -> 0.1181299803 | Q148: =IF(A7stdlife="n/a","n/a",IF(Q$3>(A7stdlife+$F148),('RFM input'!$L$229*(1+vanilla5)^0.5)-SUM($L148:P148),('RFM input'!$L$229*(1+vanilla5)^0.5)/A7stdlife)) -> 0.1181299803
F149: 6 | N149: =IF(A7stdlife="n/a","n/a",IF(N$3>(A7stdlife+$F149),('RFM input'!$M$229*(1+vanilla6)^0.5)-SUM($M149:M149),('RFM input'!$M$229*(1+vanilla6)^0.5)/A7stdlife)) -> 0 | O149: =IF(A7stdlife="n/a","n/a",IF(O$3>(A7stdlife+$F149),('RFM input'!$M$229*(1+vanilla6)^0.5)-SUM($M149:N149),('RFM input'!$M$229*(1+vanilla6)^0.5)/A7stdlife)) -> 0 | P149: =IF(A7stdlife="n/a","n/a",IF(P$3>(A7stdlife+$F149),('RFM input'!$M$229*(1+vanilla6)^0.5)-SUM($M149:O149),('RFM input'!$M$229*(1+vanilla6)^0.5)/A7stdlife)) -> 0 | Q149: =IF(A7stdlife="n/a","n/a",IF(Q$3>(A7stdlife+$F149),('RFM input'!$M$229*(1+vanilla6)^0.5)-SUM($M149:P149),('RFM input'!$M$229*(1+vanilla6)^0.5)/A7stdlife)) -> 0
F150: 7 | O150: =IF(A7stdlife="n/a","n/a",IF(O$3>(A7stdlife+$F150),('RFM input'!$N$229*(1+vanilla7)^0.5)-SUM($N150:N150),('RFM input'!$N$229*(1+vanilla7)^0.5)/A7stdlife)) -> 0 | P150: =IF(A7stdlife="n/a","n/a",IF(P$3>(A7stdlife+$F150),('RFM input'!$N$229*(1+vanilla7)^0.5)-SUM($N150:O150),('RFM input'!$N$229*(1+vanilla7)^0.5)/A7stdlife)) -> 0 | Q150: =IF(A7stdlife="n/a","n/a",IF(Q$3>(A7stdlife+$F150),('RFM input'!$N$229*(1+vanilla7)^0.5)-SUM($N150:P150),('RFM input'!$N$229*(1+vanilla7)^0.5)/A7stdlife)) -> 0
F151: 8 | P151: =IF(A7stdlife="n/a","n/a",IF(P$3>(A7stdlife+$F151),('RFM input'!$O$229*(1+vanilla8)^0.5)-SUM($O151:O151),('RFM input'!$O$229*(1+vanilla8)^0.5)/A7stdlife)) -> 0 | Q151: =IF(A7stdlife="n/a","n/a",IF(Q$3>(A7stdlife+$F151),('RFM input'!$O$229*(1+vanilla8)^0.5)-SUM($O151:P151),('RFM input'!$O$229*(1+vanilla8)^0.5)/A7stdlife)) -> 0
F152: 9 | Q152: =IF(A7stdlife="n/a","n/a",IF(Q$3>(A7stdlife+$F152),('RFM input'!$P$229*(1+vanilla9)^0.5)-SUM($P152:P152),('RFM input'!$P$229*(1+vanilla9)^0.5)/A7stdlife)) -> 0
F153: 10
D154: =Asset7 -> Substation Establishment | H154: =IF(OR('RFM input'!$E$293='RFM input'!$G$292,'RFM input'!$E$293='RFM input'!$G$293),-INDEX('RFM input'!H$299:H$348,MATCH($D154,'RFM input'!$E$299:$E$348,0),1),-SUM(H142:H153)) -> -12.47420999 | I154: =IF(OR('RFM input'!$E$293='RFM input'!$G$292,'RFM input'!$E$293='RFM input'!$G$293),-INDEX('RFM input'!I$299:I$348,MATCH($D154,'RFM input'!$E$299:$E$348,0),1),-SUM(I142:I153)) -> -12.58661122 | J154: =IF(COUNT($H154:I154)>='RFM input'!$V$7, 0, IF(OR('RFM input'!$E$293='RFM input'!$G$292,'RFM input'!$E$293='RFM input'!$G$293), -INDEX('RFM input'!J$299:J$348,MATCH($D154,'RFM input'!$E$299:$E$348,0),1), -SUM(J142:J153))) -> -12.70062584 | K154: =IF(COUNT($H154:J154)>='RFM input'!$V$7, 0, IF(OR('RFM input'!$E$293='RFM input'!$G$292,'RFM input'!$E$293='RFM input'!$G$293), -INDEX('RFM input'!K$299:K$348,MATCH($D154,'RFM input'!$E$299:$E$348,0),1), -SUM(K142:K153))) -> -12.81726181 | L154: =IF(COUNT($H154:K154)>='RFM input'!$V$7, 0, IF(OR('RFM input'!$E$293='RFM input'!$G$292,'RFM input'!$E$293='RFM input'!$G$293), -INDEX('RFM input'!L$299:L$348,MATCH($D154,'RFM input'!$E$299:$E$348,0),1), -SUM(L142:L153))) -> -12.93177098 | M154: =IF(COUNT($H154:L154)>='RFM input'!$V$7, 0, IF(OR('RFM input'!$E$293='RFM input'!$G$292,'RFM input'!$E$293='RFM input'!$G$293), -INDEX('RFM input'!M$299:M$348,MATCH($D154,'RFM input'!$E$299:$E$348,0),1), -SUM(M142:M153))) -> 0 | N154: =IF(COUNT($H154:M154)>='RFM input'!$V$7, 0, IF(OR('RFM input'!$E$293='RFM input'!$G$292,'RFM input'!$E$293='RFM input'!$G$293), -INDEX('RFM input'!N$299:N$348,MATCH($D154,'RFM input'!$E$299:$E$348,0),1), -SUM(N142:N153))) -> 0 | O154: =IF(COUNT($H154:N154)>='RFM input'!$V$7, 0, IF(OR('RFM input'!$E$293='RFM input'!$G$292,'RFM input'!$E$293='RFM input'!$G$293), -INDEX('RFM input'!O$299:O$348,MATCH($D154,'RFM input'!$E$299:$E$348,0),1), -SUM(O142:O153))) -> 0 | P154: =IF(COUNT($H154:O154)>='RFM input'!$V$7, 0, IF(OR('RFM input'!$E$293='RFM input'!$G$292,'RFM input'!$E$293='RFM input'!$G$293), -INDEX('RFM input'!P$299:P$348,MATCH($D154,'RFM input'!$E$299:$E$348,0),1), -SUM(P142:P153))) -> 0 | Q154: =IF(COUNT($H154:P154)>='RFM input'!$V$7, 0, IF(OR('RFM input'!$E$293='RFM input'!$G$292,'RFM input'!$E$293='RFM input'!$G$293), -INDEX('RFM input'!Q$299:Q$348,MATCH($D154,'RFM input'!$E$299:$E$348,0),1), -SUM(Q142:Q153))) -> 0
C155: =Asset8 -> Distribution Substation Switchgear | E155: Opening RAB | H155: =IF(H$3>A8remlife,A8value-SUM($G155:G155),IF(A8remlife="N/A","n/a",A8value/A8remlife)) -> n/a | I155: =IF(I$3>A8remlife,A8value-SUM($G155:H155),IF(A8remlife="N/A","n/a",A8value/A8remlife)) -> n/a | J155: =IF(J$3>A8remlife,A8value-SUM($G155:I155),IF(A8remlife="N/A","n/a",A8value/A8remlife)) -> n/a | K155: =IF(K$3>A8remlife,A8value-SUM($G155:J155),IF(A8remlife="N/A","n/a",A8value/A8remlife)) -> n/a | L155: =IF(L$3>A8remlife,A8value-SUM($G155:K155),IF(A8remlife="N/A","n/a",A8value/A8remlife)) -> n/a | M155: =IF(M$3>A8remlife,A8value-SUM($G155:L155),IF(A8remlife="N/A","n/a",A8value/A8remlife)) -> n/a | N155: =IF(N$3>A8remlife,A8value-SUM($G155:M155),IF(A8remlife="N/A","n/a",A8value/A8remlife)) -> n/a | O155: =IF(O$3>A8remlife,A8value-SUM($G155:N155),IF(A8remlife="N/A","n/a",A8value/A8remlife)) -> n/a | P155: =IF(P$3>A8remlife,A8value-SUM($G155:O155),IF(A8remlife="N/A","n/a",A8value/A8remlife)) -> n/a | Q155: =IF(Q$3>A8remlife,A8value-SUM($G155:P155),IF(A8remlife="N/A","n/a",A8value/A8remlife)) -> n/a
E156: Capex in year
F157: 1 | I157: =IF(A8stdlife="n/a","n/a",IF(I$3>(A8stdlife+$F157),('RFM input'!$H$230*(1+vanilla1)^0.5)-SUM($H157:H157),('RFM input'!$H$230*(1+vanilla1)^0.5)/A8stdlife)) -> 0.3395578881 | J157: =IF(A8stdlife="n/a","n/a",IF(J$3>(A8stdlife+$F157),('RFM input'!$H$230*(1+vanilla1)^0.5)-SUM($H157:I157),('RFM input'!$H$230*(1+vanilla1)^0.5)/A8stdlife)) -> 0.3395578881 | K157: =IF(A8stdlife="n/a","n/a",IF(K$3>(A8stdlife+$F157),('RFM input'!$H$230*(1+vanilla1)^0.5)-SUM($H157:J157),('RFM input'!$H$230*(1+vanilla1)^0.5)/A8stdlife)) -> 0.3395578881 | L157: =IF(A8stdlife="n/a","n/a",IF(L$3>(A8stdlife+$F157),('RFM input'!$H$230*(1+vanilla1)^0.5)-SUM($H157:K157),('RFM input'!$H$230*(1+vanilla1)^0.5)/A8stdlife)) -> 0.3395578881 | M157: =IF(A8stdlife="n/a","n/a",IF(M$3>(A8stdlife+$F157),('RFM input'!$H$230*(1+vanilla1)^0.5)-SUM($H157:L157),('RFM input'!$H$230*(1+vanilla1)^0.5)/A8stdlife)) -> 0.3395578881 | N157: =IF(A8stdlife="n/a","n/a",IF(N$3>(A8stdlife+$F157),('RFM input'!$H$230*(1+vanilla1)^0.5)-SUM($H157:M157),('RFM input'!$H$230*(1+vanilla1)^0.5)/A8stdlife)) -> 0.3395578881 | O157: =IF(A8stdlife="n/a","n/a",IF(O$3>(A8stdlife+$F157),('RFM input'!$H$230*(1+vanilla1)^0.5)-SUM($H157:N157),('RFM input'!$H$230*(1+vanilla1)^0.5)/A8stdlife)) -> 0.3395578881 | P157: =IF(A8stdlife="n/a","n/a",IF(P$3>(A8stdlife+$F157),('RFM input'!$H$230*(1+vanilla1)^0.5)-SUM($H157:O157),('RFM input'!$H$230*(1+vanilla1)^0.5)/A8stdlife)) -> 0.3395578881 | Q157: =IF(A8stdlife="n/a","n/a",IF(Q$3>(A8stdlife+$F157),('RFM input'!$H$230*(1+vanilla1)^0.5)-SUM($H157:P157),('RFM input'!$H$230*(1+vanilla1)^0.5)/A8stdlife)) -> 0.3395578881
F158: 2 | J158: =IF(A8stdlife="n/a","n/a",IF(J$3>(A8stdlife+$F158),('RFM input'!$I$230*(1+vanilla2)^0.5)-SUM($I158:I158),('RFM input'!$I$230*(1+vanilla2)^0.5)/A8stdlife)) -> 0.4879889573 | K158: =IF(A8stdlife="n/a","n/a",IF(K$3>(A8stdlife+$F158),('RFM input'!$I$230*(1+vanilla2)^0.5)-SUM($I158:J158),('RFM input'!$I$230*(1+vanilla2)^0.5)/A8stdlife)) -> 0.4879889573 | L158: =IF(A8stdlife="n/a","n/a",IF(L$3>(A8stdlife+$F158),('RFM input'!$I$230*(1+vanilla2)^0.5)-SUM($I158:K158),('RFM input'!$I$230*(1+vanilla2)^0.5)/A8stdlife)) -> 0.4879889573 | M158: =IF(A8stdlife="n/a","n/a",IF(M$3>(A8stdlife+$F158),('RFM input'!$I$230*(1+vanilla2)^0.5)-SUM($I158:L158),('RFM input'!$I$230*(1+vanilla2)^0.5)/A8stdlife)) -> 0.4879889573 | N158: =IF(A8stdlife="n/a","n/a",IF(N$3>(A8stdlife+$F158),('RFM input'!$I$230*(1+vanilla2)^0.5)-SUM($I158:M158),('RFM input'!$I$230*(1+vanilla2)^0.5)/A8stdlife)) -> 0.4879889573 | O158: =IF(A8stdlife="n/a","n/a",IF(O$3>(A8stdlife+$F158),('RFM input'!$I$230*(1+vanilla2)^0.5)-SUM($I158:N158),('RFM input'!$I$230*(1+vanilla2)^0.5)/A8stdlife)) -> 0.4879889573 | P158: =IF(A8stdlife="n/a","n/a",IF(P$3>(A8stdlife+$F158),('RFM input'!$I$230*(1+vanilla2)^0.5)-SUM($I158:O158),('RFM input'!$I$230*(1+vanilla2)^0.5)/A8stdlife)) -> 0.4879889573 | Q158: =IF(A8stdlife="n/a","n/a",IF(Q$3>(A8stdlife+$F158),('RFM input'!$I$230*(1+vanilla2)^0.5)-SUM($I158:P158),('RFM input'!$I$230*(1+vanilla2)^0.5)/A8stdlife)) -> 0.4879889573
F159: 3 | K159: =IF(A8stdlife="n/a","n/a",IF(K$3>(A8stdlife+$F159),('RFM input'!$J$230*(1+vanilla3)^0.5)-SUM($J159:J159),('RFM input'!$J$230*(1+vanilla3)^0.5)/A8stdlife)) -> 0.5191022739 | L159: =IF(A8stdlife="n/a","n/a",IF(L$3>(A8stdlife+$F159),('RFM input'!$J$230*(1+vanilla3)^0.5)-SUM($J159:K159),('RFM input'!$J$230*(1+vanilla3)^0.5)/A8stdlife)) -> 0.5191022739 | M159: =IF(A8stdlife="n/a","n/a",IF(M$3>(A8stdlife+$F159),('RFM input'!$J$230*(1+vanilla3)^0.5)-SUM($J159:L159),('RFM input'!$J$230*(1+vanilla3)^0.5)/A8stdlife)) -> 0.5191022739 | N159: =IF(A8stdlife="n/a","n/a",IF(N$3>(A8stdlife+$F159),('RFM input'!$J$230*(1+vanilla3)^0.5)-SUM($J159:M159),('RFM input'!$J$230*(1+vanilla3)^0.5)/A8stdlife)) -> 0.5191022739 | O159: =IF(A8stdlife="n/a","n/a",IF(O$3>(A8stdlife+$F159),('RFM input'!$J$230*(1+vanilla3)^0.5)-SUM($J159:N159),('RFM input'!$J$230*(1+vanilla3)^0.5)/A8stdlife)) -> 0.5191022739 | P159: =IF(A8stdlife="n/a","n/a",IF(P$3>(A8stdlife+$F159),('RFM input'!$J$230*(1+vanilla3)^0.5)-SUM($J159:O159),('RFM input'!$J$230*(1+vanilla3)^0.5)/A8stdlife)) -> 0.5191022739 | Q159: =IF(A8stdlife="n/a","n/a",IF(Q$3>(A8stdlife+$F159),('RFM input'!$J$230*(1+vanilla3)^0.5)-SUM($J159:P159),('RFM input'!$J$230*(1+vanilla3)^0.5)/A8stdlife)) -> 0.5191022739
F160: 4 | L160: =IF(A8stdlife="n/a","n/a",IF(L$3>(A8stdlife+$F160),('RFM input'!$K$230*(1+vanilla4)^0.5)-SUM($K160:K160),('RFM input'!$K$230*(1+vanilla4)^0.5)/A8stdlife)) -> 0.5506846525 | M160: =IF(A8stdlife="n/a","n/a",IF(M$3>(A8stdlife+$F160),('RFM input'!$K$230*(1+vanilla4)^0.5)-SUM($K160:L160),('RFM input'!$K$230*(1+vanilla4)^0.5)/A8stdlife)) -> 0.5506846525 | N160: =IF(A8stdlife="n/a","n/a",IF(N$3>(A8stdlife+$F160),('RFM input'!$K$230*(1+vanilla4)^0.5)-SUM($K160:M160),('RFM input'!$K$230*(1+vanilla4)^0.5)/A8stdlife)) -> 0.5506846525 | O160: =IF(A8stdlife="n/a","n/a",IF(O$3>(A8stdlife+$F160),('RFM input'!$K$230*(1+vanilla4)^0.5)-SUM($K160:N160),('RFM input'!$K$230*(1+vanilla4)^0.5)/A8stdlife)) -> 0.5506846525 | P160: =IF(A8stdlife="n/a","n/a",IF(P$3>(A8stdlife+$F160),('RFM input'!$K$230*(1+vanilla4)^0.5)-SUM($K160:O160),('RFM input'!$K$230*(1+vanilla4)^0.5)/A8stdlife)) -> 0.5506846525 | Q160: =IF(A8stdlife="n/a","n/a",IF(Q$3>(A8stdlife+$F160),('RFM input'!$K$230*(1+vanilla4)^0.5)-SUM($K160:P160),('RFM input'!$K$230*(1+vanilla4)^0.5)/A8stdlife)) -> 0.5506846525
F161: 5 | M161: =IF(A8stdlife="n/a","n/a",IF(M$3>(A8stdlife+$F161),('RFM input'!$L$230*(1+vanilla5)^0.5)-SUM($L161:L161),('RFM input'!$L$230*(1+vanilla5)^0.5)/A8stdlife)) -> 0.7390191551 | N161: =IF(A8stdlife="n/a","n/a",IF(N$3>(A8stdlife+$F161),('RFM input'!$L$230*(1+vanilla5)^0.5)-SUM($L161:M161),('RFM input'!$L$230*(1+vanilla5)^0.5)/A8stdlife)) -> 0.7390191551 | O161: =IF(A8stdlife="n/a","n/a",IF(O$3>(A8stdlife+$F161),('RFM input'!$L$230*(1+vanilla5)^0.5)-SUM($L161:N161),('RFM input'!$L$230*(1+vanilla5)^0.5)/A8stdlife)) -> 0.7390191551 | P161: =IF(A8stdlife="n/a","n/a",IF(P$3>(A8stdlife+$F161),('RFM input'!$L$230*(1+vanilla5)^0.5)-SUM($L161:O161),('RFM input'!$L$230*(1+vanilla5)^0.5)/A8stdlife)) -> 0.7390191551 | Q161: =IF(A8stdlife="n/a","n/a",IF(Q$3>(A8stdlife+$F161),('RFM input'!$L$230*(1+vanilla5)^0.5)-SUM($L161:P161),('RFM input'!$L$230*(1+vanilla5)^0.5)/A8stdlife)) -> 0.7390191551
F162: 6 | N162: =IF(A8stdlife="n/a","n/a",IF(N$3>(A8stdlife+$F162),('RFM input'!$M$230*(1+vanilla6)^0.5)-SUM($M162:M162),('RFM input'!$M$230*(1+vanilla6)^0.5)/A8stdlife)) -> 0 | O162: =IF(A8stdlife="n/a","n/a",IF(O$3>(A8stdlife+$F162),('RFM input'!$M$230*(1+vanilla6)^0.5)-SUM($M162:N162),('RFM input'!$M$230*(1+vanilla6)^0.5)/A8stdlife)) -> 0 | P162: =IF(A8stdlife="n/a","n/a",IF(P$3>(A8stdlife+$F162),('RFM input'!$M$230*(1+vanilla6)^0.5)-SUM($M162:O162),('RFM input'!$M$230*(1+vanilla6)^0.5)/A8stdlife)) -> 0 | Q162: =IF(A8stdlife="n/a","n/a",IF(Q$3>(A8stdlife+$F162),('RFM input'!$M$230*(1+vanilla6)^0.5)-SUM($M162:P162),('RFM input'!$M$230*(1+vanilla6)^0.5)/A8stdlife)) -> 0
F163: 7 | O163: =IF(A8stdlife="n/a","n/a",IF(O$3>(A8stdlife+$F163),('RFM input'!$N$230*(1+vanilla7)^0.5)-SUM($N163:N163),('RFM input'!$N$230*(1+vanilla7)^0.5)/A8stdlife)) -> 0 | P163: =IF(A8stdlife="n/a","n/a",IF(P$3>(A8stdlife+$F163),('RFM input'!$N$230*(1+vanilla7)^0.5)-SUM($N163:O163),('RFM input'!$N$230*(1+vanilla7)^0.5)/A8stdlife)) -> 0 | Q163: =IF(A8stdlife="n/a","n/a",IF(Q$3>(A8stdlife+$F163),('RFM input'!$N$230*(1+vanilla7)^0.5)-SUM($N163:P163),('RFM input'!$N$230*(1+vanilla7)^0.5)/A8stdlife)) -> 0
F164: 8 | P164: =IF(A8stdlife="n/a","n/a",IF(P$3>(A8stdlife+$F164),('RFM input'!$O$230*(1+vanilla8)^0.5)-SUM($O164:O164),('RFM input'!$O$230*(1+vanilla8)^0.5)/A8stdlife)) -> 0 | Q164: =IF(A8stdlife="n/a","n/a",IF(Q$3>(A8stdlife+$F164),('RFM input'!$O$230*(1+vanilla8)^0.5)-SUM($O164:P164),('RFM input'!$O$230*(1+vanilla8)^0.5)/A8stdlife)) -> 0
F165: 9 | Q165: =IF(A8stdlife="n/a","n/a",IF(Q$3>(A8stdlife+$F165),('RFM input'!$P$230*(1+vanilla9)^0.5)-SUM($P165:P165),('RFM input'!$P$230*(1+vanilla9)^0.5)/A8stdlife)) -> 0
F166: 10
D167: =Asset8 -> Distribution Substation Switchgear | H167: =IF(OR('RFM input'!$E$293='RFM input'!$G$292,'RFM input'!$E$293='RFM input'!$G$293),-INDEX('RFM input'!H$299:H$348,MATCH($D167,'RFM input'!$E$299:$E$348,0),1),-SUM(H155:H166)) -> -14.20310837 | I167: =IF(OR('RFM input'!$E$293='RFM input'!$G$292,'RFM input'!$E$293='RFM input'!$G$293),-INDEX('RFM input'!I$299:I$348,MATCH($D167,'RFM input'!$E$299:$E$348,0),1),-SUM(I155:I166)) -> -14.85987905 | J167: =IF(COUNT($H167:I167)>='RFM input'!$V$7, 0, IF(OR('RFM input'!$E$293='RFM input'!$G$292,'RFM input'!$E$293='RFM input'!$G$293), -INDEX('RFM input'!J$299:J$348,MATCH($D167,'RFM input'!$E$299:$E$348,0),1), -SUM(J155:J166))) -> -15.52607683 | K167: =IF(COUNT($H167:J167)>='RFM input'!$V$7, 0, IF(OR('RFM input'!$E$293='RFM input'!$G$292,'RFM input'!$E$293='RFM input'!$G$293), -INDEX('RFM input'!K$299:K$348,MATCH($D167,'RFM input'!$E$299:$E$348,0),1), -SUM(K155:K166))) -> -16.20759146 | L167: =IF(COUNT($H167:K167)>='RFM input'!$V$7, 0, IF(OR('RFM input'!$E$293='RFM input'!$G$292,'RFM input'!$E$293='RFM input'!$G$293), -INDEX('RFM input'!L$299:L$348,MATCH($D167,'RFM input'!$E$299:$E$348,0),1), -SUM(L155:L166))) -> -16.87667895 | M167: =IF(COUNT($H167:L167)>='RFM input'!$V$7, 0, IF(OR('RFM input'!$E$293='RFM input'!$G$292,'RFM input'!$E$293='RFM input'!$G$293), -INDEX('RFM input'!M$299:M$348,MATCH($D167,'RFM input'!$E$299:$E$348,0),1), -SUM(M155:M166))) -> 0 | N167: =IF(COUNT($H167:M167)>='RFM input'!$V$7, 0, IF(OR('RFM input'!$E$293='RFM input'!$G$292,'RFM input'!$E$293='RFM input'!$G$293), -INDEX('RFM input'!N$299:N$348,MATCH($D167,'RFM input'!$E$299:$E$348,0),1), -SUM(N155:N166))) -> 0 | O167: =IF(COUNT($H167:N167)>='RFM input'!$V$7, 0, IF(OR('RFM input'!$E$293='RFM input'!$G$292,'RFM input'!$E$293='RFM input'!$G$293), -INDEX('RFM input'!O$299:O$348,MATCH($D167,'RFM input'!$E$299:$E$348,0),1), -SUM(O155:O166))) -> 0 | P167: =IF(COUNT($H167:O167)>='RFM input'!$V$7, 0, IF(OR('RFM input'!$E$293='RFM input'!$G$292,'RFM input'!$E$293='RFM input'!$G$293), -INDEX('RFM input'!P$299:P$348,MATCH($D167,'RFM input'!$E$299:$E$348,0),1), -SUM(P155:P166))) -> 0 | Q167: =IF(COUNT($H167:P167)>='RFM input'!$V$7, 0, IF(OR('RFM input'!$E$293='RFM input'!$G$292,'RFM input'!$E$293='RFM input'!$G$293), -INDEX('RFM input'!Q$299:Q$348,MATCH($D167,'RFM input'!$E$299:$E$348,0),1), -SUM(Q155:Q166))) -> 0
C168: =Asset9 -> Zone Transformers | E168: Opening RAB | H168: =IF(H$3>A9remlife,A9value-SUM($G168:G168),IF(A9remlife="N/A","n/a",A9value/A9remlife)) -> n/a | I168: =IF(I$3>A9remlife,A9value-SUM($G168:H168),IF(A9remlife="N/A","n/a",A9value/A9remlife)) -> n/a | J168: =IF(J$3>A9remlife,A9value-SUM($G168:I168),IF(A9remlife="N/A","n/a",A9value/A9remlife)) -> n/a | K168: =IF(K$3>A9remlife,A9value-SUM($G168:J168),IF(A9remlife="N/A","n/a",A9value/A9remlife)) -> n/a | L168: =IF(L$3>A9remlife,A9value-SUM($G168:K168),IF(A9remlife="N/A","n/a",A9value/A9remlife)) -> n/a | M168: =IF(M$3>A9remlife,A9value-SUM($G168:L168),IF(A9remlife="N/A","n/a",A9value/A9remlife)) -> n/a | N168: =IF(N$3>A9remlife,A9value-SUM($G168:M168),IF(A9remlife="N/A","n/a",A9value/A9remlife)) -> n/a | O168: =IF(O$3>A9remlife,A9value-SUM($G168:N168),IF(A9remlife="N/A","n/a",A9value/A9remlife)) -> n/a | P168: =IF(P$3>A9remlife,A9value-SUM($G168:O168),IF(A9remlife="N/A","n/a",A9value/A9remlife)) -> n/a | Q168: =IF(Q$3>A9remlife,A9value-SUM($G168:P168),IF(A9remlife="N/A","n/a",A9value/A9remlife)) -> n/a
E169: Capex in year
F170: 1 | I170: =IF(A9stdlife="n/a","n/a",IF(I$3>(A9stdlife+$F170),('RFM input'!$H$231*(1+vanilla1)^0.5)-SUM($H170:H170),('RFM input'!$H$231*(1+vanilla1)^0.5)/A9stdlife)) -> 0.03209347296 | J170: =IF(A9stdlife="n/a","n/a",IF(J$3>(A9stdlife+$F170),('RFM input'!$H$231*(1+vanilla1)^0.5)-SUM($H170:I170),('RFM input'!$H$231*(1+vanilla1)^0.5)/A9stdlife)) -> 0.03209347296 | K170: =IF(A9stdlife="n/a","n/a",IF(K$3>(A9stdlife+$F170),('RFM input'!$H$231*(1+vanilla1)^0.5)-SUM($H170:J170),('RFM input'!$H$231*(1+vanilla1)^0.5)/A9stdlife)) -> 0.03209347296 | L170: =IF(A9stdlife="n/a","n/a",IF(L$3>(A9stdlife+$F170),('RFM input'!$H$231*(1+vanilla1)^0.5)-SUM($H170:K170),('RFM input'!$H$231*(1+vanilla1)^0.5)/A9stdlife)) -> 0.03209347296 | M170: =IF(A9stdlife="n/a","n/a",IF(M$3>(A9stdlife+$F170),('RFM input'!$H$231*(1+vanilla1)^0.5)-SUM($H170:L170),('RFM input'!$H$231*(1+vanilla1)^0.5)/A9stdlife)) -> 0.03209347296 | N170: =IF(A9stdlife="n/a","n/a",IF(N$3>(A9stdlife+$F170),('RFM input'!$H$231*(1+vanilla1)^0.5)-SUM($H170:M170),('RFM input'!$H$231*(1+vanilla1)^0.5)/A9stdlife)) -> 0.03209347296 | O170: =IF(A9stdlife="n/a","n/a",IF(O$3>(A9stdlife+$F170),('RFM input'!$H$231*(1+vanilla1)^0.5)-SUM($H170:N170),('RFM input'!$H$231*(1+vanilla1)^0.5)/A9stdlife)) -> 0.03209347296 | P170: =IF(A9stdlife="n/a","n/a",IF(P$3>(A9stdlife+$F170),('RFM input'!$H$231*(1+vanilla1)^0.5)-SUM($H170:O170),('RFM input'!$H$231*(1+vanilla1)^0.5)/A9stdlife)) -> 0.03209347296 | Q170: =IF(A9stdlife="n/a","n/a",IF(Q$3>(A9stdlife+$F170),('RFM input'!$H$231*(1+vanilla1)^0.5)-SUM($H170:P170),('RFM input'!$H$231*(1+vanilla1)^0.5)/A9stdlife)) -> 0.03209347296
F171: 2 | J171: =IF(A9stdlife="n/a","n/a",IF(J$3>(A9stdlife+$F171),('RFM input'!$I$231*(1+vanilla2)^0.5)-SUM($I171:I171),('RFM input'!$I$231*(1+vanilla2)^0.5)/A9stdlife)) -> 0.1366692018 | K171: =IF(A9stdlife="n/a","n/a",IF(K$3>(A9stdlife+$F171),('RFM input'!$I$231*(1+vanilla2)^0.5)-SUM($I171:J171),('RFM input'!$I$231*(1+vanilla2)^0.5)/A9stdlife)) -> 0.1366692018 | L171: =IF(A9stdlife="n/a","n/a",IF(L$3>(A9stdlife+$F171),('RFM input'!$I$231*(1+vanilla2)^0.5)-SUM($I171:K171),('RFM input'!$I$231*(1+vanilla2)^0.5)/A9stdlife)) -> 0.1366692018 | M171: =IF(A9stdlife="n/a","n/a",IF(M$3>(A9stdlife+$F171),('RFM input'!$I$231*(1+vanilla2)^0.5)-SUM($I171:L171),('RFM input'!$I$231*(1+vanilla2)^0.5)/A9stdlife)) -> 0.1366692018 | N171: =IF(A9stdlife="n/a","n/a",IF(N$3>(A9stdlife+$F171),('RFM input'!$I$231*(1+vanilla2)^0.5)-SUM($I171:M171),('RFM input'!$I$231*(1+vanilla2)^0.5)/A9stdlife)) -> 0.1366692018 | O171: =IF(A9stdlife="n/a","n/a",IF(O$3>(A9stdlife+$F171),('RFM input'!$I$231*(1+vanilla2)^0.5)-SUM($I171:N171),('RFM input'!$I$231*(1+vanilla2)^0.5)/A9stdlife)) -> 0.1366692018 | P171: =IF(A9stdlife="n/a","n/a",IF(P$3>(A9stdlife+$F171),('RFM input'!$I$231*(1+vanilla2)^0.5)-SUM($I171:O171),('RFM input'!$I$231*(1+vanilla2)^0.5)/A9stdlife)) -> 0.1366692018 | Q171: =IF(A9stdlife="n/a","n/a",IF(Q$3>(A9stdlife+$F171),('RFM input'!$I$231*(1+vanilla2)^0.5)-SUM($I171:P171),('RFM input'!$I$231*(1+vanilla2)^0.5)/A9stdlife)) -> 0.1366692018
F172: 3 | K172: =IF(A9stdlife="n/a","n/a",IF(K$3>(A9stdlife+$F172),('RFM input'!$J$231*(1+vanilla3)^0.5)-SUM($J172:J172),('RFM input'!$J$231*(1+vanilla3)^0.5)/A9stdlife)) -> 0.04503865103 | L172: =IF(A9stdlife="n/a","n/a",IF(L$3>(A9stdlife+$F172),('RFM input'!$J$231*(1+vanilla3)^0.5)-SUM($J172:K172),('RFM input'!$J$231*(1+vanilla3)^0.5)/A9stdlife)) -> 0.04503865103 | M172: =IF(A9stdlife="n/a","n/a",IF(M$3>(A9stdlife+$F172),('RFM input'!$J$231*(1+vanilla3)^0.5)-SUM($J172:L172),('RFM input'!$J$231*(1+vanilla3)^0.5)/A9stdlife)) -> 0.04503865103 | N172: =IF(A9stdlife="n/a","n/a",IF(N$3>(A9stdlife+$F172),('RFM input'!$J$231*(1+vanilla3)^0.5)-SUM($J172:M172),('RFM input'!$J$231*(1+vanilla3)^0.5)/A9stdlife)) -> 0.04503865103 | O172: =IF(A9stdlife="n/a","n/a",IF(O$3>(A9stdlife+$F172),('RFM input'!$J$231*(1+vanilla3)^0.5)-SUM($J172:N172),('RFM input'!$J$231*(1+vanilla3)^0.5)/A9stdlife)) -> 0.04503865103 | P172: =IF(A9stdlife="n/a","n/a",IF(P$3>(A9stdlife+$F172),('RFM input'!$J$231*(1+vanilla3)^0.5)-SUM($J172:O172),('RFM input'!$J$231*(1+vanilla3)^0.5)/A9stdlife)) -> 0.04503865103 | Q172: =IF(A9stdlife="n/a","n/a",IF(Q$3>(A9stdlife+$F172),('RFM input'!$J$231*(1+vanilla3)^0.5)-SUM($J172:P172),('RFM input'!$J$231*(1+vanilla3)^0.5)/A9stdlife)) -> 0.04503865103
F173: 4 | L173: =IF(A9stdlife="n/a","n/a",IF(L$3>(A9stdlife+$F173),('RFM input'!$K$231*(1+vanilla4)^0.5)-SUM($K173:K173),('RFM input'!$K$231*(1+vanilla4)^0.5)/A9stdlife)) -> 0.01468092332 | M173: =IF(A9stdlife="n/a","n/a",IF(M$3>(A9stdlife+$F173),('RFM input'!$K$231*(1+vanilla4)^0.5)-SUM($K173:L173),('RFM input'!$K$231*(1+vanilla4)^0.5)/A9stdlife)) -> 0.01468092332 | N173: =IF(A9stdlife="n/a","n/a",IF(N$3>(A9stdlife+$F173),('RFM input'!$K$231*(1+vanilla4)^0.5)-SUM($K173:M173),('RFM input'!$K$231*(1+vanilla4)^0.5)/A9stdlife)) -> 0.01468092332 | O173: =IF(A9stdlife="n/a","n/a",IF(O$3>(A9stdlife+$F173),('RFM input'!$K$231*(1+vanilla4)^0.5)-SUM($K173:N173),('RFM input'!$K$231*(1+vanilla4)^0.5)/A9stdlife)) -> 0.01468092332 | P173: =IF(A9stdlife="n/a","n/a",IF(P$3>(A9stdlife+$F173),('RFM input'!$K$231*(1+vanilla4)^0.5)-SUM($K173:O173),('RFM input'!$K$231*(1+vanilla4)^0.5)/A9stdlife)) -> 0.01468092332 | Q173: =IF(A9stdlife="n/a","n/a",IF(Q$3>(A9stdlife+$F173),('RFM input'!$K$231*(1+vanilla4)^0.5)-SUM($K173:P173),('RFM input'!$K$231*(1+vanilla4)^0.5)/A9stdlife)) -> 0.01468092332
F174: 5 | M174: =IF(A9stdlife="n/a","n/a",IF(M$3>(A9stdlife+$F174),('RFM input'!$L$231*(1+vanilla5)^0.5)-SUM($L174:L174),('RFM input'!$L$231*(1+vanilla5)^0.5)/A9stdlife)) -> 0.1569278773 | N174: =IF(A9stdlife="n/a","n/a",IF(N$3>(A9stdlife+$F174),('RFM input'!$L$231*(1+vanilla5)^0.5)-SUM($L174:M174),('RFM input'!$L$231*(1+vanilla5)^0.5)/A9stdlife)) -> 0.1569278773 | O174: =IF(A9stdlife="n/a","n/a",IF(O$3>(A9stdlife+$F174),('RFM input'!$L$231*(1+vanilla5)^0.5)-SUM($L174:N174),('RFM input'!$L$231*(1+vanilla5)^0.5)/A9stdlife)) -> 0.1569278773 | P174: =IF(A9stdlife="n/a","n/a",IF(P$3>(A9stdlife+$F174),('RFM input'!$L$231*(1+vanilla5)^0.5)-SUM($L174:O174),('RFM input'!$L$231*(1+vanilla5)^0.5)/A9stdlife)) -> 0.1569278773 | Q174: =IF(A9stdlife="n/a","n/a",IF(Q$3>(A9stdlife+$F174),('RFM input'!$L$231*(1+vanilla5)^0.5)-SUM($L174:P174),('RFM input'!$L$231*(1+vanilla5)^0.5)/A9stdlife)) -> 0.1569278773
F175: 6 | N175: =IF(A9stdlife="n/a","n/a",IF(N$3>(A9stdlife+$F175),('RFM input'!$M$231*(1+vanilla6)^0.5)-SUM($M175:M175),('RFM input'!$M$231*(1+vanilla6)^0.5)/A9stdlife)) -> 0 | O175: =IF(A9stdlife="n/a","n/a",IF(O$3>(A9stdlife+$F175),('RFM input'!$M$231*(1+vanilla6)^0.5)-SUM($M175:N175),('RFM input'!$M$231*(1+vanilla6)^0.5)/A9stdlife)) -> 0 | P175: =IF(A9stdlife="n/a","n/a",IF(P$3>(A9stdlife+$F175),('RFM input'!$M$231*(1+vanilla6)^0.5)-SUM($M175:O175),('RFM input'!$M$231*(1+vanilla6)^0.5)/A9stdlife)) -> 0 | Q175: =IF(A9stdlife="n/a","n/a",IF(Q$3>(A9stdlife+$F175),('RFM input'!$M$231*(1+vanilla6)^0.5)-SUM($M175:P175),('RFM input'!$M$231*(1+vanilla6)^0.5)/A9stdlife)) -> 0
F176: 7 | O176: =IF(A9stdlife="n/a","n/a",IF(O$3>(A9stdlife+$F176),('RFM input'!$N$231*(1+vanilla7)^0.5)-SUM($N176:N176),('RFM input'!$N$231*(1+vanilla7)^0.5)/A9stdlife)) -> 0 | P176: =IF(A9stdlife="n/a","n/a",IF(P$3>(A9stdlife+$F176),('RFM input'!$N$231*(1+vanilla7)^0.5)-SUM($N176:O176),('RFM input'!$N$231*(1+vanilla7)^0.5)/A9stdlife)) -> 0 | Q176: =IF(A9stdlife="n/a","n/a",IF(Q$3>(A9stdlife+$F176),('RFM input'!$N$231*(1+vanilla7)^0.5)-SUM($N176:P176),('RFM input'!$N$231*(1+vanilla7)^0.5)/A9stdlife)) -> 0
F177: 8 | P177: =IF(A9stdlife="n/a","n/a",IF(P$3>(A9stdlife+$F177),('RFM input'!$O$231*(1+vanilla8)^0.5)-SUM($O177:O177),('RFM input'!$O$231*(1+vanilla8)^0.5)/A9stdlife)) -> 0 | Q177: =IF(A9stdlife="n/a","n/a",IF(Q$3>(A9stdlife+$F177),('RFM input'!$O$231*(1+vanilla8)^0.5)-SUM($O177:P177),('RFM input'!$O$231*(1+vanilla8)^0.5)/A9stdlife)) -> 0
F178: 9 | Q178: =IF(A9stdlife="n/a","n/a",IF(Q$3>(A9stdlife+$F178),('RFM input'!$P$231*(1+vanilla9)^0.5)-SUM($P178:P178),('RFM input'!$P$231*(1+vanilla9)^0.5)/A9stdlife)) -> 0
F179: 10
D180: =Asset9 -> Zone Transformers | H180: =IF(OR('RFM input'!$E$293='RFM input'!$G$292,'RFM input'!$E$293='RFM input'!$G$293),-INDEX('RFM input'!H$299:H$348,MATCH($D180,'RFM input'!$E$299:$E$348,0),1),-SUM(H168:H179)) -> -14.75589666 | I180: =IF(OR('RFM input'!$E$293='RFM input'!$G$292,'RFM input'!$E$293='RFM input'!$G$293),-INDEX('RFM input'!I$299:I$348,MATCH($D180,'RFM input'!$E$299:$E$348,0),1),-SUM(I168:I179)) -> -14.87400734 | J180: =IF(COUNT($H180:I180)>='RFM input'!$V$7, 0, IF(OR('RFM input'!$E$293='RFM input'!$G$292,'RFM input'!$E$293='RFM input'!$G$293), -INDEX('RFM input'!J$299:J$348,MATCH($D180,'RFM input'!$E$299:$E$348,0),1), -SUM(J168:J179))) -> -14.99381335 | K180: =IF(COUNT($H180:J180)>='RFM input'!$V$7, 0, IF(OR('RFM input'!$E$293='RFM input'!$G$292,'RFM input'!$E$293='RFM input'!$G$293), -INDEX('RFM input'!K$299:K$348,MATCH($D180,'RFM input'!$E$299:$E$348,0),1), -SUM(K168:K179))) -> -15.11637388 | L180: =IF(COUNT($H180:K180)>='RFM input'!$V$7, 0, IF(OR('RFM input'!$E$293='RFM input'!$G$292,'RFM input'!$E$293='RFM input'!$G$293), -INDEX('RFM input'!L$299:L$348,MATCH($D180,'RFM input'!$E$299:$E$348,0),1), -SUM(L168:L179))) -> -15.23669956 | M180: =IF(COUNT($H180:L180)>='RFM input'!$V$7, 0, IF(OR('RFM input'!$E$293='RFM input'!$G$292,'RFM input'!$E$293='RFM input'!$G$293), -INDEX('RFM input'!M$299:M$348,MATCH($D180,'RFM input'!$E$299:$E$348,0),1), -SUM(M168:M179))) -> 0 | N180: =IF(COUNT($H180:M180)>='RFM input'!$V$7, 0, IF(OR('RFM input'!$E$293='RFM input'!$G$292,'RFM input'!$E$293='RFM input'!$G$293), -INDEX('RFM input'!N$299:N$348,MATCH($D180,'RFM input'!$E$299:$E$348,0),1), -SUM(N168:N179))) -> 0 | O180: =IF(COUNT($H180:N180)>='RFM input'!$V$7, 0, IF(OR('RFM input'!$E$293='RFM input'!$G$292,'RFM input'!$E$293='RFM input'!$G$293), -INDEX('RFM input'!O$299:O$348,MATCH($D180,'RFM input'!$E$299:$E$348,0),1), -SUM(O168:O179))) -> 0 | P180: =IF(COUNT($H180:O180)>='RFM input'!$V$7, 0, IF(OR('RFM input'!$E$293='RFM input'!$G$292,'RFM input'!$E$293='RFM input'!$G$293), -INDEX('RFM input'!P$299:P$348,MATCH($D180,'RFM input'!$E$299:$E$348,0),1), -SUM(P168:P179))) -> 0 | Q180: =IF(COUNT($H180:P180)>='RFM input'!$V$7, 0, IF(OR('RFM input'!$E$293='RFM input'!$G$292,'RFM input'!$E$293='RFM input'!$G$293), -INDEX('RFM input'!Q$299:Q$348,MATCH($D180,'RFM input'!$E$299:$E$348,0),1), -SUM(Q168:Q179))) -> 0
C181: =Asset10 -> Distribution Transformers | E181: Opening RAB | H181: =IF(H$3>A10remlife,A10value-SUM($G181:G181),IF(A10remlife="N/A","n/a",A10value/A10remlife)) -> n/a | I181: =IF(I$3>A10remlife,A10value-SUM($G181:H181),IF(A10remlife="N/A","n/a",A10value/A10remlife)) -> n/a | J181: =IF(J$3>A10remlife,A10value-SUM($G181:I181),IF(A10remlife="N/A","n/a",A10value/A10remlife)) -> n/a | K181: =IF(K$3>A10remlife,A10value-SUM($G181:J181),IF(A10remlife="N/A","n/a",A10value/A10remlife)) -> n/a | L181: =IF(L$3>A10remlife,A10value-SUM($G181:K181),IF(A10remlife="N/A","n/a",A10value/A10remlife)) -> n/a | M181: =IF(M$3>A10remlife,A10value-SUM($G181:L181),IF(A10remlife="N/A","n/a",A10value/A10remlife)) -> n/a | N181: =IF(N$3>A10remlife,A10value-SUM($G181:M181),IF(A10remlife="N/A","n/a",A10value/A10remlife)) -> n/a | O181: =IF(O$3>A10remlife,A10value-SUM($G181:N181),IF(A10remlife="N/A","n/a",A10value/A10remlife)) -> n/a | P181: =IF(P$3>A10remlife,A10value-SUM($G181:O181),IF(A10remlife="N/A","n/a",A10value/A10remlife)) -> n/a | Q181: =IF(Q$3>A10remlife,A10value-SUM($G181:P181),IF(A10remlife="N/A","n/a",A10value/A10remlife)) -> n/a
E182: Capex in year
F183: 1 | I183: =IF(A10stdlife="n/a","n/a",IF(I$3>(A10stdlife+$F183),('RFM input'!$H$232*(1+vanilla1)^0.5)-SUM($H183:H183),('RFM input'!$H$232*(1+vanilla1)^0.5)/A10stdlife)) -> 1.440025155 | J183: =IF(A10stdlife="n/a","n/a",IF(J$3>(A10stdlife+$F183),('RFM input'!$H$232*(1+vanilla1)^0.5)-SUM($H183:I183),('RFM input'!$H$232*(1+vanilla1)^0.5)/A10stdlife)) -> 1.440025155 | K183: =IF(A10stdlife="n/a","n/a",IF(K$3>(A10stdlife+$F183),('RFM input'!$H$232*(1+vanilla1)^0.5)-SUM($H183:J183),('RFM input'!$H$232*(1+vanilla1)^0.5)/A10stdlife)) -> 1.440025155 | L183: =IF(A10stdlife="n/a","n/a",IF(L$3>(A10stdlife+$F183),('RFM input'!$H$232*(1+vanilla1)^0.5)-SUM($H183:K183),('RFM input'!$H$232*(1+vanilla1)^0.5)/A10stdlife)) -> 1.440025155 | M183: =IF(A10stdlife="n/a","n/a",IF(M$3>(A10stdlife+$F183),('RFM input'!$H$232*(1+vanilla1)^0.5)-SUM($H183:L183),('RFM input'!$H$232*(1+vanilla1)^0.5)/A10stdlife)) -> 1.440025155 | N183: =IF(A10stdlife="n/a","n/a",IF(N$3>(A10stdlife+$F183),('RFM input'!$H$232*(1+vanilla1)^0.5)-SUM($H183:M183),('RFM input'!$H$232*(1+vanilla1)^0.5)/A10stdlife)) -> 1.440025155 | O183: =IF(A10stdlife="n/a","n/a",IF(O$3>(A10stdlife+$F183),('RFM input'!$H$232*(1+vanilla1)^0.5)-SUM($H183:N183),('RFM input'!$H$232*(1+vanilla1)^0.5)/A10stdlife)) -> 1.440025155 | P183: =IF(A10stdlife="n/a","n/a",IF(P$3>(A10stdlife+$F183),('RFM input'!$H$232*(1+vanilla1)^0.5)-SUM($H183:O183),('RFM input'!$H$232*(1+vanilla1)^0.5)/A10stdlife)) -> 1.440025155 | Q183: =IF(A10stdlife="n/a","n/a",IF(Q$3>(A10stdlife+$F183),('RFM input'!$H$232*(1+vanilla1)^0.5)-SUM($H183:P183),('RFM input'!$H$232*(1+vanilla1)^0.5)/A10stdlife)) -> 1.440025155
F184: 2 | J184: =IF(A10stdlife="n/a","n/a",IF(J$3>(A10stdlife+$F184),('RFM input'!$I$232*(1+vanilla2)^0.5)-SUM($I184:I184),('RFM input'!$I$232*(1+vanilla2)^0.5)/A10stdlife)) -> 1.596145979 | K184: =IF(A10stdlife="n/a","n/a",IF(K$3>(A10stdlife+$F184),('RFM input'!$I$232*(1+vanilla2)^0.5)-SUM($I184:J184),('RFM input'!$I$232*(1+vanilla2)^0.5)/A10stdlife)) -> 1.596145979 | L184: =IF(A10stdlife="n/a","n/a",IF(L$3>(A10stdlife+$F184),('RFM input'!$I$232*(1+vanilla2)^0.5)-SUM($I184:K184),('RFM input'!$I$232*(1+vanilla2)^0.5)/A10stdlife)) -> 1.596145979 | M184: =IF(A10stdlife="n/a","n/a",IF(M$3>(A10stdlife+$F184),('RFM input'!$I$232*(1+vanilla2)^0.5)-SUM($I184:L184),('RFM input'!$I$232*(1+vanilla2)^0.5)/A10stdlife)) -> 1.596145979 | N184: =IF(A10stdlife="n/a","n/a",IF(N$3>(A10stdlife+$F184),('RFM input'!$I$232*(1+vanilla2)^0.5)-SUM($I184:M184),('RFM input'!$I$232*(1+vanilla2)^0.5)/A10stdlife)) -> 1.596145979 | O184: =IF(A10stdlife="n/a","n/a",IF(O$3>(A10stdlife+$F184),('RFM input'!$I$232*(1+vanilla2)^0.5)-SUM($I184:N184),('RFM input'!$I$232*(1+vanilla2)^0.5)/A10stdlife)) -> 1.596145979 | P184: =IF(A10stdlife="n/a","n/a",IF(P$3>(A10stdlife+$F184),('RFM input'!$I$232*(1+vanilla2)^0.5)-SUM($I184:O184),('RFM input'!$I$232*(1+vanilla2)^0.5)/A10stdlife)) -> 1.596145979 | Q184: =IF(A10stdlife="n/a","n/a",IF(Q$3>(A10stdlife+$F184),('RFM input'!$I$232*(1+vanilla2)^0.5)-SUM($I184:P184),('RFM input'!$I$232*(1+vanilla2)^0.5)/A10stdlife)) -> 1.596145979
F185: 3 | K185: =IF(A10stdlife="n/a","n/a",IF(K$3>(A10stdlife+$F185),('RFM input'!$J$232*(1+vanilla3)^0.5)-SUM($J185:J185),('RFM input'!$J$232*(1+vanilla3)^0.5)/A10stdlife)) -> 1.538963027 | L185: =IF(A10stdlife="n/a","n/a",IF(L$3>(A10stdlife+$F185),('RFM input'!$J$232*(1+vanilla3)^0.5)-SUM($J185:K185),('RFM input'!$J$232*(1+vanilla3)^0.5)/A10stdlife)) -> 1.538963027 | M185: =IF(A10stdlife="n/a","n/a",IF(M$3>(A10stdlife+$F185),('RFM input'!$J$232*(1+vanilla3)^0.5)-SUM($J185:L185),('RFM input'!$J$232*(1+vanilla3)^0.5)/A10stdlife)) -> 1.538963027 | N185: =IF(A10stdlife="n/a","n/a",IF(N$3>(A10stdlife+$F185),('RFM input'!$J$232*(1+vanilla3)^0.5)-SUM($J185:M185),('RFM input'!$J$232*(1+vanilla3)^0.5)/A10stdlife)) -> 1.538963027 | O185: =IF(A10stdlife="n/a","n/a",IF(O$3>(A10stdlife+$F185),('RFM input'!$J$232*(1+vanilla3)^0.5)-SUM($J185:N185),('RFM input'!$J$232*(1+vanilla3)^0.5)/A10stdlife)) -> 1.538963027 | P185: =IF(A10stdlife="n/a","n/a",IF(P$3>(A10stdlife+$F185),('RFM input'!$J$232*(1+vanilla3)^0.5)-SUM($J185:O185),('RFM input'!$J$232*(1+vanilla3)^0.5)/A10stdlife)) -> 1.538963027 | Q185: =IF(A10stdlife="n/a","n/a",IF(Q$3>(A10stdlife+$F185),('RFM input'!$J$232*(1+vanilla3)^0.5)-SUM($J185:P185),('RFM input'!$J$232*(1+vanilla3)^0.5)/A10stdlife)) -> 1.538963027
F186: 4 | L186: =IF(A10stdlife="n/a","n/a",IF(L$3>(A10stdlife+$F186),('RFM input'!$K$232*(1+vanilla4)^0.5)-SUM($K186:K186),('RFM input'!$K$232*(1+vanilla4)^0.5)/A10stdlife)) -> 2.299769791 | M186: =IF(A10stdlife="n/a","n/a",IF(M$3>(A10stdlife+$F186),('RFM input'!$K$232*(1+vanilla4)^0.5)-SUM($K186:L186),('RFM input'!$K$232*(1+vanilla4)^0.5)/A10stdlife)) -> 2.299769791 | N186: =IF(A10stdlife="n/a","n/a",IF(N$3>(A10stdlife+$F186),('RFM input'!$K$232*(1+vanilla4)^0.5)-SUM($K186:M186),('RFM input'!$K$232*(1+vanilla4)^0.5)/A10stdlife)) -> 2.299769791 | O186: =IF(A10stdlife="n/a","n/a",IF(O$3>(A10stdlife+$F186),('RFM input'!$K$232*(1+vanilla4)^0.5)-SUM($K186:N186),('RFM input'!$K$232*(1+vanilla4)^0.5)/A10stdlife)) -> 2.299769791 | P186: =IF(A10stdlife="n/a","n/a",IF(P$3>(A10stdlife+$F186),('RFM input'!$K$232*(1+vanilla4)^0.5)-SUM($K186:O186),('RFM input'!$K$232*(1+vanilla4)^0.5)/A10stdlife)) -> 2.299769791 | Q186: =IF(A10stdlife="n/a","n/a",IF(Q$3>(A10stdlife+$F186),('RFM input'!$K$232*(1+vanilla4)^0.5)-SUM($K186:P186),('RFM input'!$K$232*(1+vanilla4)^0.5)/A10stdlife)) -> 2.299769791
F187: 5 | M187: =IF(A10stdlife="n/a","n/a",IF(M$3>(A10stdlife+$F187),('RFM input'!$L$232*(1+vanilla5)^0.5)-SUM($L187:L187),('RFM input'!$L$232*(1+vanilla5)^0.5)/A10stdlife)) -> 2.41931898 | N187: =IF(A10stdlife="n/a","n/a",IF(N$3>(A10stdlife+$F187),('RFM input'!$L$232*(1+vanilla5)^0.5)-SUM($L187:M187),('RFM input'!$L$232*(1+vanilla5)^0.5)/A10stdlife)) -> 2.41931898 | O187: =IF(A10stdlife="n/a","n/a",IF(O$3>(A10stdlife+$F187),('RFM input'!$L$232*(1+vanilla5)^0.5)-SUM($L187:N187),('RFM input'!$L$232*(1+vanilla5)^0.5)/A10stdlife)) -> 2.41931898 | P187: =IF(A10stdlife="n/a","n/a",IF(P$3>(A10stdlife+$F187),('RFM input'!$L$232*(1+vanilla5)^0.5)-SUM($L187:O187),('RFM input'!$L$232*(1+vanilla5)^0.5)/A10stdlife)) -> 2.41931898 | Q187: =IF(A10stdlife="n/a","n/a",IF(Q$3>(A10stdlife+$F187),('RFM input'!$L$232*(1+vanilla5)^0.5)-SUM($L187:P187),('RFM input'!$L$232*(1+vanilla5)^0.5)/A10stdlife)) -> 2.41931898
F188: 6 | N188: =IF(A10stdlife="n/a","n/a",IF(N$3>(A10stdlife+$F188),('RFM input'!$M$232*(1+vanilla6)^0.5)-SUM($M188:M188),('RFM input'!$M$232*(1+vanilla6)^0.5)/A10stdlife)) -> 0 | O188: =IF(A10stdlife="n/a","n/a",IF(O$3>(A10stdlife+$F188),('RFM input'!$M$232*(1+vanilla6)^0.5)-SUM($M188:N188),('RFM input'!$M$232*(1+vanilla6)^0.5)/A10stdlife)) -> 0 | P188: =IF(A10stdlife="n/a","n/a",IF(P$3>(A10stdlife+$F188),('RFM input'!$M$232*(1+vanilla6)^0.5)-SUM($M188:O188),('RFM input'!$M$232*(1+vanilla6)^0.5)/A10stdlife)) -> 0 | Q188: =IF(A10stdlife="n/a","n/a",IF(Q$3>(A10stdlife+$F188),('RFM input'!$M$232*(1+vanilla6)^0.5)-SUM($M188:P188),('RFM input'!$M$232*(1+vanilla6)^0.5)/A10stdlife)) -> 0
F189: 7 | O189: =IF(A10stdlife="n/a","n/a",IF(O$3>(A10stdlife+$F189),('RFM input'!$N$232*(1+vanilla7)^0.5)-SUM($N189:N189),('RFM input'!$N$232*(1+vanilla7)^0.5)/A10stdlife)) -> 0 | P189: =IF(A10stdlife="n/a","n/a",IF(P$3>(A10stdlife+$F189),('RFM input'!$N$232*(1+vanilla7)^0.5)-SUM($N189:O189),('RFM input'!$N$232*(1+vanilla7)^0.5)/A10stdlife)) -> 0 | Q189: =IF(A10stdlife="n/a","n/a",IF(Q$3>(A10stdlife+$F189),('RFM input'!$N$232*(1+vanilla7)^0.5)-SUM($N189:P189),('RFM input'!$N$232*(1+vanilla7)^0.5)/A10stdlife)) -> 0
F190: 8 | P190: =IF(A10stdlife="n/a","n/a",IF(P$3>(A10stdlife+$F190),('RFM input'!$O$232*(1+vanilla8)^0.5)-SUM($O190:O190),('RFM input'!$O$232*(1+vanilla8)^0.5)/A10stdlife)) -> 0 | Q190: =IF(A10stdlife="n/a","n/a",IF(Q$3>(A10stdlife+$F190),('RFM input'!$O$232*(1+vanilla8)^0.5)-SUM($O190:P190),('RFM input'!$O$232*(1+vanilla8)^0.5)/A10stdlife)) -> 0
F191: 9 | Q191: =IF(A10stdlife="n/a","n/a",IF(Q$3>(A10stdlife+$F191),('RFM input'!$P$232*(1+vanilla9)^0.5)-SUM($P191:P191),('RFM input'!$P$232*(1+vanilla9)^0.5)/A10stdlife)) -> 0
F192: 10
D193: =Asset10 -> Distribution Transformers | H193: =IF(OR('RFM input'!$E$293='RFM input'!$G$292,'RFM input'!$E$293='RFM input'!$G$293),-INDEX('RFM input'!H$299:H$348,MATCH($D193,'RFM input'!$E$299:$E$348,0),1),-SUM(H181:H192)) -> -61.71580622 | I193: =IF(OR('RFM input'!$E$293='RFM input'!$G$292,'RFM input'!$E$293='RFM input'!$G$293),-INDEX('RFM input'!I$299:I$348,MATCH($D193,'RFM input'!$E$299:$E$348,0),1),-SUM(I181:I192)) -> -62.87074543 | J193: =IF(COUNT($H193:I193)>='RFM input'!$V$7, 0, IF(OR('RFM input'!$E$293='RFM input'!$G$292,'RFM input'!$E$293='RFM input'!$G$293), -INDEX('RFM input'!J$299:J$348,MATCH($D193,'RFM input'!$E$299:$E$348,0),1), -SUM(J181:J192))) -> -64.04226233 | K193: =IF(COUNT($H193:J193)>='RFM input'!$V$7, 0, IF(OR('RFM input'!$E$293='RFM input'!$G$292,'RFM input'!$E$293='RFM input'!$G$293), -INDEX('RFM input'!K$299:K$348,MATCH($D193,'RFM input'!$E$299:$E$348,0),1), -SUM(K181:K192))) -> -65.24071409 | L193: =IF(COUNT($H193:K193)>='RFM input'!$V$7, 0, IF(OR('RFM input'!$E$293='RFM input'!$G$292,'RFM input'!$E$293='RFM input'!$G$293), -INDEX('RFM input'!L$299:L$348,MATCH($D193,'RFM input'!$E$299:$E$348,0),1), -SUM(L181:L192))) -> -66.42169725 | M193: =IF(COUNT($H193:L193)>='RFM input'!$V$7, 0, IF(OR('RFM input'!$E$293='RFM input'!$G$292,'RFM input'!$E$293='RFM input'!$G$293), -INDEX('RFM input'!M$299:M$348,MATCH($D193,'RFM input'!$E$299:$E$348,0),1), -SUM(M181:M192))) -> 0 | N193: =IF(COUNT($H193:M193)>='RFM input'!$V$7, 0, IF(OR('RFM input'!$E$293='RFM input'!$G$292,'RFM input'!$E$293='RFM input'!$G$293), -INDEX('RFM input'!N$299:N$348,MATCH($D193,'RFM input'!$E$299:$E$348,0),1), -SUM(N181:N192))) -> 0 | O193: =IF(COUNT($H193:N193)>='RFM input'!$V$7, 0, IF(OR('RFM input'!$E$293='RFM input'!$G$292,'RFM input'!$E$293='RFM input'!$G$293), -INDEX('RFM input'!O$299:O$348,MATCH($D193,'RFM input'!$E$299:$E$348,0),1), -SUM(O181:O192))) -> 0 | P193: =IF(COUNT($H193:O193)>='RFM input'!$V$7, 0, IF(OR('RFM input'!$E$293='RFM input'!$G$292,'RFM input'!$E$293='RFM input'!$G$293), -INDEX('RFM input'!P$299:P$348,MATCH($D193,'RFM input'!$E$299:$E$348,0),1), -SUM(P181:P192))) -> 0 | Q193: =IF(COUNT($H193:P193)>='RFM input'!$V$7, 0, IF(OR('RFM input'!$E$293='RFM input'!$G$292,'RFM input'!$E$293='RFM input'!$G$293), -INDEX('RFM input'!Q$299:Q$348,MATCH($D193,'RFM input'!$E$299:$E$348,0),1), -SUM(Q181:Q192))) -> 0
C194: =Asset11 -> Low Voltage Services | E194: Opening RAB | H194: =IF(H$3>A11remlife,A11value-SUM($G194:G194),IF(A11remlife="N/A","n/a",A11value/A11remlife)) -> n/a | I194: =IF(I$3>A11remlife,A11value-SUM($G194:H194),IF(A11remlife="N/A","n/a",A11value/A11remlife)) -> n/a | J194: =IF(J$3>A11remlife,A11value-SUM($G194:I194),IF(A11remlife="N/A","n/a",A11value/A11remlife)) -> n/a | K194: =IF(K$3>A11remlife,A11value-SUM($G194:J194),IF(A11remlife="N/A","n/a",A11value/A11remlife)) -> n/a | L194: =IF(L$3>A11remlife,A11value-SUM($G194:K194),IF(A11remlife="N/A","n/a",A11value/A11remlife)) -> n/a | M194: =IF(M$3>A11remlife,A11value-SUM($G194:L194),IF(A11remlife="N/A","n/a",A11value/A11remlife)) -> n/a | N194: =IF(N$3>A11remlife,A11value-SUM($G194:M194),IF(A11remlife="N/A","n/a",A11value/A11remlife)) -> n/a | O194: =IF(O$3>A11remlife,A11value-SUM($G194:N194),IF(A11remlife="N/A","n/a",A11value/A11remlife)) -> n/a | P194: =IF(P$3>A11remlife,A11value-SUM($G194:O194),IF(A11remlife="N/A","n/a",A11value/A11remlife)) -> n/a | Q194: =IF(Q$3>A11remlife,A11value-SUM($G194:P194),IF(A11remlife="N/A","n/a",A11value/A11remlife)) -> n/a
E195: Capex in year
F196: 1 | I196: =IF(A11stdlife="n/a","n/a",IF(I$3>(A11stdlife+$F196),('RFM input'!$H$233*(1+vanilla1)^0.5)-SUM($H196:H196),('RFM input'!$H$233*(1+vanilla1)^0.5)/A11stdlife)) -> 1.069634614 | J196: =IF(A11stdlife="n/a","n/a",IF(J$3>(A11stdlife+$F196),('RFM input'!$H$233*(1+vanilla1)^0.5)-SUM($H196:I196),('RFM input'!$H$233*(1+vanilla1)^0.5)/A11stdlife)) -> 1.069634614 | K196: =IF(A11stdlife="n/a","n/a",IF(K$3>(A11stdlife+$F196),('RFM input'!$H$233*(1+vanilla1)^0.5)-SUM($H196:J196),('RFM input'!$H$233*(1+vanilla1)^0.5)/A11stdlife)) -> 1.069634614 | L196: =IF(A11stdlife="n/a","n/a",IF(L$3>(A11stdlife+$F196),('RFM input'!$H$233*(1+vanilla1)^0.5)-SUM($H196:K196),('RFM input'!$H$233*(1+vanilla1)^0.5)/A11stdlife)) -> 1.069634614 | M196: =IF(A11stdlife="n/a","n/a",IF(M$3>(A11stdlife+$F196),('RFM input'!$H$233*(1+vanilla1)^0.5)-SUM($H196:L196),('RFM input'!$H$233*(1+vanilla1)^0.5)/A11stdlife)) -> 1.069634614 | N196: =IF(A11stdlife="n/a","n/a",IF(N$3>(A11stdlife+$F196),('RFM input'!$H$233*(1+vanilla1)^0.5)-SUM($H196:M196),('RFM input'!$H$233*(1+vanilla1)^0.5)/A11stdlife)) -> 1.069634614 | O196: =IF(A11stdlife="n/a","n/a",IF(O$3>(A11stdlife+$F196),('RFM input'!$H$233*(1+vanilla1)^0.5)-SUM($H196:N196),('RFM input'!$H$233*(1+vanilla1)^0.5)/A11stdlife)) -> 1.069634614 | P196: =IF(A11stdlife="n/a","n/a",IF(P$3>(A11stdlife+$F196),('RFM input'!$H$233*(1+vanilla1)^0.5)-SUM($H196:O196),('RFM input'!$H$233*(1+vanilla1)^0.5)/A11stdlife)) -> 1.069634614 | Q196: =IF(A11stdlife="n/a","n/a",IF(Q$3>(A11stdlife+$F196),('RFM input'!$H$233*(1+vanilla1)^0.5)-SUM($H196:P196),('RFM input'!$H$233*(1+vanilla1)^0.5)/A11stdlife)) -> 1.069634614
F197: 2 | J197: =IF(A11stdlife="n/a","n/a",IF(J$3>(A11stdlife+$F197),('RFM input'!$I$233*(1+vanilla2)^0.5)-SUM($I197:I197),('RFM input'!$I$233*(1+vanilla2)^0.5)/A11stdlife)) -> 0.8256812951 | K197: =IF(A11stdlife="n/a","n/a",IF(K$3>(A11stdlife+$F197),('RFM input'!$I$233*(1+vanilla2)^0.5)-SUM($I197:J197),('RFM input'!$I$233*(1+vanilla2)^0.5)/A11stdlife)) -> 0.8256812951 | L197: =IF(A11stdlife="n/a","n/a",IF(L$3>(A11stdlife+$F197),('RFM input'!$I$233*(1+vanilla2)^0.5)-SUM($I197:K197),('RFM input'!$I$233*(1+vanilla2)^0.5)/A11stdlife)) -> 0.8256812951 | M197: =IF(A11stdlife="n/a","n/a",IF(M$3>(A11stdlife+$F197),('RFM input'!$I$233*(1+vanilla2)^0.5)-SUM($I197:L197),('RFM input'!$I$233*(1+vanilla2)^0.5)/A11stdlife)) -> 0.8256812951 | N197: =IF(A11stdlife="n/a","n/a",IF(N$3>(A11stdlife+$F197),('RFM input'!$I$233*(1+vanilla2)^0.5)-SUM($I197:M197),('RFM input'!$I$233*(1+vanilla2)^0.5)/A11stdlife)) -> 0.8256812951 | O197: =IF(A11stdlife="n/a","n/a",IF(O$3>(A11stdlife+$F197),('RFM input'!$I$233*(1+vanilla2)^0.5)-SUM($I197:N197),('RFM input'!$I$233*(1+vanilla2)^0.5)/A11stdlife)) -> 0.8256812951 | P197: =IF(A11stdlife="n/a","n/a",IF(P$3>(A11stdlife+$F197),('RFM input'!$I$233*(1+vanilla2)^0.5)-SUM($I197:O197),('RFM input'!$I$233*(1+vanilla2)^0.5)/A11stdlife)) -> 0.8256812951 | Q197: =IF(A11stdlife="n/a","n/a",IF(Q$3>(A11stdlife+$F197),('RFM input'!$I$233*(1+vanilla2)^0.5)-SUM($I197:P197),('RFM input'!$I$233*(1+vanilla2)^0.5)/A11stdlife)) -> 0.8256812951
F198: 3 | K198: =IF(A11stdlife="n/a","n/a",IF(K$3>(A11stdlife+$F198),('RFM input'!$J$233*(1+vanilla3)^0.5)-SUM($J198:J198),('RFM input'!$J$233*(1+vanilla3)^0.5)/A11stdlife)) -> 1.468585966 | L198: =IF(A11stdlife="n/a","n/a",IF(L$3>(A11stdlife+$F198),('RFM input'!$J$233*(1+vanilla3)^0.5)-SUM($J198:K198),('RFM input'!$J$233*(1+vanilla3)^0.5)/A11stdlife)) -> 1.468585966 | M198: =IF(A11stdlife="n/a","n/a",IF(M$3>(A11stdlife+$F198),('RFM input'!$J$233*(1+vanilla3)^0.5)-SUM($J198:L198),('RFM input'!$J$233*(1+vanilla3)^0.5)/A11stdlife)) -> 1.468585966 | N198: =IF(A11stdlife="n/a","n/a",IF(N$3>(A11stdlife+$F198),('RFM input'!$J$233*(1+vanilla3)^0.5)-SUM($J198:M198),('RFM input'!$J$233*(1+vanilla3)^0.5)/A11stdlife)) -> 1.468585966 | O198: =IF(A11stdlife="n/a","n/a",IF(O$3>(A11stdlife+$F198),('RFM input'!$J$233*(1+vanilla3)^0.5)-SUM($J198:N198),('RFM input'!$J$233*(1+vanilla3)^0.5)/A11stdlife)) -> 1.468585966 | P198: =IF(A11stdlife="n/a","n/a",IF(P$3>(A11stdlife+$F198),('RFM input'!$J$233*(1+vanilla3)^0.5)-SUM($J198:O198),('RFM input'!$J$233*(1+vanilla3)^0.5)/A11stdlife)) -> 1.468585966 | Q198: =IF(A11stdlife="n/a","n/a",IF(Q$3>(A11stdlife+$F198),('RFM input'!$J$233*(1+vanilla3)^0.5)-SUM($J198:P198),('RFM input'!$J$233*(1+vanilla3)^0.5)/A11stdlife)) -> 1.468585966
F199: 4 | L199: =IF(A11stdlife="n/a","n/a",IF(L$3>(A11stdlife+$F199),('RFM input'!$K$233*(1+vanilla4)^0.5)-SUM($K199:K199),('RFM input'!$K$233*(1+vanilla4)^0.5)/A11stdlife)) -> 1.46349603 | M199: =IF(A11stdlife="n/a","n/a",IF(M$3>(A11stdlife+$F199),('RFM input'!$K$233*(1+vanilla4)^0.5)-SUM($K199:L199),('RFM input'!$K$233*(1+vanilla4)^0.5)/A11stdlife)) -> 1.46349603 | N199: =IF(A11stdlife="n/a","n/a",IF(N$3>(A11stdlife+$F199),('RFM input'!$K$233*(1+vanilla4)^0.5)-SUM($K199:M199),('RFM input'!$K$233*(1+vanilla4)^0.5)/A11stdlife)) -> 1.46349603 | O199: =IF(A11stdlife="n/a","n/a",IF(O$3>(A11stdlife+$F199),('RFM input'!$K$233*(1+vanilla4)^0.5)-SUM($K199:N199),('RFM input'!$K$233*(1+vanilla4)^0.5)/A11stdlife)) -> 1.46349603 | P199: =IF(A11stdlife="n/a","n/a",IF(P$3>(A11stdlife+$F199),('RFM input'!$K$233*(1+vanilla4)^0.5)-SUM($K199:O199),('RFM input'!$K$233*(1+vanilla4)^0.5)/A11stdlife)) -> 1.46349603 | Q199: =IF(A11stdlife="n/a","n/a",IF(Q$3>(A11stdlife+$F199),('RFM input'!$K$233*(1+vanilla4)^0.5)-SUM($K199:P199),('RFM input'!$K$233*(1+vanilla4)^0.5)/A11stdlife)) -> 1.46349603
F200: 5 | M200: =IF(A11stdlife="n/a","n/a",IF(M$3>(A11stdlife+$F200),('RFM input'!$L$233*(1+vanilla5)^0.5)-SUM($L200:L200),('RFM input'!$K233*(1+vanilla5)^0.5)/A11stdlife)) -> 1.452350174 | N200: =IF(A11stdlife="n/a","n/a",IF(N$3>(A11stdlife+$F200),('RFM input'!$L$233*(1+vanilla5)^0.5)-SUM($L200:M200),('RFM input'!$K233*(1+vanilla5)^0.5)/A11stdlife)) -> 1.452350174 | O200: =IF(A11stdlife="n/a","n/a",IF(O$3>(A11stdlife+$F200),('RFM input'!$L$233*(1+vanilla5)^0.5)-SUM($L200:N200),('RFM input'!$K233*(1+vanilla5)^0.5)/A11stdlife)) -> 1.452350174 | P200: =IF(A11stdlife="n/a","n/a",IF(P$3>(A11stdlife+$F200),('RFM input'!$L$233*(1+vanilla5)^0.5)-SUM($L200:O200),('RFM input'!$K233*(1+vanilla5)^0.5)/A11stdlife)) -> 1.452350174 | Q200: =IF(A11stdlife="n/a","n/a",IF(Q$3>(A11stdlife+$F200),('RFM input'!$L$233*(1+vanilla5)^0.5)-SUM($L200:P200),('RFM input'!$K233*(1+vanilla5)^0.5)/A11stdlife)) -> 1.452350174
F201: 6 | N201: =IF(A11stdlife="n/a","n/a",IF(N$3>(A11stdlife+$F201),('RFM input'!$M$233*(1+vanilla6)^0.5)-SUM($M201:M201),('RFM input'!$M$233*(1+vanilla6)^0.5)/A11stdlife)) -> 0 | O201: =IF(A11stdlife="n/a","n/a",IF(O$3>(A11stdlife+$F201),('RFM input'!$M$233*(1+vanilla6)^0.5)-SUM($M201:N201),('RFM input'!$M$233*(1+vanilla6)^0.5)/A11stdlife)) -> 0 | P201: =IF(A11stdlife="n/a","n/a",IF(P$3>(A11stdlife+$F201),('RFM input'!$M$233*(1+vanilla6)^0.5)-SUM($M201:O201),('RFM input'!$M$233*(1+vanilla6)^0.5)/A11stdlife)) -> 0 | Q201: =IF(A11stdlife="n/a","n/a",IF(Q$3>(A11stdlife+$F201),('RFM input'!$M$233*(1+vanilla6)^0.5)-SUM($M201:P201),('RFM input'!$M$233*(1+vanilla6)^0.5)/A11stdlife)) -> 0
F202: 7 | O202: =IF(A11stdlife="n/a","n/a",IF(O$3>(A11stdlife+$F202),('RFM input'!$N$233*(1+vanilla7)^0.5)-SUM($N202:N202),('RFM input'!$N$233*(1+vanilla7)^0.5)/A11stdlife)) -> 0 | P202: =IF(A11stdlife="n/a","n/a",IF(P$3>(A11stdlife+$F202),('RFM input'!$N$233*(1+vanilla7)^0.5)-SUM($N202:O202),('RFM input'!$N$233*(1+vanilla7)^0.5)/A11stdlife)) -> 0 | Q202: =IF(A11stdlife="n/a","n/a",IF(Q$3>(A11stdlife+$F202),('RFM input'!$N$233*(1+vanilla7)^0.5)-SUM($N202:P202),('RFM input'!$N$233*(1+vanilla7)^0.5)/A11stdlife)) -> 0
F203: 8 | P203: =IF(A11stdlife="n/a","n/a",IF(P$3>(A11stdlife+$F203),('RFM input'!$O$233*(1+vanilla8)^0.5)-SUM($O203:O203),('RFM input'!$O$233*(1+vanilla8)^0.5)/A11stdlife)) -> 0 | Q203: =IF(A11stdlife="n/a","n/a",IF(Q$3>(A11stdlife+$F203),('RFM input'!$O$233*(1+vanilla8)^0.5)-SUM($O203:P203),('RFM input'!$O$233*(1+vanilla8)^0.5)/A11stdlife)) -> 0
F204: 9 | Q204: =IF(A11stdlife="n/a","n/a",IF(Q$3>(A11stdlife+$F204),('RFM input'!$P$233*(1+vanilla9)^0.5)-SUM($P204:P204),('RFM input'!$P$233*(1+vanilla9)^0.5)/A11stdlife)) -> 0
F205: 10
... 917 more rows

Sheet Total RAB roll forward
C2: ='DMS input'!$C$16&" - Total Asset Roll Forward"&" - DNSP RFM - version "&Intro!$M$4 -> Ergon Energy - Total Asset Roll Forward - DNSP RFM - version 3
G3: 0 | H3: =G3+1 -> 1 | I3: 2 | J3: 3 | K3: 4 | L3: 5 | M3: 6
C4: Year | G4: ='RFM input'!G60 -> 2019-20 | H4: ='RFM input'!H60 -> 2020-21 | I4: ='RFM input'!I60 -> 2021-22 | J4: ='RFM input'!J60 -> 2022-23 | K4: ='RFM input'!K60 -> 2023-24 | L4: ='RFM input'!L60 -> 2024-25 | M4: ='RFM input'!M60 -> 2025-26 | N4: ='RFM input'!N60 -> 2026-27 | O4: ='RFM input'!O60 -> 2027-28 | P4: ='RFM input'!P60 -> 2028-29 | Q4: ='RFM input'!Q60 -> 2029-30
C5: Asset Values ($m Nominal)
C7: Nominal Opening Regulatory Asset Base | G7: =SUM(G8:G57) -> 11141.82262 | H7: =SUM(H8:H57) -> 11533.83533 | I7: 11755.13989 | J7: 12308.08398 | K7: 13549.3112 | L7: 14624.76116 | M7: 0 | N7: 0 | O7: 0 | P7: 0 | Q7: 0
D8: =Asset1 -> Overhead Sub-Transmission Lines | G8: ='RAB roll forward'!G718 -> 1167.678512 | H8: =G8+G60+G112+G164+G216+G268 -> 1168.010325 | I8: =H8+H60+H112 -> 1174.446115 | J8: =IF(COUNT($H8:I8)>='RFM input'!$V$7,0,I8+I60+I112) -> 1227.625404 | K8: =IF(COUNT($H8:J8)>='RFM input'!$V$7,0,J8+J60+J112) -> 1372.570723 | L8: =IF(COUNT($H8:K8)>='RFM input'!$V$7,0,K8+K60+K112) -> 1448.875667 | M8: =IF(COUNT($H8:L8)>='RFM input'!$V$7,0,L8+L60+L112) -> 0 | N8: =IF(COUNT($H8:M8)>='RFM input'!$V$7,0,M8+M60+M112) -> 0 | O8: =IF(COUNT($H8:N8)>='RFM input'!$V$7,0,N8+N60+N112) -> 0 | P8: =IF(COUNT($H8:O8)>='RFM input'!$V$7,0,O8+O60+O112) -> 0 | Q8: =IF(COUNT($H8:P8)>='RFM input'!$V$7,0,P8+P60+P112) -> 0
D9: =Asset2 -> Underground Sub-Transmission Cables | G9: ='RAB roll forward'!G719 -> 40.77889059 | H9: 65.7688694 | I9: 64.0785399 | J9: =IF(COUNT($H9:I9)>='RFM input'!$V$7,0,I9+I61+I113) -> 64.54344434 | K9: =IF(COUNT($H9:J9)>='RFM input'!$V$7,0,J9+J61+J113) -> 67.37553807 | L9: =IF(COUNT($H9:K9)>='RFM input'!$V$7,0,K9+K61+K113) -> 67.40650279 | M9: =IF(COUNT($H9:L9)>='RFM input'!$V$7,0,L9+L61+L113) -> 0 | N9: =IF(COUNT($H9:M9)>='RFM input'!$V$7,0,M9+M61+M113) -> 0 | O9: =IF(COUNT($H9:N9)>='RFM input'!$V$7,0,N9+N61+N113) -> 0 | P9: =IF(COUNT($H9:O9)>='RFM input'!$V$7,0,O9+O61+O113) -> 0 | Q9: =IF(COUNT($H9:P9)>='RFM input'!$V$7,0,P9+P61+P113) -> 0
D10: =Asset3 -> Overhead Distribution Lines | G10: ='RAB roll forward'!G720 -> 3956.259417 | H10: 4082.615891 | I10: 4228.402773 | J10: =IF(COUNT($H10:I10)>='RFM input'!$V$7,0,I10+I62+I114) -> 4487.777392 | K10: =IF(COUNT($H10:J10)>='RFM input'!$V$7,0,J10+J62+J114) -> 5017.035077 | L10: =IF(COUNT($H10:K10)>='RFM input'!$V$7,0,K10+K62+K114) -> 5529.946537 | M10: =IF(COUNT($H10:L10)>='RFM input'!$V$7,0,L10+L62+L114) -> 0 | N10: =IF(COUNT($H10:M10)>='RFM input'!$V$7,0,M10+M62+M114) -> 0 | O10: =IF(COUNT($H10:N10)>='RFM input'!$V$7,0,N10+N62+N114) -> 0 | P10: =IF(COUNT($H10:O10)>='RFM input'!$V$7,0,O10+O62+O114) -> 0 | Q10: =IF(COUNT($H10:P10)>='RFM input'!$V$7,0,P10+P62+P114) -> 0
D11: =Asset4 -> Underground Distribution Cables | G11: ='RAB roll forward'!G721 -> 982.7111658 | H11: 983.4349287 | I11: 983.7251348 | J11: =IF(COUNT($H11:I11)>='RFM input'!$V$7,0,I11+I63+I115) -> 1008.473809 | K11: =IF(COUNT($H11:J11)>='RFM input'!$V$7,0,J11+J63+J115) -> 1078.019143 | L11: =IF(COUNT($H11:K11)>='RFM input'!$V$7,0,K11+K63+K115) -> 1116.602669 | M11: =IF(COUNT($H11:L11)>='RFM input'!$V$7,0,L11+L63+L115) -> 0 | N11: =IF(COUNT($H11:M11)>='RFM input'!$V$7,0,M11+M63+M115) -> 0 | O11: =IF(COUNT($H11:N11)>='RFM input'!$V$7,0,N11+N63+N115) -> 0 | P11: =IF(COUNT($H11:O11)>='RFM input'!$V$7,0,O11+O63+O115) -> 0 | Q11: =IF(COUNT($H11:P11)>='RFM input'!$V$7,0,P11+P63+P115) -> 0
D12: =Asset5 -> Distribution Equipment | G12: ='RAB roll forward'!G722 -> 88.15158162 | H12: 28.8081155 | I12: 26.67626837 | J12: =IF(COUNT($H12:I12)>='RFM input'!$V$7,0,I12+I64+I116) -> 25.17780374 | K12: =IF(COUNT($H12:J12)>='RFM input'!$V$7,0,J12+J64+J116) -> 24.42628823 | L12: =IF(COUNT($H12:K12)>='RFM input'!$V$7,0,K12+K64+K116) -> 22.43037618 | M12: =IF(COUNT($H12:L12)>='RFM input'!$V$7,0,L12+L64+L116) -> 0 | N12: =IF(COUNT($H12:M12)>='RFM input'!$V$7,0,M12+M64+M116) -> 0 | O12: =IF(COUNT($H12:N12)>='RFM input'!$V$7,0,N12+N64+N116) -> 0 | P12: =IF(COUNT($H12:O12)>='RFM input'!$V$7,0,O12+O64+O116) -> 0 | Q12: =IF(COUNT($H12:P12)>='RFM input'!$V$7,0,P12+P64+P116) -> 0
D13: =Asset6 -> Substation Bays | G13: ='RAB roll forward'!G723 -> 1283.475401 | H13: 1323.981534 | I13: 1334.109958 | J13: =IF(COUNT($H13:I13)>='RFM input'!$V$7,0,I13+I65+I117) -> 1394.721233 | K13: =IF(COUNT($H13:J13)>='RFM input'!$V$7,0,J13+J65+J117) -> 1528.1621 | L13: =IF(COUNT($H13:K13)>='RFM input'!$V$7,0,K13+K65+K117) -> 1647.028939 | M13: =IF(COUNT($H13:L13)>='RFM input'!$V$7,0,L13+L65+L117) -> 0 | N13: =IF(COUNT($H13:M13)>='RFM input'!$V$7,0,M13+M65+M117) -> 0 | O13: =IF(COUNT($H13:N13)>='RFM input'!$V$7,0,N13+N65+N117) -> 0 | P13: =IF(COUNT($H13:O13)>='RFM input'!$V$7,0,O13+O65+O117) -> 0 | Q13: =IF(COUNT($H13:P13)>='RFM input'!$V$7,0,P13+P65+P117) -> 0
D14: =Asset7 -> Substation Establishment | G14: ='RAB roll forward'!G724 -> 329.1254178 | H14: 332.0935564 | I14: 331.9187641 | J14: =IF(COUNT($H14:I14)>='RFM input'!$V$7,0,I14+I66+I118) -> 338.5265306 | K14: =IF(COUNT($H14:J14)>='RFM input'!$V$7,0,J14+J66+J118) -> 353.508941 | L14: =IF(COUNT($H14:K14)>='RFM input'!$V$7,0,K14+K66+K118) -> 360.0763903 | M14: =IF(COUNT($H14:L14)>='RFM input'!$V$7,0,L14+L66+L118) -> 0 | N14: =IF(COUNT($H14:M14)>='RFM input'!$V$7,0,M14+M66+M118) -> 0 | O14: =IF(COUNT($H14:N14)>='RFM input'!$V$7,0,N14+N66+N118) -> 0 | P14: =IF(COUNT($H14:O14)>='RFM input'!$V$7,0,O14+O66+O118) -> 0 | Q14: =IF(COUNT($H14:P14)>='RFM input'!$V$7,0,P14+P66+P118) -> 0
D15: =Asset8 -> Distribution Substation Switchgear | G15: ='RAB roll forward'!G725 -> 391.8551268 | H15: 505.9856683 | I15: 511.4369247 | J15: =IF(COUNT($H15:I15)>='RFM input'!$V$7,0,I15+I67+I119) -> 536.6210042 | K15: =IF(COUNT($H15:J15)>='RFM input'!$V$7,0,J15+J67+J119) -> 586.9760466 | L15: =IF(COUNT($H15:K15)>='RFM input'!$V$7,0,K15+K67+K119) -> 620.5882626 | M15: =IF(COUNT($H15:L15)>='RFM input'!$V$7,0,L15+L67+L119) -> 0 | N15: =IF(COUNT($H15:M15)>='RFM input'!$V$7,0,M15+M67+M119) -> 0 | O15: =IF(COUNT($H15:N15)>='RFM input'!$V$7,0,N15+N67+N119) -> 0 | P15: =IF(COUNT($H15:O15)>='RFM input'!$V$7,0,O15+O67+O119) -> 0 | Q15: =IF(COUNT($H15:P15)>='RFM input'!$V$7,0,P15+P67+P119) -> 0
D16: =Asset9 -> Zone Transformers | G16: ='RAB roll forward'!G726 -> 391.1405913 | H16: 329.9206118 | I16: 319.3665897 | J16: =IF(COUNT($H16:I16)>='RFM input'!$V$7,0,I16+I68+I120) -> 322.2799683 | K16: =IF(COUNT($H16:J16)>='RFM input'!$V$7,0,J16+J68+J120) -> 333.9744357 | L16: =IF(COUNT($H16:K16)>='RFM input'!$V$7,0,K16+K68+K120) -> 331.0196729 | M16: =IF(COUNT($H16:L16)>='RFM input'!$V$7,0,L16+L68+L120) -> 0 | N16: =IF(COUNT($H16:M16)>='RFM input'!$V$7,0,M16+M68+M120) -> 0 | O16: =IF(COUNT($H16:N16)>='RFM input'!$V$7,0,N16+N68+N120) -> 0 | P16: =IF(COUNT($H16:O16)>='RFM input'!$V$7,0,O16+O68+O120) -> 0 | Q16: =IF(COUNT($H16:P16)>='RFM input'!$V$7,0,P16+P68+P120) -> 0
D17: =Asset10 -> Distribution Transformers | G17: ='RAB roll forward'!G727 -> 1253.160722 | H17: 1252.234448 | I17: 1266.153103 | J17: =IF(COUNT($H17:I17)>='RFM input'!$V$7,0,I17+I69+I121) -> 1319.646001 | K17: =IF(COUNT($H17:J17)>='RFM input'!$V$7,0,J17+J69+J121) -> 1428.538232 | L17: =IF(COUNT($H17:K17)>='RFM input'!$V$7,0,K17+K69+K121) -> 1530.269574 | M17: =IF(COUNT($H17:L17)>='RFM input'!$V$7,0,L17+L69+L121) -> 0 | N17: =IF(COUNT($H17:M17)>='RFM input'!$V$7,0,M17+M69+M121) -> 0 | O17: =IF(COUNT($H17:N17)>='RFM input'!$V$7,0,N17+N69+N121) -> 0 | P17: =IF(COUNT($H17:O17)>='RFM input'!$V$7,0,O17+O69+O121) -> 0 | Q17: =IF(COUNT($H17:P17)>='RFM input'!$V$7,0,P17+P69+P121) -> 0
D18: =Asset11 -> Low Voltage Services | G18: ='RAB roll forward'!G728 -> 164.3300762 | H18: 141.7356903 | I18: 176.2639253 | J18: =IF(COUNT($H18:I18)>='RFM input'!$V$7,0,I18+I70+I122) -> 206.9525494 | K18: =IF(COUNT($H18:J18)>='RFM input'!$V$7,0,J18+J70+J122) -> 272.1450841 | L18: =IF(COUNT($H18:K18)>='RFM input'!$V$7,0,K18+K70+K122) -> 335.4387075 | M18: =IF(COUNT($H18:L18)>='RFM input'!$V$7,0,L18+L70+L122) -> 0 | N18: =IF(COUNT($H18:M18)>='RFM input'!$V$7,0,M18+M70+M122) -> 0 | O18: =IF(COUNT($H18:N18)>='RFM input'!$V$7,0,N18+N70+N122) -> 0 | P18: =IF(COUNT($H18:O18)>='RFM input'!$V$7,0,O18+O70+O122) -> 0 | Q18: =IF(COUNT($H18:P18)>='RFM input'!$V$7,0,P18+P70+P122) -> 0
D19: =Asset12 -> Communications – Pilot Wires | G19: ='RAB roll forward'!G729 -> 134.3884702 | H19: 132.6823931 | I19: 144.0211688 | J19: =IF(COUNT($H19:I19)>='RFM input'!$V$7,0,I19+I71+I123) -> 161.2188788 | K19: =IF(COUNT($H19:J19)>='RFM input'!$V$7,0,J19+J71+J123) -> 175.4390363 | L19: =IF(COUNT($H19:K19)>='RFM input'!$V$7,0,K19+K71+K123) -> 186.607453 | M19: =IF(COUNT($H19:L19)>='RFM input'!$V$7,0,L19+L71+L123) -> 0 | N19: =IF(COUNT($H19:M19)>='RFM input'!$V$7,0,M19+M71+M123) -> 0 | O19: =IF(COUNT($H19:N19)>='RFM input'!$V$7,0,N19+N71+N123) -> 0 | P19: =IF(COUNT($H19:O19)>='RFM input'!$V$7,0,O19+O71+O123) -> 0 | Q19: =IF(COUNT($H19:P19)>='RFM input'!$V$7,0,P19+P71+P123) -> 0
D20: =Asset13 -> Generation Assets | G20: ='RAB roll forward'!G730 -> 11.04594104 | H20: 20.79770082 | I20: 20.17105066 | J20: =IF(COUNT($H20:I20)>='RFM input'!$V$7,0,I20+I72+I124) -> 19.96280486 | K20: =IF(COUNT($H20:J20)>='RFM input'!$V$7,0,J20+J72+J124) -> 20.47402438 | L20: =IF(COUNT($H20:K20)>='RFM input'!$V$7,0,K20+K72+K124) -> 20.05164753 | M20: =IF(COUNT($H20:L20)>='RFM input'!$V$7,0,L20+L72+L124) -> 0 | N20: =IF(COUNT($H20:M20)>='RFM input'!$V$7,0,M20+M72+M124) -> 0 | O20: =IF(COUNT($H20:N20)>='RFM input'!$V$7,0,N20+N72+N124) -> 0 | P20: =IF(COUNT($H20:O20)>='RFM input'!$V$7,0,O20+O72+O124) -> 0 | Q20: =IF(COUNT($H20:P20)>='RFM input'!$V$7,0,P20+P72+P124) -> 0
D21: =Asset14 -> Other Equipment | G21: ='RAB roll forward'!G731 -> 61.72619826 | H21: =G21+G73+G125+G177+G229+G281 -> 1.521467318 | I21: 1.444443602 | J21: =IF(COUNT($H21:I21)>='RFM input'!$V$7,0,I21+I73+I125) -> 1.404081705 | K21: =IF(COUNT($H21:J21)>='RFM input'!$V$7,0,J21+J73+J125) -> 1.419974413 | L21: =IF(COUNT($H21:K21)>='RFM input'!$V$7,0,K21+K73+K125) -> 1.376071544 | M21: =IF(COUNT($H21:L21)>='RFM input'!$V$7,0,L21+L73+L125) -> 0 | N21: =IF(COUNT($H21:M21)>='RFM input'!$V$7,0,M21+M73+M125) -> 0 | O21: =IF(COUNT($H21:N21)>='RFM input'!$V$7,0,N21+N73+N125) -> 0 | P21: =IF(COUNT($H21:O21)>='RFM input'!$V$7,0,O21+O73+O125) -> 0 | Q21: =IF(COUNT($H21:P21)>='RFM input'!$V$7,0,P21+P73+P125) -> 0
D22: =Asset15 -> Control Centre - SCADA | G22: ='RAB roll forward'!G732 -> 17.44866948 | H22: 25.06328648 | I22: 19.55986467 | J22: =IF(COUNT($H22:I22)>='RFM input'!$V$7,0,I22+I74+I126) -> 14.91336365 | K22: =IF(COUNT($H22:J22)>='RFM input'!$V$7,0,J22+J74+J126) -> 18.14090368 | L22: =IF(COUNT($H22:K22)>='RFM input'!$V$7,0,K22+K74+K126) -> 22.18800548 | M22: =IF(COUNT($H22:L22)>='RFM input'!$V$7,0,L22+L74+L126) -> 0 | N22: =IF(COUNT($H22:M22)>='RFM input'!$V$7,0,M22+M74+M126) -> 0 | O22: =IF(COUNT($H22:N22)>='RFM input'!$V$7,0,N22+N74+N126) -> 0 | P22: =IF(COUNT($H22:O22)>='RFM input'!$V$7,0,O22+O74+O126) -> 0 | Q22: =IF(COUNT($H22:P22)>='RFM input'!$V$7,0,P22+P74+P126) -> 0
D23: =Asset16 -> Land & Easements (System) - combined | G23: ='RAB roll forward'!G733 -> 100.5004203 | H23: 98.92841338 | I23: 99.91826847 | J23: =IF(COUNT($H23:I23)>='RFM input'!$V$7,0,I23+I75+I127) -> 103.5815223 | K23: =IF(COUNT($H23:J23)>='RFM input'!$V$7,0,J23+J75+J127) -> 111.8613131 | L23: =IF(COUNT($H23:K23)>='RFM input'!$V$7,0,K23+K75+K127) -> 116.3971433 | M23: =IF(COUNT($H23:L23)>='RFM input'!$V$7,0,L23+L75+L127) -> 0 | N23: =IF(COUNT($H23:M23)>='RFM input'!$V$7,0,M23+M75+M127) -> 0 | O23: =IF(COUNT($H23:N23)>='RFM input'!$V$7,0,N23+N75+N127) -> 0 | P23: =IF(COUNT($H23:O23)>='RFM input'!$V$7,0,O23+O75+O127) -> 0 | Q23: =IF(COUNT($H23:P23)>='RFM input'!$V$7,0,P23+P75+P127) -> 0
D24: =Asset17 -> IT Systems | G24: ='RAB roll forward'!G734 -> 19.21949362 | H24: 19.86975947 | I24: 14.79358196 | J24: =IF(COUNT($H24:I24)>='RFM input'!$V$7,0,I24+I76+I128) -> 15.2031775 | K24: =IF(COUNT($H24:J24)>='RFM input'!$V$7,0,J24+J76+J128) -> 18.1016205 | L24: =IF(COUNT($H24:K24)>='RFM input'!$V$7,0,K24+K76+K128) -> 18.80606592 | M24: =IF(COUNT($H24:L24)>='RFM input'!$V$7,0,L24+L76+L128) -> 0 | N24: =IF(COUNT($H24:M24)>='RFM input'!$V$7,0,M24+M76+M128) -> 0 | O24: =IF(COUNT($H24:N24)>='RFM input'!$V$7,0,N24+N76+N128) -> 0 | P24: =IF(COUNT($H24:O24)>='RFM input'!$V$7,0,O24+O76+O128) -> 0 | Q24: =IF(COUNT($H24:P24)>='RFM input'!$V$7,0,P24+P76+P128) -> 0
D25: =Asset18 -> Office Equipment & Furniture | G25: ='RAB roll forward'!G735 -> 6.518512526 | H25: 0.4071516292 | I25: 0.3868200192 | J25: =IF(COUNT($H25:I25)>='RFM input'!$V$7,0,I25+I77+I129) -> -1.287292665 | K25: =IF(COUNT($H25:J25)>='RFM input'!$V$7,0,J25+J77+J129) -> -4.350314927 | L25: =IF(COUNT($H25:K25)>='RFM input'!$V$7,0,K25+K77+K129) -> -8.31740652 | M25: =IF(COUNT($H25:L25)>='RFM input'!$V$7,0,L25+L77+L129) -> 0 | N25: =IF(COUNT($H25:M25)>='RFM input'!$V$7,0,M25+M77+M129) -> 0 | O25: =IF(COUNT($H25:N25)>='RFM input'!$V$7,0,N25+N77+N129) -> 0 | P25: =IF(COUNT($H25:O25)>='RFM input'!$V$7,0,O25+O77+O129) -> 0 | Q25: =IF(COUNT($H25:P25)>='RFM input'!$V$7,0,P25+P77+P129) -> 0
D26: =Asset19 -> Motor Vehicles | G26: ='RAB roll forward'!G736 -> 100.589668 | H26: 91.76812057 | I26: 88.02139966 | J26: =IF(COUNT($H26:I26)>='RFM input'!$V$7,0,I26+I78+I130) -> 87.24921697 | K26: =IF(COUNT($H26:J26)>='RFM input'!$V$7,0,J26+J78+J130) -> 96.13635095 | L26: =IF(COUNT($H26:K26)>='RFM input'!$V$7,0,K26+K78+K130) -> 128.549572 | M26: =IF(COUNT($H26:L26)>='RFM input'!$V$7,0,L26+L78+L130) -> 0 | N26: =IF(COUNT($H26:M26)>='RFM input'!$V$7,0,M26+M78+M130) -> 0 | O26: =IF(COUNT($H26:N26)>='RFM input'!$V$7,0,N26+N78+N130) -> 0 | P26: =IF(COUNT($H26:O26)>='RFM input'!$V$7,0,O26+O78+O130) -> 0 | Q26: =IF(COUNT($H26:P26)>='RFM input'!$V$7,0,P26+P78+P130) -> 0
D27: =Asset20 -> Plant & Equipment | G27: ='RAB roll forward'!G737 -> 56.73067119 | H27: 67.4063993 | I27: 56.2832313 | J27: =IF(COUNT($H27:I27)>='RFM input'!$V$7,0,I27+I79+I131) -> 46.27112534 | K27: =IF(COUNT($H27:J27)>='RFM input'!$V$7,0,J27+J79+J131) -> 40.39109759 | L27: =IF(COUNT($H27:K27)>='RFM input'!$V$7,0,K27+K79+K131) -> 38.80759937 | M27: =IF(COUNT($H27:L27)>='RFM input'!$V$7,0,L27+L79+L131) -> 0 | N27: =IF(COUNT($H27:M27)>='RFM input'!$V$7,0,M27+M79+M131) -> 0 | O27: =IF(COUNT($H27:N27)>='RFM input'!$V$7,0,N27+N79+N131) -> 0 | P27: =IF(COUNT($H27:O27)>='RFM input'!$V$7,0,O27+O79+O131) -> 0 | Q27: =IF(COUNT($H27:P27)>='RFM input'!$V$7,0,P27+P79+P131) -> 0
D28: =Asset21 -> Buildings | G28: ='RAB roll forward'!G738 -> 344.0410804 | H28: 354.5947566 | I28: 347.1104414 | J28: =IF(COUNT($H28:I28)>='RFM input'!$V$7,0,I28+I80+I132) -> 348.702472 | K28: =IF(COUNT($H28:J28)>='RFM input'!$V$7,0,J28+J80+J132) -> 365.0922153 | L28: =IF(COUNT($H28:K28)>='RFM input'!$V$7,0,K28+K80+K132) -> 368.1104578 | M28: =IF(COUNT($H28:L28)>='RFM input'!$V$7,0,L28+L80+L132) -> 0 | N28: =IF(COUNT($H28:M28)>='RFM input'!$V$7,0,M28+M80+M132) -> 0 | O28: =IF(COUNT($H28:N28)>='RFM input'!$V$7,0,N28+N80+N132) -> 0 | P28: =IF(COUNT($H28:O28)>='RFM input'!$V$7,0,O28+O80+O132) -> 0 | Q28: =IF(COUNT($H28:P28)>='RFM input'!$V$7,0,P28+P80+P132) -> 0
D29: =Asset22 -> Land & Easements - combined | G29: ='RAB roll forward'!G739 -> 27.34460317 | H29: 27.96478936 | I29: 28.19833703 | J29: =IF(COUNT($H29:I29)>='RFM input'!$V$7,0,I29+I81+I133) -> 29.11739765 | K29: =IF(COUNT($H29:J29)>='RFM input'!$V$7,0,J29+J81+J133) -> 31.39782039 | L29: =IF(COUNT($H29:K29)>='RFM input'!$V$7,0,K29+K81+K133) -> 32.67005623 | M29: =IF(COUNT($H29:L29)>='RFM input'!$V$7,0,L29+L81+L133) -> 0 | N29: =IF(COUNT($H29:M29)>='RFM input'!$V$7,0,M29+M81+M133) -> 0 | O29: =IF(COUNT($H29:N29)>='RFM input'!$V$7,0,N29+N81+N133) -> 0 | P29: =IF(COUNT($H29:O29)>='RFM input'!$V$7,0,O29+O81+O133) -> 0 | Q29: =IF(COUNT($H29:P29)>='RFM input'!$V$7,0,P29+P81+P133) -> 0
